{"text_format":"3","workbook":"xlsx","n_sheets":7,"sheets":["kuni 2025 detsember tegevuskava","Seirearuanne","KK_lisa","Tegevuskava","Ettekande arvutused","Personal","RES ÕIGUSAKTIDE LISAVAJADUS"],"not_rendered":{"charts":8,"macros":1,"defined_names":2,"comments":1},"read":"whole","date_system":"1900"}

{"sheet":"kuni 2025 detsember tegevuskava","index":0,"n_rows":147,"n_cols":46,"rows_kept":147,"hidden":true,"merged":[[1,1,1,4],[1,6,1,10],[16,1,16,8],[16,10,16,17],[18,10,18,17],[19,1,19,8],[19,10,19,17],[21,10,21,17],[22,1,22,8],[22,10,22,17],[24,10,24,17],[25,1,25,8],[25,10,25,17],[27,10,27,17],[31,23,31,40],[32,23,32,25],[32,26,32,28],[32,29,32,31],[32,32,32,34],[32,35,32,37],[32,38,32,40],[33,17,33,22]]}
["Valdkondlik digipööre"]
["Elluviija: ","Majandus-ja Kommunikatsiooniministeerium",{"$nulls":4},"Valdkondliku digipöörde maksumus kokku (2023-2028) meetme nelja tegevuse lõikes, arvestdes kõiki rahasutsallikaid."]
["Eelarve:","Kokku\n2023-2025",2023,2024,2025,null,"Kokku:","1. Infotehnoloogiliste lahenduste väljatöötamine ja arendamine","2. küberruumi hoidmine, arendamine ja juurutamine usaldusväärse ja turvalisena","3. Teadlikkuse tõstmine","4. muu digipöördega seotud otsene kulu"]
["KOKKU:",{"$f":"SUM(C4:E4)","v":{"v":18919067,"d":"18,919,067"}},{"$f":"SUM(C5+C12)","v":{"v":23250,"d":"23,250"}},{"$f":"SUM(D5+D12)","v":{"v":1807000,"d":"1,807,000"}},{"$f":"SUM(E5+E12)","v":{"v":17088817,"d":"17,088,817"}},null,{"$f":"SUM(H4:K4)","v":{"v":117893811.62601513,"d":"117,893,812"}},{"$f":"SUMIFS(Q35:Q104,G35:G104,$G$107)","v":{"v":25110996.7356,"d":"25,110,997"}},{"$f":"SUMIFS(Q35:Q104,G35:G104,$G$108)","v":{"v":5793472,"d":"5,793,472"}},{"$f":"SUMIFS(Q35:Q104,G35:G104,$G$109)","v":{"v":3652580.5,"d":"3,652,581"}},{"$f":"SUMIFS(Q35:Q104,G35:G104,$G$110)","v":{"v":83336762.39041513,"d":"83,336,762"}}]
["Digipöörde olemasolevad rahalised vahedid",{"$f":"SUM(C5:E5)","v":{"v":683625,"d":"683,625"}},{"$f":"SUM(C6:C11)","v":0},{"$f":"SUM(D6:D11)","v":0},{"$f":"SUM(E6:E11)","v":{"v":683625,"d":"683,625"}}]
["sh baaseelarve",{"$f":"SUM(C6:E6)","v":0},{"$f":"SUMIFS(R35:R104,P35:P104,\"Baaseelarve\")","v":0},{"$f":"SUMIFS(S35:S104,P35:P104,\"Baaseelarve\")","v":0},{"$f":"SUMIFS(T35:T104,P35:P104,\"Baaseelarve\")","v":0}]
["sh muu rahastus",{"$f":"SUM(C7:E7)","v":{"v":683625,"d":"683,625"}},{"$f":"SUMIFS(R35:R104,P35:P104,\"Muu rahastus\")","v":0},{"$f":"SUMIFS(S35:S104,P35:P104,\"Muu rahastus\")","v":0},{"$f":"SUMIFS(T35:T104,P35:P104,\"Muu rahastus\")","v":{"v":683625,"d":"683,625"}}]
["sh reserv (SR)",{"$f":"SUM(C8:E8)","v":0},{"$f":"SUMIFS(R35:R104,P35:P104,\"Reserv (SR)\")","v":0},{"$f":"SUMIFS(S35:S104,P35:P104,\"Reserv (SR)\")","v":0},{"$f":"SUMIFS(T35:T104,P35:P104,\"Reserv (SR)\")","v":0}]
["sh RRF",{"$f":"SUM(C9:D9)","v":0},{"$f":"SUMIFS(R35:R104,P35:P104,\"RRF\")","v":0},{"$f":"SUMIFS(S35:S104,P35:P104,\"RRF\")","v":0}]
["sh SF 14-20 (töös olev projekt)",{"$f":"SUM(C10:E10)","v":0},{"$f":"SUMIFS(R35:R104,P35:P104,\"SF 14-20 (töös olev projekt)\")","v":0},{"$f":"SUMIFS(S35:S104,P35:P104,\"SF 14-20 (töös olev projekt)\")","v":0},{"$f":"SUMIFS(T35:T104,P35:P104,\"SF 14-20 (töös olev projekt)\")","v":0}]
["RRF",{"$f":"SUM(C11:E11)","v":0},{"$f":"SUMIFS(R35:R104,P35:P104,\"RRF\")","v":0},{"$f":"SUMIFS(S35:S104,P35:P104,\"RRF\")","v":0},{"$f":"SUMIFS(T35:T104,P35:P104,\"RRF\")","v":0}]
["Digipöörde puuduolevad rahalised vahendid",{"$f":"SUM(C12:E12)","v":{"v":18235442,"d":"18,235,442"}},{"$f":"SUM(C13:C14)","v":{"v":23250,"d":"23,250"}},{"$f":"SUM(D13:D14)","v":{"v":1807000,"d":"1,807,000"}},{"$f":"SUM(E13:E14)","v":{"v":16405192,"d":"16,405,192"}}]
["sh RES IKT (vaja juurde taotleda)",{"$f":"SUM(C13:E13)","v":{"v":14244642,"d":"14,244,642"}},{"$f":"SUMIFS(R35:R104,P35:P104,\"RES IKT (vaja juurde taotleda)\")","v":0},{"$f":"SUMIFS(S35:S104,P35:P104,\"RES IKT (vaja juurde taotleda)\")","v":0},{"$f":"SUMIFS(T35:T104,P35:P104,\"RES IKT (vaja juurde taotleda)\")","v":{"v":14244642,"d":"14,244,642"}},"Puudu olev lisavajadus riigieelarvest, vajadus taotleda RES protsessis."]
["sh SF 21-27 (taotletav raha)",{"$f":"SUM(C14:E14)","v":{"v":3990800,"d":"3,990,800"}},{"$f":"SUMIFS(R35:R104,P35:P104,\"SF 21-27 (taotletav raha)\")","v":{"v":23250,"d":"23,250"}},{"$f":"SUMIFS(S35:S104,P35:P104,\"SF 21-27 (taotletav raha)\")","v":{"v":1807000,"d":"1,807,000"}},{"$f":"SUMIFS(T35:T104,P35:P104,\"SF 21-27 (taotletav raha)\")","v":{"v":2160550,"d":"2,160,550"}},"Puudu olev lisavajadus SF-st, SF 21-27 valdkondlike digipöörete toetusskeemist."]
[]
["NB! Mõõdikud tuleb täita ainult SF 2021-2027 rahastuse puhul."]
["Meetmete nimekirja tulemusnäitaja:","Uute ja uuendatud avalike digiteenuste, -toodete ja -protsesside kasutajad. Mõõtühik: lõppkasutajaid aastas.",{"$nulls":7},"Elluviija kommentaar","Käskkirjas välja toodud elluviijate peale kokku on mõõdiku 2029 sihttase 2 000 000. Välja tuua, milline on teie panus selle mõõdiku täitmisse."]
["Periood","2023 algtase","2024 sihttase","2025 sihttase","2026 sihttase","2027 sihttase","2028 sihttase","2029 sihttase","2030 lõpptase"]
["Väärtus",0,{"v":5000,"d":"5,000"},{"v":10000,"d":"10,000"},{"v":18000,"d":"18,000"},{"v":28000,"d":"28,000"},{"v":30000,"d":"30,000"},{"v":30000,"d":"30,000"},{"v":30000,"d":"30,000"},"Arvestatud on TTJA kasutajate arvu, mitte kasutusjuhtusid.","Sisestada tuleb täisarv."]
["Meetmete nimekirja väljundnäitaja:","Uued või uuendatud digiteenused, -tooted ja -protsessid. Mõõtühik: arv ",{"$nulls":8},"Käskkirjas välja toodud elluviijate peale kokku on mõõdiku 2029 sihttase 35. Välja tuua, milline on teie panus selle mõõdiku täitmisse.\nSiia tuleb kokku lugeda lõpule viidud uued või uuendatud digiteenused, - tooted ja -protsessid."]
["Periood","2023 algtase","2024 sihttase","2025 sihttase","2026 sihttase","2027 sihttase","2028 sihttase","2029 sihttase","2030 lõpptase"]
["Väärtus",0,2,30,50,80,84,84,84,"Teenuste arv võib muutuda kuna TTJA teenuste portfell ei ole veel lõplikult kokku lepitud.","Kasutuskordade kokku lugemise metoodika määrab elluviija ise arvestades oma valdkonda. Sisestada tuleb täisarv."]
["Meetmete nimekirja väljundnäitaja:","Avaliku sektori asutused, keda toetatakse digiteenuste, -toodete ja -protsesside väljatöötamiseks. Mõõtühik: Avaliku sektori asutused.",{"$nulls":8},"Käskkirjas välja toodud elluviijate peale kokku on mõõdiku 2029 sihttase 35. Välja tuua, milline on teie panus selle mõõdiku täitmisse.\nSiia tuleb kokku lugeda asutused, kes teie digipöörde raames SF toetust kasutavad (elluviija ja partnerid).\n"]
["Periood","2023 algtase","2024 sihttase","2025 sihttase","2026 sihttase","2027 sihttase","2028 sihttase","2029 sihttase","2030 lõpptase"]
["Väärtus",0,4,5,5,6,7,7,7,"MKMi valitsemisala asutused ning seotud IT asutused, kes digipöörde suundadega (teenused, andmed, arhitektuur, küberturvalisus, kestlikkus, oskused) tegelevad.\n","Tükkide kokku lugemise metoodika määrab elluviija ise arvestades oma valdkonda. Sisestada tuleb täisarv."]
["Projektispetsiifiline näitaja (Eesti digiühiskonna arengukava 2030 (DA 2030) mõõdik):","Avalike digiteenustega rahulolu. Mõõtühik: % ",{"$nulls":8},"Riigiüleselt avalike digiteenustega rahululu peab 2030. aastaks tõusma 90%-le. Välja tuua, milline on teie panus selle mõõdiku täitmisse."]
["Periood","2023 algtase","2024 sihttase","2025 sihttase","2026 sihttase","2027 sihttase","2028 sihttase","2029 sihttase","2030 lõpptase"]
["Väärtus",0,0,70,80,82,85,88,90,"Metoodikat ja mõõtmist hakatakse TTJA teenustele 2024 välja töötama.","Rahulolu kokku lugemise metoodika määrab elluviija ise arvestades oma valdkonda"]
[]
[]
[]
[{"$nulls":23},"NB! Kõik summad kajastada ilma käibemaksuta!"]
["Elluviija/ministeerium","Struktuuriüksus","Partner/Asutus","Teenuse vastutaja","DÜAK plokk","Panus arengukava suunda","Meetme toetatav tegevus","TERE teenus","Probleem","Tegevuse (algatuse) nimi","Tulemus","Otsus","Valdkonna prioriteet","Slaid/allikas","Paneeli vajadus","Rahastuse allikas","Summa kokku",2023,2024,2025,2026,2027,2028,"2023\n(Kasutusse võetud vahendid, ehk kohustustega / lepingutega kaetud)",null,null,2024,null,null,2025,null,null,2026,null,null,2027,null,null,2028,null,null,"Kalkulatsioon ja  allika põhjendus\nVõimalusel kirjeldada siin lahtris, kui on põhjalikum tabeli kujul kalkulatsioon, siis see tuua välja eraldi Exceli lehel ja siin vastava rea lahtris sellele viidata.","Tegevuse jätkusuutlikkuse kulu","Kommentaar\n","RES lisavajaduste grupid","RES lisavajaduste kestvus"]
["Punkt 5.3.1.\n„Toetuse andmise tingimused valdkondlike\ndigipöörete toetamiseks“","Punkt 5.6.\n„Toetuse andmise tingimused valdkondlike\ndigipöörete toetamiseks“","Partner/asutus, kelle eelarvest algatusi teostatakse\nPunkt 5.6.\n„Toetuse andmise tingimused valdkondlike\ndigipöörete toetamiseks“","Vastutav teenuseomanik/\nprojektijuht","(valida rippmenüüst)","(valida rippmenüüst)","(valida rippmenüüst, SF TAT käskkirja punkt 3.1. neli tegevust)","Kirjutada välja TERE teenuse nimetus","Täita kõikide ridade puhul","Täita kõikide ridade puhul\n(Kui tegmist jätkusuutlikkuse tagamise tegevusega, siis see nimes välja tuua.)","Täita kõikide ridade puhul.\nKui mitme aastane tegevus/projekt, siis kirjutada välja vähemalt 2023. aasta tulemus ja lõpptulemus.\nRES lisavajadustel tuua välja, mida mingi aasta RES rahade eest ära tehakse. Kui lisavajadus on kogu perioodiks ja kulud on aasta-aastalt sama, siis näiteks:\n2025-2028 - SF-st arendatu hoolduskulu, väikearendused, majutus riigipilves, jne.\nKui tegevused on aastati erinevad, siis tuua need välja järgmiselt:\n2025 - \n2026 - \n2027 -\n2028 - ","ok- rahastada, nok- mitte rahastada, ?-otsus lahtine","Unikaalne prioriteet","Esitatud slaidi number, või viide allikale, kus on võimalik tutvuda vajadusel sisuga, sh täpsemate kalkulatsioonidega ","Anda hinnang, kas on vajadus äri-, andmete-, arhitektuuri-, või muu paneeli järele.\nNB! Paneelivajadus on igal üle 400 000 euro maksval algatusel/tegevusel. Konkreetne paneel, või paneelid otsustatakse MKM ettepanekul kohtumisel elluviijaga.","(valida rippmenüüst)",{"$nulls":7},"Investeering\n(15)","Tööjõukulu\n(50)","Majandamiskulu\n(55) ","Investeering\n(15)","Tööjõukulu\n(50)","Majandamiskulu\n(55) ","Investeering\n(15)","Tööjõukulu\n(50)","Majandamiskulu\n(55) ","Investeering\n(15)","Tööjõukulu\n(50)","Majandamiskulu\n(55) ","Investeering\n(15)","Tööjõukulu\n(50)","Majandamiskulu\n(55) ","Investeering\n(15)","Tööjõukulu\n(50)","Majandamiskulu\n(55) ","Välja peab olema toodud tegevuste maksumuste arvutused, koos tundide hinna, tundide arvu ja tunnihinna selgitustega. Arenduste puhul lisada tunnihinna põhjendus varasemate hangetega. Inimeste palkamisel peab lähtuma Fontese palgauuringust ja viitama vastavale tööperele.","(valida rippmenüüst)","RES lisavajaduste puhul tuua välja, milliste tabeli SF ridadega on käesolev jätkusuutlikkuse rida seotud. Nt: jätkusuutlikkuse kulu ridadele 38, 39 ja 40.\nKui ei ole tegemist jätkusuutlikkuse kuluga, vaid digipöördes eraldiseisva riigieelarvest täiendavat rahastust vajava tegevusega, siis see siin veerus välja tuua.","1. Personaalne riik.\n2. AI ja andmed.\n3. Õigusaktidest tulenevad vajadused. \n4. Baasi korrastamine.\n5. Küberturvalisus.\n6. Mittesõjalised riigikaitselised IKT vajadused.","RES lisavajaduste puhul tuua välja kas tegemist püsikuluga mis peab minema baasi, või on tegemist ühekordse kuluga konkrteetse(te)l aasta(te)l."]
["MKM",null,null,"Kaire Kasearu","I: Digiriik","1.2.1. Avalike teenuste juhtimise ja kasutajakesksuse juurutamine","III: teadlikkuse tõstmine","Panustab mitmetesse TERE teenustesse","Puudub ühine standard ja raamistik, kuidas teenuste kogu elukaare jooksul juhitakse ning arendatakse, arvestades 6 suunda","Teenuse elukaare juhtimise strateegia, sh mõõdikute kokku panemine, sh eksperdiga koostöös (Analüüsist: Luua VA strateegilisi eesmärke toetav IKT strateegia ja rakendusplaan, organisatsiooni plaan ja riskiplaan.)","Teenuse elukaare juhtimise strateegia on koostatud ja mõõdikud olemas","ok",9,null,"Ei","SF 21-27 (taotletav raha)",{"$f":"SUM(R35:W35)","v":{"v":15000,"d":"15,000"}},{"$f":"SUM(X35:Z35)","v":0},{"$f":"SUM(AA35:AC35)","v":{"v":15000,"d":"15,000"}},{"$f":"SUM(AD35:AF35)","v":0},{"$f":"SUM(AG35:AI35)","v":0},{"$f":"SUM(AJ35:AL35)","v":0},{"$f":"SUM(AM35:AO35)","v":0},{"$nulls":5},{"v":15000,"d":"15,000"},{"$nulls":12},"Analoogne teenuse ostmise leping on aluseks võetud","2. Tegevus on jätkusuutlikkuse kulu (baaseelarve, RES lisataotlus, muu allikas)"]
["MKM",null,null,"Kaire Kasearu","I: Digiriik","1.2.1. Avalike teenuste juhtimise ja kasutajakesksuse juurutamine","III: teadlikkuse tõstmine","Panustab mitmetesse TERE teenustesse","Kuna MKMis varasemalt digipöörde juhtimismudelit ei olnud, siis ühste eesmärgi jaoks peab olema juhtimismudel käivitatud ja juurutatud.","Juhtimismudeli käivitamine ja juurutamine (nõukogu, juhtrühma ja võrgustikuga seotud tegevused)","Nõukogu, juhtrühm ja võrgustiku tegevused on korraldatud.","ok",10,null,"Ei","SF 21-27 (taotletav raha)",{"v":7000,"d":"7,000"},{"$f":"SUM(X36:Z36)","v":0},{"$f":"SUM(AA36:AC36)","v":{"v":7000,"d":"7,000"}},{"$f":"SUM(AD36:AF36)","v":0},{"$f":"SUM(AG36:AI36)","v":0},{"$f":"SUM(AJ36:AL36)","v":0},{"$f":"SUM(AM36:AO36)","v":0},{"$nulls":5},{"v":7000,"d":"7,000"},{"$nulls":13},"5. SF tegevus, mis ei vaja jätkusuutlikkuse kulusid (nt analüüs)"]
["MKM",null,null,"Kaire Kasearu","I: Digiriik","1.2.7. Avaliku sektori digimuutuste võimendamine","III: teadlikkuse tõstmine","Panustab mitmetesse TERE teenustesse","MKMi valitsemisala digipöörde suundade hetkeolukord on kaardistatud ja probleemkohad leitud.","MKMi valitsemisala digipöörde suundade (teenuse juhtimine, andmed, arhitektuur, küberturvalisus, kestlikkus, oskused ja võimekus) võimestamise tegevused","Hetkeolukorrast lähtuvalt aasta 2023/2024 kriitilised tegevused on tehtud.","ok",3,null,null,"SF 21-27 (taotletav raha)",{"v":30000,"d":"30,000"},{"$f":"SUM(X37:Z37)","v":0},{"$f":"SUM(AA37:AC37)","v":{"v":30000,"d":"30,000"}},{"$f":"SUM(AD37:AF37)","v":0},{"$f":"SUM(AG37:AI37)","v":0},{"$f":"SUM(AJ37:AL37)","v":0},0,{"$nulls":5},{"v":30000,"d":"30,000"},{"$nulls":12},"Arvestatud on 15 tuhat konsultatsiooni ja 15000 ajurünnaku vms üritusi.","5. SF tegevus, mis ei vaja jätkusuutlikkuse kulusid (nt analüüs)"]
["MKM","TTJA",null,"Raul Kallas","I: Digiriik","1.2.5. Uute lähenemisviiside pidev katsetamine","I: Infotehnoloogiliste lahenduste väljatöötamine ja arendamine","Panustab mitmetesse TERE teenustesse","Puudub võimekus protsessimootor  mikroarhitektuuri integreerida.","Protsessimootri kasutuselevõtu lahenduse väljatöötamine (2021-27 SF)","On valminud protsessi juhtimise tarkvarade võrdlev analüüs","ok",5,null,"Ei","SF 21-27 (taotletav raha)",{"v":25000,"d":"25,000"},0,{"v":25000,"d":"25,000"},0,0,0,0,{"$nulls":5},{"v":25000,"d":"25,000"},{"$nulls":13},"5. SF tegevus, mis ei vaja jätkusuutlikkuse kulusid (nt analüüs)"]
["MKM","TTJA",null,"Raul Kallas","I: Digiriik","1.2.7. Avaliku sektori digimuutuste võimendamine","III: teadlikkuse tõstmine","Panustab mitmetesse TERE teenustesse","TTJAl puudub võimekus analüütiku ja koolituste osas","TTJA võimestamine digipöörde elluviimiseks (nt analüütikud, disainer, koolitused) (2021-27 SF)","Digipöörde elluviimiseks on värvatud nt analüütikud, disainer, kompetentsid on tugevdatud","ok",2,null,"Ei","SF 21-27 (taotletav raha)",{"v":991052,"d":"991,052"},{"v":19102,"d":"19,102"},{"$f":"SUM(AA39:AC39)","v":{"v":224000,"d":"224,000"}},{"v":224000,"d":"224,000"},{"v":255800,"d":"255,800"},{"v":268150,"d":"268,150"},0,null,{"v":11926,"d":"11,926"},7176,null,{"v":214000,"d":"214,000"},{"v":10000,"d":"10,000"},null,{"v":214000,"d":"214,000"},{"v":10000,"d":"10,000"},null,{"v":245800,"d":"245,800"},{"v":10000,"d":"10,000"},null,{"v":258150,"d":"258,150"},{"v":10000,"d":"10,000"},{"$nulls":4},"4. SF tegevus, mis vajab jätkusuutlikkuse kulusid, aga neid pole välja arvutatud ja eraldi real välja toodud","Alates 2028 tekib RES vajadus"]
["MKM","TTJA",null,"Raul Kallas","I: Digiriik","1.2.5. Uute lähenemisviiside pidev katsetamine","I: Infotehnoloogiliste lahenduste väljatöötamine ja arendamine","Panustab mitmetesse TERE teenustesse","Teenuste portfelli nõuded ei ole vastavuses suundade ja nõuetega","TTJA teenuste portfelli ärianalüüs, tegevuskava teenuste vastavusse viimiseks haldusala üldiste suundade/nõuetega","Ärianalüüs ja tegevuskava olemas","ok",5,null,"Ei","SF 21-27 (taotletav raha)",{"v":5000,"d":"5,000"},0,{"v":5000,"d":"5,000"},0,0,0,0,{"$nulls":5},{"v":5000,"d":"5,000"},{"$nulls":13},"5. SF tegevus, mis ei vaja jätkusuutlikkuse kulusid (nt analüüs)"]
["MKM","TTJA",null,"Raul Kallas","I: Digiriik","1.2.5. Uute lähenemisviiside pidev katsetamine","I: Infotehnoloogiliste lahenduste väljatöötamine ja arendamine","Panustab mitmetesse TERE teenustesse","Klienditoe teenus on killustatud ja pole ühtselt hallatud.","klienditoe teenuse I etapi käivitamine","Klienditoe I etapp on käivitatud","ok",4,null,"Ei","SF 21-27 (taotletav raha)",{"v":5000,"d":"5,000"},0,{"v":5000,"d":"5,000"},0,0,0,0,{"$nulls":5},{"v":5000,"d":"5,000"},{"$nulls":13},"5. SF tegevus, mis ei vaja jätkusuutlikkuse kulusid (nt analüüs)"]
["MKM","TTJA",null,"Raul Kallas","I: Digiriik","1.2.5. Uute lähenemisviiside pidev katsetamine","I: Infotehnoloogiliste lahenduste väljatöötamine ja arendamine","Panustab mitmetesse TERE teenustesse","E-teenuste infosüsteemi tootestamiseks puudub hea sisend, mille alusel arendusi tellida.","e-teenuste infosüsteemi tootestamise analüüs","e-teenuste analüüs on olemas","ok",7,null,"Ei","SF 21-27 (taotletav raha)",{"v":10000,"d":"10,000"},0,{"v":10000,"d":"10,000"},0,0,0,0,{"$nulls":5},{"v":10000,"d":"10,000"},{"$nulls":13},"5. SF tegevus, mis ei vaja jätkusuutlikkuse kulusid (nt analüüs)"]
["MKM","KEMIT",null,"Kristjan Kaiklem","I: Digiriik","1.2.5. Uute lähenemisviiside pidev katsetamine","I: Infotehnoloogiliste lahenduste väljatöötamine ja arendamine","Panustab mitmetesse TERE teenustesse","Direktiivide ülevõtmiseks ja andmete liidestumiseks puudub selge teadmine.","EU direktiivinõuete täitmiseks andmeliidestuse mikroteenuse analüüs ja arendus","Teostatud on arendusprojekt liidestuste loomiseks  ","ok",8,null,"Ei","SF 21-27 (taotletav raha)",{"v":60000,"d":"60,000"},0,{"v":60000,"d":"60,000"},0,0,0,0,{"$nulls":3},{"v":60000,"d":"60,000"},{"$nulls":15},"5. SF tegevus, mis ei vaja jätkusuutlikkuse kulusid (nt analüüs)","Rida 48-ga seos arenduste vaates"]
["MKM",null,null,"Kaire Kasearu","I: Digiriik","1.2.1. Avalike teenuste juhtimise ja kasutajakesksuse juurutamine","III: teadlikkuse tõstmine","Panustab mitmetesse TERE teenustesse","Digipöörde käivitamine eeldab uusi kompetentse ja keskseid koordineerivad rolle teemades IT arhitektuur, teenused, andmed, kestlikkus, oskused, mida hetkel valitsemisalas pole","Kesksete rollide loomine valitsemisalas","On olemas valitsemisala teenused, arhitektuur, andmed, kestlikkus, oskused teemade vastuatajate kompetentsid.","ok",1,null,"Ei","SF 21-27 (taotletav raha)",{"v":549148,"d":"549,148"},{"v":4148,"d":"4,148"},{"v":90000,"d":"90,000"},{"v":135000,"d":"135,000"},{"v":320000,"d":"320,000"},0,0,null,{"v":4148,"d":"4,148"},null,null,{"v":75000,"d":"75,000"},{"v":15000,"d":"15,000"},null,{"v":115000,"d":"115,000"},{"v":20000,"d":"20,000"},null,{"v":300000,"d":"300,000"},{"v":20000,"d":"20,000"},{"$nulls":6},"Tavapäraselt (nt KEMIT) tööjõu näitel on antud ametikoha palgakuluks arvestatud koos kõikide maksudega 6000 eurot ning koolitus ja lähetuskulud 5000 eurot","4. SF tegevus, mis vajab jätkusuutlikkuse kulusid, aga neid pole välja arvutatud ja eraldi real välja toodud","Selgub täpsemalt 2025 aastal. Hetkel arvestatud lubatud SF perioodiga."]
["MKM","KEMIT",null,"Kristjan Kaiklem","I: Digiriik","1.2.1. Avalike teenuste juhtimise ja kasutajakesksuse juurutamine","I: Infotehnoloogiliste lahenduste väljatöötamine ja arendamine","Panustab mitmetesse TERE teenustesse","Teenused aeglased, kliendile ebamugavad, automatiseerimata; süsteemides esineb palju vigu","Uue kasutajaliidese disaini väljatöötamine","Teostatud loateenuste kasutajateekondade analüüs ja loodud uus UX  disain loateenuste kasutajateekondade jaoks","ok",1,null,"Ei","SF 21-27 (taotletav raha)",{"v":120000,"d":"120,000"},0,{"v":120000,"d":"120,000"},0,0,0,0,{"$nulls":5},{"v":120000,"d":"120,000"},{"$nulls":12},"10000 on hinnanguliselt 1 teenuse analüüs","5. SF tegevus, mis ei vaja jätkusuutlikkuse kulusid (nt analüüs)"]
["MKM","KEMIT",null,"Kristjan Kaiklem","I: Digiriik","1.2.1. Avalike teenuste juhtimise ja kasutajakesksuse juurutamine","I: Infotehnoloogiliste lahenduste väljatöötamine ja arendamine","Ettevõtluskeskkonna toimimise tagamine","Teenused aeglased, kliendile ebamugavad, automatiseerimata; süsteemides esineb palju vigu","Loateenuste piloot ja välisinvesteeringute usaldusväärsuse hindamise rakendus","Välisinvesteeringute usaldusväärsuse hindamise teenuse detailanalüüs teostatud ja loataotluse rakendus toimib kliendikeskkonna tootes koos majandustegevuse teadetega toodangukeskkonnas","ok",1,null,"Ei","SF 21-27 (taotletav raha)",{"v":280000,"d":"280,000"},0,{"v":200000,"d":"200,000"},{"v":80000,"d":"80,000"},0,0,0,{"$nulls":3},{"v":200000,"d":"200,000"},null,null,{"v":80000,"d":"80,000"},{"$nulls":11},"Kinnitatud eelarve","5. SF tegevus, mis ei vaja jätkusuutlikkuse kulusid (nt analüüs)"]
["MKM","TTJA",null,"Raul Kallas","I: Digiriik","1.2.1. Avalike teenuste juhtimise ja kasutajakesksuse juurutamine","I: Infotehnoloogiliste lahenduste väljatöötamine ja arendamine","Panustab mitmetesse TERE teenustesse","Teenused aeglased, kliendile ebamugavad, automatiseerimata; süsteemides esineb palju vigu","Projektijuht","Digipörde teostamine toimib vastavalt aja- ja tegevusplaanile","ok",1,null,"Ei","SF 21-27 (taotletav raha)",{"v":246600,"d":"246,600"},0,{"v":55000,"d":"55,000"},{"v":55000,"d":"55,000"},{"v":66500,"d":"66,500"},{"v":70100,"d":"70,100"},0,null,0,null,null,{"v":55000,"d":"55,000"},null,null,{"v":55000,"d":"55,000"},null,null,{"v":66500,"d":"66,500"},null,null,{"v":70100,"d":"70,100"},{"$nulls":5},"5. SF tegevus, mis ei vaja jätkusuutlikkuse kulusid (nt analüüs)","Kui projekt lõpeb, siis ka jätkukulu ei ole vaja."]
["MKM","KEMIT",null,"Kristjan Kaklem","I: Digiriik","1.2.1. Avalike teenuste juhtimise ja kasutajakesksuse juurutamine","IV: muu digipöördega seotud otsene kulu","Panustab mitmetesse TERE teenustesse","Teenused aeglased, kliendile ebamugavad, automatiseerimata; süsteemides esineb palju vigu","e-teenuste tehnoloogilise platvormi baaskulu","Tehnoloogiline taristu ja teenused on hallatud","?",1,null,"Ei","SF 21-27 (taotletav raha)",{"v":488800,"d":"488,800"},0,{"v":150000,"d":"150,000"},0,{"v":165300,"d":"165,300"},{"v":173500,"d":"173,500"},0,{"$nulls":3},{"v":150000,"d":"150,000"},null,null,0,null,null,{"v":165300,"d":"165,300"},null,null,{"v":173500,"d":"173,500"},{"$nulls":5},"10% investeerinu maksumusest","4. SF tegevus, mis vajab jätkusuutlikkuse kulusid, aga neid pole välja arvutatud ja eraldi real välja toodud","Vajadus tekib alates 2028"]
["MKM","TTJA",null,"Raul Kallas","I: Digiriik","1.2.5. Uute lähenemisviiside pidev katsetamine","I: Infotehnoloogiliste lahenduste väljatöötamine ja arendamine","Panustab mitmetesse TERE teenustesse","Teenused aeglased, kliendile ebamugavad, automatiseerimata; süsteemides esineb palju vigu","Rakendusadministraator protsessijuhtimise tarkvara jaoks","Protsessijuhtimise tarkvara on testitud, toimib jätkusuutlikult e-teenuste platvormil","ok ",1,null,"Ei","SF 21-27 (taotletav raha)",{"v":269200,"d":"269,200"},0,{"v":66000,"d":"66,000"},{"v":66000,"d":"66,000"},{"v":67000,"d":"67,000"},{"v":70200,"d":"70,200"},0,{"$nulls":4},{"v":56000,"d":"56,000"},{"v":10000,"d":"10,000"},null,{"v":56000,"d":"56,000"},{"v":10000,"d":"10,000"},null,{"v":64000,"d":"64,000"},{"v":3000,"d":"3,000"},null,{"v":67200,"d":"67,200"},{"v":3000,"d":"3,000"},{"$nulls":3},"Palgatase tööjõuturul","4. SF tegevus, mis vajab jätkusuutlikkuse kulusid, aga neid pole välja arvutatud ja eraldi real välja toodud","Vajadus tekib alates 2028"]
["MKM","KEMIT",null,"Kristjan Kaklem","I: Digiriik","1.2.1. Avalike teenuste juhtimise ja kasutajakesksuse juurutamine","IV: muu digipöördega seotud otsene kulu","Panustab mitmetesse TERE teenustesse","Teenused aeglased, kliendile ebamugavad, automatiseerimata; süsteemides esineb palju vigu","Protsessijuhtimise tarkvara haldus (litsentsid, serverid jm) 50 TEUR/aastas","Vajalik taristu on olemas protsessitarkvara kasutamiseks","?",1,null,"Ei","SF 21-27 (taotletav raha)",{"v":150000,"d":"150,000"},0,{"v":50000,"d":"50,000"},0,{"v":50000,"d":"50,000"},{"v":50000,"d":"50,000"},0,{"$nulls":5},{"v":50000,"d":"50,000"},null,null,0,null,null,{"v":50000,"d":"50,000"},null,null,{"v":50000,"d":"50,000"},{"$nulls":3},"Aluseks Camunda litsentsi maksumus TTJA kasutajate arvuga asutusele","4. SF tegevus, mis vajab jätkusuutlikkuse kulusid, aga neid pole välja arvutatud ja eraldi real välja toodud","Vajadus tekib alates 2028"]
["MKM","RIKS",null,"Priit Kollo","II: Ühenduvus","1.2.3. Tulevikukindlad digiriigi platvormid","I: Infotehnoloogiliste lahenduste väljatöötamine ja arendamine","Raadioside korraldamine","Kvantarvutikindlate võrguarhitektuuride teadmiste säilitamine, rahvusvaheline koostöö.","EuroQCI - Euroopa kvantvõrkude meede Eesti omaosalus.","Kvantvõtmevahetus Soomega. Partnerlus Läti ja Rootsiga ning teiste EU27 riikidega.",null,1,null,"Ei","RES IKT (vaja juurde taotleda)",{"v":710000,"d":"710,000"},0,0,{"v":210000,"d":"210,000"},{"v":250000,"d":"250,000"},{"v":250000,"d":"250,000"},0,{"$nulls":7},{"v":189000,"d":"189,000"},{"v":21000,"d":"21,000"},0,{"$f":"378000-149000","v":{"v":229000,"d":"229,000"}},{"$f":"SUM(42000/2)","v":{"v":21000,"d":"21,000"}},null,{"$f":"378000-149000","v":{"v":229000,"d":"229,000"}},{"$f":"SUM(42000/2)","v":{"v":21000,"d":"21,000"}},{"$nulls":6},"5. Küberturvalisus."]
["MKM","RIT",null,"Risto Seegel","I: Digiriik","1.2.4. Keskselt osutatud IT-alusteenused","IV: muu digipöördega seotud otsene kulu","IKT alusteenuste keskne osutamine","2028. a hinnakasv vs 2027.a","ATK standardteenuse jätkusuutlikkuse tagamine","RIT-i klientidele on ATK standardteenuse pakkumise jätkusuutlikkus tagatud aastatel 2027-28",null,1,null,"Ei","RES IKT (vaja juurde taotleda)",{"v":1444905.98935614,"d":"1,444,906"},0,0,0,0,0,{"v":1444905.98935614,"d":"1,444,906"},{"$nulls":16},{"v":650207.695210263,"d":"650,208"},{"v":794698.2941458769,"d":"794,698"},"ATK standardtöökoha maksumuse prognoos","2. Tegevus on jätkusuutlikkuse kulu (baaseelarve, RES lisataotlus, muu allikas)",null,"Baasi korrastamine.","püsikulu"]
["MKM","RIT",null,"Kairi Rais","I: Digiriik","1.2.4. Keskselt osutatud IT-alusteenused","IV: muu digipöördega seotud otsene kulu","IKT alusteenuste keskne osutamine","RRF toetuse lõppemine 2024. aasta lõpul, mis toob kaasa olukorra, kus RIT-i kasvuks vahendid (tehnoloogiline võlg+ teenuse igaaastane maksumus) puuduvad","Konsolideerimisreserv (RIT ATK standardteenuse klientide arvu kasvuks)","Perioodil 2025-2028 on RIT ATK standardteenusele toodud 14 862 uut kasutajat. Eelarve arvestatud eeldusel, et asutus katab olemasolevatest vahenditest vähemalt 25% std. teenuse kulust",null,2,null,"Ei","RES IKT (vaja juurde taotleda)",{"v":55898812,"d":"55,898,812"},0,0,{"v":7655327,"d":"7,655,327"},{"v":8428984,"d":"8,428,984"},{"v":14987046,"d":"14,987,046"},{"v":24827455,"d":"24,827,455"},{"$nulls":7},{"v":2344897.15,"d":"2,344,897"},{"v":5310429.85,"d":"5,310,430"},null,{"v":2693042.8,"d":"2,693,043"},{"v":5735941.2,"d":"5,735,941"},null,{"v":5644170.7,"d":"5,644,171"},{"v":9342875.3,"d":"9,342,875"},null,{"v":10072354.75,"d":"10,072,355"},{"v":14755100.25,"d":"14,755,100"},"ATK standardtöökoha maksumuse prognoos ja ATK uute kasutajate arvu prognoos (konsolideerimiskava, mis kinnitatud RIT kasutajate nõukojas)","2. Tegevus on jätkusuutlikkuse kulu (baaseelarve, RES lisataotlus, muu allikas)",null,"Baasi korrastamine.","püsikulu"]
["MKM","RIT",null,"Kairi Rais","I: Digiriik","1.2.4. Keskselt osutatud IT-alusteenused","IV: muu digipöördega seotud otsene kulu","IKT alusteenuste keskne osutamine","RRF toetuse lõppemine 2024. aasta lõpul, mis toob kaasa olukorra, kus RIT-i kasvuks vahendid (tehnoloogiline võlg+ teenuse igaaastane maksumus) puuduvad","RRF JÄTK Konsolideerimisreserv (RIT ATK standardteenuse klientide arvu kasvuks). RRF-i jätk. 2024 on rahastatud konsolideerimisega seotud inimesed RRF-st.","Perioodil 2025-2028 on RIT ATK standardteenusele toodud 14 862 uut kasutajat. Eelarve arvestatud eeldusel, et asutus katab olemasolevatest vahenditest vähemalt 25% std. teenuse kulust",null,2,null,"Ei","RES IKT (vaja juurde taotleda)",{"$f":"SUM(R54:W54)","v":{"v":8000000,"d":"8,000,000"}},{"$f":"SUM(X54:Z54)","v":0},{"$f":"SUM(AA54:AC54)","v":0},{"$f":"SUM(AD54:AF54)","v":{"v":2000000,"d":"2,000,000"}},{"$f":"SUM(AG54:AI54)","v":{"v":2000000,"d":"2,000,000"}},{"$f":"SUM(AJ54:AL54)","v":{"v":2000000,"d":"2,000,000"}},{"$f":"SUM(AM54:AO54)","v":{"v":2000000,"d":"2,000,000"}},{"$nulls":7},{"v":2000000,"d":"2,000,000"},null,null,{"v":2000000,"d":"2,000,000"},null,null,{"v":2000000,"d":"2,000,000"},null,null,{"v":2000000,"d":"2,000,000"},null,"ATK standardtöökoha maksumuse prognoos ja ATK uute kasutajate arvu prognoos (konsolideerimiskava, mis kinnitatud RIT kasutajate nõukojas)","2. Tegevus on jätkusuutlikkuse kulu (baaseelarve, RES lisataotlus, muu allikas)",null,"Baasi korrastamine.","püsikulu"]
["MKM","RIT",null,"Risto Seegel","I: Digiriik","1.2.4. Keskselt osutatud IT-alusteenused","IV: muu digipöördega seotud otsene kulu","IKT alusteenuste keskne osutamine","Eri-ja lisateenused, mida on rahastatud RRFst. Asutused on teenuste konsolideerimisega andnud eelarvet kaasa vähem, kui teenuseosutamiseks vajalik on","RRF JÄTK RIT klientide eri- ja lisateenused","Lisateenuste osutamine asutustele saab jätkuda. Peamised kulud on haldamisega seotud personalikulud",null,3,null,"Ei","RES IKT (vaja juurde taotleda)",{"v":14492359.601059001,"d":"14,492,360"},0,0,{"v":3144621,"d":"3,144,621"},{"v":3466114.8950000005,"d":"3,466,115"},{"v":3826128.0126500004,"d":"3,826,128"},{"v":4055495.693409,"d":"4,055,496"},{"$nulls":7},{"v":2246234.7,"d":"2,246,235"},{"v":898386.3,"d":"898,386"},null,{"v":2474280.4265,"d":"2,474,280"},{"v":991834.4685000004,"d":"991,834"},null,{"v":2729289.608855,"d":"2,729,290"},{"v":1096838.4037950002,"d":"1,096,838"},null,{"v":2892846.9853863,"d":"2,892,847"},{"v":1162648.7080227002,"d":"1,162,649"},null,"2. Tegevus on jätkusuutlikkuse kulu (baaseelarve, RES lisataotlus, muu allikas)",null,"Baasi korrastamine.","püsikulu"]
["MKM","RIT",null,"Andri Rebane","I: Digiriik","1.2.4. Keskselt osutatud IT-alusteenused","IV: muu digipöördega seotud otsene kulu","IKT alusteenuste keskne osutamine","Pilvemäärusele vastavaid riskianalüüse ei ole võimalik teostada","Pilvemääruse riskianalüüside läbiviimine","Värbamised: 4 FTEd on olemasoleva ATK ja RP infra pilveteenuste usaldusväärsuse hindamine\n2 FTEd on tulevase avalike pilveteenuste vahendamise usaldusväärsuse hindamine\n2 FTEd on tulevase digituruplatsi pilveteenuste vahendamise usaldusväärsuse hindamine",null,6,null,"Ei","RES IKT (vaja juurde taotleda)",{"v":1012384.8,"d":"1,012,385"},0,0,0,{"v":318000,"d":"318,000"},{"v":337080,"d":"337,080"},{"v":357304.8,"d":"357,305"},{"$nulls":7},0,null,null,{"$f":"636000/2","v":{"v":318000,"d":"318,000"}},null,null,{"$f":"674160/2","v":{"v":337080,"d":"337,080"}},null,null,{"$f":"714609.6/2","v":{"v":357304.8,"d":"357,305"}},null,null,"1. Baaseelarve tegevus, mis sisaldab jätkusuutlikkuse kulusid ja need on samal real välja toodud",null,"Õigusaktidest tulenevad vajadused.","püsikulu"]
["MKM","RIT",null,"Risto Seegel","I: Digiriik","1.2.4. Keskselt osutatud IT-alusteenused","IV: muu digipöördega seotud otsene kulu","IKT alusteenuste keskne osutamine","Riigimajade igaastastel halduskuludel ja uute majades IT-vahenditega sisustamisel puudub eelarve","Riigimajad","katame seadmete ja teenuste igakuised halduskulud ning elutsüklipõhised vahetused",null,7,null,"Ei","RES IKT (vaja juurde taotleda)",0,0,0,0,0,0,0,{"$nulls":7},0,0,null,0,0,null,0,0,null,0,0,null,"2. Tegevus on jätkusuutlikkuse kulu (baaseelarve, RES lisataotlus, muu allikas)",null,"Baasi korrastamine.","püsikulu"]
["MKM","RIT",null,"Taavi Viilukas","I: Digiriik","1.2.4. Keskselt osutatud IT-alusteenused","IV: muu digipöördega seotud otsene kulu","IKT alusteenuste keskne osutamine","Riigiülene avalike pilvede kompetents ning keskve vaade puudub","Avalike pilvede kompetentsikeskuse loomine","Kompententsikeskus on loodud ning töötab. 2025 alustatakse välise partneriga ning värvatakse positsioonid RITi.",null,4,null,"Ei","RES IKT (vaja juurde taotleda)",{"v":1193500,"d":"1,193,500"},0,0,{"v":219500,"d":"219,500"},{"v":300500,"d":"300,500"},{"v":333000,"d":"333,000"},{"v":340500,"d":"340,500"},{"$nulls":7},{"$f":"SUM(239000/2)","v":{"v":119500,"d":"119,500"}},{"$f":"SUM(200000/2)","v":{"v":100000,"d":"100,000"}},null,{"$f":"SUM(400000/2)","v":{"v":200000,"d":"200,000"}},{"$f":"SUM(201000/2)","v":{"v":100500,"d":"100,500"}},null,{"$f":"SUM(506000/2)","v":{"v":253000,"d":"253,000"}},{"$f":"SUM(160000/2)","v":{"v":80000,"d":"80,000"}},null,{"$f":"SUM(521000/2)","v":{"v":260500,"d":"260,500"}},{"$f":"SUM(160000/2)","v":{"v":80000,"d":"80,000"}},null,"1. Baaseelarve tegevus, mis sisaldab jätkusuutlikkuse kulusid ja need on samal real välja toodud",null,"Baasi korrastamine.","püsikulu"]
["MKM","RIT",null,"Risto Seegel","I: Digiriik","1.2.4. Keskselt osutatud IT-alusteenused","IV: muu digipöördega seotud otsene kulu","IKT alusteenuste keskne osutamine","Kasutajate tööharjumused on muutunud, 2 monitori on uus standard. Nõudlikumate töökohtadele vajadus erikonfiga tööjaamu","ATK standardteenuse laiendamine (teine monitor)","2025 soetab RIT 7500 rendimonitori tänastele klientidele.  RIT rendib erikonfiga 500 tööjaama. 2026-28 rendimaksete tasumine.",null,5,null,"Ei","RES IKT (vaja juurde taotleda)",0,0,0,0,0,0,0,{"$nulls":7},0,0,null,0,0,null,0,0,null,0,0,null,"1. Baaseelarve tegevus, mis sisaldab jätkusuutlikkuse kulusid ja need on samal real välja toodud",null,"Baasi korrastamine.","püsikulu"]
["MKM","RIT",null,"Ergo Tars","I: Digiriik","1.2.4. Keskselt osutatud IT-alusteenused","IV: muu digipöördega seotud otsene kulu","IKT alusteenuste keskne osutamine","RIT klientide standardteenuste välised vajadused ATK ja RP teenuste osutamiseks","RIT klientide lisavajadused","GPU ressurss on hangitud, koosolekuruumid uuendatatud vastavalt asutuste sisendile, lisaks eritarkvarad, std välised arvutid jne soetatud ja hallatud vastavalt esitatud vajadustele",null,8,null,"Ei","RES IKT (vaja juurde taotleda)",0,0,0,0,0,0,0,{"$nulls":6},0,0,0,null,0,0,null,0,0,null,0,0,null,"1. Baaseelarve tegevus, mis sisaldab jätkusuutlikkuse kulusid ja need on samal real välja toodud",null,"Baasi korrastamine.","püsikulu"]
["MKM","RIKS",null,"Nele Pihlak","I: Digiriik","1.2.7. Avaliku sektori digimuutuste võimendamine","III: teadlikkuse tõstmine","Riigiside toetavad teenused","Puuduvad ühtsed juhtimispõhimõtted ja on vajadus selgete juhtrollide defineerimiseks, sh juhtide digipädevuste defineerimiseks,  et RIKS suudaks kiiremini reageerida digimuutustele ja kasutaksime töös kaasaegseid digitaalseid lahendusi, mis aitaksid juurutada andmete- ja teenusepõhise juhtimise","RIKS juhtide arenguprogramm: juhtimispõhimõtete loomine ja juhtide digipädevuste kaardistamine 2024","RIKS juhtimispõhimõtted, sh juhtrollid kokku lepitud ja nende digipädevused kaardistatud. ","ok ",2,null,"Ei","SF 21-27 (taotletav raha)",{"v":15000,"d":"15,000"},0,{"v":15000,"d":"15,000"},0,0,0,0,{"$nulls":5},{"v":15000,"d":"15,000"},{"$nulls":12},"Eeldetav programmi maksumus võetud pakkumuste alusel.","5. SF tegevus, mis ei vaja jätkusuutlikkuse kulusid (nt analüüs)",null,"1. Personaalne riik"]
["MKM","MKM",null,"Greetel Lee","I: Digiriik","1.2.7. Avaliku sektori digimuutuste võimendamine","III: teadlikkuse tõstmine","Panustab kõikidesse TERE teenustesse","MKM kui digioskuste näidisasutus ei oska kasutada kasutuselolevaid Microsoft tööriistu ja uut tööplaani keskkonda Viva Goals. ","Microsofti keskkonna koolitused (sh tööplaani keskkond) MKM teenistujatele","Koolituste tulemusena oskavad MKMi teenistujad kasutada Microsofti keskkondi paremini kasutada, oskavad täita tööplaani. Microsofti keskkonnale üleminek toetab teenus- ja andmepõhisele juhtimisele üleminekut. ","ok",1,null,null,"SF 21-27 (taotletav raha)",{"v":90000,"d":"90,000"},0,{"v":30000,"d":"30,000"},{"v":15000,"d":"15,000"},{"v":15000,"d":"15,000"},{"v":15000,"d":"15,000"},{"v":15000,"d":"15,000"},{"$nulls":5},{"v":30000,"d":"30,000"},null,null,{"v":15000,"d":"15,000"},null,null,{"v":15000,"d":"15,000"},null,null,{"v":15000,"d":"15,000"},null,null,{"v":15000,"d":"15,000"},"Aluseks on võetud teenuse maksumuse turu-uuring. ","5. SF tegevus, mis ei vaja jätkusuutlikkuse kulusid (nt analüüs)"]
["MKM","RIA"," ","Kai Kallas","I: Digiriik","1.2.1. Avalike teenuste juhtimise ja kasutajakesksuse juurutamine","I: Infotehnoloogiliste lahenduste väljatöötamine ja arendamine","Riigiportaali platvormi pakkumine","Tootejuhid täidavad projektijuhtide ülesandeid pigem kui et jõuavad tegeleda tootejuhtimisega. Tootejuhid täna juhivad arendusmeeskondi, kirjutavad täismahus ise hankeid jne. Mis tähendab, et toote elukaare eest hoolitsemine on teisejärguline, kuna lihtsalt inimlikult ei jää aega üle arenduste juhtimise kõrvalt.","eesti.ee arendusprotsessi toimimise tagamine, 2x tehniline projektijuhi FTE","Nii toote elukaar on juhitud kui ka aktiivsed arendusprojektid.",null,2,"RAH-277"," ","RES IKT (vaja juurde taotleda)",{"v":243652.5,"d":"243,653"},0,0,{"v":52500,"d":"52,500"},{"v":57750,"d":"57,750"},{"v":63525,"d":"63,525"},{"v":69877.5,"d":"69,878"},{"$nulls":7},{"$f":"SUM(105000/2)","v":{"v":52500,"d":"52,500"}},null,null,{"$f":"SUM(115500/2)","v":{"v":57750,"d":"57,750"}},null,null,{"$f":"SUM(127050/2)","v":{"v":63525,"d":"63,525"}},null,null,{"$f":"SUM(139755/2)","v":{"v":69877.5,"d":"69,878"}}," ","2025.a. tööjõukulud+töökohakulu 105 000,00\n2026.a. tööjõukulud+töökohakulu 115 500,00\n2027.a. tööjõukulud+töökohakulu 127 050,00\n2028.a. tööjõukulud+töökohakulu 139 755,00"," ",null,"Personaalne riik","püsikulu"]
["MKM","RIA"," ","Ahto-Ain Sööt","I: Digiriik","1.2.3. Tulevikukindlad digiriigi platvormid","I: Infotehnoloogiliste lahenduste väljatöötamine ja arendamine","Riigivõrgu teenuste pakkumine","Riigivõrgu seadmepark on 2024 seisuga uuendatud ning kõik on kaetud tootja poolsete support lepingutega. See tähendab, et seadmete tarkvara uuendatakse ja paigatakse eelduslikult veel 2-3 aastat. Seademte EOL ehk end of life tähtaeg tuleb hinnanguliselt 2025-2026 välja ja sellest sõltub kas ja mis mahus tuleb seadmeparki uuendada.\nNäeme võimalust, et aastatel 2027 ja 2028 tuleb vahetada MPLS maakondlikuvõrgu seadmeid suuremas mahus - rohkem kui 200 tk. Muuhulgas on mõistlik kasvatada uue mudeliga läbilaskevõimsust ja uplinkide hulka. Eeldatav mudel mida hakkame kasutama on Cisco NCS 540.","Riigivõrgu seadmete uuendamine 2025-2028 perioodil","Seadmete vahetuse tulemuseks on 7-10 aastat võrgu töökindlust ning turvalisust. Arvestades julgeoleku olukorda peame oluliseks tehnilise taristu kõrget töökindlust ja turbe taset.",null,1,"RAH-275"," ","RES IKT (vaja juurde taotleda)",0,0,0,0,0,0,0,{"$nulls":9}," "," "," ",0," "," ",0," "," "," "," ",null,"Baasi korrastamine","ühekordne investeering"]
["MKM","RIA"," ","Margus Parts","III: Küberturvalisus ","1.2.3. Tulevikukindlad digiriigi platvormid","I: Infotehnoloogiliste lahenduste väljatöötamine ja arendamine","Panustab mitmetesse TERE teenustesse","Pilveteenuste kasutuselevõtu tulemusel, muutub kontode turvaline halduse keerukamaks ja intsidendi oht suureneb. Lisaks RIA taristule, tuleb turvata ka pilve platvorme, mille ründepind on suur.","Identiteedihalduse arendus, mis toetab pilvedes pakutavata funktsionaalsuste kasutuselevõttu.","Võtame kasutusele automaatse kontode halduse, paroolivaba indentiteedi ning moodsad pilve seire tööriistad.",null,7,"RAH-272"," ","RES IKT (vaja juurde taotleda)",0,0,0,0,0,0,0,{"$nulls":7},0,null," ",0," "," ",0," "," ",0," ","Üks FTE - tööjõukulud pluss töökohakaulud"," ",null,"Küberturvalisus","püsikulu"]
["MKM","RIA"," ","Rain Ojastu","III: Küberturvalisus ","3.3. Suurem küberturvalisuse tagamise võimekus","III: teadlikkuse tõstmine"," Infoturbe meetmete arendamine ja nõustamine","Hetkel on E-ITSi muudatuste haldamine, st uute versioonide tootmine ja uute meetmete loomine tehniliselt töömahukas, puuduvad vajalikud töövahendid, palju manuaalset käsitööd dokumendifailides.","Infoturbestandardi haldus","Eesit infoturbestandardi muudatuste haldamise tööriist välja töötatud ja kasutusel. Loodud rakendus võimaldab hallata standardi uute versioonide ettevalmistamist, haldamist ja publitseerimist standardi portaali. Tagatud on standardi portaali ajakohasus.",null,9,"RAH-88"," ","RES IKT (vaja juurde taotleda)",0,0,0,0,0,0,0,{"$nulls":6},0,0,null,0,0," ",0,0," ",0,0," ","arendused automaatkontrollide loomiseks E-ITS automaatseks rakendamiseks\n3 FTE'd - tööjõukulud pluss töökohakulud"," ",null,"Küberturvalisus","püsikulu"]
["MKM","RIA"," ","Lauri Tankler","III: Küberturvalisus ","3.1. Ajakohane küberturvalisuse riiklik korraldus","II: küberruumi hoidmine, arendamine ja juurutamine usaldusväärse ja turvalisena","Eesti küberturvalisuse valdkonna tööstuse, tehnoloogia ja teaduse arengu toetamine","Eesti ja Euroopa küberturvalisuse kompetents on fragmenteerunud, spetsialiste on puudu, teadlased ja ettevõtjad tegutsevad suuresti oma silodes, turul pole teenusepakkujate vahelist konkurentsi ning võrreldavaid teenuseid, küberiduettevõtted kaovad digi-idude vahele ära. Tulevikutehnoloogiate turvalisusega tegeletakse alles tagantjärgi ning tihti loodetakse välisele (sh ELi-välisele) kompetentsile, kust tellida küberturvalisuse teenuseid (koolitusi, uuringuid, ohuteavet, praktilist konsultatsiooni). Euroopa küberturvalisuse kompetentsikeskuse ja riiklike koordineerimisüksuste (mille rolli täidab RIA) võrgustik lahendab probleemi Euroopa-üleselt. Euroopa küberkompetentsikeskus on valmis riiklikke koordineerimisüksuseid edaspidigi toetama (2025+), riigieelarvelise omaosaluse olemasolul. Et Eesti koordineerimisüksus saaks täita ELi regulatsioonist tulenevaid ülesandeid ja Eesti küberkompetents kasvaks, on vaja täiendavat püsirahastust-omaosalust aastateks 2025+","Euroopa küberkompetentsikeskuse Eesti koordinatsioonikeskuse jätkusuutlikkuse tagamise tegevus (omaosalus ELi projektist 50% taotlemisel)","Vajadus on 2025-2028. Kululiigid: personalikulu, toetused kolmandatele osapooltele (küberpööre EASiga, küberiduettevõtted), koolitused ja treeningud, teadmussiirdeprojektid, ürituste korraldamise kulu. Tulemuseks järgmised sihid, et senisest enam ettevõtteid pakub ja tarbib küberturvalisuse teenuseid; digitaliseerivatel ja uusi tehnoloogiaid rakendavatel ettevõtetel on juhendeid turvalisuse osas; et senisest enam naisi ja tüdrukuid osaleb küberturvalisuse õppes (spetsialistidest kuni juhtideni), et võtmetähtsusega mitte-IT valdkondade väljaõppes (ärijuhid, ettevõtjad, õpetajad, avaliku halduse, sotsiaalia, aga ka loomemajanduse ja põllumajanduse spetsialistid) on integreeritud küberturvalisuse õpiväljundid, et senisest enam konverteeritakse küberturvalisuse akadeemilise teadustöö tulemeid iduettevõtete teenusteks ja toodeteks, et senisest enam Eesti ettevõtteid ja teadusasutusi osaleb küberturvalisuse Euroopa projektivoorudes ning on sealt saanud positiivse rahastusotsuse",null,null,"RAH-229"," ","Muu rahastus",{"v":3029117,"d":"3,029,117"},0,0,{"v":683625,"d":"683,625"},{"v":732325,"d":"732,325"},{"v":783770,"d":"783,770"},{"v":829397,"d":"829,397"},{"$nulls":7},{"v":171000,"d":"171,000"},{"v":512625,"d":"512,625"},null,{"v":203500,"d":"203,500"},{"v":528825,"d":"528,825"}," ",{"v":232000,"d":"232,000"},{"v":551770,"d":"551,770"}," ",{"v":255000,"d":"255,000"},{"v":574397,"d":"574,397"},"Kõik RE kulud on võimalik niiöelda duubeldada Euroopa DIGITAL fondi taotlusvoorust, mis on spetsifiiliselt mõeldud riiklikele koordinatsioonikeskustele. Arvutused lähtuvad 2023-2024 tehtud 2a pikkusest pilootprojektist. Tööjõukulu lähtub 5FTEst ja töökohakuludest, arvutuskäigus on teadmussiirde programm (ca 130k aastas uuringutele ja juhendmaterjalidele), noorte ja täiskasvanute küberkarjääri ja küberhariduse tegevused (ca 180k aastas), kogukonnaüritused (ca 22k aastas), küberinnovatsiooni meetmest (100k aastas), Küberpöörde toetusmeetmest (500k aastas) ja Euroopa suunalistest tegevustest koos ettevõtluse toetamise meetmetega (ca 80k aastas). Kõik see on kokku ca €1,5m aastas, millest pool on võimalik taotleda Euroopa DIGITAL taotlusvoorust 2024 aastal","1. Baaseelarve tegevus, mis sisaldab jätkusuutlikkuse kulusid ja need on samal real välja toodud","Eraldi tegevus, ei ole seotud SFiga, vajab jätkusuutlikkuse lähenemist","Küberturvalisus","Baas"]
["MKM","RIA"," ","Märt Hiietamm","III: Küberturvalisus ","3.3. Suurem küberturvalisuse tagamise võimekus","III: teadlikkuse tõstmine","Küberhügieen ja avalikkuse teadlikkuse tõstmine","Ebapiisavast küberhügieenist tulenevatel küberintsidentidel on ulatuslik ning aina kasvav negatiivne mõju Eesti inimestele ja ettevõtetele. Nende mõju meediakajastus aitab küberhügieeni olulisust rõhutada, kuid on ebapiisav avalikkuse käitumise muutmisel. Lisaks hindame koos Eesti julgeolekuasutustega, et Vene-Ukraina konflikti üheks mõjuks meile on suurenenud oht ulatuslikeks küberintsidentideks, mistõttu Eesti inimeste ja austuste teadlikkust küberhügieenist tuleb lähiaastatel aina ja aina tõsta.","Regulaarsete küberturbe teavituskampaaniate mõju suurendamine","Eelarveperioodi 2025-28 jooksul on toimunud 8-16 RIA poolt kaardistatud sihtrühmaga ja RIA jaoks olulise teemapüstitusega teavituskampaaniat. Iga kampaania käigus jõutakse vähemalt pooleni sihtrühma esindajatest. Kampaania lõppfaasis toimub asjakohasuse korral vastav uuring sihtgrupi suunal.\nEesti elanikkonna eri sihtrühmade järjepidev teavitamine on tõstnud laiema avalikkuse teadlikkust küberohtudest ning andnud parema oskuse end nende eest kaitsta.\nElanikel ja ettevõtete esindajatel on lihtsasti kättesaadavad materjalid, et kaitsta ennast ja oma lähedasi küberohtude eest.\nEesti inimesed on teadlikud, et RIA tegeleb küberohtude ennetamise ja lahendamisega ning et RIA käest võib vastavat abi saada.",null,5,"RAH-289"," ","RES IKT (vaja juurde taotleda)",{"v":312500,"d":"312,500"},0,0,0,{"v":62500,"d":"62,500"},{"v":125000,"d":"125,000"},{"v":125000,"d":"125,000"},{"$nulls":10},0,{"$f":"SUM(125000/2)","v":{"v":62500,"d":"62,500"}},null,0,{"$f":"SUM(250000/2)","v":{"v":125000,"d":"125,000"}},null,0,{"$f":"SUM(250000/2)","v":{"v":125000,"d":"125,000"}},"Alates 2026 vaja juurde 1 FTE (77 000 eurot) ja kampaaniavahendeid (125 000 eurot). Alates 2027 juurde veel 1 FTE (kokku 2 FTE 170 000 eurot) ja 125 000 eurot vahenditeks (kokku 250 000 eurot. Alates 2028 kasvab 2 FTE peale kuluv summa 187 000 euro peale, lisavahenditeks endiselt 250000 eurot.\nAastatel 2026-28 kokku lisavajadus 434 000 eurot lisanuvate FTE-de jaoks ning 625 000 eurot kampaaniate lisavahenditeks.\nLisavajaduse perioodil 2026-28 kokku 1 059 000 eurot."," ",null,"Küberturvalisus","püsikulu"]
["MKM","RIA"," ","Urve Pastarus","I: Digiriik","1.2.7. Avaliku sektori digimuutuste võimendamine","III: teadlikkuse tõstmine","Panustab mitmetesse TERE teenustesse","Organisatsioon on kiiresti kasvanud, sh teenuste hulk ja protsesside rakendajate arv. RIAs on juurutatud järk-järgult kliendist lähtuvat teenustpõhist ja agiilset/DevSecOps juhtimismudelit kuid sellist organisatsiooni muutust ja teenuste portfelli kasvu ei toeta täna ajakohane töökorralduse raamistik, mis tagaks erinevates sõltumatutes meeskondades ühiste haldus - ja arendusnõuete rakendamise ja kvaliteedi seire (sh dokumenteerimine, protsesside ja seotud töövahendite arendamise ja rakendamise tugi, kvaliteedijuhtimise korraldamine).","Kvaliteedi- ja protsessijuhtimise võimekuse tõstmine (1 FTE)","Loodud on teenuspõhise juhtimissüsstemi rakendamiseks vajalik kvaliteedi- ja protsessipõhise juhtimise võimekus: kokku on lepitud kriitilised kliendiprotsessid, mis on kirjeldatud ja dokumenteeritud ühtsetel alustel, koordineeritakse nende rakendamist ning järjepidevat kvaliteedi ja tõhususe juhtimist osakondi ja meeskondi läbivalt.",null,8,"RAH-274"," ","RES IKT (vaja juurde taotleda)",0,0,0,0,0,0,0,{"$nulls":7},0,null," ",0," "," ",0," "," ",0," ","1 FTE - tööjõukulud pluss töökohakulud"," ",null,"Baasi korrastamine","püsikulu"]
["MKM","RIA"," ","Martin Paas","III: Küberturvalisus ","3.3. Suurem küberturvalisuse tagamise võimekus","II: küberruumi hoidmine, arendamine ja juurutamine usaldusväärse ja turvalisena","Panustab mitmetesse TERE teenustesse","Tänane võimekus ei ole piisav RS-süsteemide haldamiseks ei tava- ega kriisiolukorras. ","Kriisivalmiduse tagamine RS-süsteemides","• Tekib 24/7 võimekus kriisihalduseks lühikese perioodi vältel.\n• Töötlussüsteemid on hallatud, intsidente ei esine.\n• Tagatud on RIA kui küberturvalisuse kompetentsikeskuse töö kriisiolukorras, sh operatiivinfo vahetamine partneritega.",null,6,"RAH-273"," ","RES IKT (vaja juurde taotleda)",{"v":1019355,"d":"1,019,355"},0,0,{"v":222750,"d":"222,750"},{"v":242775,"d":"242,775"},{"v":264800,"d":"264,800"},{"v":289030,"d":"289,030"},{"$nulls":7},{"v":222750,"d":"222,750"},null," ",{"v":242775,"d":"242,775"}," "," ",{"v":264800,"d":"264,800"}," "," ",{"v":289030,"d":"289,030"}," ","• 1 tooteomanik\n• 2 küberturbe eksperdi ametikohta.\nTööjõukulud ja töökohakulud"," ",null,"Küberturvalisus","püsikulu"]
["MKM"]
["MKM","RIA"," ","Riho Kerge","I: Digiriik","1.2.2. Andmepõhine riigivalitsemine ja andmete taaskasutus","I: Infotehnoloogiliste lahenduste väljatöötamine ja arendamine","Andmete taaskasutamise ja väärindamise lahenduste pakkumine","2022-2025 on (ava)andmete teabevärava arendamisega seotud tegevused aastani 2025 kaetud RRFi rahastusega, ent teenus peab jääma jätkusuutlikuks ka peale selle rahastuse lõppemist.","RRF JÄTK (ava)andmete teabevärav: jätkusuutlikkuse tagamine peale praeguse RRFi rahastuse lõppu 2026-2028 (sh 2FTE)","RIA andmete talituse (sh avaandmete teabevärava tiimi) 2 FTE tööjõukulud, töökoha kõrvalkulud, (ava)andmete teabevärava jätkuarendused ja riigipilve majutus- ning hoolduskulud on jätkusuutlikult kaetud baaseelarvest ka peale praeguse RRFi lõppu.",null,3,"RAH-224"," ","RES IKT (vaja juurde taotleda)",{"v":1250235.5,"d":"1,250,236"},0,0,0,{"v":408625.5,"d":"408,626"},{"v":416838,"d":"416,838"},{"v":424772,"d":"424,772"},{"$nulls":9},{"v":320000,"d":"320,000"},{"$f":"SUM(159251/2)","v":{"v":79625.5,"d":"79,626"}},{"$f":"SUM(18000/2)","v":{"v":9000,"d":"9,000"}},{"v":320000,"d":"320,000"},{"$f":"SUM(173676/2)","v":{"v":86838,"d":"86,838"}},{"$f":"SUM(20000/2)","v":{"v":10000,"d":"10,000"}},{"v":320000,"d":"320,000"},{"$f":"SUM(189544/2)","v":{"v":94772,"d":"94,772"}},{"$f":"SUM(20000/2)","v":{"v":10000,"d":"10,000"}},"2 FTE tööjõu- ja töökohakulud alates 2026\nAvaandmete teabevärava jätkusuutlikkuse tagamiseks vajalikud arendused ja kulud","2. Tegevus on jätkusuutlikkuse kulu (baaseelarve, RES lisataotlus, muu allikas)","OK","AI ja andmed","püsikulu"]
["MKM","RIA"," ","Riho Kerge","I: Digiriik","1.2.2. Andmepõhine riigivalitsemine ja andmete taaskasutus","I: Infotehnoloogiliste lahenduste väljatöötamine ja arendamine","Andmete taaskasutamise ja väärindamise lahenduste pakkumine","2022-2025 on RIHA/RIHAKE arendamisega seotud tegevused kaetud RRFi rahastusega, ent teenus peab jääma jätkusuutlikuks ka peale selle rahastuse lõppemist.","RRF JÄTK RIHA/RIHAKE: jätkusuutlikkuse tagamine peale praeguse RRFi rahastuse lõppu 2026-2028","RIHA ja RIHAKE jäävad jätkusuutlikuks ka peale RRFi rahastuse lõppemist.",null,4,"RAH-225"," ","RES IKT (vaja juurde taotleda)",0,0,0,0,0,0,0,{"$nulls":9},0," "," ",0," "," ",0," "," ","RIHA/RIHAKE jätkusuutlikkuse tagamiseks vajalikud arendused","2. Tegevus on jätkusuutlikkuse kulu (baaseelarve, RES lisataotlus, muu allikas)","OK","AI ja andmed","püsikulu"]
["MKM",{"$nulls":15},0,0,0,0,0,0,0," "," "," "," "," "," "," "," "," "]
["MKM","RIA",null,"Kai Kallas","I: Digiriik","1.1.1. Üleminek sündmuspõhistele ja proaktiivsetele teenustele","I: Infotehnoloogiliste lahenduste väljatöötamine ja arendamine","Sündmusteenusted jäävad edasi arendamata ning olemasolevad hakkavad vananema ning kaotavad kiirelt ajas oma väärtuse e-teenusena. Vananenud ja tehniliselt uuendamata teenused jagavad lõppkasutaja vaates eksitavat infot ning muutuvad kiirelt turvakriitiliseks.","Riigiportaali ja sündmusteenuste jätkusuutlikkuse tagamine","Riigiportaali teenuste pakkumine on tagatud","Sündmusteenuste platvormi jätkusuutlikkus pärast RRF rahastsue lõppemist",null,1,"RAH-278","EI","RES IKT (vaja juurde taotleda)",{"v":15527440,"d":"15,527,440"},0,0,0,{"v":5045750,"d":"5,045,750"},{"v":5167575,"d":"5,167,575"},{"v":5314115,"d":"5,314,115"},{"$nulls":9},{"v":3520000,"d":"3,520,000"},1405750,120000,{"v":3480000,"d":"3,480,000"},1567575,120000,{"v":3480000,"d":"3,480,000"},1714115,120000,"18 FTE tööjõu- ja töökohakulud alates 2026","2. Tegevus on jätkusuutlikkuse kulu (baaseelarve, RES lisataotlus, muu allikas)","OK","Personaalne riik","püsikulu"]
["MKM","RIA"," ","Kai Kallas","I: Digiriik","1.1.2. Krativäeline riik","I: Infotehnoloogiliste lahenduste väljatöötamine ja arendamine","Bürokrati baaskomponendid","Bürokrati meeskond (9FTE) ja arendused on rahastatud 100% ulatuses RRF-ist. Alates 2026 (küsitud juba 2024) vajame meeskonna jätktamiseks RES-ist rahastust personalikuludeks ja halduskuludeks","RRF JÄTK BÜROKRATT jätkurahastus al 2026","Jätkub Bürokrati platvormi (ökosüsteemi) arendus ja juurutamine - ilma meeskonnata seiskub arendus ja haldus. Jätkub klientide kaasamine ja kliendivajaduste realiseerimine (loe: kliendi funktsionaalsuste lisamine).",null," ","RAH-253"," ","RES IKT (vaja juurde taotleda)",{"$f":"SUM(R76:W76)","v":{"v":1729904,"d":"1,729,904"}},{"$f":"SUM(X76:Z76)","v":0},{"$f":"SUM(AA76:AC76)","v":0},{"$f":"SUM(AD76:AF76)","v":0},{"$f":"SUM(AG76:AI76)","v":{"v":542201.5,"d":"542,202"}},{"$f":"SUM(AJ76:AL76)","v":{"v":575596.5,"d":"575,597"}},{"$f":"SUM(AM76:AO76)","v":{"v":612106,"d":"612,106"}},{"$nulls":9},0,{"$f":"SUM(622903/2)","v":{"v":311451.5,"d":"311,452"}},{"$f":"SUM(461500/2)","v":{"v":230750,"d":"230,750"}},0,{"$f":"SUM(685193/2)","v":{"v":342596.5,"d":"342,597"}},{"$f":"SUM(466000/2)","v":{"v":233000,"d":"233,000"}},0,{"$f":"SUM(753712/2)","v":{"v":376856,"d":"376,856"}},{"$f":"SUM(470500/2)","v":{"v":235250,"d":"235,250"}},"9 FTE tööjõu- ja töökohakulud alates 2026,\nBürokrati hooldus- ja arenduskulud alates 2026","2. Tegevus on jätkusuutlikkuse kulu (baaseelarve, RES lisataotlus, muu allikas)","OK","1. Personaalne riik","püsikulu"]
["MKM","DAO",null,"Hendrik Roland Helm (projektijuht)","I: Digiriik","1.2.7. Avaliku sektori digimuutuste võimendamine","III: teadlikkuse tõstmine","IKT oskuste edendamine","SF rahastusest väljumine. Riigiasutused ja kohalikud omavalitsused on loonud teenistujate ning laiema avalikkuse koolitamise eesmärgil e-kursuseid, mis vajavad kättesaadavuseks veebiplatvormi. Keskse ning turvalist autentimist võimaldava platvormi olemasolu aitab hoida kokku ressursse, mis vastasel juhul kuluks sarnaste platvormide paralleelsele ülalhoiule asutuste poolt. Kui iga asutus looks eraldiseisva e-õppe platvormi, siis hinnanguline kulu aastas asutuse kohta oleks 40 000 eurot aastas. (Liitunuid asutusi 6, 2024 liituda soovijaid 7). Rahastuse puudumisel tuleb keskkond sulgeda, mis toob olemasolevate e-kursuste ümberkolimise vajaduse, kuid riigiülese platvormi puudumisel ei ole kursuseid kuhugi majutada. Lisaks olemasolevate e-kursuste majutamise probleemile tuleb taas hakata rohkem klassiruumi koolitusi korraldama, mis ei ole kuluefektiivne. ","Digiriigi Akadeemia kui avaliku sektori keskse e-õppe platvormi ülalhoid ning käideldavuse parandamine","2025-2028 - varem SF-st arendatu ülalhoid ning hooldamine (platvormi hoolduse täisteenus ühelt IT-majalt, sh server, Kubernetes, kasutajalitsentsid e-kursuste loomiseks, tootejuhi, süsteemiadministraatori, klienditoe spetsialisti ja arendaja palgafond). Planeeritud tegevused võimaldavad tagada platvormi käideldavuse ja kvaliteedi kasvava kliendibaasi tingimustes (lisanduvad asutused ning kasutajad). Läbi ressursside kokkuhoiu, paindlikkuse ja strateegiliselt oluliste teadmiste koondamise, toetab Digiriigi Akadeemia ühtse standardi abil avaliku sektori töötajate arendamist. ",null,1,null,"Ei","RES IKT (vaja juurde taotleda)",{"$f":"SUM(R77:W77)","v":{"v":679780.5,"d":"679,781"}},{"$f":"SUM(X77:Z77)","v":0},{"$f":"SUM(AA77:AC77)","v":0},{"$f":"SUM(AD77:AF77)","v":{"v":150944,"d":"150,944"}},{"$f":"SUM(AG77:AI77)","v":{"v":162891,"d":"162,891"}},{"$f":"SUM(AJ77:AL77)","v":{"v":175894,"d":"175,894"}},{"$f":"SUM(AM77:AO77)","v":{"v":190051.5,"d":"190,052"}},{"$nulls":6},0,{"$f":"44154+(61500*0)+(61500/2)","v":{"v":74904,"d":"74,904"}},{"$f":"(52080+100000)/2","v":{"v":76040,"d":"76,040"}},null,{"$f":"48569+(63960*0)+(63960/2)","v":{"v":80549,"d":"80,549"}},{"$f":"(54684+110000)/2","v":{"v":82342,"d":"82,342"}},null,{"$f":"53426+(66518*0)+(66518/2)","v":{"v":86685,"d":"86,685"}},{"$f":"(57418+121000)/2","v":{"v":89209,"d":"89,209"}},null,{"$f":"58769+(69176*0)+(69176/2)","v":{"v":93357,"d":"93,357"}},{"$f":"(60289+133100)/2","v":{"v":96694.5,"d":"96,695"}},"Platvormi käideldavuse tõstmine. Kubernetes-e klastri kasutuselevõtt, mis võimaldab  ülekoormuse korral keskkonna automaatset suurendamist. Paraneb kasutajate rahuolu. Olemasoleva taristu maht 3-4 kordistub projekti käigus ning lisandub lisakulu Kubernetes-e toe eest.\nAutomatiseeritud tarneprotsesside kasutuselevõtt. Uuendada ära Digiriigiakadeemia IT arhitektuur ning ümber ehitada kogu tarkvara paigaldus ning kasutusele võtta CI/CD tarneprotsessid. Tarkvara uuenduste protsess muutub kiiremaks (arendus-test-live).\nIT teenuse omaniku töökoha loomine. Omab detailset ülevaadet pakutava teenuse sisust ning selle pakkumiseks kasutatavatest tehnoloogilistest vahenditest. Vastutab teenustaseme kokkuleppe (SLA) sõlmimise, täitmise ja ajakohasena hoidmise eest, korraldab arendusprojektide juhtimist (alates hangetest kuni tarkvara paigaldamiseni).  Hoiab ajakohasena IT teenuse informatsiooni IT teenuste portfellis, SLA tingimusi ja dokumentatsiooni. Koostab kliendi äri ja IT tehnilistest vajadustest lähtuva IT teenuse strateegia, aastaste muudatuste plaani koos eelarvega ja koordineerib selle elluviimist. On kursis IT teenusega seotud intsidentide ja probleemidega ning korraldab nende lahendamist.\nDevOPS süsteemiadministraatori töökoha loomine. Tagab keskkonna töö (käideldavus), tehniliste probleemide ja intsidentide lahendamise, mis võivad esineda keskkonna töös, tagab keskkonna turvauuenduste paigaldamine (server + rakendus), tagab automaatse paigaldusprotsessi toimise tarkvara pidevaks paigaldamiseks. Paraneb Moodle haldamise tehniline teadlikkus.",null,"Ei ole tegemist MKM valdkondliku digipöörde SF tegevustega.","1. Personaalne riik","Püsikulu (baasi)"]
["MKM"]
["MKM","RKO",null,"Irina Klementi (RKO juht) / Natalja Zinovjeva (protsessijuht)","III: Küberturvalisus ","3.3. Suurem küberturvalisuse tagamise võimekus","II: küberruumi hoidmine, arendamine ja juurutamine usaldusväärse ja turvalisena","Küberturbe poliitika kujundamist toetavate analüüside teostamise korraldamine","Rahastuse puudumisel võib tekkida olukord, kus küberturvalisuse strateegiad ja otsused tuginevad pelgalt isiklikele arvamustele, mitte põhjalikele teaduslikele uuringutele ja analüüsidele. RRFi rahastusest väljumine: Vajadus on hoida silma peal edaspidigi uutel tehnoloogiatel, uutel ohtudel ja nende jaoks vajalikke meetmeid rakendada","Riigisektori seisukohalt strateegiliselt oluliste uuringute ja analüüside tellimine, et tagada valdkonna süsteemne areng ","Riigisektoril on kõrge teadlikkus uusimatest tehnoloogiatest, uutest ohtudest ja vajalikest meetmetest ohtude maandamiseks.",null,1,null,"Ei","RES IKT (vaja juurde taotleda)",{"v":400000,"d":"400,000"},0,0,{"v":100000,"d":"100,000"},{"v":100000,"d":"100,000"},{"v":100000,"d":"100,000"},{"v":100000,"d":"100,000"},{"$nulls":8},{"$f":"SUM(200000/2)","v":{"v":100000,"d":"100,000"}},null,null,{"$f":"SUM(200000/2)","v":{"v":100000,"d":"100,000"}},null,null,{"$f":"SUM(200000/2)","v":{"v":100000,"d":"100,000"}},null,null,{"$f":"SUM(200000/2)","v":{"v":100000,"d":"100,000"}},"Kavandatavad analüüsid / uuringud, ülikoolide toetamine arengute uurimisel/ analüüside läbiviimisel nt: \n- tulevikutehnoloogiate kasutamise riskid ja nende haldus. Võimalused ja rakenduskava tehnoloogia-põhiste rünnakute ennetamiseks (krüpto, AI, lunavara, kvantarvutite võimsuse kasv jne); \n- Üleriiklike e-teenuste küberturvalise tõstmine (sh teiste riikide näitel) jne",null,"Ei ole tegemist MKM valdkondliku digipöörde SF tegevustega.","5. Küberturvalisus","Püsikulu (baasi)"]
["MKM","RKO",null,"Irina Klementi (RKO juht) / Natalja Zinovjeva (protsessijuht)","III: Küberturvalisus ","3.3. Suurem küberturvalisuse tagamise võimekus","II: küberruumi hoidmine, arendamine ja juurutamine usaldusväärse ja turvalisena","Küberturbe poliitika kujundamist toetavate analüüside teostamise korraldamine","Rahastuse puudumisel ei pruugi digitaliseerimisega seotud riskid piisavalt maandatud saama. RRFi rahastusest väljumine: vajadus on parandada avaliku sektori, sh KOVide, teadlikkust riski- ja turbejuhtimisest","Töötoad või koolitused avalikule sektorile, sh KOVidele, riski- ja turbejuhtimise tõhustamiseks, varukoopiate taastamise testimiseks","Digitaliseerimisega seotud riskid on maandatud",null,1,null,"Ei","RES IKT (vaja juurde taotleda)",{"v":100000,"d":"100,000"},0,0,{"v":25000,"d":"25,000"},{"v":25000,"d":"25,000"},{"v":25000,"d":"25,000"},{"v":25000,"d":"25,000"},{"$nulls":8},{"$f":"SUM(50000/2)","v":{"v":25000,"d":"25,000"}},null,null,{"$f":"SUM(50000/2)","v":{"v":25000,"d":"25,000"}},null,null,{"$f":"SUM(50000/2)","v":{"v":25000,"d":"25,000"}},null,null,{"$f":"SUM(50000/2)","v":{"v":25000,"d":"25,000"}},"Töötubade korraldamine avalikule sektorile ja KOVidele digitaliseerimisega seotud küberriskide maandamiseks, infoturbe võimekuse tõstmiseks.  \nÕppuste läbiviimine ja rakenduskavad kriitiliste teenuste/infrastruktuuri kriis- ja turvalisuse/toimepidevuse tõstmiseks. ",null,"Ei ole tegemist MKM valdkondliku digipöörde SF tegevustega.","5. Küberturvalisus","Püsikulu (baasi)"]
["MKM","RKO",null,"Irina Klementi (RKO juht) / Natalja Zinovjeva (protsessijuht)","III: Küberturvalisus ","3.3. Suurem küberturvalisuse tagamise võimekus","II: küberruumi hoidmine, arendamine ja juurutamine usaldusväärse ja turvalisena","Riikliku küberturvalisuse juhtimine, poliitika kujundamine ja õigusloome","Rahastuse puudumisel MKM RKO enam proaktiivse lähenemisega tulevikutehnoloogiate, tehnoloogiliste ohtude hindamise, tehnoloogiliste riskide halduse korraldamisega riigis, küber- ja riikliku ohupildi loomisega, arendustegevuste/uuringute lähteülesannete ja seisukohtade võtmisega ei tegele kuna puuduvad inimesed. Võib tekkida olukord, kus küberturvalisuse strateegiad ja otsused tuginevad pelgalt isiklikele arvamustele, mitte põhjalikele teaduslikele uuringutele ja analüüsidele, samuti ei ole EL-i teemad piisaval määral ülevõetud siseriiklikul tasemel. Näiteks EL tasemel kehtestatakse sertifitseerimisskeem, mis võib Eestis arendatud ja kasutusele võetud digitoote või üldse laiemalt EE “digiökosüsteemi” mitte sobivaks muuta (nt ID-kaartide sertifikaadid ja eIDAS teema). Osalisel rahastusel tuleb valida, millega riigiüleselt tegeletakse ja millega mitte.","Proaktiivne valdkonna juhtimine, sh tehnoloogiate, ohtude hindamine, sh tulevikutehnoloogiate uuringute, analüüside jm projektijuhtimine, tehnoloogiliste meetmete väljatöötamine, infoturbearengu seire, küpsushindamine, kriisijuhtimise tugi. ","Proaktiivne valdkonna juhtimine, mis tagab digiteenuste turvalist arendamist ja kasutuselevõtmist. Tehnoloogiliste ohtude hindamine, tehnoloogiliste riskide halduse korraldamine riigis, küber- ja riikliku ohupildi loomine ja võimeid adresseerivate tehnoloogiliste meetmete väljatöötamine,  infoturbe arengu seire ja küpsushindamine, kriisijuhtimise tugi. Proaktiivne lähenemine küberturvalisuse strateegiate loomiseks, tulevikukindluse tagamiseks, mis põhineb põhjalikel teaduslikel uuringutel ja analüüsidel, juhendmaterjalide ja analüüside läbiviimise tugi. ",null,1,null,"Ei","RES IKT (vaja juurde taotleda)",{"v":600000,"d":"600,000"},0,0,{"v":150000,"d":"150,000"},{"v":150000,"d":"150,000"},{"v":150000,"d":"150,000"},{"v":150000,"d":"150,000"},{"$nulls":7},{"$f":"SUM(300000/2)","v":{"v":150000,"d":"150,000"}},null,null,{"$f":"SUM(300000/2)","v":{"v":150000,"d":"150,000"}},null,null,{"$f":"SUM(300000/2)","v":{"v":150000,"d":"150,000"}},null,null,{"$f":"SUM(300000/2)","v":{"v":150000,"d":"150,000"}},null,"Riikliku küberturvalisuse osakonna nelja inimese palgakulu koos sotsiaal- ja töötuskindlustusmaksudega. RKO meeskond oli pikaajaliselt alamehitatud, oluline on tagada küberturvalisuse kasv riigis, et kindlustada tulevik ja kriisikindlus riiklikul tasandil. ",null,"Ei ole tegemist MKM valdkondliku digipöörde SF tegevustega.\nAlates 01.01.2025 puudub rahastus MKM riikliku küberturvalisuse osakonna (RKO) neljale inimesele. Rahastuse puudumisel MKM RKO enam proaktiivse lähenemisega tulevikutehnoloogiate, tehnoloogiliste ohtude hindamise, tehnoloogiliste riskide halduse korraldamisega riigis, küber- ja riikliku ohupildi loomisega, arendustegevuste/uuringute lähteülesannete ja seisukohtade võtmisega ei tegele kuna puuduvad inimesed. Osalisel rahastusel tuleb valida, millega riigiüleselt tegeletakse ja millega mitte. \nEeltoodud infot tuleb vaadelda RKO pikaajalise alamehitatuse taustal (11 töökohast on hetkel täidetud 6, mis töötavad suurendatud koormusega, käib meeskonna uute liikmete värbamine). Kui antud neljale inimesele palgaraha ei leia, siis riikliku küberturvalisuse osakonda jääb 5 inimest (osakonnajuhataja (hetkel värbamata), kaks õigusnõunikku, väliskoostööjuht ja protsessijuht). ","5. Küberturvalisus","Püsikulu (baasi)"]
["MKM","DAO",null,"Allan Allmere","I: Digiriik","1.2.3. Tulevikukindlad digiriigi platvormid","I: Infotehnoloogiliste lahenduste väljatöötamine ja arendamine","IT-alusteenuste keskse osutamise korraldamise koordineerimine","Andmesaatkonna rendikulud koos elektriga on MKM kanda. Kuna ettenähtud eelarvest jäi puudu MKM-il 2023, siis 2024 saime ühekordselt raha juurde, aga tulevikuks oleks vaja püsikulude katmiseks tõsta olemasolevat eelarvet. Kulu suureneb, kuna elektrihind on läinud aastatega kallimaks ja lisaks paigaldatakse 2024 aasta rohkem riistvra saatkonna ruumidesse, mis kõiks tarbivad voolu. Andmesaatkonna teenuse kulusid teistelt haldusaladelt ei küsita ja seda makstakse MKM poolt keskselt kinni.\n\nMis juhtub, kui raha ei saa - Riistvara on ostetud eurorahade eest ja peab olema töös veel järgnevad viis aastat. Kui me ei suuda maksta halduskulusi näiteks elektri arveid, ei saa ka teenused püsti olla nende serverite peal.","Andmesaatkonna püsikulude suurendamiseks kulude kate","Andmesaatkonnal toimub 2024 oluline riistvra suurendamine, mis tähendab, et põüsikulud kasvavad. Seadmed tarbivad rohkem vool näiteks.",null,1,null,"Ei","RES IKT (vaja juurde taotleda)",{"v":400000,"d":"400,000"},0,0,{"v":100000,"d":"100,000"},{"v":100000,"d":"100,000"},{"v":100000,"d":"100,000"},{"v":100000,"d":"100,000"},{"$nulls":6},0,0,{"v":100000,"d":"100,000"},0,0,{"v":100000,"d":"100,000"},0,0,{"v":100000,"d":"100,000"},0,0,{"v":100000,"d":"100,000"},"Vaatasime uue riistvara elektritarvet ja korrutasime 2023 aasta keskmise ühikuhinnaga. Seda kas ühikuhind võib muutuda, on omaküsimus. See on hetkel parim teadmine",null,"Ei ole tegemist MKM valdkondliku digipöörde SF tegevustega.","1. Personaalne riik\n5. Küberturvalisus","Püsikulu (baasi)"]
["MKM","DAO",null,"Ott Velsberg","I: Digiriik","1.1.2. Krativäeline riik","I: Infotehnoloogiliste lahenduste väljatöötamine ja arendamine",null,"Rahastuse puudumisel MKM andmete valdkonna koordieerimise ja riigiülese elluviimisega enam ei tegele kuna puuduvad inimesed. Osalisel rahastusel tuleb valida, millega riigiüleselt tegeletakse ja millega  mitte (andmehaldus, andmete taaskasutus, tehisintellekt, andmepõhine juhtimine jms). RRF rahastusest väljumine. Tehisintellekti ja Bürokrati suunaliste tegevustega jätkamine. Kesksete tehisintellekti põhiste teenuste arendamine ja toe pakkumine asutustele rakendamisel. ","Tehisintellekti tegevuskava elluviimine ning asutuste toetamine tehisintellekti rakendamisel ja kesksete teenuste arendamisel.","Riigikorraldus on tehisintellekti poolt rikastatud – Eesti on juhtiv tehisintellekti rakendaja maailmas. Aastane kulukokkuhoid läbi automatiseerimise ja sihitumate otsuste vähemalt 5M€.",null,1,null,"Ei","RES IKT (vaja juurde taotleda)",0,0,0,0,0,0,0,{"$nulls":10},0,0,null,0,0,null,0,0,"Digiriigi arengu osakonna andmete tiimi kahe inimese palgakulu (sh töökohakulu) ja majandamiskulud (koolitused, lähetused, töötoad, kratitoe portfelli osutamine, kommunikatsioon).",null,"Ei ole tegemist MKM valdkondliku digipöörde SF tegevustega.","2. AI ja andmed","Püsikulu (baasi)"]
["MKM","DAO",null,"Ott Velsberg","I: Digiriik","1.2.2. Andmepõhine riigivalitsemine ja andmete taaskasutus","I: Infotehnoloogiliste lahenduste väljatöötamine ja arendamine",null,"Rahastuse puudumisel MKM andmete valdkonna koordieerimise ja riigiülese elluviimisega enam ei tegele kuna puuduvad inimesed. Osalisel rahastusel tuleb valida, millega riigiüleselt tegeletakse ja millega  mitte (andmehaldus, andmete taaskasutus, tehisintellekt, andmepõhine juhtimine jms). RRF rahastusest väljumine. Andmehalduse ja avaandmete suunaliste tegevustega jätkamine. Andmehalduse ja avaandmete suunaliste tegevuste riigiülene koordineerimine ja juhtimine, sh. andmete taaskasutuse ja leitavuse toetamine ning andmekvaliteedi ja andmehalduse efektiivne rakendamine. ","Andmete tegevuskava elluviimine ning andmehalduse valdkonna riigiülene juhtimine ja koordineerimine, sh. andmete elukäiguhalduse süsteemne rakendamine riigiüleselt ja andmete ühekordse küsimise põhimõtte rakendamine.","•\tAvaliku sektori organisatsioonide andmed on hallatud ja kaitstud varana – meie andmed on kvaliteetsed, kättesaadavad ja kasutatavad lähtuvalt kasutusvajadustest;\n•\tLõppkasutajate (kodanike) halduskoormuse vähendamine vähemalt 70% võrrelduna 2023. aastaga läbi andmete ühekordse küsimise ja mitmekordse kasutamise printsiibi rakendamise ja taksonoomiate ühtlustamise - kulude kokkuhoid erasektoris 140M€;\n•\tAvaliku sektori organisatsioonides on sisse seatud efektiivne toimimismudel ja süsteemne andmehalduse korraldus;\n",null,1,null,"Ei","RES IKT (vaja juurde taotleda)",{"v":455983.8444,"d":"455,984"},0,0,0,{"v":143229,"d":"143,229"},{"v":151822.74000000002,"d":"151,823"},{"v":160932.1044,"d":"160,932"},{"$nulls":10},{"v":125229,"d":"125,229"},{"v":18000,"d":"18,000"},null,{"$f":"AH84*1.06","v":{"v":132742.74000000002,"d":"132,743"}},{"v":19080,"d":"19,080"},null,{"$f":"AK84*1.06","v":{"v":140707.30440000002,"d":"140,707"}},{"v":20224.8,"d":"20,225"},"Digiriigi arengu osakonna andmete tiimi kahe inimese palgakulu (sh töökohakulu) ja majandamiskulud (koolitused, lähetused, kommunikatsioon).",null,"Ei ole tegemist MKM valdkondliku digipöörde SF tegevustega.","2. AI ja andmed","Püsikulu (baasi)"]
["MKM","DAO",null,"Ott Velsberg","I: Digiriik","1.1.3. Inimkeskne Digiriik","I: Infotehnoloogiliste lahenduste väljatöötamine ja arendamine",null,"Rahastuse puudumisel MKM andmete valdkonna koordieerimise ja riigiülese elluviimisega enam ei tegele kuna puuduvad inimesed. Osalisel rahastusel tuleb valida, millega riigiüleselt tegeletakse ja millega  mitte (andmehaldus, andmete taaskasutus, tehisintellekt, andmepõhine juhtimine jms). RRF rahastusest väljumine. Usaldusväärse tehisintellekti ja inimkeskse andmekorralduse suunaliste tegevuste riigiülene koordineerimine ja juhtimine, sh. tagada, et digiriigi taristu võimaldab inimesel kui ka andmeid valdaval asutusel andmete kasutust tõhusamalt juhtida ning toetada privaatsust säilitavate tehnoloogiate rakendamist riigi üleselt. ","Usaldusväärse tehisintellekti ja inimkeskse andmekorralduse valdkonna riigiülene koordineerimine ja juhtimine, sh. privaatsust säilitavate tehnoloogiate rakendamine.","· Digiriigi taristu võimaldab inimesel kui ka andmeid valdaval asutusel andmete kasutust tõhusamalt juhtida. Isikul on läbi keskse infoportaali ülevaade, milliste avalike teenuste osutamiseks milliseid andmeid on ametiasutused tema kohta kogunud ning kes ja mis eesmärkidel neid andmeid kasutab. \n· Juhul, kui inimene soovib oma andmeid jagada, on tal seda võimalik teha viisil, mis on läbipaistev ja mõistetav, turvaline kui ka säilitab otsustusõiguse. Seeläbi on soodustatud ka uuenduslike avalike ja erasektori partnerluste teke, kus kodanike kaasamine andmete jagamisse aitab kujundada tõhusamaid ja kodanike vajadusi paremini arvestavaid teenuseid. 2023 aastal genereeriti nõusolekuid enam kui 500 000 korral enam kui 20 erasektori teenuses.\n·\tTagatud on võimekus pakkuda personaalset teenust erineva privaatsuse tunnetusega inimestele, mis tähendab, et inimesel on suur otsustusõigus selle üle, milliseid teenuseid talle pakutakse automaatselt tema andmeid töödeldes ning milliseid mitte.\n",null,1,null,"Ei","RES IKT (vaja juurde taotleda)",{"v":254980.89120000004,"d":"254,981"},0,0,0,{"v":80092,"d":"80,092"},{"v":84897.52,"d":"84,898"},{"v":89991.37120000002,"d":"89,991"},{"$nulls":10},{"v":66092,"d":"66,092"},{"v":14000,"d":"14,000"},null,{"v":70057.52,"d":"70,058"},{"v":14840,"d":"14,840"},null,{"v":74260.97120000001,"d":"74,261"},{"v":15730.400000000001,"d":"15,730"},"Digiriigi arengu osakonna andmete tiimi ühe inimese palgakulu (sh töökohakulu) ja majandamiskulud (koolitused, lähetused, kommunikatsioon).",null,"Ei ole tegemist MKM valdkondliku digipöörde SF tegevustega.","2. AI ja andmed","Püsikulu (baasi)"]
["MKM","KEMIT",null,"Jana Korberg","I: Digiriik","1.2.1. Avalike teenuste juhtimise ja kasutajakesksuse juurutamine","I: Infotehnoloogiliste lahenduste väljatöötamine ja arendamine","Panustab mitmetesse TERE teenustesse","Teenused aeglased, kliendile ebamugavad, automatiseerimata; süsteemides ebapiisav funktsionaalsus ja  esineb palju vigu","ET (e-teenuste) iseteeninduskeskkond - I etapp sisaldab kõiki vajalikke tegevusi  terviklikuks lahenduseks.*  \nET KLIENDITOODE: arendada terviklik funktsionaalsus loataotluse esitamiseks (sh uus kasutajateekonna disain); kaetud on teenused JVIS, MTR ja NMB infosüsteemidest ja uued teenused (sh NMR)","Majandustegevusteateid ja loataotlusi on võimalik esitada e-teenuste kliendikeskkonnas, vähenenud on klientide vajadus täiendava konsultatsiooni järele teenuste kasutamisel, klientide rahulolu langustrend on peatunud","ok",1,null,"Ei","SF 21-27 (taotletav raha)",{"v":2288000,"d":"2,288,000"},0,{"v":503000,"d":"503,000"},{"v":1385000,"d":"1,385,000"},{"v":400000,"d":"400,000"},0,0,{"$nulls":3},{"v":428000,"d":"428,000"},0,{"v":75000,"d":"75,000"},{"v":1345000,"d":"1,345,000"},0,{"v":40000,"d":"40,000"},{"v":400000,"d":"400,000"},0,0,{"$nulls":6},"Maksumuse arvutuse aluseks on töötunni maksumus 60 EUR","4. SF tegevus, mis vajab jätkusuutlikkuse kulusid, aga neid pole välja arvutatud ja eraldi real välja toodud","Vajadus tekib alates arenduse kasutusele võtust alates 2025 kasvavas trendis ja algselt kaetakse vana platvormi arvel.","1. Personaalne riik"]
["MKM","KEMIT",null,"Jana Korberg","I: Digiriik","1.2.5. Uute lähenemisviiside pidev katsetamine","I: Infotehnoloogiliste lahenduste väljatöötamine ja arendamine","Panustab mitmetesse TERE teenustesse","Teenused aeglased, kliendile ebamugavad, automatiseerimata; süsteemides esineb palju vigu","ET PROTSESSITOODE: Protsessijuhtimise tarkvara integreerimine e-teenuste platvormiga","Protsessijuhtimise tarkvara on integreeritud e-teenuste platvormile, teostatud on pilootprojekt, mille õnnestumisel on loodud võimekus tarkvara kasutuselevõtmiseks (sh koolitused)","nok",1,null,"Ei","SF 21-27 (taotletav raha)",0,0,0,0,0,0,0,{"$nulls":3},0,0,0,0,0,0,0,0,0,{"$nulls":6},"Analüütikute poolt hinnatud töötunni maht ning tavapärane töötunni maksumus 60 EUR","4. SF tegevus, mis vajab jätkusuutlikkuse kulusid, aga neid pole välja arvutatud ja eraldi real välja toodud","Vajadus tekib alates arenduse kasutusele võtust alates 2025 kasvavas trendis ja algselt kaetakse vana platvormi arvel.","1. Personaalne riik"]
["MKM","KEMIT",null,"Jana Korberg","I: Digiriik","1.2.2. Andmepõhine riigivalitsemine ja andmete taaskasutus","I: Infotehnoloogiliste lahenduste väljatöötamine ja arendamine","Panustab mitmetesse TERE teenustesse","Liidestused erinevate infosüsteemidega on hajutatud, raskesti monitooritavad,  hallatavad ja arendatavad","ET ANDMEVAHETUSTOODE: Andmevahetuse (nii siseriiklik kui ka EL) funktsionaalsuse arendamine ja konsolideerimine e-teenuste andmevahetustootesse. EL andmeliidestused on direktiivikohustuslikud.","Arendatud on andmevahetustoote võimekus liidestuste loomiseks nii siseriiklikult kui ka EL suunal, teostatud on konkreetsed liidestused vastavalt e-teenustesse üle viidud teenuste vajadustele","nok",1,null,"Ei","SF 21-27 (taotletav raha)",0,0,0,0,0,0,0,0,null,null,0,0,0,0,0,0,0,0,0,{"$nulls":6},"Analüütikute poolt hinnatud töötunni maht ning tavapärane töötunni maksumus 60 EUR","4. SF tegevus, mis vajab jätkusuutlikkuse kulusid, aga neid pole välja arvutatud ja eraldi real välja toodud","Vajadus tekib alates arenduse kasutusele võtust alates 2025 kasvavas trendis ja algselt kaetakse vana platvormi arvel.","2. AI ja andmed"]
["MKM","KEMIT",null,"Jana Korberg","I: Digiriik","1.2.1. Avalike teenuste juhtimise ja kasutajakesksuse juurutamine","I: Infotehnoloogiliste lahenduste väljatöötamine ja arendamine","Panustab mitmetesse TERE teenustesse","Menetluskeskkonna kasutajateekond ei toeta tööprotsessi efektiivset teostamist (protsessipõhisust, automatiseerimist, ärireeglite rakendamist).","ET MENETLUSTOODE: kasutajateekonna analüüs ja uue disaini väljatöötamine","Loodud on menetluskeskkonna uus kasutajateekonna disain","nok",1,null,"Ei","SF 21-27 (taotletav raha)",0,0,0,0,0,0,0,0,0,0,0,0,0,0,0,0,0,0,0,{"$nulls":6},"Maksumuse arvutuse aluseks on töötunni maksumus 70 EUR. Planeeritud on 2200 tundi.","4. SF tegevus, mis vajab jätkusuutlikkuse kulusid, aga neid pole välja arvutatud ja eraldi real välja toodud","Vajadus tekib alates arenduse kasutusele võtust alates 2025 kasvavas trendis ja algselt kaetakse vana platvormi arvel.","1. Personaalne riik"]
["MKM","KEMIT",null,"Jana Korberg","I: Digiriik","1.2.1. Avalike teenuste juhtimise ja kasutajakesksuse juurutamine","I: Infotehnoloogiliste lahenduste väljatöötamine ja arendamine","Panustab mitmetesse TERE teenustesse","Sisuteenuste toimepidevuse tagamine e-teenustele etapiviisilise ülemineku käigus","ET Möödapääsmatute integratsioonide arendused vana ja uue infosüsteemi vahel ning andmete migratsiooniga seotud tööd","TTJA teenused toimivad katkestusteta kogu e-teenuste platvormile ülemineku perioodi jooksul ja andmete terviklus on tagatud","nok",1,null,"Ei","SF 21-27 (taotletav raha)",0,0,0,0,0,0,0,{"$nulls":5},0,null,null,0,{"$nulls":9},"Maksumuse arvutuse aluseks on töötunni maksumus 60 EUR","5. SF tegevus, mis ei vaja jätkusuutlikkuse kulusid (nt analüüs)",null,"2. AI ja andmed"]
["MKM","KEMIT",null,"Jana Korberg","I: Digiriik","1.2.2. Andmepõhine riigivalitsemine ja andmete taaskasutus","I: Infotehnoloogiliste lahenduste väljatöötamine ja arendamine","Panustab mitmetesse TERE teenustesse","e-teenuste platvormil puudub aruannete genereerimise ja analüütika töövahend","Andmeaida edasiarendus (vahekihtide loomine, täiendavad liidestused andmeallikatega, Tableau serveri kasutuselevõtmine aruannete kättesaadavuse loomiseks).","On võimalik luua ja kasutada aruandeid andmeaidaga liidestatud andmekogude andmete põhjal. Kasutajad on koolitatud. On loodud võimalus aruannete esitlemiseks välisveebis.","nok",1,null,"Ei","SF 21-27 (taotletav raha)",0,0,0,0,0,0,0,{"$nulls":6},0,null,0,{"$nulls":9},"Maksumuse arvutuse aluseks on töötunni maksumus 60 EUR","4. SF tegevus, mis vajab jätkusuutlikkuse kulusid, aga neid pole välja arvutatud ja eraldi real välja toodud",null,"2. AI ja andmed"]
["MKM","DAO",null,null,"I: Digiriik","1.2.4. Keskselt osutatud IT-alusteenused","IV: muu digipöördega seotud otsene kulu","IKT alusteenuste keskne osutamine","RIT-i keskne ATK teenus ja serveri alusteenused ei ole MKMi poolt keskselt koordineeritud ja juhitud. \nRiigiülese baasteenuse konsolideerimiseks puudub ressurss","Arvutustaristu tehnoloogia nõuniku ja konsolideerimise programmijuhi värbamine","RIT-i keskne ATK teenus ja serveri alusteenused on MKMi poolt keskselt koordineeritud ja juhitud. \nRiigiülese baasteenuse konsolideerimise koordineerimine ","nok",1,null,null,"RES IKT (vaja juurde taotleda)",{"v":656000,"d":"656,000"},0,0,{"v":164000,"d":"164,000"},{"v":164000,"d":"164,000"},{"v":164000,"d":"164,000"},{"v":164000,"d":"164,000"},{"$nulls":7},{"v":150000,"d":"150,000"},{"v":14000,"d":"14,000"},null,{"v":150000,"d":"150,000"},{"v":14000,"d":"14,000"},null,{"v":150000,"d":"150,000"},{"v":14000,"d":"14,000"},null,{"v":150000,"d":"150,000"},{"v":14000,"d":"14,000"},"Kahe inimese palgakulu",null,null,"4. Baasi korrastamine","püsikulu"]
["MKM","TTJA",null,"Raul Kallas","I: Digiriik","1.2.7. Avaliku sektori digimuutuste võimendamine","III: teadlikkuse tõstmine","Panustab mitmetesse TERE teenustesse","TTJA puudub võimekus UX/UI kompetentsi osas","Kasutajateekonna (UX) kompetentsi tõstmine","Kasutajateekonna (UX) spetsialist on värvatud","ok",1,null,"Ei","SF 21-27 (taotletav raha)",{"$f":"SUM(R93:W93)","v":{"v":302000,"d":"302,000"}},{"$f":"SUM(X93:Z93)","v":0},{"$f":"SUM(AA93:AC93)","v":{"v":42000,"d":"42,000"}},{"$f":"SUM(AD93:AF93)","v":{"v":65000,"d":"65,000"}},{"$f":"SUM(AE93:AG93)","v":{"v":65000,"d":"65,000"}},{"v":65000,"d":"65,000"},{"$f":"SUM(AG93:AI93)","v":{"v":65000,"d":"65,000"}},{"$nulls":4},{"v":32000,"d":"32,000"},{"v":10000,"d":"10,000"},null,{"v":55000,"d":"55,000"},{"v":10000,"d":"10,000"},null,{"v":55000,"d":"55,000"},{"v":10000,"d":"10,000"},null,{"v":55000,"d":"55,000"},{"v":10000,"d":"10,000"},{"$nulls":3},"Asutuse kulu 4000 tööjõukulu. Majandamiskulu alla on planeeritud koolitused.","4. SF tegevus, mis vajab jätkusuutlikkuse kulusid, aga neid pole välja arvutatud ja eraldi real välja toodud",null,"1. Personaalne riik"]
["MKM","KEMIT",null,"Jana Korberg","I: Digiriik","1.2.7. Avaliku sektori digimuutuste võimendamine","III: teadlikkuse tõstmine","Panustab mitmetesse TERE teenustesse","Kemitil puudub piisav IT arhitekti kompetents/ressurss ning arendustööde haldusvõimekus on ebapiisav e-teenuste projekti jaoks","TTJA pilooti jaoks võimekuse ja kompetentsi tõstmine KEMITis","Süsteemiarhitekt ja teenushaldur on värvatud.","ok",1,null,"Ei","SF 21-27 (taotletav raha)",{"v":661100,"d":"661,100"},0,{"v":75000,"d":"75,000"},{"v":135550,"d":"135,550"},{"$f":"SUM(AE94:AG94)","v":{"v":135550,"d":"135,550"}},{"$f":"SUM(AF94:AH94)","v":{"v":155000,"d":"155,000"}},{"$f":"SUM(AG94:AI94)","v":{"v":160000,"d":"160,000"}},{"$nulls":4},{"v":70000,"d":"70,000"},{"v":5000,"d":"5,000"},null,{"v":130550,"d":"130,550"},{"v":5000,"d":"5,000"},null,{"v":150000,"d":"150,000"},{"v":10000,"d":"10,000"},null,{"v":150000,"d":"150,000"},{"v":10000,"d":"10,000"},{"$nulls":3},"Majandamiskulu on koolitusteks.","4. SF tegevus, mis vajab jätkusuutlikkuse kulusid, aga neid pole välja arvutatud ja eraldi real välja toodud",null,"1. Personaalne riik"]
["MKM","TTJA",null,"Raul Kallas","I: Digiriik","1.2.1. Avalike teenuste juhtimise ja kasutajakesksuse juurutamine","I: Infotehnoloogiliste lahenduste väljatöötamine ja arendamine","Panustab mitmetesse TERE teenustesse","Puudub terviklik ülevaade klientide/kasutajate rahulolust TTJA teenustega","Kliendi tagasiside küsitluse metoodika väljatöötamine, küsitluse disain ja teostamine","Kliendi tagasiside küsitlus on läbi viidud","nok",2,null,"Ei","SF 21-27 (taotletav raha)",0,0,0,0,{"$f":"SUM(AG95:AI95)","v":0},{"$f":"SUM(AJ95:AL95)","v":0},{"$f":"SUM(AM95:AO95)","v":0},{"$nulls":5},0,{"$nulls":12},"ma rohkem kuulaja rollis","5. SF tegevus, mis ei vaja jätkusuutlikkuse kulusid (nt analüüs)",null,"1. Personaalne riik"]
["MKM","MKM",null,"Kaire Kasearu","I: Digiriik","1.1.4. Roheline digiriik","III: teadlikkuse tõstmine","Panustab mitmetesse TERE teenustesse","Hetkel on kestlikkuse teemad rohelise digiriigi saavutamiseks korraldamata ja koordineerimata ning teadlikkus on madal","Kestlikkuse tegevuste juurutamine MKMi valitsemisalas","Kestlikkuse teadlikkus on tõusnud ja prioriteetsed tegevused planeeritud ning ellu viidud (nt koolitused, kogemuste jagamine, rohekalender, digiprügi kampaania MKMi valitsemisalas jne)","nok",null,null,"Ei","SF 21-27 (taotletav raha)",0,0,0,0,0,0,0,{"$nulls":5},0,null,null,0,{"$nulls":10},"5. SF tegevus, mis ei vaja jätkusuutlikkuse kulusid (nt analüüs)",null,"1. Personaalik riik"]
["MKM","DM",null,"Sirli Heinsoo","I: Digiriik","1.1.1. Üleminek sündmuspõhistele ja proaktiivsetele teenustele","I: Infotehnoloogiliste lahenduste väljatöötamine ja arendamine","Panustab mitmetesse TERE teenustesse","RRF rahastusest väljumine. Kogu ettevõtjatele suunatud sündmusteenuste MKMi ehk äritellija tiim on RRFist rahastud. Rahastus lõpeb ära 2025 lõpuga.  2025 aastaks loodavad  lahendused ei taga terviklikke parimaid sündmusteenuseid ning neid on vaja sisuliselt edasi arendada parimate kasutajakesksete, mugavate ja lihtsate teenuste ülemineku suunas ettevõtjatele, tagada jätkusuutlikkus toetades personaalse riigi kontseptsiooni.","Ettevõtja sündmusteenuste jätkuarenduste ja jätkusuutlikkuse tagamine, sh laialdane koostöö hoidmine ja arendamine asutustega. Avaliku sektori asutuste toetamine sündmuspõhistele teenustele ülemineku kontseptsiooni juurutamisel ja kasutajakesksete teenuste loomise tööriistade pakkumisel. ","2026-2028. a perioodiks asutusteülese ettevõtjatele suunatud sündmusteenuste arendamise koordineerimise võimestamine RRFist loodud sündmusteenuste edasiarenduseks. Rahastuse olemasolu investeeringutele ja tööjõu- ning majandamiskuludele RRFist kuni 31.12.2025, majandamiskulu ja tööjõukulu katmiseks muudetakse minsitri käskkirja RRFi vahendite kasutamiseks kuni 31.04.2026, seetõttu 2026. a tööjõu- ja majndamiskulu lisavajadused väiksemad kui 2027 a ja 2028 a. Investeeringukulud sündmusteenuste platvormile alates 2026. a planeeritud RIA poolt.",null,1,null,"Võimalik vajadus äri või arhitektuuripaneeli järele, kui RIA ja teiste asutuste koostöös selgub, kuidas olemaoslevad iseteenindused keskelt kasutajani viia.  ","RES IKT (vaja juurde taotleda)",{"v":1130000,"d":"1,130,000"},0,0,0,{"$f":"SUM(AG97:AI97)","v":{"v":270000,"d":"270,000"}},{"v":420000,"d":"420,000"},{"v":440000,"d":"440,000"},{"$nulls":10},{"v":250000,"d":"250,000"},{"v":20000,"d":"20,000"},null,{"v":390000,"d":"390,000"},{"v":30000,"d":"30,000"},null,{"v":410000,"d":"410,000"},{"v":30000,"d":"30,000"},"Digimajanduse osakonna digivärava tiimi kuue (sh jurist ja valdkonna juht) inimese palgakulu (sh töökohakulu) ja majandamiskulud (koolitused, lähetused, töötoad, kommunikatsioon), kalkuleeritud RRF perioodi reaalsete kulude pealt.","2. Tegevus on jätkusuutlikkuse kulu (baaseelarve, RES lisataotlus, muu allikas)","Ei ole tegemist MKM valdkondliku digipöörde SF tegevustega.\nJätkurahastuseta ei ole võimalik personaalse riigi kontseptsiooni realiseerida.","1. Personaalne riik","püsikulu"]
["MKM","TTJA",null,"Raul Kallas","III: Küberturvalisus ","1.2.3. Tulevikukindlad digiriigi platvormid","II: küberruumi hoidmine, arendamine ja juurutamine usaldusväärse ja turvalisena","Panustab mitmetesse TERE teenustesse","Puudub ülevaade, millisel määral on TTJA-s täidetud e-its nõuded","e-its auditi hankimine ja läbiviimine","Auditi raport on koostatud ja esitatud TTJA-le.","ok",1,null,"Ei","SF 21-27 (taotletav raha)",{"v":30000,"d":"30,000"},0,{"v":30000,"d":"30,000"},0,0,0,0,{"$nulls":5},{"v":30000,"d":"30,000"},{"$nulls":12},"Ühekordne töö. Maksumus on hinnanguline ja tugineb teiste asutuste kogemusele.","5. SF tegevus, mis ei vaja jätkusuutlikkuse kulusid (nt analüüs)",null,"5. Küberturvalisus."]
["MKM","TTJA",null,"Erko Kulu","II: Ühenduvus","1.2.3. Tulevikukindlad digiriigi platvormid","I: Infotehnoloogiliste lahenduste väljatöötamine ja arendamine","TERE teenus Digivaldkonna Järelevalve","Puudub võimalus riigiasutuste vahel ressurssi jagada","Monitooringuvõrgu  ühiskasutusplatvorm","TTJA monitooringuvõrgu ressurss on jagatav  riigi julgeolekuasutuste vahel",null,1,null,null,"RES IKT (vaja juurde taotleda)",{"v":100000,"d":"100,000"},0,0,0,{"v":100000,"d":"100,000"},0,0,{"$nulls":9},{"v":100000,"d":"100,000"},{"$nulls":8},"Investeering Monitooringuvõrgu  ühiskasutusplatvorm.  Projekti esimene faas on saanud heakskiidu 2024 SR  vahenditest",null,null,"4. Baasi korrastamine."]
["MKM","TTJA",null,"Erko Kulu","II: Ühenduvus","3.3. Suurem küberturvalisuse tagamise võimekus","II: küberruumi hoidmine, arendamine ja juurutamine usaldusväärse ja turvalisena","TERE teenus Digiühiskonna  järelevalve","Võib katkeda riiklik olukorra pilt GPS  kasutamisest  ja ei ole tuvastatavad küberründed GPS süsteemile","GPS häirete reaalajas olukorra pildi teenus"," Riikliku olukorrapilldi saamine GPS navigatsioonisüsteemide kasutatavusest ja häiretes Eesti territooriumil",null,1,null,null,"RES IKT (vaja juurde taotleda)",{"v":200000,"d":"200,000"},0,0,{"v":50000,"d":"50,000"},{"v":50000,"d":"50,000"},{"v":50000,"d":"50,000"},{"v":50000,"d":"50,000"},{"$nulls":8},{"v":50000,"d":"50,000"},null,null,{"v":50000,"d":"50,000"},null,null,{"v":50000,"d":"50,000"},null,null,{"v":50000,"d":"50,000"},"GPS häirete reaalajas olukorra pildi teenus,halduskulu",null,null,"5. Küberturvalisus."]
["MKM","TTJA",null,"Erko Kulu","II: Ühenduvus","3.3. Suurem küberturvalisuse tagamise võimekus","II: küberruumi hoidmine, arendamine ja juurutamine usaldusväärse ja turvalisena"," Investeering Digiühiskonna programm","Väheneb võimekus tuvastada ja lokaliseerida piirialadel häireid sidevõrkudes, kuna olemaolev tehnika on amortiseerub","Mobiilse monitooringujaama soetamine","Mobiilse monitooringujaama uuendamine koos   paigaldatavate  positsioneerimisvahendite väljavahetamisega, paraneb oluliselt raadioeetri küberrünnete positsioneerimine ja pahalase tuvastamine",null,1,null,null,"RES IKT (vaja juurde taotleda)",{"v":235000,"d":"235,000"},0,0,0,0,{"v":180000,"d":"180,000"},{"v":55000,"d":"55,000"},{"$nulls":12},{"v":180000,"d":"180,000"},null,null,{"v":55000,"d":"55,000"},null,null,"Mobiilse monitooringujaama soetamine,mille käigus  vahetatakse välja paigaldatud  positsioneerimisvahendid, paraneb oluliselt raadioeetri küberrünnete positsioneerimine ja pahalase tuvastamine",null,null,"5. Küberturvalisus."]
["MKM","TTJA",null,"Oliver Gailan","II: Ühenduvus","2.2. Juurdepääsuvõrkude väljaarendamine","II: küberruumi hoidmine, arendamine ja juurutamine usaldusväärse ja turvalisena","TERE teenus Digiühiskonna Järelevalve","Puudub võimekus alates 2026 teha järelevalvet riigi ja EL toega rajatud kiire interneti võrkudele võrdse juurdepääsu tagamise üle","Toetusmeetmetest rajatud kiire interneti võrkude juurdepääsutingimuste järelevalve","Toetusmeetmetest rajavad operaatorineutraalseid võrke paljud sideettvõtted  ning reeglite kohaselt jääb neile kestma võrkude juurdepääsu andmise ja hinnakohustus. Ohuprognoos ja esinenud näited kinnitavad, et tingimuste täitmisega on probleeme ning  teha järelevalvet tulemuseks ühenduvuse säilimine.",null,1,null,null,"RES IKT (vaja juurde taotleda)",{"v":150000,"d":"150,000"},0,null,0,{"v":50000,"d":"50,000"},{"v":50000,"d":"50,000"},{"v":50000,"d":"50,000"},{"$nulls":10},{"v":50000,"d":"50,000"},null,null,{"v":50000,"d":"50,000"},null,null,{"v":50000,"d":"50,000"},null,"1 töötaja tööjõukulu s.h. töökoha kulu",null,null,"6. Mittesõjalised riigikaitselised IKT vajadused."]
["MKM","TTJA",null,"Erko Kulu","III: Küberturvalisus ","3.1. Ajakohane küberturvalisuse riiklik korraldus","II: küberruumi hoidmine, arendamine ja juurutamine usaldusväärse ja turvalisena"," Investeering Digiühiskonna programm","Vajalik salastatud teabe vahetamiseks  turvalise sidekanali kaudu","Ametkondade vahelise andmesidevõrgu (ATA) krüptoseadme soetamine","Asutuste vaheline RS teabe vahetamine on turvaline",null,1,null,null,"RES IKT (vaja juurde taotleda)",{"v":30000,"d":"30,000"},0,0,0,{"v":30000,"d":"30,000"},0,0,{"$nulls":9},{"v":30000,"d":"30,000"},{"$nulls":8},"Krüptoseade , hinnaguline maksumus",null,null,"6. Mittesõjalised riigikaitselised IKT vajadused."]
[{"$nulls":16},{"$f":"SUM(R104:W104)","v":{"v":18919067,"d":"18,919,067"}},{"v":23250,"d":"23,250"},{"v":1807000,"d":"1,807,000"},{"v":17088817,"d":"17,088,817"},0,0,0,{"$f":"SUM(X35:X103)","v":0},{"v":16074,"d":"16,074"},{"v":7176,"d":"7,176"},{"v":838000,"d":"838,000"},{"v":502000,"d":"502,000"},{"v":467000,"d":"467,000"},{"v":1425000,"d":"1,425,000"},{"v":8346335.850000001,"d":"8,346,336"},{"v":7317481.149999999,"d":"7,317,481"}]
[{"$nulls":23},{"$f":"SUM(X107+X110+X113+X116+X122+X125+X128+X131+X137+X140+X143+X146)","v":0},{"v":16074,"d":"16,074"},{"v":7176,"d":"7,176"},{"v":838000,"d":"838,000"},{"v":502000,"d":"502,000"},{"v":467000,"d":"467,000"},{"v":1425000,"d":"1,425,000"},{"v":8346335.850000001,"d":"8,346,336"},{"v":7317481.149999999,"d":"7,317,481"}]
[{"$nulls":20},"SF 21-27 (taotletav raha)"]
[{"$nulls":4},"I: Digiriik","1.1.1. Üleminek sündmuspõhistele ja proaktiivsetele teenustele","I: Infotehnoloogiliste lahenduste väljatöötamine ja arendamine",{"$nulls":8},"Baaseelarve",{"$nulls":4},"1. Infotehnoloogiliste lahenduste väljatöötamine ja arendamine",null,null,{"$f":"SUMIFS($X$35:$X$103,$G$35:$G$103,$G$107,$P$35:$P$103,\"SF 21-27 (taotletav raha)\")","v":0},{"$f":"SUMIFS($Y$35:$Y$103,$G$35:$G$103,$G$107,$P$35:$P$103,\"SF 21-27 (taotletav raha)\")","v":0},{"$f":"SUMIFS($Z$35:$Z$103,$G$35:$G$103,$G$107,$P$35:$P$103,\"SF 21-27 (taotletav raha)\")","v":0},{"$f":"SUMIFS($AA$35:$AA$103,$G$35:$G$103,$G$107,$P$35:$P$103,\"SF 21-27 (taotletav raha)\")","v":{"v":688000,"d":"688,000"}},{"$f":"SUMIFS($AB$35:$AB$103,$G$35:$G$103,$G$107,$P$35:$P$103,\"SF 21-27 (taotletav raha)\")","v":111000},{"$f":"SUMIFS($AC$35:$AC$103,$G$35:$G$103,$G$107,$P$35:$P$103,\"SF 21-27 (taotletav raha)\")","v":250000},{"$f":"SUMIFS($AD$35:$AD$103,$G$35:$G$103,$G$107,$P$35:$P$103,\"SF 21-27 (taotletav raha)\")","v":1425000},{"$f":"SUMIFS($AE$35:$AE$103,$G$35:$G$103,$G$107,$P$35:$P$103,\"SF 21-27 (taotletav raha)\")","v":111000},{"$f":"SUMIFS($AF$35:$AF$103,$G$35:$G$103,$G$107,$P$35:$P$103,\"SF 21-27 (taotletav raha)\")","v":50000},{"$nulls":10},"1. Baaseelarve tegevus, mis sisaldab jätkusuutlikkuse kulusid ja need on samal real välja toodud"]
[{"$nulls":4},"II: Ühenduvus","1.1.2. Krativäeline riik","II: küberruumi hoidmine, arendamine ja juurutamine usaldusväärse ja turvalisena",{"$nulls":8},"Muu rahastus",{"$nulls":4},"+km",null,null,{"$f":"X107*1.2","v":0},{"$f":"Y107","v":0},{"$f":"Z107*1.2","v":0},{"$f":"AA107*1.22","v":{"v":839360,"d":"839,360"}},{"$f":"AB107","v":{"v":111000,"d":"111,000"}},{"$f":"AC107*1.22","v":{"v":305000,"d":"305,000"}},{"$f":"AD107*1.22","v":{"v":1738500,"d":"1,738,500"}},{"$f":"AE107","v":{"v":111000,"d":"111,000"}},{"$f":"AF107*1.22","v":{"v":61000,"d":"61,000"}},{"$nulls":10},"2. Tegevus on jätkusuutlikkuse kulu (baaseelarve, RES lisataotlus, muu allikas)"]
[{"$nulls":4},"III: Küberturvalisus ","1.1.3. Inimkeskne Digiriik","III: teadlikkuse tõstmine",{"$nulls":8},"RES IKT (vaja juurde taotleda)",{"$nulls":26},"3. SF tegevus, mis vajab jätkusuutlikkuse kulusid ja need on eraldi real välja toodud"]
[{"$nulls":5},"1.1.4. Roheline digiriik","IV: muu digipöördega seotud otsene kulu",{"$nulls":8},"Reserv (SR)",{"$nulls":4},"2. küberruumi hoidmine, arendamine ja juurutamine usaldusväärse ja turvalisena",null,null,{"$f":"SUMIFS(X35:X103,G35:G103,$G$108,P35:P103,\"SF 21-27 (taotletav raha)\")","v":0},{"$f":"SUMIFS(Y35:Y103,G35:G103,$G$108,P35:P103,\"SF 21-27 (taotletav raha)\")","v":0},{"$f":"SUMIFS(Z35:Z103,G35:G103,$G$108,P35:P103,\"SF 21-27 (taotletav raha)\")","v":0},{"$f":"SUMIFS(AA35:AA103,G35:G103,$G$108,P35:P103,\"SF 21-27 (taotletav raha)\")","v":0},{"$f":"SUMIFS(AB35:AB103,G35:G103,$G$108,P35:P103,\"SF 21-27 (taotletav raha)\")","v":0},{"$f":"SUMIFS(AC35:AC103,G35:G103,$G$108,P35:P103,\"SF 21-27 (taotletav raha)\")","v":30000},{"$f":"SUMIFS(AD35:AD103,G35:G103,$G$108,P35:P103,\"SF 21-27 (taotletav raha)\")","v":0},{"$f":"SUMIFS(AE35:AE103,G35:G103,$G$108,P35:P103,\"SF 21-27 (taotletav raha)\")","v":0},{"$f":"SUMIFS(AF35:AF103,G35:G103,$G$108,P35:P103,\"SF 21-27 (taotletav raha)\")","v":0},{"$nulls":10},"4. SF tegevus, mis vajab jätkusuutlikkuse kulusid, aga neid pole välja arvutatud ja eraldi real välja toodud"]
[{"$nulls":5},"1.2.1. Avalike teenuste juhtimise ja kasutajakesksuse juurutamine",{"$nulls":9},"RRF",{"$nulls":4},"+km",null,null,{"$f":"X110*1.2","v":0},{"$f":"Y110","v":0},{"$f":"Z110*1.2","v":0},{"$f":"AA110*1.22","v":0},{"$f":"AB110","v":0},{"$f":"AC110*1.22","v":{"v":36600,"d":"36,600"}},{"$f":"AD110*1.22","v":0},{"$f":"AE110","v":0},{"$f":"AF110*1.22","v":0},{"$nulls":10},"5. SF tegevus, mis ei vaja jätkusuutlikkuse kulusid (nt analüüs)"]
[{"$nulls":5},"1.2.2. Andmepõhine riigivalitsemine ja andmete taaskasutus",{"$nulls":9},"SF 14-20 (töös olev projekt)"]
[{"$nulls":5},"1.2.3. Tulevikukindlad digiriigi platvormid",{"$nulls":9},"SF 21-27 (taotletav raha)",{"$nulls":4},"3. teadlikkuse tõstmine",null,null,{"$f":"SUMIFS(X35:X103,G35:G103,$G$109,P35:P103,\"SF 21-27 (taotletav raha)\")","v":0},{"$f":"SUMIFS(Y35:Y103,G35:G103,$G$109,P35:P103,\"SF 21-27 (taotletav raha)\")","v":{"v":16074,"d":"16,074"}},{"$f":"SUMIFS(Z35:Z103,G35:G103,$G$109,P35:P103,\"SF 21-27 (taotletav raha)\")","v":{"v":7176,"d":"7,176"}},{"$f":"SUMIFS(AA35:AA103,G35:G103,$G$109,P35:P103,\"SF 21-27 (taotletav raha)\")","v":0},{"$f":"SUMIFS(AB35:AB103,G35:G103,$G$109,P35:P103,\"SF 21-27 (taotletav raha)\")","v":391000},{"$f":"SUMIFS(AC35:AC103,G35:G103,$G$109,P35:P103,\"SF 21-27 (taotletav raha)\")","v":137000},{"$f":"SUMIFS(AD35:AD103,G35:G103,$G$109,P35:P103,\"SF 21-27 (taotletav raha)\")","v":0},{"$f":"SUMIFS(AE35:AE103,G35:G103,$G$109,P35:P103,\"SF 21-27 (taotletav raha)\")","v":514550},{"$f":"SUMIFS(AF35:AF103,G35:G103,$G$109,P35:P103,\"SF 21-27 (taotletav raha)\")","v":60000}]
[{"$nulls":5},"1.2.4. Keskselt osutatud IT-alusteenused",{"$nulls":14},"+km",null,null,{"$f":"X113*1.2","v":0},{"$f":"Y113","v":{"v":16074,"d":"16,074"}},{"$f":"Z113*1.2","v":{"v":8611.199999999999,"d":"8,611"}},{"$f":"AA113*1.22","v":0},{"$f":"AB113","v":{"v":391000,"d":"391,000"}},{"$f":"AC113*1.22","v":{"v":167140,"d":"167,140"}},{"$f":"AD113*1.22","v":0},{"$f":"AE113","v":{"v":514550,"d":"514,550"}},{"$f":"AF113*1.22","v":{"v":73200,"d":"73,200"}}]
[{"$nulls":5},"1.2.5. Uute lähenemisviiside pidev katsetamine"]
[{"$nulls":5},"1.2.6. Avatud innovatsioon ja digiriigi kogukonna arendamine",{"$nulls":14},"4. muu digipöördega seotud otsene kulu",null,null,{"$f":"SUMIFS(X35:X103,G35:G103,$G$110,P35:P103,\"SF 21-27 (taotletav raha)\")","v":0},{"$f":"SUMIFS(Y35:Y103,G35:G103,$G$110,P35:P103,\"SF 21-27 (taotletav raha)\")","v":0},{"$f":"SUMIFS(Z35:Z103,G35:G103,$G$110,P35:P103,\"SF 21-27 (taotletav raha)\")","v":0},{"$f":"SUMIFS(AA35:AA103,G35:G103,$G$110,P35:P103,\"SF 21-27 (taotletav raha)\")","v":150000},{"$f":"SUMIFS(AB35:AB103,G35:G103,$G$110,P35:P103,\"SF 21-27 (taotletav raha)\")","v":0},{"$f":"SUMIFS(AC35:AC103,G35:G103,$G$110,P35:P103,\"SF 21-27 (taotletav raha)\")","v":50000},{"$f":"SUMIFS(AD35:AD103,G35:G103,$G$110,P35:P103,\"SF 21-27 (taotletav raha)\")","v":0},{"$f":"SUMIFS(AE35:AE103,G35:G103,$G$110,P35:P103,\"SF 21-27 (taotletav raha)\")","v":0},{"$f":"SUMIFS(AF35:AF103,G35:G103,$G$110,P35:P103,\"SF 21-27 (taotletav raha)\")","v":0}]
[{"$nulls":5},"1.2.7. Avaliku sektori digimuutuste võimendamine",{"$nulls":14},"+km",null,null,{"$f":"X116*1.2","v":0},{"$f":"Y116","v":0},{"$f":"Z116*1.2","v":0},{"$f":"AA116*1.22","v":{"v":183000,"d":"183,000"}},{"$f":"AB116","v":0},{"$f":"AC116*1.22","v":{"v":61000,"d":"61,000"}},{"$f":"AD116*1.22","v":0},{"$f":"AE116","v":0},{"$f":"AF116*1.22","v":0}]
[{"$nulls":5},"1.2.8. Sihitud väliskoostöö"]
[{"$nulls":5},"2.1. Ajakohane ja ettevaatav õigusruum"]
[{"$nulls":5},"2.2. Juurdepääsuvõrkude väljaarendamine"]
[{"$nulls":5},"2.3. 5G- ja 6G-baastaristu arendamine",{"$nulls":14},"Olemasolevad vahendid"]
[{"$nulls":5},"2.4. Uudsete sisu- ja äriteenuste arendus",{"$nulls":14},"1. Infotehnoloogiliste lahenduste väljatöötamine ja arendamine",null,null,{"$f":"SUMIFS(X$35:X$103, $G$35:$G$103, $G$107, $P$35:$P$103, \"Baaseelarve\")+SUMIFS(X$35:X$103, $G$35:$G$103, $G$107, $P$35:$P$103, \"Muu rahastus\")+SUMIFS(X$35:X$103, $G$35:$G$103, $G$107, $P$35:$P$103, \"Reserv (SR)\")+SUMIFS(X$35:X$103, $G$35:$G$103, $G$107, $P$35:$P$103, \"RRF\")+SUMIFS(X$35:X$103, $G$35:$G$103, $G$107, $P$35:$P$103, \"SF 14-20 (töös olev projekt)\")","v":0},0,0,0,0,0,0,0,0]
[{"$nulls":5},"3.1. Ajakohane küberturvalisuse riiklik korraldus",{"$nulls":14},"+km",null,null,{"$f":"X122*1.2","v":0},{"$f":"Y122","v":0},{"$f":"Z122*1.2","v":0},{"$f":"AA122*1.22","v":0},{"$f":"AB122","v":0},{"$f":"AC122*1.22","v":0},{"$f":"AD122*1.22","v":0},{"$f":"AE122","v":0},{"$f":"AF122*1.22","v":0}]
[{"$nulls":5},"3.2. Suundumiste, riskide ja mõjude analüüsivõime"]
[{"$nulls":5},"3.3. Suurem küberturvalisuse tagamise võimekus",{"$nulls":14},"2. küberruumi hoidmine, arendamine ja juurutamine usaldusväärse ja turvalisena",null,null,{"$f":"SUMIFS(X$35:X$103, $G$35:$G$103, $G$108, $P$35:$P$103, \"Baaseelarve\")+SUMIFS(X$35:X$103, $G$35:$G$103, $G$108, $P$35:$P$103, \"Muu rahastus\")+SUMIFS(X$35:X$103, $G$35:$G$103, $G$108, $P$35:$P$103, \"Reserv (SR)\")+SUMIFS(X$35:X$103, $G$35:$G$103, $G$108, $P$35:$P$103, \"RRF\")+SUMIFS(X$35:X$103, $G$35:$G$103, $G$108, $P$35:$P$103, \"SF 14-20 (töös olev projekt)\")","v":0},0,0,0,0,0,0,{"v":171000,"d":"171,000"},{"v":512625,"d":"512,625"}]
[{"$nulls":20},"+km",null,null,{"$f":"X125*1.2","v":0},{"$f":"Y125","v":0},{"$f":"Z125*1.2","v":0},{"$f":"AA125*1.22","v":0},{"$f":"AB125","v":0},{"$f":"AC125*1.22","v":0},{"$f":"AD125*1.22","v":0},{"$f":"AE125","v":{"v":171000,"d":"171,000"}},{"$f":"AF125*1.22","v":{"v":625402.5,"d":"625,403"}}]
[]
[{"$nulls":20},"3. teadlikkuse tõstmine",null,null,{"$f":"SUMIFS(X$35:X$103, $G$35:$G$103, $G$109, $P$35:$P$103, \"Baaseelarve\")+SUMIFS(X$35:X$103, $G$35:$G$103, $G$109, $P$35:$P$103, \"Muu rahastus\")+SUMIFS(X$35:X$103, $G$35:$G$103, $G$109, $P$35:$P$103, \"Reserv (SR)\")+SUMIFS(X$35:X$103, $G$35:$G$103, $G$109, $P$35:$P$103, \"RRF\")+SUMIFS(X$35:X$103, $G$35:$G$103, $G$109, $P$35:$P$103, \"SF 14-20 (töös olev projekt)\")","v":0},0,0,0,0,0,0,0,0]
[{"$nulls":20},"+km",null,null,{"$f":"X128*1.2","v":0},{"$f":"Y128","v":0},{"$f":"Z128*1.2","v":0},{"$f":"AA128*1.22","v":0},{"$f":"AB128","v":0},{"$f":"AC128*1.22","v":0},{"$f":"AD128*1.22","v":0},{"$f":"AE128","v":0},{"$f":"AF128*1.22","v":0}]
[]
[{"$nulls":20},"4. muu digipöördega seotud otsene kulu",null,null,{"$f":"SUMIFS(X$35:X$103, $G$35:$G$103, $G$110, $P$35:$P$103, \"Baaseelarve\")+SUMIFS(X$35:X$103, $G$35:$G$103, $G$110, $P$35:$P$103, \"Muu rahastus\")+SUMIFS(X$35:X$103, $G$35:$G$103, $G$110, $P$35:$P$103, \"Reserv (SR)\")+SUMIFS(X$35:X$103, $G$35:$G$103, $G$110, $P$35:$P$103, \"RRF\")+SUMIFS(X$35:X$103, $G$35:$G$103, $G$110, $P$35:$P$103, \"SF 14-20 (töös olev projekt)\")","v":0},0,0,0,0,0,0,0,0]
[{"$nulls":20},"+km",null,null,{"$f":"X131*1.2","v":0},{"$f":"Y131","v":0},{"$f":"Z131*1.2","v":0},{"$f":"AA131*1.22","v":0},{"$f":"AB131","v":0},{"$f":"AC131*1.22","v":0},{"$f":"AD131*1.22","v":0},{"$f":"AE131","v":0},{"$f":"AF131*1.22","v":0}]
[]
[]
[]
[{"$nulls":20},"RES IKT (vaja juurde taotleda)"]
[{"$nulls":20},"1. Infotehnoloogiliste lahenduste väljatöötamine ja arendamine",null,null,{"$f":"SUMIFS(X$35:X$103,$G$35:$G$103,$G$107,$P$35:$P$103,$P$109)","v":0},0,0,0,0,0,0,{"v":241500,"d":"241,500"},{"v":121000,"d":"121,000"}]
[{"$nulls":20},"+km",null,null,{"$f":"X137*1.2","v":0},{"$f":"Y137","v":0},{"$f":"Z137*1.2","v":0},{"$f":"AA137*1.22","v":0},{"$f":"AB137","v":0},{"$f":"AC137*1.22","v":0},{"$f":"AD137*1.22","v":0},{"$f":"AE137","v":{"v":241500,"d":"241,500"}},{"$f":"AF137*1.22","v":{"v":147620,"d":"147,620"}}]
[]
[{"$nulls":20},"2. küberruumi hoidmine, arendamine ja juurutamine usaldusväärse ja turvalisena",null,null,{"$f":"SUMIFS(X$35:X$103,$G$35:$G$103,$G$108,$P$35:$P$103,$P$109)","v":0},0,0,0,0,0,0,{"v":372750,"d":"372,750"},{"v":175000,"d":"175,000"}]
[{"$nulls":20},"+km",null,null,{"$f":"X140*1.2","v":0},{"$f":"Y140","v":0},{"$f":"Z140*1.2","v":0},{"$f":"AA140*1.22","v":0},{"$f":"AB140","v":0},{"$f":"AC140*1.22","v":0},{"$f":"AD140*1.22","v":0},{"$f":"AE140","v":{"v":372750,"d":"372,750"}},{"$f":"AF140*1.22","v":{"v":213500,"d":"213,500"}}]
[]
[{"$nulls":20},"3. teadlikkuse tõstmine",null,null,{"$f":"SUMIFS(X$35:X$103,$G$35:$G$103,$G$109,$P$35:$P$103,$P$109)","v":0},0,0,0,0,0,0,{"v":74904,"d":"74,904"},{"v":76040,"d":"76,040"}]
[{"$nulls":20},"+km",null,null,{"$f":"X143*1.2","v":0},{"$f":"Y143","v":0},{"$f":"Z143*1.2","v":0},{"$f":"AA143*1.22","v":0},{"$f":"AB143","v":0},{"$f":"AC143*1.22","v":0},{"$f":"AD143*1.22","v":0},{"$f":"AE143","v":{"v":74904,"d":"74,904"}},{"$f":"AF143*1.22","v":{"v":92768.8,"d":"92,769"}}]
[]
[{"$nulls":20},"4. muu digipöördega seotud otsene kulu",null,null,{"$f":"SUMIFS(X$35:X$103,$G$35:$G$103,$G$110,$P$35:$P$103,$P$109)","v":0},0,0,0,0,0,0,{"v":6860631.850000001,"d":"6,860,632"},{"v":6322816.149999999,"d":"6,322,816"}]
[{"$nulls":20},"+km",null,null,{"$f":"X146*1.2","v":0},{"$f":"Y146","v":0},{"$f":"Z146*1.2","v":0},{"$f":"AA146*1.22","v":0},{"$f":"AB146","v":0},{"$f":"AC146*1.22","v":0},{"$f":"AD146*1.22","v":0},{"$f":"AE146","v":{"v":6860631.850000001,"d":"6,860,632"}},{"$f":"AF146*1.22","v":{"v":7713835.702999999,"d":"7,713,836"}}]

{"sheet":"Seirearuanne","index":1,"n_rows":115,"n_cols":44,"rows_kept":115,"hidden":true,"merged":[[1,1,1,3],[16,1,16,8],[16,10,16,16],[18,10,18,16],[19,1,19,8],[19,10,19,16],[21,10,21,16],[22,1,22,8],[22,10,22,16],[24,10,24,16],[25,1,25,8],[25,10,25,16],[27,10,27,16],[31,21,31,35],[31,40,31,42],[32,21,32,23],[32,24,32,26],[32,27,32,29],[32,30,32,32],[32,33,32,35],[32,40,32,42],[33,16,33,20]]}
["Valdkonna digipööre"]
["Elluviija: ","Majandus-ja Kommunikatsiooniministeerium"]
["Eelarve:","Kokku",2023,2024]
["KOKKU:",{"$f":"SUM(C4:D4)","v":{"v":1483648,"d":"1,483,648"}},{"$f":"SUM(C5+C12)","v":{"v":227148,"d":"227,148"}},{"$f":"SUM(D5+D12)","v":{"v":1256500,"d":"1,256,500"}}]
["Digipöörde olemasolevad rahalised vahedid",{"$f":"SUM(C5:D5)","v":0},{"$f":"SUM(C6:C11)","v":0},{"$f":"SUM(D6:D11)","v":0}]
["sh baaseelarve",{"$f":"SUM(C6:D6)","v":0},{"$f":"SUMIFS(Q35:Q94,O35:O94,\"Baaseelarve\")","v":0},{"$f":"SUMIFS(R35:R94,O35:O94,\"Baaseelarve\")","v":0}]
["sh muu rahastus",0,{"$f":"SUMIFS(Q35:Q94,O35:O94,\"Muu rahastus\")","v":0},{"$f":"SUMIFS(R35:R94,O35:O94,\"Muu rahastus\")","v":0}]
["sh reserv (SR)",0,{"$f":"SUMIFS(Q35:Q94,O35:O94,\"Reserv (SR)\")","v":0},{"$f":"SUMIFS(R35:R94,O35:O94,\"Reserv (SR)\")","v":0}]
["sh RRF",0,{"$f":"SUMIFS(Q35:Q94,O35:O94,\"RRF\")","v":0},{"$f":"SUMIFS(R35:R94,O35:O94,\"RRF\")","v":0}]
["sh SF 14-20 (töös olev projekt)",0,{"$f":"SUMIFS(Q35:Q94,O35:O94,\"SF 14-20 (töös olev projekt)\")","v":0},{"$f":"SUMIFS(R35:R94,O35:O94,\"SF 14-20 (töös olev projekt)\")","v":0}]
["RRF",{"$f":"SUM(C11:D11)","v":0}]
["Digipöörde puuduolevad rahalised vahendid",{"v":1483648,"d":"1,483,648"},{"$f":"SUM(C13:C14)","v":{"v":227148,"d":"227,148"}},{"$f":"SUM(D13:D14)","v":{"v":1256500,"d":"1,256,500"}}]
["sh RES IKT (vaja juurde taotleda)",0,{"$f":"SUMIFS(Q35:Q95,O35:O95,\"RES IKT (vaja juurde taotleda)\")","v":0},{"$f":"SUMIFS(R35:R95,O35:O95,\"RES IKT (vaja juurde taotleda)\")","v":0},"Puudu olev jätkusuutlikkuse RES rahastus"]
["sh SF 21-27 (taotletav raha)",{"v":1483648,"d":"1,483,648"},{"$f":"SUMIFS(Q35:Q94,O35:O94,\"SF 21-27 (taotletav raha)\")","v":{"v":227148,"d":"227,148"}},{"$f":"SUMIFS(R35:R94,O35:O94,\"SF 21-27 (taotletav raha)\")","v":{"v":1256500,"d":"1,256,500"}}]
[]
["NB! Mõõdikud tuleb täita ainult SF 2021-2027 rahastuse puhul."]
["Meetmete nimekirja tulemusnäitaja:","Uute ja uuendatud avalike digiteenuste, -toodete ja -protsesside kasutajad. Mõõtühik: lõppkasutajaid aastas.",{"$nulls":7},"Elluviija kommentaar","Käskkirjas välja toodud elluviijate peale kokku on mõõdiku 2029 sihttase 2 000 000. Välja tuua, milline on teie panus selle mõõdiku täitmisse."]
["Algtase","2023 algtase","2024 sihttase","2025 sihttase","2026 sihttase","2027 sihttase","2028 sihttase","2029 sihttase","2030 lõpptase"]
["Lõpptase",0,{"v":1400,"d":"1,400"},{"$nulls":5},{"v":30000,"d":"30,000"},null,"Sisestada tuleb täisarv."]
["Meetmete nimekirja väljundnäitaja:","Uued või uuendatud digiteenused, -tooted ja -protsessid. Mõõtühik: arv ",{"$nulls":8},"Käskkirjas välja toodud elluviijate peale kokku on mõõdiku 2029 sihttase 35. Välja tuua, milline on teie panus selle mõõdiku täitmisse.\nSiia tuleb kokku lugeda lõpule viidud uued või uuendatud digiteenused, - tooted ja -protsessid."]
["Algtase","2023 algtase","2024 sihttase","2025 sihttase","2026 sihttase","2027 sihttase","2028 sihttase","2029 sihttase","2030 lõpptase"]
["Lõpptase",0,11,{"$nulls":5},84,null,"Kasutuskordade kokku lugemise metoodika määrab elluviija ise arvestades oma valdkonda. Sisestada tuleb täisarv."]
["Meetmete nimekirja väljundnäitaja:","Avaliku sektori asutused, keda toetatakse digiteenuste, -toodete ja -protsesside väljatöötamiseks. Mõõtühik: Avaliku sektori asutused.",{"$nulls":8},"Käskkirjas välja toodud elluviijate peale kokku on mõõdiku 2029 sihttase 35. Välja tuua, milline on teie panus selle mõõdiku täitmisse.\nSiia tuleb kokku lugeda asutused, kes teie digipöörde raames SF toetust kasutavad (elluviija ja partnerid).\n"]
["Algtase","2023 algtase","2024 sihttase","2025 sihttase","2026 sihttase","2027 sihttase","2028 sihttase","2029 sihttase","2030 lõpptase"]
["Lõpptase",0,3,{"$nulls":5},7,null,"Tükkide kokku lugemise metoodika määrab elluviija ise arvestades oma valdkonda. Sisestada tuleb täisarv."]
["Projektispetsiifiline näitaja (Eesti digiühiskonna arengukava 2030 (DA 2030) mõõdik):","Avalike digiteenustega rahulolu. Mõõtühik: % ",{"$nulls":8},"Riigiüleselt avalike digiteenustega rahululu peab 2030. aastaks tõusma 90%-le. Välja tuua, milline on teie panus selle mõõdiku täitmisse."]
["Algtase","2023 algtase","2024 sihttase","2025 sihttase","2026 sihttase","2027 sihttase","2028 sihttase","2029 sihttase","2030 lõpptase"]
["Lõpptase 2030",0,{"$nulls":6},95,null,"Rahulolu kokku lugemise metoodika määrab elluviija ise arvestades oma valdkonda"]
[]
[]
[]
[{"$nulls":21},"NB! Kõik summad kajastada ilma käibemaksuta!",{"$nulls":18},"NB! Kõik summad kajastada ilma käibemaksuta!"]
["Elluviija/ministeerium","Struktuuriüksus","Partner/Asutus","Teenuse vastutaja","DÜAK plokk","Panustab arengukava suundadesse","Meetme toetatavad tegevused","TERE teenus","Probleem","Algatuse nimi","Tulemus","Valdkonna prioriteet","Slaid/allikas","Paneeli vajadus","Rahastuse allikas","Summa kokku",2023,2024,2025,2026,2027,"2023 eelarve",null,null,2024,null,null,2025,null,null,2026,null,null,2027,null,null,"Kalkulatsioon ja  allika põhjendus","Jätkusuutlikkuse kulu","Kommentaar",null,"2023 eelarve täitmine",null,null,"2023 täitmise aruanne / sisu kirjeldus / põhjendused"]
["Punkt 5.3.1.\n„Toetuse andmise tingimused valdkondlike\ndigipöörete toetamiseks“","Valdkond, osakond, kes elluviija juures teema eest vastutab.","Partner/asutus, kelle eelarvest algatusi teostatakse\nPunkt 5.6.\n„Toetuse andmise tingimused valdkondlike\ndigipöörete toetamiseks“","Vastutav teenuseomanik/\nprojektijuht","(valida rippmenüüst)","(valida rippmenüüst)","(valida rippmenüüst, SF TAT käskkirja punkt 3.1. neli tegevust)","Kirjutada välja TERE teenuse nimetus","Täita kõikide ridade puhul","Täita kõikide ridade puhul\n(Kui tegmist jätkusuutlikkuse tagamise tegevusega, siis see nimes välja tuua.)","Täita kõikide ridade puhul.\nKui mitme aastane tegevus/projekt, siis kirjutada välja vähemalt 2024. ja 2025. aasta tulemus ning lõpptulemus.\nRES lisavajadustel tuua välja, mida mingi aasta RES rahade eest ära tehakse. Kui lisavajadus on kogu perioodiks ja kulud on aasta-aastalt sama, siis näiteks:\n2025-2028 - SF-st arendatu hoolduskulu, väikearendused, majutus riigipilves, jne.\nKui tegevused on aastati erinevad, siis tuua need välja järgmiselt:\n2025 - \n2026 - \n2027 -\n2028 - ","Unikaalne prioriteet","Esitatud slaidi number, või viide allikale, kus on võimalik tutvuda vajadusel sisuga, sh täpsemate kalkulatsioonidega ","Anda hinnang, kas on vajadus äri-, andmete-, arhitektuuri-, või muu paneeli järele","(valida rippmenüüst)",{"$nulls":6},"Investeering\n(15)","Tööjõukulu\n(50)","Majandamiskulu\n(55) ","Investeering\n(15)","Tööjõukulu\n(50)","Majandamiskulu\n(55) ","Investeering\n(15)","Tööjõukulu\n(50)","Majandamiskulu\n(55) ","Investeering\n(15)","Tööjõukulu\n(50)","Majandamiskulu\n(55) ","Investeering\n(15)","Tööjõukulu\n(50)","Majandamiskulu\n(55) ","Välja peab olema toodud tegevuste maksumuste arvutused, koos tundide hinna, tundide arvu ja tunnihinna selgitustega. Arenduste puhul lisada tunnihinna põhjendus varasemate hangetega. Inimeste palkamisel peab lähtuma Fontese palgauuringust ja viitama vastavale tööperele.","(valida rippmenüüst)",null,null,"Investeering\n(15)","Tööjõukulu\n(50)","Majandamiskulu\n(55) ","Seireküsimused (SF tegevustele):\n1. Mis sai 2023. aastal tehtud?\n2. Mis jäi 2023. aastal tegemata? Miks jäi tegemata?\n3. Kas tegemata jäänud tegevus jäetaksegi tegemata, või lükkub edasi järgmisse perioodi?\n4. Mis oli paneeli (andme-, äri, arhitektuuri-) tagasiside ja kas paneeli nõuded on täidetud?\n5. Mis ettevalmistavaid tegevusi tehti 2023. aastal 2024, või hiljem algavate algatuste/tegevuste tarvis?\n6. Mida on jõutud teha 2024. aasta alguses?"]
["Majandus- ja Kommunikatsiooniministeerium","Majandus- ja Kommunikatsiooniministeerium",null,"Kaire Kasearu","I: Digiriik","1.2.1. Avalike teenuste juhtimise ja kasutajakesksuse juurutamine","3. teadlikkuse tõstmine","Panustab mitmetesse TERE teenustesse","Puudub ühine standard ja raamistik, kuidas teenuste kogu elukaare jooksul juhitakse ning arendatakse, arvestades 6 suunda","Teenuse elukaare juhtimise strateegia, sh mõõdikute kokku panemine, sh eksperdiga koostöös (Analüüsist: Luua VA strateegilisi eesmärke toetav IKT strateegia ja rakendusplaan, organisatsiooni plaan ja riskiplaan.)","Teenuse elukaare juhtimise strateegia on koostatud ja mõõdikud olemas",9,null,"Ei","SF 21-27 (taotletav raha)",{"$f":"SUM(Q35:U35)","v":{"v":15000,"d":"15,000"}},{"$f":"SUM(V35:X35)","v":0},{"$f":"SUM(Y35:AA35)","v":{"v":15000,"d":"15,000"}},{"$f":"SUM(AB35:AD35)","v":0},{"$f":"SUM(AE35:AG35)","v":0},{"$f":"SUM(AH35:AJ35)","v":0},{"$nulls":5},{"$f":"15000","v":{"v":15000,"d":"15,000"}},{"$nulls":15},802,"Tegime TTJA ja KEMITiga ühise ajurünnaku. Koostöös teiste valitsemisaladega oleme ka mõtteid vahetanud, nt SOM teeb seda. MKMil oleks plaan see võimalusel üle võtta või mustandiks saada. Teenusepõhisele juhtimisele üleminek ootab juhtkonna accepti."]
["Majandus- ja Kommunikatsiooniministeerium","Majandus- ja Kommunikatsiooniministeerium",null,"Kaire Kasearu","I: Digiriik","1.2.1. Avalike teenuste juhtimise ja kasutajakesksuse juurutamine","3. teadlikkuse tõstmine","Panustab mitmetesse TERE teenustesse","Kuna MKMis varasemalt digipöörde juhtimismudelit ei olnud, siis ühste eesmärgi jaoks peab olema juhtimismudel käivitatud ja juurutatud.","Juhtimismudeli käivitamine ja juurutamine (nõukogu, juhtrühma ja võrgustikuga seotud tegevused)","Nõukogu, juhtrühm ja võrgustiku tegevused on korraldatud.",10,null,"Ei","SF 21-27 (taotletav raha)",{"v":7000,"d":"7,000"},0,{"v":7000,"d":"7,000"},0,0,0,{"$nulls":5},{"$f":"7000","v":{"v":7000,"d":"7,000"}},{"$nulls":16},"Hetkel ei ole vajadust olnud raha planeerida ja on oma vahenditest tehtud. Lisaks ka muutused asekantsleriga on tinginud tegevuste planeerimist."]
["Majandus- ja Kommunikatsiooniministeerium","Majandus- ja Kommunikatsiooniministeerium",null,"Kaire Kasearu","I: Digiriik","1.2.7. Avaliku sektori digimuutuste võimendamine","3. teadlikkuse tõstmine","Panustab mitmetesse TERE teenustesse","MKMi valitsemisala digipöörde suundade hetkeolukord on kaardistatud ja probleemkohad leitud.","MKMi valitsemisala digipöörde suundade (teenuse juhtimine, andmed, arhitektuur, küberturvalisus, kestlikkus, oskused ja võimekus) võimestamise tegevused","Hetkeolukorrast lähtuvalt aasta 2023/2024 kriitilised tegevused on tehtud.",3,null,null,"SF 21-27 (taotletav raha)",{"v":30000,"d":"30,000"},0,{"v":30000,"d":"30,000"},0,0,0,{"$nulls":5},{"$f":"30000","v":{"v":30000,"d":"30,000"}},{"$nulls":16},"Täpsemad tegevused veel selguvad."]
["Majandus- ja Kommunikatsiooniministeerium","TTJA",null,"Raul Kallas","I: Digiriik","1.2.5. Uute lähenemisviiside pidev katsetamine","1. Infotehnoloogiliste lahenduste väljatöötamine ja arendamine","Panustab mitmetesse TERE teenustesse","Puudub võimekus protsessimootor  mikroarhitektuuri integreerida.","Protsessimootri kasutuselevõtu lahenduse väljatöötamine (2021-27 SF)","On valminud protsessi juhtimise tarkvarade võrdlev analüüs",5,null,"Ei","SF 21-27 (taotletav raha)",{"v":25000,"d":"25,000"},0,{"v":25000,"d":"25,000"},0,0,0,{"$nulls":5},{"$f":"SUM(25000)","v":{"v":25000,"d":"25,000"}},{"$nulls":16},"Tähtaeg on 30.04. Zip failis on vahearuanne."]
["Majandus- ja Kommunikatsiooniministeerium","TTJA",null,"Raul Kallas","I: Digiriik","1.2.7. Avaliku sektori digimuutuste võimendamine","3. teadlikkuse tõstmine","Panustab mitmetesse TERE teenustesse","TTJAl puudub võimekus analüütiku ja koolituste osas","TTJA võimestamine digipöörde elluviimiseks (nt analüütikud, disainer, koolitused) (2021-27 SF)","Digipöörde elluviimiseks on värvatud nt analüütikud, disainer, kompetentsid on tugevdatud",2,null,"Ei","SF 21-27 (taotletav raha)",{"v":1224100,"d":"1,224,100"},{"$f":"SUM(V39:X39)","v":{"v":223000,"d":"223,000"}},{"$f":"SUM(Y39:AA39)","v":{"v":233000,"d":"233,000"}},{"v":244150,"d":"244,150"},{"v":255800,"d":"255,800"},{"v":268150,"d":"268,150"},null,{"v":223000,"d":"223,000"},null,null,{"v":223000,"d":"223,000"},{"v":10000,"d":"10,000"},null,{"v":234150,"d":"234,150"},{"v":10000,"d":"10,000"},null,{"v":245800,"d":"245,800"},{"v":10000,"d":"10,000"},null,{"v":258150,"d":"258,150"},{"v":10000,"d":"10,000"},{"$nulls":5},{"v":11926.45,"d":"11,926.45"},7176,"Värvatud on teenuste valdkonna juht. Kuna analüütikute konkurss esmalt kukkus läbi, siis kasutati sihtotsingu firmat ning analüütikud alustasid jaanuaris 2024 tööd."]
["Majandus- ja Kommunikatsiooniministeerium","TTJA",null,"Raul Kallas","I: Digiriik","1.2.5. Uute lähenemisviiside pidev katsetamine","1. Infotehnoloogiliste lahenduste väljatöötamine ja arendamine","Panustab mitmetesse TERE teenustesse","Teenuste portfelli nõuded ei ole vastavuses suundade ja nõuetega","TTJA teenuste portfelli ärianalüüs, tegevuskava teenuste vastavusse viimiseks haldusala üldiste suundade/nõuetega","Ärianalüüs ja tegevuskava olemas",5,null,"Ei","SF 21-27 (taotletav raha)",{"v":5000,"d":"5,000"},0,{"v":5000,"d":"5,000"},0,0,0,{"$nulls":5},{"$f":"SUM(5000)","v":{"v":5000,"d":"5,000"}},{"$nulls":16},"Tegevus käib jaa esmane visoon on tekkinud. TERE teenuste sisend ja 0-eelarvest sisendit on arvestatud. Ajakavas on muutunud kuna DÜAKi uuendamise nihkumisega seotud programmipuu muudatusi ei saa teha, enne kui uus DÜAK on olemas."]
["Majandus- ja Kommunikatsiooniministeerium","TTJA",null,"Raul Kallas","I: Digiriik","1.2.5. Uute lähenemisviiside pidev katsetamine","1. Infotehnoloogiliste lahenduste väljatöötamine ja arendamine","Panustab mitmetesse TERE teenustesse","Klienditoe teenus on killustatud ja pole ühtselt hallatud.","klienditoe teenuse I etapi käivitamine","Klienditoe I etapp on käivitatud",4,null,"Ei","SF 21-27 (taotletav raha)",{"v":5000,"d":"5,000"},0,{"v":5000,"d":"5,000"},0,0,0,{"$nulls":5},{"$f":"SUM(5000)","v":{"v":5000,"d":"5,000"}},{"$nulls":16},"On käivitatud ja raha ei ole kulutatud."]
["Majandus- ja Kommunikatsiooniministeerium","TTJA",null,"Raul Kallas","I: Digiriik","1.2.5. Uute lähenemisviiside pidev katsetamine","1. Infotehnoloogiliste lahenduste väljatöötamine ja arendamine","Panustab mitmetesse TERE teenustesse","E-teenuste infosüsteemi tootestamiseks puudub hea sisend, mille alusel arendusi tellida.","e-teenuste infosüsteemi tootestamise analüüs","e-teenuste analüüs on olemas",7,null,"Ei","SF 21-27 (taotletav raha)",{"v":10000,"d":"10,000"},0,{"v":10000,"d":"10,000"},0,0,0,{"$nulls":5},{"$f":"SUM(10000)","v":{"v":10000,"d":"10,000"}},{"$nulls":16},"Kristo Vaher konsulteeris ja toote strukuur on loodud. Info zip failis."]
["Majandus- ja Kommunikatsiooniministeerium","KEMIT",null,"Kristjan Kaiklem","I: Digiriik","1.2.5. Uute lähenemisviiside pidev katsetamine","1. Infotehnoloogiliste lahenduste väljatöötamine ja arendamine","Panustab mitmetesse TERE teenustesse","Direktiivide ülevõtmiseks ja andmete liidestumiseks puudub selge teadmine.","EU direktiivinõuete täitmiseks andmeliidestuse mikroteenuse analüüs ja arendus","Teostatud on arendusprojekt liidestuste loomiseks  ",8,null,"Ei","SF 21-27 (taotletav raha)",{"v":60000,"d":"60,000"},0,{"v":60000,"d":"60,000"},0,0,0,{"$nulls":3},{"$f":"SUM(60000)","v":{"v":60000,"d":"60,000"}},{"$nulls":18},"Olemas on arendushanke sisend, aga pakkumist ei tulnud. Nüüd tehakse hange ringi, vähendame hanke mahtu, et jõuda tähtaega, mis on 16.06."]
["Majandus- ja Kommunikatsiooniministeerium","Majandus- ja Kommunikatsiooniministeerium",null,"Kaire Kasearu","I: Digiriik","1.2.1. Avalike teenuste juhtimise ja kasutajakesksuse juurutamine","3. teadlikkuse tõstmine","Panustab mitmetesse TERE teenustesse","Digipöörde käivitamine eeldab uusi kompetentse ja keskseid koordineerivad rolle teemades IT arhitektuur, teenused, andmed, kestlikkus, oskused, mida hetkel valitsemisalas pole","Kesksete rollide loomine valitsemisalas","On olemas valitsemisala teenused, arhitektuur, andmed, kestlikkus, oskused teemade vastuatajate kompetentsid.",1,null,"Ei","SF 21-27 (taotletav raha)",{"v":863148,"d":"863,148"},{"v":4148,"d":"4,148"},{"v":231000,"d":"231,000"},{"v":308000,"d":"308,000"},{"v":320000,"d":"320,000"},0,null,{"v":4148,"d":"4,148"},null,null,{"v":216000,"d":"216,000"},{"$f":"15000","v":{"v":15000,"d":"15,000"}},null,{"v":288000,"d":"288,000"},{"$f":"20000","v":{"v":20000,"d":"20,000"}},null,{"v":300000,"d":"300,000"},{"$f":"20000","v":{"v":20000,"d":"20,000"}},{"$nulls":9},4148,"Teenuste valdkonna juht on värvatud"]
["Majandus- ja Kommunikatsiooniministeerium","KEMIT",null,"Kristjan Kaiklem","I: Digiriik","1.2.1. Avalike teenuste juhtimise ja kasutajakesksuse juurutamine","1. Infotehnoloogiliste lahenduste väljatöötamine ja arendamine","Panustab mitmetesse TERE teenustesse","Teenused aeglased, kliendile ebamugavad, automatiseerimata; süsteemides esineb palju vigu","Uue kasutajaliidese disaini väljatöötamine","Teostatud loateenuste kasutajateekondade analüüs ja loodud uus UX  disain loateenuste kasutajateekondade jaoks",null,null,"Ei","SF 21-27 (taotletav raha)",{"v":120000,"d":"120,000"},0,{"v":120000,"d":"120,000"},0,0,0,{"$nulls":5},{"$f":"SUM(120000)","v":{"v":120000,"d":"120,000"}},{"$nulls":16},"Hange on üleval registris."]
["Majandus- ja Kommunikatsiooniministeerium","KEMIT",null,"Kristjan Kaiklem","I: Digiriik","1.2.1. Avalike teenuste juhtimise ja kasutajakesksuse juurutamine","1. Infotehnoloogiliste lahenduste väljatöötamine ja arendamine","Ettevõtluskeskkonna toimimise tagamine","Teenused aeglased, kliendile ebamugavad, automatiseerimata; süsteemides esineb palju vigu","Loateenuste piloot ja välisinvesteeringute usaldusväärsuse hindamise rakendus","Välisinvesteeringute usaldusväärsuse hindamise teenuse detailanalüüs teostatud ja loataotluse rakendus toimib kliendikeskkonna tootes koos majandustegevuse teadetega toodangukeskkonnas",null,null,"Ei","SF 21-27 (taotletav raha)",{"v":280000,"d":"280,000"},0,{"v":200000,"d":"200,000"},{"v":80000,"d":"80,000"},0,0,{"$nulls":3},{"$f":"SUM(200000)","v":{"v":200000,"d":"200,000"}},null,null,{"$f":"SUM(80000)","v":{"v":80000,"d":"80,000"}},{"$nulls":15},"Hange on kokku pandud ja ootab KEMITis õigusosakonna kinnitust."]
["Majandus- ja Kommunikatsiooniministeerium","TTJA",null,"Raul Kallas","I: Digiriik","1.2.1. Avalike teenuste juhtimise ja kasutajakesksuse juurutamine","1. Infotehnoloogiliste lahenduste väljatöötamine ja arendamine","Panustab mitmetesse TERE teenustesse","Teenused aeglased, kliendile ebamugavad, automatiseerimata; süsteemides esineb palju vigu","Projektijuht*","Digipörde teostamine toimib vastavalt aja- ja tegevusplaanile",null,null,"Ei","SF 21-27 (taotletav raha)",{"v":254500,"d":"254,500"},0,{"v":57500,"d":"57,500"},{"v":60400,"d":"60,400"},{"v":66500,"d":"66,500"},{"v":70100,"d":"70,100"},null,0,null,null,{"v":57500,"d":"57,500"},null,null,{"v":60400,"d":"60,400"},null,null,{"v":66500,"d":"66,500"},null,null,{"v":70100,"d":"70,100"},{"$nulls":8},"Projektijuht värvati, alustas tööd 15.04 ja töösuhe lõppes 19.04 (sai parema pakkumise)."]
["Majandus- ja Kommunikatsiooniministeerium","KEMIT",null,"Kristjan Kaklem","I: Digiriik","1.2.1. Avalike teenuste juhtimise ja kasutajakesksuse juurutamine","4. muu digipöördega seotud otsene kulu","Panustab mitmetesse TERE teenustesse","Teenused aeglased, kliendile ebamugavad, automatiseerimata; süsteemides esineb palju vigu","e-teenuste tehnoloogilise platvormi baaskulu","Tehnoloogiline taristu ja teenused on hallatud",null,null,"Ei","SF 21-27 (taotletav raha)",{"v":646300,"d":"646,300"},0,{"v":150000,"d":"150,000"},{"v":157500,"d":"157,500"},{"v":165300,"d":"165,300"},{"v":173500,"d":"173,500"},{"$nulls":3},{"$f":"SUM(150000)","v":{"v":150000,"d":"150,000"}},null,null,{"$f":"SUM(157500)","v":{"v":157500,"d":"157,500"}},null,null,{"$f":"SUM(165300)","v":{"v":165300,"d":"165,300"}},null,null,{"$f":"SUM(173500)","v":{"v":173500,"d":"173,500"}},{"$nulls":9},"Tavahaldus on töös."]
["Majandus- ja Kommunikatsiooniministeerium","TTJA",null,"Raul Kallas","I: Digiriik","1.2.5. Uute lähenemisviiside pidev katsetamine","1. Infotehnoloogiliste lahenduste väljatöötamine ja arendamine","Panustab mitmetesse TERE teenustesse","Teenused aeglased, kliendile ebamugavad, automatiseerimata; süsteemides esineb palju vigu","Rakendusadministraator protsessijuhtimise tarkvara jaoks","Protsessijuhtimise tarkvara on testitud, toimib jätkusuutlikult e-teenuste platvormil",null,null,"Ei","SF 21-27 (taotletav raha)",{"v":232000,"d":"232,000"},0,{"v":58000,"d":"58,000"},{"v":58000,"d":"58,000"},{"v":58000,"d":"58,000"},{"v":58000,"d":"58,000"},{"$nulls":4},{"v":58000,"d":"58,000"},null,null,{"v":58000,"d":"58,000"},null,null,{"v":58000,"d":"58,000"},null,null,{"v":58000,"d":"58,000"},{"$nulls":8},"Pole veel otsima hakatud. Eeldus värbamisele on, et lõppeb protsessitarkvara ostmise analüüs ja valiku alusel saab inimest otsida. (vt rida 38)"]
["Majandus- ja Kommunikatsiooniministeerium","Kemit",null,"Kristjan Kaklem","I: Digiriik","1.2.1. Avalike teenuste juhtimise ja kasutajakesksuse juurutamine","4. muu digipöördega seotud otsene kulu","Panustab mitmetesse TERE teenustesse","Teenused aeglased, kliendile ebamugavad, automatiseerimata; süsteemides esineb palju vigu","Protsessijuhtimise tarkvara haldus (litsentsid, serverid jm) 50 TEUR/aastas","Vajalik taristu on olemas protsessitarkvara kasutamiseks",null,null,"Ei","SF 21-27 (taotletav raha)",{"v":200000,"d":"200,000"},0,{"v":50000,"d":"50,000"},{"v":50000,"d":"50,000"},{"v":50000,"d":"50,000"},{"v":50000,"d":"50,000"},{"$nulls":5},{"$f":"SUM(50000)","v":{"v":50000,"d":"50,000"}},null,null,{"$f":"SUM(50000)","v":{"v":50000,"d":"50,000"}},null,null,{"$f":"SUM(50000)","v":{"v":50000,"d":"50,000"}},null,null,{"$f":"SUM(50000)","v":{"v":50000,"d":"50,000"}},{"$nulls":7},"Vt rida 49"]
[{"$nulls":15},0,0,0,0,0,0]
[{"$nulls":15},0,0,0,0,0,0]
[{"$nulls":15},0,0,0,0,0,0]
[{"$nulls":15},0,0,0,0,0,0]
[{"$nulls":15},0,0,0,0,0,0]
[{"$nulls":15},0,0,0,0,0,0]
[{"$nulls":15},0,0,0,0,0,0]
[{"$nulls":15},0,0,0,0,0,0]
[{"$nulls":15},0,0,0,0,0,0]
[{"$nulls":15},0,0,0,0,0,0]
[{"$nulls":15},0,0,0,0,0,0]
[{"$nulls":15},0,0,0,0,0,0]
[{"$nulls":15},0,0,0,0,0,0]
[{"$nulls":15},0,0,0,0,0,0]
[{"$nulls":15},0,0,0,0,0,0]
[{"$nulls":15},0,0,0,0,0,0]
[{"$nulls":15},{"$f":"SUM(Q67:U67)","v":0},0,{"$f":"SUM(Y67:AA67)","v":0},{"$f":"SUM(AB67:AD67)","v":0},{"$f":"SUM(AE67:AG67)","v":0},{"$f":"SUM(AH67:AJ67)","v":0}]
[{"$nulls":15},0,0,0,0,0,0]
[{"$nulls":15},0,0,0,0,0,0]
[{"$nulls":15},0,0,0,0,0,0]
[{"$nulls":15},0,0,0,0,0,0]
[{"$nulls":15},0,0,0,0,0,0]
[{"$nulls":15},0,0,0,0,0,0]
[{"$nulls":15},0,0,0,0,0,0]
[{"$nulls":15},0,0,0,0,0,0]
[{"$nulls":15},0,0,0,0,0,0]
[{"$nulls":15},0,0,0,0,0,0]
[{"$nulls":15},0,0,0,0,0,0]
[{"$nulls":15},0,0,0,0,0,0]
[{"$nulls":15},0,0,0,0,0,0]
[{"$nulls":15},0,0,0,0,0,0]
[{"$nulls":15},0,0,0,0,0,0]
[{"$nulls":15},0,0,0,0,0,0]
[{"$nulls":15},0,0,0,0,0,0]
[{"$nulls":15},0,0,0,0,0,0]
[{"$nulls":15},0,0,0,0,0,0]
[{"$nulls":15},0,0,0,0,0,0]
[{"$nulls":15},0,0,0,0,0,0]
[{"$nulls":15},0,0,0,0,0,0]
[{"$nulls":15},0,0,0,0,0,0]
[{"$nulls":15},0,0,0,0,0,0]
[{"$nulls":15},0,0,0,0,0,0]
[{"$nulls":15},0,0,0,0,0,0]
[{"$nulls":15},0,0,0,0,0,0]
[]
[]
[{"$nulls":4},"I: Digiriik","1.1.1. Üleminek sündmuspõhistele ja proaktiivsetele teenustele","1. Infotehnoloogiliste lahenduste väljatöötamine ja arendamine",{"$nulls":7},"Baaseelarve",{"$nulls":22},"1. Tegevus sisaldab jätkusuutlikkuse kulusid ja need on samal real välja toodud."]
[{"$nulls":4},"II: Ühenduvus","1.1.2. Krativäeline riik","2. küberruumi hoidmine, arendamine ja juurutamine usaldusväärse ja turvalisena",{"$nulls":7},"Muu rahastus",{"$nulls":22},"2. Tegevus on jätkusuutlikkuse kulu"]
[{"$nulls":4},"III: Küberturvalisus ","1.1.3. Inimkeskne Digiriik","3. teadlikkuse tõstmine",{"$nulls":7},"RES IKT (vaja juurde taotleda)",{"$nulls":22},"3. Tegevus, mis vajab jätkusuutlikkuse kulusid ja need on eraldi real välja toodud"]
[{"$nulls":5},"1.1.4. Roheline digiriik","4. muu digipöördega seotud otsene kulu",{"$nulls":7},"Reserv (SR)",{"$nulls":22},"4. Tegevus, mis vajab jätkusuutlikkuse kulusid, aga neid pole välja arvutatud ja eraldi real välja toodud"]
[{"$nulls":5},"1.2.1. Avalike teenuste juhtimise ja kasutajakesksuse juurutamine",{"$nulls":8},"RRF",{"$nulls":22},"5. Tegevus, mis ei vaja jätkusuutlikkuse kulusid."]
[{"$nulls":5},"1.2.2. Andmepõhine riigivalitsemine ja andmete taaskasutus",{"$nulls":8},"SF 14-20 (töös olev projekt)"]
[{"$nulls":5},"1.2.3. Tulevikukindlad digiriigi platvormid",{"$nulls":8},"SF 21-27 (taotletav raha)"]
[{"$nulls":5},"1.2.4. Keskselt osutatud IT-alusteenused"]
[{"$nulls":5},"1.2.5. Uute lähenemisviiside pidev katsetamine"]
[{"$nulls":5},"1.2.6. Avatud innovatsioon ja digiriigi kogukonna arendamine"]
[{"$nulls":5},"1.2.7. Avaliku sektori digimuutuste võimendamine"]
[{"$nulls":5},"1.2.8. Sihitud väliskoostöö"]
[{"$nulls":5},"2.1. Ajakohane ja ettevaatav õigusruum"]
[{"$nulls":5},"2.2. Juurdepääsuvõrkude väljaarendamine"]
[{"$nulls":5},"2.3. 5G- ja 6G-baastaristu arendamine"]
[{"$nulls":5},"2.4. Uudsete sisu- ja äriteenuste arendus"]
[{"$nulls":5},"3.1. Ajakohane küberturvalisuse riiklik korraldus"]
[{"$nulls":5},"3.2. Suundumiste, riskide ja mõjude analüüsivõime"]
[{"$nulls":5},"3.3. Suurem küberturvalisuse tagamise võimekus"]

{"sheet":"KK_lisa","index":2,"n_rows":22,"n_cols":12,"rows_kept":22,"hidden":true,"merged":[[10,1,10,8],[13,1,13,8],[16,1,16,8],[19,1,19,8]]}
[]
[]
["Majandus-ja Kommunikatsiooniministeeriumi valdkondlik digipööre","Kokku",2023,2024,2025,"Panus Eesti 2035 näitajatesse: Sooline võrdõiguslikkus, hoolivus ja koostöömeelsus, ligipääsevatus, KOV rahulolu teenusega","Seos DA 2030 arengukavaga -peab olema välja toodud DA 2030 rahulolu mõõdik ning metoodika, kuidas parim kasutajakogemus saavutatakse.","Seos vastava valdkonna arengukavaga ","Tegevuse seos rakenduskava poliitikaeesmärk 1 „Nutikam Eesti“ erieesmärgi „digitaliseerimisest kasu toomine kodanike, ettevõtjate, teadusasutuste ja avaliku sektori asutuste jaoks\"  kasusaajaga","Tegevuse põhjendatus - tegevus on seotud TAT eesmärkide ja tulemuste saavutamisega ning on läbinud koordineerija nõustamise kontroll-lehtede alusel","Tegevuse kuluefektiivsus -tegevuse hinnastamisel on arvestatud parimaid praktikaid ja üldist tava (nt hangete raamlepingu hindasid, personalil Fontese uuringuid jms)","Tegevuse elluviija suutlikkus tegevust ellu viia - arvestatud on elluviija või partneri varasemat kogemusi ja võimekust"]
["Elluviija: Majandus-ja Kommunikatsiooniministeerium"]
["1. Infotehnoloogiliste lahenduste väljatöötamine ja arendamine",{"$f":"SUM(C5:E5)","v":{"v":3165860,"d":"3,165,860"}},{"$f":"Tegevuskava!D23","v":0},{"$f":"Tegevuskava!E23","v":{"v":1255360,"d":"1,255,360"}},{"$f":"Tegevuskava!F23","v":{"v":1910500,"d":"1,910,500"}},"x","x","x","x","x","x","x"]
["2. Küberruumi hoidmine, arendamine ja juurutamine usaldusväärse ja turvalisena",{"$f":"SUM(C6:E6)","v":{"v":36600,"d":"36,600"}},{"$f":"Tegevuskava!D24","v":0},{"$f":"Tegevuskava!E24","v":{"v":36600,"d":"36,600"}},{"$f":"Tegevuskava!F24","v":0},"x","x","x","x","x","x","x"]
["3. Teadlikkuse tõstmine (teadlikkuse tõstmine punktides 3.1.1., 3.1.2. ja 3.1.4. nimetatud tegevuste osas, sealhulgas elluviija ja partnerite teadlikkuse tõstmine )",{"v":1170575.2,"d":"1,170,575"},{"$f":"Tegevuskava!D25","v":{"v":24685.199999999997,"d":"24,685"}},{"$f":"Tegevuskava!E25","v":{"v":558140,"d":"558,140"}},{"$f":"Tegevuskava!F25","v":{"v":587750,"d":"587,750"}},"x","x","x","x","x","x","x"]
["4. Muu digipöördega seotud otsene kulu (valdkondliku digipöörde elluviimisega seotud tegevused)",{"v":244000,"d":"244,000"},{"$f":"Tegevuskava!D26","v":0},{"$f":"Tegevuskava!E26","v":{"v":244000,"d":"244,000"}},{"$f":"Tegevuskava!F26","v":0},"x","x","x","x","x","x","x"]
["EELARVE KOKKU",{"$f":"SUM(B5:B8)","v":{"v":4617035.2,"d":"4,617,035"}},{"$f":"SUM(C5:C8)","v":{"v":24685.199999999997,"d":"24,685"}},{"$f":"SUM(D5:D8)","v":{"v":2094100,"d":"2,094,100"}},{"$f":"SUM(E5:E8)","v":{"v":2498250,"d":"2,498,250"}}]
[]
["Meetmete nimekirja tulemusnäitaja:","Uute ja uuendatud avalike digiteenuste, -toodete ja -protsesside kasutajad. Mõõtühik: lõppkasutajaid aastas."]
["Periood","2023\nalgtase","2024\nsihttase","2025\nsihttase","2026\nsihttase","2027\nsihttase","2028\nsihttase","2029\nsihttase","2030\nlõpptase"]
["Väärtus",{"$f":"'kuni 2025 detsember tegevuskava'!B19","v":0},{"$f":"'kuni 2025 detsember tegevuskava'!C19","v":{"v":5000,"d":"5,000"}},{"$f":"'kuni 2025 detsember tegevuskava'!D19","v":{"v":10000,"d":"10,000"}},{"$f":"'kuni 2025 detsember tegevuskava'!E19","v":{"v":18000,"d":"18,000"}},{"$f":"'kuni 2025 detsember tegevuskava'!F19","v":{"v":28000,"d":"28,000"}},{"$f":"'kuni 2025 detsember tegevuskava'!G19","v":{"v":30000,"d":"30,000"}},{"$f":"'kuni 2025 detsember tegevuskava'!H19","v":{"v":30000,"d":"30,000"}},{"$f":"'kuni 2025 detsember tegevuskava'!I19","v":{"v":30000,"d":"30,000"}}]
["Meetmete nimekirja väljundnäitaja:","Uued või uuendatud digiteenused, -tooted ja -protsessid. Mõõtühik: arv "]
["Periood","2023\nalgtase","2024\nsihttase","2025\nsihttase","2026\nsihttase","2027\nsihttase","2028\nsihttase","2029\nsihttase","2030\nlõpptase"]
["Väärtus",{"$f":"'kuni 2025 detsember tegevuskava'!B22","v":0},{"$f":"'kuni 2025 detsember tegevuskava'!C22","v":2},{"$f":"'kuni 2025 detsember tegevuskava'!D22","v":30},{"$f":"'kuni 2025 detsember tegevuskava'!E22","v":50},{"$f":"'kuni 2025 detsember tegevuskava'!F22","v":80},{"$f":"'kuni 2025 detsember tegevuskava'!G22","v":84},{"$f":"'kuni 2025 detsember tegevuskava'!H22","v":84},{"$f":"'kuni 2025 detsember tegevuskava'!I22","v":84}]
["Meetmete nimekirja väljundnäitaja:","Avaliku sektori asutused, keda toetatakse digiteenuste, -toodete ja -protsesside väljatöötamiseks. Mõõtühik: Avaliku sektori asutused."]
["Periood","2023\nalgtase","2024\nsihttase","2025\nsihttase","2026\nsihttase","2027\nsihttase","2028\nsihttase","2029\nsihttase","2030\nlõpptase"]
["Väärtus",1,{"$f":"'kuni 2025 detsember tegevuskava'!C25","v":4},{"$f":"'kuni 2025 detsember tegevuskava'!D25","v":5},{"$f":"'kuni 2025 detsember tegevuskava'!E25","v":5},{"$f":"'kuni 2025 detsember tegevuskava'!F25","v":6},{"$f":"'kuni 2025 detsember tegevuskava'!G25","v":7},{"$f":"'kuni 2025 detsember tegevuskava'!H25","v":7},{"$f":"'kuni 2025 detsember tegevuskava'!I25","v":7}]
["Projektispetsiifiline näitaja (Eesti digiühiskonna arengukava 2030 (DA 2030) mõõdik):","Avalike digiteenustega rahulolu. Mõõtühik: % "]
["Periood","2023\nalgtase","2024\nsihttase","2025\nsihttase","2026\nsihttase","2027\nsihttase","2028\nsihttase","2029\nsihttase","2030\nlõpptase"]
["Väärtus",{"$f":"'kuni 2025 detsember tegevuskava'!B28&\"%\"","v":"0%"},{"$f":"'kuni 2025 detsember tegevuskava'!C28&\"%\"","v":"0%"},{"$f":"'kuni 2025 detsember tegevuskava'!D28&\"%\"","v":"70%"},{"$f":"'kuni 2025 detsember tegevuskava'!E28&\"%\"","v":"80%"},{"$f":"'kuni 2025 detsember tegevuskava'!F28&\"%\"","v":"82%"},{"$f":"'kuni 2025 detsember tegevuskava'!G28&\"%\"","v":"85%"},{"$f":"'kuni 2025 detsember tegevuskava'!H28&\"%\"","v":"88%"},{"$f":"'kuni 2025 detsember tegevuskava'!I28&\"%\"","v":"90%"}]

{"sheet":"Tegevuskava","index":3,"n_rows":258,"n_cols":16,"rows_kept":258,"merged":[[1,1,1,15],[6,1,6,15],[9,1,9,15],[11,1,11,5],[14,16,14,26],[15,16,15,26],[16,16,16,26],[19,1,19,5],[28,1,29,1],[28,2,29,2],[28,3,29,3],[28,5,29,7],[28,8,28,9],[28,10,28,11],[28,12,28,13],[28,14,28,15],[29,8,29,9],[29,10,29,11],[29,12,29,13],[29,14,29,15],[34,1,38,1],[34,2,38,2],[34,3,38,3],[34,4,38,4],[34,5,38,5],[39,1,43,1],[39,2,43,2],[39,3,43,3],[39,4,43,4],[39,5,43,5],[44,1,48,1],[44,2,48,2],[44,3,48,3],[44,4,48,4],[44,5,48,5],[49,1,53,1],[49,2,53,2],[49,3,53,3],[49,4,53,4],[49,5,53,5],[54,1,60,1],[54,2,60,2],[54,3,60,3],[54,4,60,4],[54,5,60,5],[61,1,65,1],[61,2,65,2],[61,3,65,3],[61,4,65,4],[61,5,65,5],[66,1,70,1],[66,2,70,2],[66,3,70,3],[66,4,70,4],[66,5,70,5],[71,1,75,1],[71,2,75,2],[71,3,75,3],[71,4,75,4],[71,5,75,5],[76,1,80,1],[76,2,80,2],[76,3,80,3],[76,4,80,4],[76,5,80,5],[81,1,87,1],[81,2,87,2],[81,3,87,3],[81,4,87,4],[81,5,87,5],[88,1,92,1],[88,2,92,2],[88,3,92,3],[88,4,92,4],[88,5,92,5],[93,1,97,1],[93,2,97,2],[93,3,97,3],[93,4,97,4],[93,5,97,5],[98,1,102,1],[98,2,102,2],[98,3,102,3],[98,4,102,4],[98,5,102,5],[103,1,107,1],[103,2,107,2],[103,3,107,3],[103,4,107,4],[103,5,107,5],[108,1,114,1],[108,2,114,2],[108,3,114,3],[108,4,114,4],[108,5,114,5],[115,1,119,1],[115,2,119,2],[115,3,119,3],[115,4,119,4],[115,5,119,5],[120,1,126,1],[120,2,126,2],[120,3,126,3],[120,4,126,4],[120,5,126,5],[127,1,133,1],[127,2,133,2],[127,3,133,3],[127,4,133,4],[127,5,133,5],[134,1,140,1],[134,2,140,2],[134,3,140,3],[134,4,140,4],[134,5,140,5],[141,1,147,1],[141,2,147,2],[141,3,147,3],[141,4,147,4],[141,5,147,5],[148,1,154,1],[148,2,154,2],[148,3,154,3],[148,4,154,4],[148,5,154,5],[155,1,159,1],[155,2,159,2],[155,3,159,3],[155,4,159,4],[155,5,159,5],[160,1,164,1],[160,2,164,2],[160,3,164,3],[160,4,164,4],[160,5,164,5],[165,1,169,1],[165,2,169,2],[165,3,169,3],[165,4,169,4],[165,5,169,5],[170,1,176,1],[170,2,176,2],[170,3,176,3],[170,4,176,4],[170,5,176,5],[177,1,181,1],[177,2,181,2],[177,3,181,3],[177,4,181,4],[177,5,181,5],[182,1,190,1],[182,2,190,2],[182,3,190,3],[182,4,190,4],[182,5,190,5],[191,1,195,1],[191,2,195,2],[191,3,195,3],[191,4,195,4],[191,5,195,5],[196,1,200,1],[196,2,200,2],[196,3,200,3],[196,4,200,4],[196,5,200,5],[201,1,205,1],[201,2,205,2],[201,3,205,3],[201,4,205,4],[201,5,205,5],[206,1,210,1],[206,2,210,2],[206,3,210,3],[206,4,210,4],[206,5,210,5],[211,1,217,1],[211,2,217,2],[211,3,217,3],[211,4,217,4],[211,5,217,5],[218,1,224,1],[218,2,224,2],[218,3,224,3],[218,4,224,4],[218,5,224,5],[225,1,233,1],[225,2,233,2],[225,3,233,3],[225,4,233,4],[225,5,233,5],[234,1,242,1],[234,2,242,2],[234,3,242,3],[234,4,242,4],[234,5,242,5],[243,1,247,1],[243,2,247,2],[243,3,247,3],[243,4,247,4],[243,5,247,5],[248,1,252,1],[248,2,252,2],[248,3,252,3],[248,4,252,4],[248,5,252,5],[254,1,254,5]]}
[]
[null,"Tulenevalt majandus- ja infotehnoloogiaministri 25. augusti 2023. a käskkirjast „Toetuse andmise tingimused valdkondlike digipöörete toetamiseks“ allkirjastan/kinnitan Majandus- ja Kommunikatsiooniministeeriumi digipöörde tegevuskava."]
[]
[null,"Valdkondliku digipöörde tegevuskava – Majandus-ja Kommunikatsiooniministeerium"]
[]
[null,"Digipöörde eesmärk: "]
[null,"Digipööre: \n- MKMi digipöörde toel jõuavad aastaks 2030 avalikud teenused kasutajateni optimaalse väärtusega ja on tõhusa riigivalitsemise tulemusena jätkusuutlikult rahastatud (ka ilma välisvahenditeta).  \n- Strateegilise taseme tehnoloogia juhtimise võimekus on tõusnud ning IT-arendus lähtub ärivajadustest.  \n- Kvaliteet on tagatud ja mõõdetav.  \n- Teenuseid arendatakse pidevalt, kriisis on uusi teenuseid võimalik päevadega käima saada.  \n- Teenused peegeldavad hea avaliku teenuse põhimõtteid. "]
[]
[null,"Digipöörde tegevuskava eesmärk: "]
[null,"2024-2025 tegevuskava on kõikide digipöörde suundade osas vastavalt hetkeolukorrale 2024 tegevused ellu viia. Tegevused on planeeritud ka asutuste 2024 tööplaanidesse. Lisaks on TTJA piloodis ning 2024 kliendikeskkonnad arendamine vastavalt teekaardile."]
[]
[null,"Majandus-ja Kommunikatsiooniministeeriumi valdkondliku digipöörde 2023-2024 maksumus ilma käibemaksuta: "]
[null,null,"Kokku ","2023 ","2024 ",2025]
[null,"Kokku ",{"$f":"SUM(D14:F14)","v":{"v":18919067,"d":"18,919,067"}},{"$f":"SUM(D15:D17)","v":{"v":23250,"d":"23,250"}},{"$f":"SUM(E15:E17)","v":{"v":1807000,"d":"1,807,000"}},{"v":17088817,"d":"17,088,817"}]
[null,"Olemasolevad vahendid ",{"$f":"SUM(D15:F15)","v":{"v":683625,"d":"683,625"}},{"$f":"SUM('kuni 2025 detsember tegevuskava'!X122:Z122+'kuni 2025 detsember tegevuskava'!X125:Z125+'kuni 2025 detsember tegevuskava'!X128:Z128+'kuni 2025 detsember tegevuskava'!X131:Z131)","v":0},{"$f":"SUM('kuni 2025 detsember tegevuskava'!AA122:AC122+'kuni 2025 detsember tegevuskava'!AA125:AC125+'kuni 2025 detsember tegevuskava'!AA128:AC128+'kuni 2025 detsember tegevuskava'!AA131:AC131)","v":0},{"$f":"SUM('kuni 2025 detsember tegevuskava'!AD122:AF122+'kuni 2025 detsember tegevuskava'!AD125:AF125+'kuni 2025 detsember tegevuskava'!AD128:AF128+'kuni 2025 detsember tegevuskava'!AD131:AF131)","v":{"v":683625,"d":"683,625"}}]
[null,"SF 2021-2027 ",{"v":3990800,"d":"3,990,800"},{"$f":"SUM('kuni 2025 detsember tegevuskava'!X107:Z107+'kuni 2025 detsember tegevuskava'!X110:Z110+'kuni 2025 detsember tegevuskava'!X113:Z113+'kuni 2025 detsember tegevuskava'!X116:Z116)","v":{"v":23250,"d":"23,250"}},{"$f":"SUM('kuni 2025 detsember tegevuskava'!AA107:AC107+'kuni 2025 detsember tegevuskava'!AA110:AC110+'kuni 2025 detsember tegevuskava'!AA113:AC113+'kuni 2025 detsember tegevuskava'!AA116:AC116)","v":{"v":1807000,"d":"1,807,000"}},{"$f":"SUM('kuni 2025 detsember tegevuskava'!AD107:AF107+'kuni 2025 detsember tegevuskava'!AD110:AF110+'kuni 2025 detsember tegevuskava'!AD113:AF113+'kuni 2025 detsember tegevuskava'!AD116:AF116)","v":{"v":2160550,"d":"2,160,550"}}]
[null,"RES 2024-2027 ",{"v":14244642,"d":"14,244,642"},{"$f":"SUM('kuni 2025 detsember tegevuskava'!X137:Z137+'kuni 2025 detsember tegevuskava'!X140:Z140+'kuni 2025 detsember tegevuskava'!X143:Z143+'kuni 2025 detsember tegevuskava'!X146:Z146)","v":0},{"$f":"SUM('kuni 2025 detsember tegevuskava'!AA137:AC137+'kuni 2025 detsember tegevuskava'!AA140:AC140+'kuni 2025 detsember tegevuskava'!AA143:AC143+'kuni 2025 detsember tegevuskava'!AA146:AC146)","v":0},{"$f":"SUM('kuni 2025 detsember tegevuskava'!AD137:AF137+'kuni 2025 detsember tegevuskava'!AD140:AF140+'kuni 2025 detsember tegevuskava'!AD143:AF143+'kuni 2025 detsember tegevuskava'!AD146:AF146)","v":{"v":14244642,"d":"14,244,642"}}]
[]
[]
[null,"Majandus-ja Kommunikatsiooniministeeriumi valdkondliku digipöörde 2023-2025 SF 2021-2027 toetuse summa koos käibemaksuga"]
[null,null,"Kokku ","2023 ","2024 ","2025 "]
[null,"SF 2021-2027 ",{"$f":"SUM(D22:F22)","v":{"v":4617035.2,"d":"4,617,035"}},{"$f":"SUM(D23:D26)","v":{"v":24685.199999999997,"d":"24,685"}},{"$f":"SUM(E23:E26)","v":{"v":2094100,"d":"2,094,100"}},{"v":2498250,"d":"2,498,250"}]
[null,"1. Infotehnoloogiliste lahenduste väljatöötamine ja arendamine",{"$f":"SUM(D23:F23)","v":{"v":3165860,"d":"3,165,860"}},{"$f":"SUM('kuni 2025 detsember tegevuskava'!X108:Z108)","v":0},{"$f":"SUM('kuni 2025 detsember tegevuskava'!AA108:AC108)","v":{"v":1255360,"d":"1,255,360"}},{"$f":"SUM('kuni 2025 detsember tegevuskava'!AD108:AF108)","v":{"v":1910500,"d":"1,910,500"}}]
[null,"2. Küberruumi hoidmine, arendamine ja juurutamine usaldusväärse ja turvalisena",{"$f":"SUM(D24:F24)","v":{"v":36600,"d":"36,600"}},{"$f":"SUM('kuni 2025 detsember tegevuskava'!X111:Z111)","v":0},{"$f":"SUM('kuni 2025 detsember tegevuskava'!AA111:AC111)","v":{"v":36600,"d":"36,600"}},{"$f":"SUM('kuni 2025 detsember tegevuskava'!AD111:AF111)","v":0}]
[null,"3. Teadlikkuse tõstmine (teadlikkuse tõstmine punktides 3.1.1., 3.1.2. ja 3.1.4. nimetatud tegevuste osas, sealhulgas elluviija ja partnerite teadlikkuse tõstmine )",{"v":1170575.2,"d":"1,170,575"},{"$f":"SUM('kuni 2025 detsember tegevuskava'!X114:Z114)","v":{"v":24685.199999999997,"d":"24,685"}},{"$f":"SUM('kuni 2025 detsember tegevuskava'!AA114:AC114)","v":{"v":558140,"d":"558,140"}},{"$f":"SUM('kuni 2025 detsember tegevuskava'!AD114:AF114)","v":{"v":587750,"d":"587,750"}}]
[null,"4. Muu digipöördega seotud otsene kulu (valdkondliku digipöörde elluviimisega seotud tegevused)",{"v":244000,"d":"244,000"},{"$f":"SUM('kuni 2025 detsember tegevuskava'!X117:Z117)","v":0},{"$f":"SUM('kuni 2025 detsember tegevuskava'!AA117:AC117)","v":{"v":244000,"d":"244,000"}},{"$f":"SUM('kuni 2025 detsember tegevuskava'!AD117:AF117)","v":0}]
[]
[]
[null,"Ministeerium (elluviija) /\npartner","Probleem","Tegevuse (algatuse) nimi","Tulemus","Rahastuse allikas / meetme tegevus (SF)",null,null,"Summa kokku",null,"2023 kokku",null,"2024 kokku",null,"2025 kokku"]
[{"$nulls":8},"(EA konto)",null,"(EA konto)",null,"(EA konto)",null,"(EA konto)"]
[null,"KOKKU",{"$nulls":6},{"$f":"SUM(I32:I34)","v":{"v":18909067,"d":"18,909,067"}},null,{"$f":"SUM(K32:K34)","v":{"v":23250,"d":"23,250"}},null,{"$f":"SUM(M32:M34)","v":{"v":1797000,"d":"1,797,000"}},null,{"$f":"SUM(O32:O34)","v":{"v":17088817,"d":"17,088,817"}}]
[{"$nulls":8},{"$f":"SUM(I78+I95+I105+I184+I213+I227+I236)","v":{"v":2263000,"d":"2,263,000"}},{"$f":"\"(15)\"","v":"(15)"},{"$f":"SUM(K78+K95+K105+K184+K213)","v":0},{"$f":"\"(15)\"","v":"(15)"},{"$f":"SUM(M78+M95+M105+M184+M213+M227+M236)","v":{"v":838000,"d":"838,000"}},{"$f":"\"(15)\"","v":"(15)"},{"$f":"SUM(O78+O95+O105+O184+O213+O227+O236)","v":{"v":1425000,"d":"1,425,000"}},{"$f":"\"(15)\"","v":"(15)"}]
[{"$nulls":8},{"$f":"SUM(I56+I83+I100+I110+I122+I129+I136+I143+I150+I167+I172+I179+I185+I203+I220+I228+I237)","v":{"v":8864409.850000001,"d":"8,864,410"}},{"$f":"\"(50)\"","v":"(50)"},{"$f":"SUM(K56+K83+K100+K110+K122+K129+K136+K143+K150+K167+K172+K179+K185+K203+K220+K228+K237)","v":{"v":16074,"d":"16,074"}},{"$f":"\"(50)\"","v":"(50)"},{"$f":"SUM(M56+M83+M100+M110+M122+M129+M136+M143+M150+M167+M172+M179+M185+M203+M220+M228+M237)","v":{"v":502000,"d":"502,000"}},{"$f":"\"(50)\"","v":"(50)"},{"$f":"SUM(O56+O83+O100+O110+O122+O129+O136+O143+O150+O167+O172+O179+O185+O203+O220+O228+O242)","v":{"v":8346335.850000001,"d":"8,346,336"}},{"$f":"\"(50)\"","v":"(50)"}]
[{"$nulls":8},{"$f":"SUM(I36+I41+I46+I51+I57+I63+I68+I73+I84+I90+I111+I117+I123+I130+I137+I144+I151+I157+I162+I173+I186+I193+I198+I208+I214+I221+I229+I238+I245+I250)","v":{"v":7781657.149999999,"d":"7,781,657"}},{"$f":"\"(55)\"","v":"(55)"},{"$f":"SUM(K36+K41+K46+K51+K57+K63+K68+K73+K84+K90+K111+K117+K123+K130+K137+K229+K238+K245+K250+K144+K151+K157+K162+K173+K186+K193+K198+K208+K214+K221)","v":{"v":7176,"d":"7,176"}},{"$f":"\"(55)\"","v":"(55)"},{"$f":"SUM(M36+M41+M46+M51+M57+M63+M68+M73+M84+M90+M111+M117+M123+M130+M137+M144+M151+M157+M162+M173+M186+M193+M198+M208+M214+M221+M229+M238+M245+M250)","v":{"v":457000,"d":"457,000"}},{"$f":"\"(55)\"","v":"(55)"},{"$f":"SUM(O36+O41+O46+O51+O57+O63+O68+O73+O84+O90+O111+O123+O130+O137+O144+O151+O157+O162+O173+O186+O193+O198+O208+O214+O221+O229+O238+O245+O250)","v":{"v":7317481.149999999,"d":"7,317,481"}},{"$f":"\"(55)\"","v":"(55)"}]
[null,"MKM",{"$f":"'kuni 2025 detsember tegevuskava'!I35","v":"Puudub ühine standard ja raamistik, kuidas teenuste kogu elukaare jooksul juhitakse ning arendatakse, arvestades 6 suunda"},{"$f":"'kuni 2025 detsember tegevuskava'!J35","v":"Teenuse elukaare juhtimise strateegia, sh mõõdikute kokku panemine, sh eksperdiga koostöös (Analüüsist: Luua VA strateegilisi eesmärke toetav IKT strateegia ja rakendusplaan, organisatsiooni plaan ja riskiplaan.)"},{"$f":"'kuni 2025 detsember tegevuskava'!K35","v":"Teenuse elukaare juhtimise strateegia on koostatud ja mõõdikud olemas"},{"$f":"'kuni 2025 detsember tegevuskava'!P35&\"/\"","v":"SF 21-27 (taotletav raha)/"},{"$f":"_xlfn.IFS('kuni 2025 detsember tegevuskava'!G35='kuni 2025 detsember tegevuskava'!$G$107,1,'kuni 2025 detsember tegevuskava'!G35='kuni 2025 detsember tegevuskava'!$G$108,2,'kuni 2025 detsember tegevuskava'!G35='kuni 2025 detsember tegevuskava'!$G$109,3,'kuni 2025 detsember tegevuskava'!G35='kuni 2025 detsember tegevuskava'!$G$110,4)","v":3},{"$f":"_xlfn.IFS(OR('kuni 2025 detsember tegevuskava'!P35='kuni 2025 detsember tegevuskava'!$P$107,'kuni 2025 detsember tegevuskava'!P35='kuni 2025 detsember tegevuskava'!$P$109,'kuni 2025 detsember tegevuskava'!P35='kuni 2025 detsember tegevuskava'!$P$110,'kuni 2025 detsember tegevuskava'!P35='kuni 2025 detsember tegevuskava'!$P$111),1,'kuni 2025 detsember tegevuskava'!P35='kuni 2025 detsember tegevuskava'!$P$112,2,'kuni 2025 detsember tegevuskava'!P35='kuni 2025 detsember tegevuskava'!$P$113,2,'kuni 2025 detsember tegevuskava'!P35='kuni 2025 detsember tegevuskava'!$P$108,3)","v":2},{"$f":"SUM(I36:I36)","v":{"v":15000,"d":"15,000"}},null,{"$f":"SUM(K36:K36)","v":0},null,{"$f":"SUM(M36:M36)","v":{"v":15000,"d":"15,000"}},null,{"$f":"SUM(O36:O36)","v":0}]
[{"$nulls":8},{"$f":"SUM(K36+M36+O36)","v":{"v":15000,"d":"15,000"}},{"$f":"\"(55)\"","v":"(55)"},{"$f":"'kuni 2025 detsember tegevuskava'!Z35","v":0},{"$f":"\"(55)\"","v":"(55)"},{"$f":"'kuni 2025 detsember tegevuskava'!AC35","v":{"v":15000,"d":"15,000"}},{"$f":"\"(55)\"","v":"(55)"},{"$f":"'kuni 2025 detsember tegevuskava'!AF35","v":0},{"$f":"\"(55)\"","v":"(55)"}]
[{"$nulls":8},"Summa koos käibemaksuga:"]
[{"$nulls":8},{"$f":"SUM(I39:I39)","v":{"v":18300,"d":"18,300"}},null,{"$f":"SUM(K39:K39)","v":0},null,{"$f":"SUM(M39:M39)","v":{"v":18300,"d":"18,300"}},null,{"$f":"SUM(O39:O39)","v":0}]
[{"$nulls":8},{"$f":"SUM(K39+M39+O39)","v":{"v":18300,"d":"18,300"}},{"$f":"\"(55)\"","v":"(55)"},{"$f":"SUM(K36*1.2)","v":0},{"$f":"\"(55)\"","v":"(55)"},{"$f":"SUM(M36*1.22)","v":{"v":18300,"d":"18,300"}},{"$f":"\"(55)\"","v":"(55)"},{"$f":"SUM(O36*1.22)","v":0},{"$f":"\"(55)\"","v":"(55)"}]
[null,{"$f":"'kuni 2025 detsember tegevuskava'!A36&\"/\"&'kuni 2025 detsember tegevuskava'!B36","v":"MKM/"},{"$f":"'kuni 2025 detsember tegevuskava'!I36","v":"Kuna MKMis varasemalt digipöörde juhtimismudelit ei olnud, siis ühste eesmärgi jaoks peab olema juhtimismudel käivitatud ja juurutatud."},{"$f":"'kuni 2025 detsember tegevuskava'!J36","v":"Juhtimismudeli käivitamine ja juurutamine (nõukogu, juhtrühma ja võrgustikuga seotud tegevused)"},{"$f":"'kuni 2025 detsember tegevuskava'!K36","v":"Nõukogu, juhtrühm ja võrgustiku tegevused on korraldatud."},{"$f":"'kuni 2025 detsember tegevuskava'!P36&\"/\"","v":"SF 21-27 (taotletav raha)/"},{"$f":"_xlfn.IFS('kuni 2025 detsember tegevuskava'!G36='kuni 2025 detsember tegevuskava'!$G$107,1,'kuni 2025 detsember tegevuskava'!G36='kuni 2025 detsember tegevuskava'!$G$108,2,'kuni 2025 detsember tegevuskava'!G36='kuni 2025 detsember tegevuskava'!$G$109,3,'kuni 2025 detsember tegevuskava'!G36='kuni 2025 detsember tegevuskava'!$G$110,4)","v":3},{"$f":"_xlfn.IFS(OR('kuni 2025 detsember tegevuskava'!P36='kuni 2025 detsember tegevuskava'!$P$107,'kuni 2025 detsember tegevuskava'!P36='kuni 2025 detsember tegevuskava'!$P$109,'kuni 2025 detsember tegevuskava'!P36='kuni 2025 detsember tegevuskava'!$P$110,'kuni 2025 detsember tegevuskava'!P36='kuni 2025 detsember tegevuskava'!$P$111),1,'kuni 2025 detsember tegevuskava'!P36='kuni 2025 detsember tegevuskava'!$P$112,2,'kuni 2025 detsember tegevuskava'!P36='kuni 2025 detsember tegevuskava'!$P$113,2,'kuni 2025 detsember tegevuskava'!P36='kuni 2025 detsember tegevuskava'!$P$108,3)","v":2},{"$f":"SUM(I41:I41)","v":{"v":7000,"d":"7,000"}},null,{"$f":"SUM(K41:K41)","v":0},null,{"$f":"SUM(M41:M41)","v":{"v":7000,"d":"7,000"}},null,{"$f":"SUM(O41:O41)","v":0}]
[{"$nulls":8},{"$f":"SUM(K41+M41+O41)","v":{"v":7000,"d":"7,000"}},{"$f":"\"(55)\"","v":"(55)"},{"$f":"'kuni 2025 detsember tegevuskava'!Z36","v":0},{"$f":"\"(55)\"","v":"(55)"},{"$f":"'kuni 2025 detsember tegevuskava'!AC36","v":{"v":7000,"d":"7,000"}},{"$f":"\"(55)\"","v":"(55)"},{"$f":"'kuni 2025 detsember tegevuskava'!AF36","v":0},{"$f":"\"(55)\"","v":"(55)"}]
[{"$nulls":8},"Summa koos käibemaksuga:"]
[{"$nulls":8},{"$f":"SUM(I44:I44)","v":{"v":8540,"d":"8,540"}},null,{"$f":"SUM(K44:K44)","v":0},null,{"$f":"SUM(M44:M44)","v":{"v":8540,"d":"8,540"}},null,{"$f":"SUM(O44:O44)","v":0}]
[{"$nulls":8},{"$f":"SUM(K44+M44+O44)","v":{"v":8540,"d":"8,540"}},{"$f":"\"(55)\"","v":"(55)"},{"$f":"SUM(K41*1.2)","v":0},{"$f":"\"(55)\"","v":"(55)"},{"$f":"SUM(M41*1.22)","v":{"v":8540,"d":"8,540"}},{"$f":"\"(55)\"","v":"(55)"},{"$f":"SUM(O41*1.22)","v":0},{"$f":"\"(55)\"","v":"(55)"}]
[null,{"$f":"'kuni 2025 detsember tegevuskava'!A37&\"/\"&'kuni 2025 detsember tegevuskava'!B37","v":"MKM/"},{"$f":"'kuni 2025 detsember tegevuskava'!I37","v":"MKMi valitsemisala digipöörde suundade hetkeolukord on kaardistatud ja probleemkohad leitud."},{"$f":"'kuni 2025 detsember tegevuskava'!J37","v":"MKMi valitsemisala digipöörde suundade (teenuse juhtimine, andmed, arhitektuur, küberturvalisus, kestlikkus, oskused ja võimekus) võimestamise tegevused"},{"$f":"'kuni 2025 detsember tegevuskava'!K37","v":"Hetkeolukorrast lähtuvalt aasta 2023/2024 kriitilised tegevused on tehtud."},{"$f":"'kuni 2025 detsember tegevuskava'!P37&\"/\"","v":"SF 21-27 (taotletav raha)/"},{"$f":"_xlfn.IFS('kuni 2025 detsember tegevuskava'!G37='kuni 2025 detsember tegevuskava'!$G$107,1,'kuni 2025 detsember tegevuskava'!G37='kuni 2025 detsember tegevuskava'!$G$108,2,'kuni 2025 detsember tegevuskava'!G37='kuni 2025 detsember tegevuskava'!$G$109,3,'kuni 2025 detsember tegevuskava'!G37='kuni 2025 detsember tegevuskava'!$G$110,4)","v":3},{"$f":"_xlfn.IFS(OR('kuni 2025 detsember tegevuskava'!P37='kuni 2025 detsember tegevuskava'!$P$107,'kuni 2025 detsember tegevuskava'!P37='kuni 2025 detsember tegevuskava'!$P$109,'kuni 2025 detsember tegevuskava'!P37='kuni 2025 detsember tegevuskava'!$P$110,'kuni 2025 detsember tegevuskava'!P37='kuni 2025 detsember tegevuskava'!$P$111),1,'kuni 2025 detsember tegevuskava'!P37='kuni 2025 detsember tegevuskava'!$P$112,2,'kuni 2025 detsember tegevuskava'!P37='kuni 2025 detsember tegevuskava'!$P$113,2,'kuni 2025 detsember tegevuskava'!P37='kuni 2025 detsember tegevuskava'!$P$108,3)","v":2},{"$f":"SUM(I46:I46)","v":{"v":30000,"d":"30,000"}},null,{"$f":"SUM(K46:K46)","v":0},null,{"$f":"SUM(M46:M46)","v":{"v":30000,"d":"30,000"}},null,{"$f":"SUM(O46:O46)","v":0}]
[{"$nulls":8},{"$f":"SUM(K46+M46+O46)","v":{"v":30000,"d":"30,000"}},{"$f":"\"(55)\"","v":"(55)"},{"$f":"'kuni 2025 detsember tegevuskava'!Z37","v":0},{"$f":"\"(55)\"","v":"(55)"},{"$f":"'kuni 2025 detsember tegevuskava'!AC37","v":{"v":30000,"d":"30,000"}},{"$f":"\"(55)\"","v":"(55)"},{"$f":"'kuni 2025 detsember tegevuskava'!AF37","v":0},{"$f":"\"(55)\"","v":"(55)"}]
[{"$nulls":8},"Summa koos käibemaksuga:"]
[{"$nulls":8},{"$f":"SUM(I49:I49)","v":{"v":36600,"d":"36,600"}},null,{"$f":"SUM(K49:K49)","v":0},null,{"$f":"SUM(M49:M49)","v":{"v":36600,"d":"36,600"}},null,{"$f":"SUM(O49:O49)","v":0}]
[{"$nulls":8},{"$f":"SUM(K49+M49+O49)","v":{"v":36600,"d":"36,600"}},{"$f":"\"(55)\"","v":"(55)"},{"$f":"SUM(K46*1.2)","v":0},{"$f":"\"(55)\"","v":"(55)"},{"$f":"SUM(M46*1.22)","v":{"v":36600,"d":"36,600"}},{"$f":"\"(55)\"","v":"(55)"},{"$f":"SUM(O46*1.22)","v":0},{"$f":"\"(55)\"","v":"(55)"}]
[null,{"$f":"'kuni 2025 detsember tegevuskava'!A38&\"/\"&'kuni 2025 detsember tegevuskava'!B38","v":"MKM/TTJA"},{"$f":"'kuni 2025 detsember tegevuskava'!I38","v":"Puudub võimekus protsessimootor  mikroarhitektuuri integreerida."},{"$f":"'kuni 2025 detsember tegevuskava'!J38","v":"Protsessimootri kasutuselevõtu lahenduse väljatöötamine (2021-27 SF)"},{"$f":"'kuni 2025 detsember tegevuskava'!K38","v":"On valminud protsessi juhtimise tarkvarade võrdlev analüüs"},{"$f":"'kuni 2025 detsember tegevuskava'!P38&\"/\"","v":"SF 21-27 (taotletav raha)/"},{"$f":"_xlfn.IFS('kuni 2025 detsember tegevuskava'!G38='kuni 2025 detsember tegevuskava'!$G$107,1,'kuni 2025 detsember tegevuskava'!G38='kuni 2025 detsember tegevuskava'!$G$108,2,'kuni 2025 detsember tegevuskava'!G38='kuni 2025 detsember tegevuskava'!$G$109,3,'kuni 2025 detsember tegevuskava'!G38='kuni 2025 detsember tegevuskava'!$G$110,4)","v":1},{"$f":"_xlfn.IFS(OR('kuni 2025 detsember tegevuskava'!P38='kuni 2025 detsember tegevuskava'!$P$107,'kuni 2025 detsember tegevuskava'!P38='kuni 2025 detsember tegevuskava'!$P$109,'kuni 2025 detsember tegevuskava'!P38='kuni 2025 detsember tegevuskava'!$P$110,'kuni 2025 detsember tegevuskava'!P38='kuni 2025 detsember tegevuskava'!$P$111),1,'kuni 2025 detsember tegevuskava'!P38='kuni 2025 detsember tegevuskava'!$P$112,2,'kuni 2025 detsember tegevuskava'!P38='kuni 2025 detsember tegevuskava'!$P$113,2,'kuni 2025 detsember tegevuskava'!P38='kuni 2025 detsember tegevuskava'!$P$108,3)","v":2},{"$f":"SUM(I51:I51)","v":{"v":25000,"d":"25,000"}},null,{"$f":"SUM(K51:K51)","v":0},null,{"$f":"SUM(M51:M51)","v":{"v":25000,"d":"25,000"}},null,{"$f":"SUM(O51:O51)","v":0}]
[{"$nulls":8},{"$f":"SUM(K51+M51+O51)","v":{"v":25000,"d":"25,000"}},{"$f":"\"(55)\"","v":"(55)"},{"$f":"'kuni 2025 detsember tegevuskava'!Z38","v":0},{"$f":"\"(55)\"","v":"(55)"},{"$f":"'kuni 2025 detsember tegevuskava'!AC38","v":{"v":25000,"d":"25,000"}},{"$f":"\"(55)\"","v":"(55)"},{"$f":"'kuni 2025 detsember tegevuskava'!AF38","v":0},{"$f":"\"(55)\"","v":"(55)"}]
[{"$nulls":8},"Summa koos käibemaksuga:"]
[{"$nulls":8},{"$f":"SUM(I54:I54)","v":{"v":30500,"d":"30,500"}},null,{"$f":"SUM(K54:K54)","v":0},null,{"$f":"SUM(M54:M54)","v":{"v":30500,"d":"30,500"}},null,{"$f":"SUM(O54:O54)","v":0}]
[{"$nulls":8},{"$f":"SUM(K54+M54+O54)","v":{"v":30500,"d":"30,500"}},{"$f":"\"(55)\"","v":"(55)"},{"$f":"SUM(K51*1.2)","v":0},{"$f":"\"(55)\"","v":"(55)"},{"$f":"SUM(M51*1.22)","v":{"v":30500,"d":"30,500"}},{"$f":"\"(55)\"","v":"(55)"},{"$f":"SUM(O51*1.22)","v":0},{"$f":"\"(55)\"","v":"(55)"}]
[null,{"$f":"'kuni 2025 detsember tegevuskava'!A39&\"/\"&'kuni 2025 detsember tegevuskava'!B39","v":"MKM/TTJA"},{"$f":"'kuni 2025 detsember tegevuskava'!I39","v":"TTJAl puudub võimekus analüütiku ja koolituste osas"},{"$f":"'kuni 2025 detsember tegevuskava'!J39","v":"TTJA võimestamine digipöörde elluviimiseks (nt analüütikud, disainer, koolitused) (2021-27 SF)"},{"$f":"'kuni 2025 detsember tegevuskava'!K39","v":"Digipöörde elluviimiseks on värvatud nt analüütikud, disainer, kompetentsid on tugevdatud"},{"$f":"'kuni 2025 detsember tegevuskava'!P39&\"/\"","v":"SF 21-27 (taotletav raha)/"},{"$f":"_xlfn.IFS('kuni 2025 detsember tegevuskava'!G39='kuni 2025 detsember tegevuskava'!$G$107,1,'kuni 2025 detsember tegevuskava'!G39='kuni 2025 detsember tegevuskava'!$G$108,2,'kuni 2025 detsember tegevuskava'!G39='kuni 2025 detsember tegevuskava'!$G$109,3,'kuni 2025 detsember tegevuskava'!G39='kuni 2025 detsember tegevuskava'!$G$110,4)","v":3},{"$f":"_xlfn.IFS(OR('kuni 2025 detsember tegevuskava'!P39='kuni 2025 detsember tegevuskava'!$P$107,'kuni 2025 detsember tegevuskava'!P39='kuni 2025 detsember tegevuskava'!$P$109,'kuni 2025 detsember tegevuskava'!P39='kuni 2025 detsember tegevuskava'!$P$110,'kuni 2025 detsember tegevuskava'!P39='kuni 2025 detsember tegevuskava'!$P$111),1,'kuni 2025 detsember tegevuskava'!P39='kuni 2025 detsember tegevuskava'!$P$112,2,'kuni 2025 detsember tegevuskava'!P39='kuni 2025 detsember tegevuskava'!$P$113,2,'kuni 2025 detsember tegevuskava'!P39='kuni 2025 detsember tegevuskava'!$P$108,3)","v":2},{"$f":"SUM(I56:I57)","v":{"v":467102,"d":"467,102"}},null,{"$f":"SUM(K56:K57)","v":{"v":19102,"d":"19,102"}},null,{"$f":"SUM(M56:M57)","v":{"v":224000,"d":"224,000"}},null,{"$f":"SUM(O56:O57)","v":{"v":224000,"d":"224,000"}}]
[{"$nulls":8},{"$f":"SUM(K56+M56+O56)","v":{"v":439926,"d":"439,926"}},{"$f":"\"(50)\"","v":"(50)"},{"$f":"'kuni 2025 detsember tegevuskava'!Y39","v":{"v":11926,"d":"11,926"}},{"$f":"\"(50)\"","v":"(50)"},{"$f":"'kuni 2025 detsember tegevuskava'!AB39","v":{"v":214000,"d":"214,000"}},{"$f":"\"(50)\"","v":"(50)"},{"$f":"'kuni 2025 detsember tegevuskava'!AE39","v":{"v":214000,"d":"214,000"}},{"$f":"\"(50)\"","v":"(50)"}]
[{"$nulls":8},{"$f":"SUM(K57+M57+O57)","v":{"v":27176,"d":"27,176"}},{"$f":"\"(55)\"","v":"(55)"},{"$f":"'kuni 2025 detsember tegevuskava'!Z39","v":{"v":7176,"d":"7,176"}},{"$f":"\"(55)\"","v":"(55)"},{"$f":"'kuni 2025 detsember tegevuskava'!AC39","v":{"v":10000,"d":"10,000"}},{"$f":"\"(55)\"","v":"(55)"},{"$f":"'kuni 2025 detsember tegevuskava'!AF39","v":{"v":10000,"d":"10,000"}},{"$f":"\"(55)\"","v":"(55)"}]
[{"$nulls":8},"Summa koos käibemaksuga:"]
[{"$nulls":8},{"$f":"SUM(I60:I61)","v":{"v":472937.2,"d":"472,937"}},null,{"$f":"SUM(K60:K61)","v":{"v":20537.199999999997,"d":"20,537"}},null,{"$f":"SUM(M60:M61)","v":{"v":226200,"d":"226,200"}},null,{"$f":"SUM(O60:O61)","v":{"v":226200,"d":"226,200"}}]
[{"$nulls":8},{"$f":"SUM(K60+M60+O60)","v":{"v":439926,"d":"439,926"}},{"$f":"\"(50)\"","v":"(50)"},{"$f":"K56","v":{"v":11926,"d":"11,926"}},{"$f":"\"(50)\"","v":"(50)"},{"$f":"M56","v":{"v":214000,"d":"214,000"}},{"$f":"\"(50)\"","v":"(50)"},{"$f":"O56","v":{"v":214000,"d":"214,000"}},{"$f":"\"(50)\"","v":"(50)"}]
[{"$nulls":8},{"$f":"SUM(K61+M61+O61)","v":{"v":33011.2,"d":"33,011"}},{"$f":"\"(55)\"","v":"(55)"},{"$f":"SUM(K57*1.2)","v":{"v":8611.199999999999,"d":"8,611"}},{"$f":"\"(55)\"","v":"(55)"},{"$f":"SUM(M57*1.22)","v":{"v":12200,"d":"12,200"}},{"$f":"\"(55)\"","v":"(55)"},{"$f":"SUM(O57*1.22)","v":{"v":12200,"d":"12,200"}},{"$f":"\"(55)\"","v":"(55)"}]
[null,{"$f":"'kuni 2025 detsember tegevuskava'!A40&\"/\"&'kuni 2025 detsember tegevuskava'!B40","v":"MKM/TTJA"},{"$f":"'kuni 2025 detsember tegevuskava'!I40","v":"Teenuste portfelli nõuded ei ole vastavuses suundade ja nõuetega"},{"$f":"'kuni 2025 detsember tegevuskava'!J40","v":"TTJA teenuste portfelli ärianalüüs, tegevuskava teenuste vastavusse viimiseks haldusala üldiste suundade/nõuetega"},{"$f":"'kuni 2025 detsember tegevuskava'!K40","v":"Ärianalüüs ja tegevuskava olemas"},{"$f":"'kuni 2025 detsember tegevuskava'!P40&\"/\"","v":"SF 21-27 (taotletav raha)/"},{"$f":"_xlfn.IFS('kuni 2025 detsember tegevuskava'!G40='kuni 2025 detsember tegevuskava'!$G$107,1,'kuni 2025 detsember tegevuskava'!G40='kuni 2025 detsember tegevuskava'!$G$108,2,'kuni 2025 detsember tegevuskava'!G40='kuni 2025 detsember tegevuskava'!$G$109,3,'kuni 2025 detsember tegevuskava'!G40='kuni 2025 detsember tegevuskava'!$G$110,4)","v":1},{"$f":"_xlfn.IFS(OR('kuni 2025 detsember tegevuskava'!P40='kuni 2025 detsember tegevuskava'!$P$107,'kuni 2025 detsember tegevuskava'!P40='kuni 2025 detsember tegevuskava'!$P$109,'kuni 2025 detsember tegevuskava'!P40='kuni 2025 detsember tegevuskava'!$P$110,'kuni 2025 detsember tegevuskava'!P40='kuni 2025 detsember tegevuskava'!$P$111),1,'kuni 2025 detsember tegevuskava'!P40='kuni 2025 detsember tegevuskava'!$P$112,2,'kuni 2025 detsember tegevuskava'!P40='kuni 2025 detsember tegevuskava'!$P$113,2,'kuni 2025 detsember tegevuskava'!P40='kuni 2025 detsember tegevuskava'!$P$108,3)","v":2},{"$f":"SUM(I63:I63)","v":{"v":5000,"d":"5,000"}},null,{"$f":"SUM(K63:K63)","v":0},null,{"$f":"SUM(M63:M63)","v":{"v":5000,"d":"5,000"}},null,{"$f":"SUM(O63:O63)","v":0}]
[{"$nulls":8},{"$f":"SUM(K63+M63+O63)","v":{"v":5000,"d":"5,000"}},{"$f":"\"(55)\"","v":"(55)"},{"$f":"'kuni 2025 detsember tegevuskava'!Z40","v":0},{"$f":"\"(55)\"","v":"(55)"},{"$f":"'kuni 2025 detsember tegevuskava'!AC40","v":{"v":5000,"d":"5,000"}},{"$f":"\"(55)\"","v":"(55)"},{"$f":"'kuni 2025 detsember tegevuskava'!AF40","v":0},{"$f":"\"(55)\"","v":"(55)"}]
[{"$nulls":8},"Summa koos käibemaksuga:"]
[{"$nulls":8},{"$f":"SUM(I66:I66)","v":{"v":6100,"d":"6,100"}},null,{"$f":"SUM(K66:K66)","v":0},null,{"$f":"SUM(M66:M66)","v":{"v":6100,"d":"6,100"}},null,{"$f":"SUM(O66:O66)","v":0}]
[{"$nulls":8},{"$f":"SUM(K66+M66+O66)","v":{"v":6100,"d":"6,100"}},{"$f":"\"(55)\"","v":"(55)"},{"$f":"SUM(K63*1.2)","v":0},{"$f":"\"(55)\"","v":"(55)"},{"$f":"SUM(M63*1.22)","v":{"v":6100,"d":"6,100"}},{"$f":"\"(55)\"","v":"(55)"},{"$f":"SUM(O63*1.22)","v":0},{"$f":"\"(55)\"","v":"(55)"}]
[null,{"$f":"'kuni 2025 detsember tegevuskava'!A41&\"/\"&'kuni 2025 detsember tegevuskava'!B41","v":"MKM/TTJA"},{"$f":"'kuni 2025 detsember tegevuskava'!I41","v":"Klienditoe teenus on killustatud ja pole ühtselt hallatud."},{"$f":"'kuni 2025 detsember tegevuskava'!J41","v":"klienditoe teenuse I etapi käivitamine"},{"$f":"'kuni 2025 detsember tegevuskava'!K41","v":"Klienditoe I etapp on käivitatud"},{"$f":"'kuni 2025 detsember tegevuskava'!P41&\"/\"","v":"SF 21-27 (taotletav raha)/"},{"$f":"_xlfn.IFS('kuni 2025 detsember tegevuskava'!G41='kuni 2025 detsember tegevuskava'!$G$107,1,'kuni 2025 detsember tegevuskava'!G41='kuni 2025 detsember tegevuskava'!$G$108,2,'kuni 2025 detsember tegevuskava'!G41='kuni 2025 detsember tegevuskava'!$G$109,3,'kuni 2025 detsember tegevuskava'!G41='kuni 2025 detsember tegevuskava'!$G$110,4)","v":1},{"$f":"_xlfn.IFS(OR('kuni 2025 detsember tegevuskava'!P41='kuni 2025 detsember tegevuskava'!$P$107,'kuni 2025 detsember tegevuskava'!P41='kuni 2025 detsember tegevuskava'!$P$109,'kuni 2025 detsember tegevuskava'!P41='kuni 2025 detsember tegevuskava'!$P$110,'kuni 2025 detsember tegevuskava'!P41='kuni 2025 detsember tegevuskava'!$P$111),1,'kuni 2025 detsember tegevuskava'!P41='kuni 2025 detsember tegevuskava'!$P$112,2,'kuni 2025 detsember tegevuskava'!P41='kuni 2025 detsember tegevuskava'!$P$113,2,'kuni 2025 detsember tegevuskava'!P41='kuni 2025 detsember tegevuskava'!$P$108,3)","v":2},{"$f":"SUM(I68:I68)","v":{"v":5000,"d":"5,000"}},null,{"$f":"SUM(K68:K68)","v":0},null,{"$f":"SUM(M68:M68)","v":{"v":5000,"d":"5,000"}},null,{"$f":"SUM(O68:O68)","v":0}]
[{"$nulls":8},{"$f":"SUM(K68+M68+O68)","v":{"v":5000,"d":"5,000"}},{"$f":"\"(55)\"","v":"(55)"},{"$f":"'kuni 2025 detsember tegevuskava'!Z41","v":0},{"$f":"\"(55)\"","v":"(55)"},{"$f":"'kuni 2025 detsember tegevuskava'!AC41","v":{"v":5000,"d":"5,000"}},{"$f":"\"(55)\"","v":"(55)"},{"$f":"'kuni 2025 detsember tegevuskava'!AF41","v":0},{"$f":"\"(55)\"","v":"(55)"}]
[{"$nulls":8},"Summa koos käibemaksuga:"]
[{"$nulls":8},{"$f":"SUM(I71:I71)","v":{"v":6100,"d":"6,100"}},null,{"$f":"SUM(K71:K71)","v":0},null,{"$f":"SUM(M71:M71)","v":{"v":6100,"d":"6,100"}},null,{"$f":"SUM(O71:O71)","v":0}]
[{"$nulls":8},{"$f":"SUM(K71+M71+O71)","v":{"v":6100,"d":"6,100"}},{"$f":"\"(55)\"","v":"(55)"},{"$f":"SUM(K68*1.2)","v":0},{"$f":"\"(55)\"","v":"(55)"},{"$f":"SUM(M68*1.22)","v":{"v":6100,"d":"6,100"}},{"$f":"\"(55)\"","v":"(55)"},{"$f":"SUM(O68*1.22)","v":0},{"$f":"\"(55)\"","v":"(55)"}]
[null,{"$f":"'kuni 2025 detsember tegevuskava'!A42&\"/\"&'kuni 2025 detsember tegevuskava'!B42","v":"MKM/TTJA"},{"$f":"'kuni 2025 detsember tegevuskava'!I42","v":"E-teenuste infosüsteemi tootestamiseks puudub hea sisend, mille alusel arendusi tellida."},{"$f":"'kuni 2025 detsember tegevuskava'!J42","v":"e-teenuste infosüsteemi tootestamise analüüs"},{"$f":"'kuni 2025 detsember tegevuskava'!K42","v":"e-teenuste analüüs on olemas"},{"$f":"'kuni 2025 detsember tegevuskava'!P42&\"/\"","v":"SF 21-27 (taotletav raha)/"},{"$f":"_xlfn.IFS('kuni 2025 detsember tegevuskava'!G42='kuni 2025 detsember tegevuskava'!$G$107,1,'kuni 2025 detsember tegevuskava'!G42='kuni 2025 detsember tegevuskava'!$G$108,2,'kuni 2025 detsember tegevuskava'!G42='kuni 2025 detsember tegevuskava'!$G$109,3,'kuni 2025 detsember tegevuskava'!G42='kuni 2025 detsember tegevuskava'!$G$110,4)","v":1},{"$f":"_xlfn.IFS(OR('kuni 2025 detsember tegevuskava'!P42='kuni 2025 detsember tegevuskava'!$P$107,'kuni 2025 detsember tegevuskava'!P42='kuni 2025 detsember tegevuskava'!$P$109,'kuni 2025 detsember tegevuskava'!P42='kuni 2025 detsember tegevuskava'!$P$110,'kuni 2025 detsember tegevuskava'!P42='kuni 2025 detsember tegevuskava'!$P$111),1,'kuni 2025 detsember tegevuskava'!P42='kuni 2025 detsember tegevuskava'!$P$112,2,'kuni 2025 detsember tegevuskava'!P42='kuni 2025 detsember tegevuskava'!$P$113,2,'kuni 2025 detsember tegevuskava'!P42='kuni 2025 detsember tegevuskava'!$P$108,3)","v":2},{"$f":"SUM(I73:I73)","v":{"v":10000,"d":"10,000"}},null,{"$f":"SUM(K73:K73)","v":0},null,{"$f":"SUM(M73:M73)","v":{"v":10000,"d":"10,000"}},null,{"$f":"SUM(O73:O73)","v":0}]
[{"$nulls":8},{"$f":"SUM(K73+M73+O73)","v":{"v":10000,"d":"10,000"}},{"$f":"\"(55)\"","v":"(55)"},{"$f":"'kuni 2025 detsember tegevuskava'!Z42","v":0},{"$f":"\"(55)\"","v":"(55)"},{"$f":"'kuni 2025 detsember tegevuskava'!AC42","v":{"v":10000,"d":"10,000"}},{"$f":"\"(55)\"","v":"(55)"},{"$f":"'kuni 2025 detsember tegevuskava'!AF42","v":0},{"$f":"\"(55)\"","v":"(55)"}]
[{"$nulls":8},"Summa koos käibemaksuga:"]
[{"$nulls":8},{"$f":"SUM(I76:I76)","v":{"v":12200,"d":"12,200"}},null,{"$f":"SUM(K76:K76)","v":0},null,{"$f":"SUM(M76:M76)","v":{"v":12200,"d":"12,200"}},null,{"$f":"SUM(O76:O76)","v":0}]
[{"$nulls":8},{"$f":"SUM(K76+M76+O76)","v":{"v":12200,"d":"12,200"}},{"$f":"\"(55)\"","v":"(55)"},{"$f":"SUM(K73*1.2)","v":0},{"$f":"\"(55)\"","v":"(55)"},{"$f":"SUM(M73*1.22)","v":{"v":12200,"d":"12,200"}},{"$f":"\"(55)\"","v":"(55)"},{"$f":"SUM(O73*1.22)","v":0},{"$f":"\"(55)\"","v":"(55)"}]
[null,{"$f":"'kuni 2025 detsember tegevuskava'!A43&\"/\"&'kuni 2025 detsember tegevuskava'!B43","v":"MKM/KEMIT"},{"$f":"'kuni 2025 detsember tegevuskava'!I43","v":"Direktiivide ülevõtmiseks ja andmete liidestumiseks puudub selge teadmine."},{"$f":"'kuni 2025 detsember tegevuskava'!J43","v":"EU direktiivinõuete täitmiseks andmeliidestuse mikroteenuse analüüs ja arendus"},{"$f":"'kuni 2025 detsember tegevuskava'!K43","v":"Teostatud on arendusprojekt liidestuste loomiseks  "},{"$f":"'kuni 2025 detsember tegevuskava'!P43&\"/\"","v":"SF 21-27 (taotletav raha)/"},{"$f":"_xlfn.IFS('kuni 2025 detsember tegevuskava'!G43='kuni 2025 detsember tegevuskava'!$G$107,1,'kuni 2025 detsember tegevuskava'!G43='kuni 2025 detsember tegevuskava'!$G$108,2,'kuni 2025 detsember tegevuskava'!G43='kuni 2025 detsember tegevuskava'!$G$109,3,'kuni 2025 detsember tegevuskava'!G43='kuni 2025 detsember tegevuskava'!$G$110,4)","v":1},{"$f":"_xlfn.IFS(OR('kuni 2025 detsember tegevuskava'!P43='kuni 2025 detsember tegevuskava'!$P$107,'kuni 2025 detsember tegevuskava'!P43='kuni 2025 detsember tegevuskava'!$P$109,'kuni 2025 detsember tegevuskava'!P43='kuni 2025 detsember tegevuskava'!$P$110,'kuni 2025 detsember tegevuskava'!P43='kuni 2025 detsember tegevuskava'!$P$111),1,'kuni 2025 detsember tegevuskava'!P43='kuni 2025 detsember tegevuskava'!$P$112,2,'kuni 2025 detsember tegevuskava'!P43='kuni 2025 detsember tegevuskava'!$P$113,2,'kuni 2025 detsember tegevuskava'!P43='kuni 2025 detsember tegevuskava'!$P$108,3)","v":2},{"$f":"SUM(I78:I78)","v":{"v":60000,"d":"60,000"}},null,{"$f":"SUM(K78:K78)","v":0},null,{"$f":"SUM(M78:M78)","v":{"v":60000,"d":"60,000"}},null,{"$f":"SUM(O78:O78)","v":0}]
[{"$nulls":8},{"$f":"SUM(K78+M78+O78)","v":{"v":60000,"d":"60,000"}},{"$f":"\"(15)\"","v":"(15)"},{"$f":"'kuni 2025 detsember tegevuskava'!X43","v":0},{"$f":"\"(15)\"","v":"(15)"},{"$f":"'kuni 2025 detsember tegevuskava'!AA43","v":{"v":60000,"d":"60,000"}},{"$f":"\"(15)\"","v":"(15)"},{"$f":"'kuni 2025 detsember tegevuskava'!AD43","v":0},{"$f":"\"(15)\"","v":"(15)"}]
[{"$nulls":8},"Summa koos käibemaksuga:"]
[{"$nulls":8},{"$f":"SUM(I81:I81)","v":{"v":73200,"d":"73,200"}},null,{"$f":"SUM(K81:K81)","v":0},null,{"$f":"SUM(M81:M81)","v":{"v":73200,"d":"73,200"}},null,{"$f":"SUM(O81:O81)","v":0}]
[{"$nulls":8},{"$f":"SUM(K81+M81+O81)","v":{"v":73200,"d":"73,200"}},{"$f":"\"(15)\"","v":"(15)"},{"$f":"SUM(K78*1.2)","v":0},{"$f":"\"(15)\"","v":"(15)"},{"$f":"SUM(M78*1.22)","v":{"v":73200,"d":"73,200"}},{"$f":"\"(15)\"","v":"(15)"},{"$f":"SUM(O78*1.22)","v":0},{"$f":"\"(15)\"","v":"(15)"}]
[null,{"$f":"'kuni 2025 detsember tegevuskava'!A44&\"/\"&'kuni 2025 detsember tegevuskava'!B44","v":"MKM/"},{"$f":"'kuni 2025 detsember tegevuskava'!I44","v":"Digipöörde käivitamine eeldab uusi kompetentse ja keskseid koordineerivad rolle teemades IT arhitektuur, teenused, andmed, kestlikkus, oskused, mida hetkel valitsemisalas pole"},{"$f":"'kuni 2025 detsember tegevuskava'!J44","v":"Kesksete rollide loomine valitsemisalas"},{"$f":"'kuni 2025 detsember tegevuskava'!K44","v":"On olemas valitsemisala teenused, arhitektuur, andmed, kestlikkus, oskused teemade vastuatajate kompetentsid."},{"$f":"'kuni 2025 detsember tegevuskava'!P44&\"/\"","v":"SF 21-27 (taotletav raha)/"},{"$f":"_xlfn.IFS('kuni 2025 detsember tegevuskava'!G44='kuni 2025 detsember tegevuskava'!$G$107,1,'kuni 2025 detsember tegevuskava'!G44='kuni 2025 detsember tegevuskava'!$G$108,2,'kuni 2025 detsember tegevuskava'!G44='kuni 2025 detsember tegevuskava'!$G$109,3,'kuni 2025 detsember tegevuskava'!G44='kuni 2025 detsember tegevuskava'!$G$110,4)","v":3},{"$f":"_xlfn.IFS(OR('kuni 2025 detsember tegevuskava'!P44='kuni 2025 detsember tegevuskava'!$P$107,'kuni 2025 detsember tegevuskava'!P44='kuni 2025 detsember tegevuskava'!$P$109,'kuni 2025 detsember tegevuskava'!P44='kuni 2025 detsember tegevuskava'!$P$110,'kuni 2025 detsember tegevuskava'!P44='kuni 2025 detsember tegevuskava'!$P$111),1,'kuni 2025 detsember tegevuskava'!P44='kuni 2025 detsember tegevuskava'!$P$112,2,'kuni 2025 detsember tegevuskava'!P44='kuni 2025 detsember tegevuskava'!$P$113,2,'kuni 2025 detsember tegevuskava'!P44='kuni 2025 detsember tegevuskava'!$P$108,3)","v":2},{"$f":"SUM(I83:I84)","v":{"v":229148,"d":"229,148"}},null,{"$f":"SUM(K83:K84)","v":{"v":4148,"d":"4,148"}},null,{"$f":"SUM(M83:M84)","v":{"v":90000,"d":"90,000"}},null,{"$f":"SUM(O83:O84)","v":{"v":135000,"d":"135,000"}}]
[{"$nulls":8},{"$f":"SUM(K83+M83+O83)","v":{"v":194148,"d":"194,148"}},{"$f":"\"(50)\"","v":"(50)"},{"$f":"'kuni 2025 detsember tegevuskava'!Y44","v":{"v":4148,"d":"4,148"}},{"$f":"\"(50)\"","v":"(50)"},{"$f":"'kuni 2025 detsember tegevuskava'!AB44","v":{"v":75000,"d":"75,000"}},{"$f":"\"(50)\"","v":"(50)"},{"$f":"'kuni 2025 detsember tegevuskava'!AE44","v":{"v":115000,"d":"115,000"}},{"$f":"\"(50)\"","v":"(50)"}]
[{"$nulls":8},{"$f":"SUM(K84+M84+O84)","v":{"v":35000,"d":"35,000"}},{"$f":"\"(55)\"","v":"(55)"},{"$f":"'kuni 2025 detsember tegevuskava'!Z44","v":0},{"$f":"\"(55)\"","v":"(55)"},{"$f":"'kuni 2025 detsember tegevuskava'!AC44","v":{"v":15000,"d":"15,000"}},{"$f":"\"(55)\"","v":"(55)"},{"$f":"'kuni 2025 detsember tegevuskava'!AF44","v":{"v":20000,"d":"20,000"}},{"$f":"\"(55)\"","v":"(55)"}]
[{"$nulls":8},"Summa koos käibemaksuga:"]
[{"$nulls":8},{"$f":"SUM(I87:I88)","v":{"v":236848,"d":"236,848"}},null,{"$f":"SUM(K87:K88)","v":{"v":4148,"d":"4,148"}},null,{"$f":"SUM(M87:M88)","v":{"v":93300,"d":"93,300"}},null,{"$f":"SUM(O87:O88)","v":{"v":139400,"d":"139,400"}}]
[{"$nulls":8},{"$f":"SUM(K87+M87+O87)","v":{"v":194148,"d":"194,148"}},{"$f":"\"(50)\"","v":"(50)"},{"$f":"K83","v":{"v":4148,"d":"4,148"}},{"$f":"\"(50)\"","v":"(50)"},{"$f":"M83","v":{"v":75000,"d":"75,000"}},{"$f":"\"(50)\"","v":"(50)"},{"$f":"O83","v":{"v":115000,"d":"115,000"}},{"$f":"\"(50)\"","v":"(50)"}]
[{"$nulls":8},{"$f":"SUM(K88+M88+O88)","v":{"v":42700,"d":"42,700"}},{"$f":"\"(55)\"","v":"(55)"},{"$f":"SUM(K84*1.2)","v":0},{"$f":"\"(55)\"","v":"(55)"},{"$f":"SUM(M84*1.22)","v":{"v":18300,"d":"18,300"}},{"$f":"\"(55)\"","v":"(55)"},{"$f":"SUM(O84*1.22)","v":{"v":24400,"d":"24,400"}},{"$f":"\"(55)\"","v":"(55)"}]
[null,{"$f":"'kuni 2025 detsember tegevuskava'!A45&\"/\"&'kuni 2025 detsember tegevuskava'!B45","v":"MKM/KEMIT"},{"$f":"'kuni 2025 detsember tegevuskava'!I45","v":"Teenused aeglased, kliendile ebamugavad, automatiseerimata; süsteemides esineb palju vigu"},{"$f":"'kuni 2025 detsember tegevuskava'!J45","v":"Uue kasutajaliidese disaini väljatöötamine"},{"$f":"'kuni 2025 detsember tegevuskava'!K45","v":"Teostatud loateenuste kasutajateekondade analüüs ja loodud uus UX  disain loateenuste kasutajateekondade jaoks"},{"$f":"'kuni 2025 detsember tegevuskava'!P45&\"/\"","v":"SF 21-27 (taotletav raha)/"},{"$f":"_xlfn.IFS('kuni 2025 detsember tegevuskava'!G45='kuni 2025 detsember tegevuskava'!$G$107,1,'kuni 2025 detsember tegevuskava'!G45='kuni 2025 detsember tegevuskava'!$G$108,2,'kuni 2025 detsember tegevuskava'!G45='kuni 2025 detsember tegevuskava'!$G$109,3,'kuni 2025 detsember tegevuskava'!G45='kuni 2025 detsember tegevuskava'!$G$110,4)","v":1},{"$f":"_xlfn.IFS(OR('kuni 2025 detsember tegevuskava'!P45='kuni 2025 detsember tegevuskava'!$P$107,'kuni 2025 detsember tegevuskava'!P45='kuni 2025 detsember tegevuskava'!$P$109,'kuni 2025 detsember tegevuskava'!P45='kuni 2025 detsember tegevuskava'!$P$110,'kuni 2025 detsember tegevuskava'!P45='kuni 2025 detsember tegevuskava'!$P$111),1,'kuni 2025 detsember tegevuskava'!P45='kuni 2025 detsember tegevuskava'!$P$112,2,'kuni 2025 detsember tegevuskava'!P45='kuni 2025 detsember tegevuskava'!$P$113,2,'kuni 2025 detsember tegevuskava'!P45='kuni 2025 detsember tegevuskava'!$P$108,3)","v":2},{"$f":"SUM(I90:I90)","v":{"v":120000,"d":"120,000"}},null,{"$f":"SUM(K90:K90)","v":0},null,{"$f":"SUM(M90:M90)","v":{"v":120000,"d":"120,000"}},null,{"$f":"SUM(O90:O90)","v":0}]
[{"$nulls":8},{"$f":"SUM(K90+M90+O90)","v":{"v":120000,"d":"120,000"}},{"$f":"\"(55)\"","v":"(55)"},{"$f":"'kuni 2025 detsember tegevuskava'!Z45","v":0},{"$f":"\"(55)\"","v":"(55)"},{"$f":"'kuni 2025 detsember tegevuskava'!AC45","v":{"v":120000,"d":"120,000"}},{"$f":"\"(55)\"","v":"(55)"},{"$f":"'kuni 2025 detsember tegevuskava'!AF45","v":0},{"$f":"\"(55)\"","v":"(55)"}]
[{"$nulls":8},"Summa koos käibemaksuga:"]
[{"$nulls":8},{"$f":"SUM(I93:I93)","v":{"v":146400,"d":"146,400"}},null,{"$f":"SUM(K93:K93)","v":0},null,{"$f":"SUM(M93:M93)","v":{"v":146400,"d":"146,400"}},null,{"$f":"SUM(O93:O93)","v":0}]
[{"$nulls":8},{"$f":"SUM(K93+M93+O93)","v":{"v":146400,"d":"146,400"}},{"$f":"\"(55)\"","v":"(55)"},{"$f":"SUM(K90*1.2)","v":0},{"$f":"\"(55)\"","v":"(55)"},{"$f":"SUM(M90*1.22)","v":{"v":146400,"d":"146,400"}},{"$f":"\"(55)\"","v":"(55)"},{"$f":"SUM(O90*1.22)","v":0},{"$f":"\"(55)\"","v":"(55)"}]
[null,{"$f":"'kuni 2025 detsember tegevuskava'!A46&\"/\"&'kuni 2025 detsember tegevuskava'!B46","v":"MKM/KEMIT"},{"$f":"'kuni 2025 detsember tegevuskava'!I46","v":"Teenused aeglased, kliendile ebamugavad, automatiseerimata; süsteemides esineb palju vigu"},{"$f":"'kuni 2025 detsember tegevuskava'!J46","v":"Loateenuste piloot ja välisinvesteeringute usaldusväärsuse hindamise rakendus"},{"$f":"'kuni 2025 detsember tegevuskava'!K46","v":"Välisinvesteeringute usaldusväärsuse hindamise teenuse detailanalüüs teostatud ja loataotluse rakendus toimib kliendikeskkonna tootes koos majandustegevuse teadetega toodangukeskkonnas"},{"$f":"'kuni 2025 detsember tegevuskava'!P46&\"/\"","v":"SF 21-27 (taotletav raha)/"},{"$f":"_xlfn.IFS('kuni 2025 detsember tegevuskava'!G46='kuni 2025 detsember tegevuskava'!$G$107,1,'kuni 2025 detsember tegevuskava'!G46='kuni 2025 detsember tegevuskava'!$G$108,2,'kuni 2025 detsember tegevuskava'!G46='kuni 2025 detsember tegevuskava'!$G$109,3,'kuni 2025 detsember tegevuskava'!G46='kuni 2025 detsember tegevuskava'!$G$110,4)","v":1},{"$f":"_xlfn.IFS(OR('kuni 2025 detsember tegevuskava'!P46='kuni 2025 detsember tegevuskava'!$P$107,'kuni 2025 detsember tegevuskava'!P46='kuni 2025 detsember tegevuskava'!$P$109,'kuni 2025 detsember tegevuskava'!P46='kuni 2025 detsember tegevuskava'!$P$110,'kuni 2025 detsember tegevuskava'!P46='kuni 2025 detsember tegevuskava'!$P$111),1,'kuni 2025 detsember tegevuskava'!P46='kuni 2025 detsember tegevuskava'!$P$112,2,'kuni 2025 detsember tegevuskava'!P46='kuni 2025 detsember tegevuskava'!$P$113,2,'kuni 2025 detsember tegevuskava'!P46='kuni 2025 detsember tegevuskava'!$P$108,3)","v":2},{"$f":"SUM(I95:I95)","v":{"v":280000,"d":"280,000"}},null,{"$f":"SUM(K95:K95)","v":0},null,{"$f":"SUM(M95:M95)","v":{"v":200000,"d":"200,000"}},null,{"$f":"SUM(O95:O95)","v":{"v":80000,"d":"80,000"}}]
[{"$nulls":8},{"$f":"SUM(K95+M95+O95)","v":{"v":280000,"d":"280,000"}},{"$f":"\"(15)\"","v":"(15)"},{"$f":"'kuni 2025 detsember tegevuskava'!X46","v":0},{"$f":"\"(15)\"","v":"(15)"},{"$f":"'kuni 2025 detsember tegevuskava'!AA46","v":{"v":200000,"d":"200,000"}},{"$f":"\"(15)\"","v":"(15)"},{"$f":"'kuni 2025 detsember tegevuskava'!AD46","v":{"v":80000,"d":"80,000"}},{"$f":"\"(15)\"","v":"(15)"}]
[{"$nulls":8},"Summa koos käibemaksuga:"]
[{"$nulls":8},{"$f":"SUM(I98:I98)","v":{"v":341600,"d":"341,600"}},null,{"$f":"SUM(K98:K98)","v":0},null,{"$f":"SUM(M98:M98)","v":{"v":244000,"d":"244,000"}},null,{"$f":"SUM(O98:O98)","v":{"v":97600,"d":"97,600"}}]
[{"$nulls":8},{"$f":"SUM(K98+M98+O98)","v":{"v":341600,"d":"341,600"}},{"$f":"\"(15)\"","v":"(15)"},{"$f":"SUM(K95*1.2)","v":0},{"$f":"\"(15)\"","v":"(15)"},{"$f":"SUM(M95*1.22)","v":{"v":244000,"d":"244,000"}},{"$f":"\"(15)\"","v":"(15)"},{"$f":"SUM(O95*1.22)","v":{"v":97600,"d":"97,600"}},{"$f":"\"(15)\"","v":"(15)"}]
[null,{"$f":"'kuni 2025 detsember tegevuskava'!A47&\"/\"&'kuni 2025 detsember tegevuskava'!B47","v":"MKM/TTJA"},{"$f":"'kuni 2025 detsember tegevuskava'!I47","v":"Teenused aeglased, kliendile ebamugavad, automatiseerimata; süsteemides esineb palju vigu"},{"$f":"'kuni 2025 detsember tegevuskava'!J47","v":"Projektijuht"},{"$f":"'kuni 2025 detsember tegevuskava'!K47","v":"Digipörde teostamine toimib vastavalt aja- ja tegevusplaanile"},{"$f":"'kuni 2025 detsember tegevuskava'!P47&\"/\"","v":"SF 21-27 (taotletav raha)/"},{"$f":"_xlfn.IFS('kuni 2025 detsember tegevuskava'!G47='kuni 2025 detsember tegevuskava'!$G$107,1,'kuni 2025 detsember tegevuskava'!G47='kuni 2025 detsember tegevuskava'!$G$108,2,'kuni 2025 detsember tegevuskava'!G47='kuni 2025 detsember tegevuskava'!$G$109,3,'kuni 2025 detsember tegevuskava'!G47='kuni 2025 detsember tegevuskava'!$G$110,4)","v":1},{"$f":"_xlfn.IFS(OR('kuni 2025 detsember tegevuskava'!P47='kuni 2025 detsember tegevuskava'!$P$107,'kuni 2025 detsember tegevuskava'!P47='kuni 2025 detsember tegevuskava'!$P$109,'kuni 2025 detsember tegevuskava'!P47='kuni 2025 detsember tegevuskava'!$P$110,'kuni 2025 detsember tegevuskava'!P47='kuni 2025 detsember tegevuskava'!$P$111),1,'kuni 2025 detsember tegevuskava'!P47='kuni 2025 detsember tegevuskava'!$P$112,2,'kuni 2025 detsember tegevuskava'!P47='kuni 2025 detsember tegevuskava'!$P$113,2,'kuni 2025 detsember tegevuskava'!P47='kuni 2025 detsember tegevuskava'!$P$108,3)","v":2},{"$f":"SUM(I100:I100)","v":{"v":110000,"d":"110,000"}},null,{"$f":"SUM(K100:K100)","v":0},null,{"$f":"SUM(M100:M100)","v":{"v":55000,"d":"55,000"}},null,{"$f":"SUM(O100:O100)","v":{"v":55000,"d":"55,000"}}]
[{"$nulls":8},{"$f":"SUM(K100+M100+O100)","v":{"v":110000,"d":"110,000"}},{"$f":"\"(50)\"","v":"(50)"},{"$f":"'kuni 2025 detsember tegevuskava'!Y47","v":0},{"$f":"\"(50)\"","v":"(50)"},{"$f":"'kuni 2025 detsember tegevuskava'!AB47","v":{"v":55000,"d":"55,000"}},{"$f":"\"(50)\"","v":"(50)"},{"$f":"'kuni 2025 detsember tegevuskava'!AE47","v":{"v":55000,"d":"55,000"}},{"$f":"\"(50)\"","v":"(50)"}]
[{"$nulls":8},"Summa koos käibemaksuga:"]
[{"$nulls":8},{"$f":"SUM(I103:I103)","v":{"v":110000,"d":"110,000"}},null,{"$f":"SUM(K103:K103)","v":0},null,{"$f":"SUM(M103:M103)","v":{"v":55000,"d":"55,000"}},null,{"$f":"SUM(O103:O103)","v":{"v":55000,"d":"55,000"}}]
[{"$nulls":8},{"$f":"SUM(K103+M103+O103)","v":{"v":110000,"d":"110,000"}},{"$f":"\"(50)\"","v":"(50)"},{"$f":"K100","v":0},{"$f":"\"(50)\"","v":"(50)"},{"$f":"M100","v":{"v":55000,"d":"55,000"}},{"$f":"\"(50)\"","v":"(50)"},{"$f":"O100","v":{"v":55000,"d":"55,000"}},{"$f":"\"(50)\"","v":"(50)"}]
[null,{"$f":"'kuni 2025 detsember tegevuskava'!A48&\"/\"&'kuni 2025 detsember tegevuskava'!B48","v":"MKM/KEMIT"},{"$f":"'kuni 2025 detsember tegevuskava'!I48","v":"Teenused aeglased, kliendile ebamugavad, automatiseerimata; süsteemides esineb palju vigu"},{"$f":"'kuni 2025 detsember tegevuskava'!J48","v":"e-teenuste tehnoloogilise platvormi baaskulu"},{"$f":"'kuni 2025 detsember tegevuskava'!K48","v":"Tehnoloogiline taristu ja teenused on hallatud"},{"$f":"'kuni 2025 detsember tegevuskava'!P48&\"/\"","v":"SF 21-27 (taotletav raha)/"},{"$f":"_xlfn.IFS('kuni 2025 detsember tegevuskava'!G48='kuni 2025 detsember tegevuskava'!$G$107,1,'kuni 2025 detsember tegevuskava'!G48='kuni 2025 detsember tegevuskava'!$G$108,2,'kuni 2025 detsember tegevuskava'!G48='kuni 2025 detsember tegevuskava'!$G$109,3,'kuni 2025 detsember tegevuskava'!G48='kuni 2025 detsember tegevuskava'!$G$110,4)","v":4},{"$f":"_xlfn.IFS(OR('kuni 2025 detsember tegevuskava'!P48='kuni 2025 detsember tegevuskava'!$P$107,'kuni 2025 detsember tegevuskava'!P48='kuni 2025 detsember tegevuskava'!$P$109,'kuni 2025 detsember tegevuskava'!P48='kuni 2025 detsember tegevuskava'!$P$110,'kuni 2025 detsember tegevuskava'!P48='kuni 2025 detsember tegevuskava'!$P$111),1,'kuni 2025 detsember tegevuskava'!P48='kuni 2025 detsember tegevuskava'!$P$112,2,'kuni 2025 detsember tegevuskava'!P48='kuni 2025 detsember tegevuskava'!$P$113,2,'kuni 2025 detsember tegevuskava'!P48='kuni 2025 detsember tegevuskava'!$P$108,3)","v":2},{"$f":"SUM(I105:I105)","v":{"v":150000,"d":"150,000"}},null,{"$f":"SUM(K105:K105)","v":0},null,{"$f":"SUM(M105:M105)","v":{"v":150000,"d":"150,000"}},null,{"$f":"SUM(O105:O105)","v":0}]
[{"$nulls":8},{"$f":"SUM(K105+M105+O105)","v":{"v":150000,"d":"150,000"}},{"$f":"\"(15)\"","v":"(15)"},{"$f":"'kuni 2025 detsember tegevuskava'!X48","v":0},{"$f":"\"(15)\"","v":"(15)"},{"$f":"'kuni 2025 detsember tegevuskava'!AA48","v":{"v":150000,"d":"150,000"}},{"$f":"\"(15)\"","v":"(15)"},{"$f":"'kuni 2025 detsember tegevuskava'!AD48","v":0},{"$f":"\"(15)\"","v":"(15)"}]
[{"$nulls":8},"Summa koos käibemaksuga:"]
[{"$nulls":8},{"$f":"SUM(I108:I108)","v":{"v":183000,"d":"183,000"}},null,{"$f":"SUM(K108:K108)","v":0},null,{"$f":"SUM(M108:M108)","v":{"v":183000,"d":"183,000"}},null,{"$f":"SUM(O108:O108)","v":0}]
[{"$nulls":8},{"$f":"SUM(K108+M108+O108)","v":{"v":183000,"d":"183,000"}},{"$f":"\"(15)\"","v":"(15)"},{"$f":"SUM(K105*1.2)","v":0},{"$f":"\"(15)\"","v":"(15)"},{"$f":"SUM(M105*1.22)","v":{"v":183000,"d":"183,000"}},{"$f":"\"(15)\"","v":"(15)"},{"$f":"SUM(O105*1.22)","v":0},{"$f":"\"(15)\"","v":"(15)"}]
[null,{"$f":"'kuni 2025 detsember tegevuskava'!A49&\"/\"&'kuni 2025 detsember tegevuskava'!B49","v":"MKM/TTJA"},{"$f":"'kuni 2025 detsember tegevuskava'!I49","v":"Teenused aeglased, kliendile ebamugavad, automatiseerimata; süsteemides esineb palju vigu"},{"$f":"'kuni 2025 detsember tegevuskava'!J49","v":"Rakendusadministraator protsessijuhtimise tarkvara jaoks"},{"$f":"'kuni 2025 detsember tegevuskava'!K49","v":"Protsessijuhtimise tarkvara on testitud, toimib jätkusuutlikult e-teenuste platvormil"},{"$f":"'kuni 2025 detsember tegevuskava'!P49&\"/\"","v":"SF 21-27 (taotletav raha)/"},{"$f":"_xlfn.IFS('kuni 2025 detsember tegevuskava'!G49='kuni 2025 detsember tegevuskava'!$G$107,1,'kuni 2025 detsember tegevuskava'!G49='kuni 2025 detsember tegevuskava'!$G$108,2,'kuni 2025 detsember tegevuskava'!G49='kuni 2025 detsember tegevuskava'!$G$109,3,'kuni 2025 detsember tegevuskava'!G49='kuni 2025 detsember tegevuskava'!$G$110,4)","v":1},{"$f":"_xlfn.IFS(OR('kuni 2025 detsember tegevuskava'!P49='kuni 2025 detsember tegevuskava'!$P$107,'kuni 2025 detsember tegevuskava'!P49='kuni 2025 detsember tegevuskava'!$P$109,'kuni 2025 detsember tegevuskava'!P49='kuni 2025 detsember tegevuskava'!$P$110,'kuni 2025 detsember tegevuskava'!P49='kuni 2025 detsember tegevuskava'!$P$111),1,'kuni 2025 detsember tegevuskava'!P49='kuni 2025 detsember tegevuskava'!$P$112,2,'kuni 2025 detsember tegevuskava'!P49='kuni 2025 detsember tegevuskava'!$P$113,2,'kuni 2025 detsember tegevuskava'!P49='kuni 2025 detsember tegevuskava'!$P$108,3)","v":2},{"$f":"SUM(I110:I111)","v":{"v":122000,"d":"122,000"}},null,{"$f":"SUM(K110:K111)","v":0},null,{"$f":"SUM(M110:M111)","v":{"v":56000,"d":"56,000"}},null,{"$f":"SUM(O110:O111)","v":{"v":66000,"d":"66,000"}}]
[{"$nulls":8},{"$f":"SUM(K110+M110+O110)","v":{"v":112000,"d":"112,000"}},{"$f":"\"(50)\"","v":"(50)"},{"$f":"'kuni 2025 detsember tegevuskava'!Y49","v":0},{"$f":"\"(50)\"","v":"(50)"},{"$f":"'kuni 2025 detsember tegevuskava'!AB49","v":{"v":56000,"d":"56,000"}},{"$f":"\"(50)\"","v":"(50)"},{"$f":"'kuni 2025 detsember tegevuskava'!AE49","v":{"v":56000,"d":"56,000"}},{"$f":"\"(50)\"","v":"(50)"}]
[{"$nulls":8},{"$f":"SUM(K111+M111+O111)","v":{"v":10000,"d":"10,000"}},{"$f":"\"(55)\"","v":"(55)"},{"$f":"'kuni 2025 detsember tegevuskava'!Z49","v":0},{"$f":"\"(55)\"","v":"(55)"},{"$f":"'kuni 2025 detsember tegevuskava'!AC48","v":0},{"$f":"\"(55)\"","v":"(55)"},{"$f":"'kuni 2025 detsember tegevuskava'!AF49","v":{"v":10000,"d":"10,000"}},{"$f":"\"(55)\"","v":"(55)"}]
[{"$nulls":8},"Summa koos käibemaksuga:"]
[{"$nulls":8},{"$f":"SUM(I114:I115)","v":{"v":124200,"d":"124,200"}},null,{"$f":"SUM(K114:K115)","v":0},null,{"$f":"SUM(M114:M115)","v":{"v":56000,"d":"56,000"}},null,{"$f":"SUM(O114:O115)","v":{"v":68200,"d":"68,200"}}]
[{"$nulls":8},{"$f":"SUM(K114+M114+O114)","v":{"v":112000,"d":"112,000"}},{"$f":"\"(50)\"","v":"(50)"},{"$f":"K110","v":0},{"$f":"\"(50)\"","v":"(50)"},{"$f":"M110","v":{"v":56000,"d":"56,000"}},{"$f":"\"(50)\"","v":"(50)"},{"$f":"O110","v":{"v":56000,"d":"56,000"}},{"$f":"\"(50)\"","v":"(50)"}]
[{"$nulls":8},{"$f":"SUM(K115+M115+O115)","v":{"v":12200,"d":"12,200"}},{"$f":"\"(55)\"","v":"(55)"},{"$f":"SUM(K111*1.2)","v":0},{"$f":"\"(55)\"","v":"(55)"},{"$f":"SUM(M111*1.22)","v":0},{"$f":"\"(55)\"","v":"(55)"},{"$f":"SUM(O111*1.22)","v":{"v":12200,"d":"12,200"}},{"$f":"\"(55)\"","v":"(55)"}]
[null,{"$f":"'kuni 2025 detsember tegevuskava'!A50&\"/\"&'kuni 2025 detsember tegevuskava'!B50","v":"MKM/KEMIT"},{"$f":"'kuni 2025 detsember tegevuskava'!I50","v":"Teenused aeglased, kliendile ebamugavad, automatiseerimata; süsteemides esineb palju vigu"},{"$f":"'kuni 2025 detsember tegevuskava'!J50","v":"Protsessijuhtimise tarkvara haldus (litsentsid, serverid jm) 50 TEUR/aastas"},{"$f":"'kuni 2025 detsember tegevuskava'!K50","v":"Vajalik taristu on olemas protsessitarkvara kasutamiseks"},{"$f":"'kuni 2025 detsember tegevuskava'!P50&\"/\"","v":"SF 21-27 (taotletav raha)/"},{"$f":"_xlfn.IFS('kuni 2025 detsember tegevuskava'!G50='kuni 2025 detsember tegevuskava'!$G$107,1,'kuni 2025 detsember tegevuskava'!G50='kuni 2025 detsember tegevuskava'!$G$108,2,'kuni 2025 detsember tegevuskava'!G50='kuni 2025 detsember tegevuskava'!$G$109,3,'kuni 2025 detsember tegevuskava'!G50='kuni 2025 detsember tegevuskava'!$G$110,4)","v":4},{"$f":"_xlfn.IFS(OR('kuni 2025 detsember tegevuskava'!P50='kuni 2025 detsember tegevuskava'!$P$107,'kuni 2025 detsember tegevuskava'!P50='kuni 2025 detsember tegevuskava'!$P$109,'kuni 2025 detsember tegevuskava'!P50='kuni 2025 detsember tegevuskava'!$P$110,'kuni 2025 detsember tegevuskava'!P50='kuni 2025 detsember tegevuskava'!$P$111),1,'kuni 2025 detsember tegevuskava'!P50='kuni 2025 detsember tegevuskava'!$P$112,2,'kuni 2025 detsember tegevuskava'!P50='kuni 2025 detsember tegevuskava'!$P$113,2,'kuni 2025 detsember tegevuskava'!P50='kuni 2025 detsember tegevuskava'!$P$108,3)","v":2},{"$f":"SUM(I117:I117)","v":{"v":50000,"d":"50,000"}},null,{"$f":"SUM(K117:K117)","v":0},null,{"$f":"SUM(M117:M117)","v":{"v":50000,"d":"50,000"}},null,{"$f":"SUM(O117:O117)","v":0}]
[{"$nulls":8},{"$f":"SUM(K117+M117+O117)","v":{"v":50000,"d":"50,000"}},{"$f":"\"(55)\"","v":"(55)"},{"$f":"'kuni 2025 detsember tegevuskava'!Z50","v":0},{"$f":"\"(55)\"","v":"(55)"},{"$f":"'kuni 2025 detsember tegevuskava'!AC50","v":{"v":50000,"d":"50,000"}},{"$f":"\"(55)\"","v":"(55)"},{"$f":"'kuni 2025 detsember tegevuskava'!AF50","v":0},{"$f":"\"(55)\"","v":"(55)"}]
[{"$nulls":8},"Summa koos käibemaksuga:"]
[{"$nulls":8},{"$f":"SUM(I120:I120)","v":{"v":61000,"d":"61,000"}},null,{"$f":"SUM(K120:K120)","v":0},null,{"$f":"SUM(M120:M120)","v":{"v":61000,"d":"61,000"}},null,{"$f":"SUM(O120:O120)","v":0}]
[{"$nulls":8},{"$f":"SUM(K120+M120+O120)","v":{"v":61000,"d":"61,000"}},{"$f":"\"(55)\"","v":"(55)"},{"$f":"SUM(K117*1.2)","v":0},{"$f":"\"(55)\"","v":"(55)"},{"$f":"SUM(M117*1.22)","v":{"v":61000,"d":"61,000"}},{"$f":"\"(55)\"","v":"(55)"},{"$f":"SUM(O117*1.22)","v":0},{"$f":"\"(55)\"","v":"(55)"}]
[null,{"$f":"'kuni 2025 detsember tegevuskava'!A51&\"/\"&'kuni 2025 detsember tegevuskava'!B51","v":"MKM/RIKS"},{"$f":"'kuni 2025 detsember tegevuskava'!I51","v":"Kvantarvutikindlate võrguarhitektuuride teadmiste säilitamine, rahvusvaheline koostöö."},{"$f":"'kuni 2025 detsember tegevuskava'!J51","v":"EuroQCI - Euroopa kvantvõrkude meede Eesti omaosalus."},{"$f":"'kuni 2025 detsember tegevuskava'!K51","v":"Kvantvõtmevahetus Soomega. Partnerlus Läti ja Rootsiga ning teiste EU27 riikidega."},{"$f":"'kuni 2025 detsember tegevuskava'!P51&\"/\"","v":"RES IKT (vaja juurde taotleda)/"},{"$f":"_xlfn.IFS('kuni 2025 detsember tegevuskava'!G51='kuni 2025 detsember tegevuskava'!$G$107,1,'kuni 2025 detsember tegevuskava'!G51='kuni 2025 detsember tegevuskava'!$G$108,2,'kuni 2025 detsember tegevuskava'!G51='kuni 2025 detsember tegevuskava'!$G$109,3,'kuni 2025 detsember tegevuskava'!G51='kuni 2025 detsember tegevuskava'!$G$110,4)","v":1},{"$f":"_xlfn.IFS(OR('kuni 2025 detsember tegevuskava'!P51='kuni 2025 detsember tegevuskava'!$P$107,'kuni 2025 detsember tegevuskava'!P51='kuni 2025 detsember tegevuskava'!$P$109,'kuni 2025 detsember tegevuskava'!P51='kuni 2025 detsember tegevuskava'!$P$110,'kuni 2025 detsember tegevuskava'!P51='kuni 2025 detsember tegevuskava'!$P$111),1,'kuni 2025 detsember tegevuskava'!P51='kuni 2025 detsember tegevuskava'!$P$112,2,'kuni 2025 detsember tegevuskava'!P51='kuni 2025 detsember tegevuskava'!$P$113,2,'kuni 2025 detsember tegevuskava'!P51='kuni 2025 detsember tegevuskava'!$P$108,3)","v":1},{"$f":"SUM(I122:I123)","v":{"v":210000,"d":"210,000"}},null,{"$f":"SUM(K122:K123)","v":0},null,{"$f":"SUM(M122:M123)","v":0},null,{"$f":"SUM(O122:O123)","v":{"v":210000,"d":"210,000"}}]
[{"$nulls":8},{"$f":"SUM(K122+M122+O122)","v":{"v":189000,"d":"189,000"}},{"$f":"\"(50)\"","v":"(50)"},{"$f":"'kuni 2025 detsember tegevuskava'!Y51","v":0},{"$f":"\"(50)\"","v":"(50)"},{"$f":"'kuni 2025 detsember tegevuskava'!AB51","v":0},{"$f":"\"(50)\"","v":"(50)"},{"$f":"'kuni 2025 detsember tegevuskava'!AE51","v":{"v":189000,"d":"189,000"}},{"$f":"\"(50)\"","v":"(50)"}]
[{"$nulls":8},{"$f":"SUM(K123+M123+O123)","v":{"v":21000,"d":"21,000"}},{"$f":"\"(55)\"","v":"(55)"},{"$f":"'kuni 2025 detsember tegevuskava'!Z51","v":0},{"$f":"\"(55)\"","v":"(55)"},{"$f":"'kuni 2025 detsember tegevuskava'!AC51","v":0},{"$f":"\"(55)\"","v":"(55)"},{"$f":"'kuni 2025 detsember tegevuskava'!AF51","v":{"v":21000,"d":"21,000"}},{"$f":"\"(55)\"","v":"(55)"}]
[{"$nulls":8},"Summa koos käibemaksuga:"]
[{"$nulls":8},{"$f":"SUM(I126:I127)","v":{"v":214620,"d":"214,620"}},null,{"$f":"SUM(K126:K127)","v":0},null,{"$f":"SUM(M126:M127)","v":0},null,{"$f":"SUM(O126:O127)","v":{"v":214620,"d":"214,620"}}]
[{"$nulls":8},{"$f":"SUM(K126+M126+O126)","v":{"v":189000,"d":"189,000"}},{"$f":"\"(50)\"","v":"(50)"},{"$f":"K122","v":0},{"$f":"\"(50)\"","v":"(50)"},{"$f":"M122","v":0},{"$f":"\"(50)\"","v":"(50)"},{"$f":"O122","v":{"v":189000,"d":"189,000"}},{"$f":"\"(50)\"","v":"(50)"}]
[{"$nulls":8},{"$f":"SUM(K127+M127+O127)","v":{"v":25620,"d":"25,620"}},{"$f":"\"(55)\"","v":"(55)"},{"$f":"SUM(K123*1.2)","v":0},{"$f":"\"(55)\"","v":"(55)"},{"$f":"SUM(M123*1.22)","v":0},{"$f":"\"(55)\"","v":"(55)"},{"$f":"SUM(O123*1.22)","v":{"v":25620,"d":"25,620"}},{"$f":"\"(55)\"","v":"(55)"}]
[null,{"$f":"'kuni 2025 detsember tegevuskava'!A53&\"/\"&'kuni 2025 detsember tegevuskava'!B53","v":"MKM/RIT"},{"$f":"'kuni 2025 detsember tegevuskava'!I53","v":"RRF toetuse lõppemine 2024. aasta lõpul, mis toob kaasa olukorra, kus RIT-i kasvuks vahendid (tehnoloogiline võlg+ teenuse igaaastane maksumus) puuduvad"},{"$f":"'kuni 2025 detsember tegevuskava'!J53","v":"Konsolideerimisreserv (RIT ATK standardteenuse klientide arvu kasvuks)"},{"$f":"'kuni 2025 detsember tegevuskava'!K53","v":"Perioodil 2025-2028 on RIT ATK standardteenusele toodud 14 862 uut kasutajat. Eelarve arvestatud eeldusel, et asutus katab olemasolevatest vahenditest vähemalt 25% std. teenuse kulust"},{"$f":"'kuni 2025 detsember tegevuskava'!P53&\"/\"","v":"RES IKT (vaja juurde taotleda)/"},{"$f":"_xlfn.IFS('kuni 2025 detsember tegevuskava'!G53='kuni 2025 detsember tegevuskava'!$G$107,1,'kuni 2025 detsember tegevuskava'!G53='kuni 2025 detsember tegevuskava'!$G$108,2,'kuni 2025 detsember tegevuskava'!G53='kuni 2025 detsember tegevuskava'!$G$109,3,'kuni 2025 detsember tegevuskava'!G53='kuni 2025 detsember tegevuskava'!$G$110,4)","v":4},{"$f":"_xlfn.IFS(OR('kuni 2025 detsember tegevuskava'!P53='kuni 2025 detsember tegevuskava'!$P$107,'kuni 2025 detsember tegevuskava'!P53='kuni 2025 detsember tegevuskava'!$P$109,'kuni 2025 detsember tegevuskava'!P53='kuni 2025 detsember tegevuskava'!$P$110,'kuni 2025 detsember tegevuskava'!P53='kuni 2025 detsember tegevuskava'!$P$111),1,'kuni 2025 detsember tegevuskava'!P53='kuni 2025 detsember tegevuskava'!$P$112,2,'kuni 2025 detsember tegevuskava'!P53='kuni 2025 detsember tegevuskava'!$P$113,2,'kuni 2025 detsember tegevuskava'!P53='kuni 2025 detsember tegevuskava'!$P$108,3)","v":1},{"$f":"SUM(I129:I130)","v":{"v":7655327,"d":"7,655,327"}},null,{"$f":"SUM(K129:K130)","v":0},null,{"$f":"SUM(M129:M130)","v":0},null,{"$f":"SUM(O129:O130)","v":{"v":7655327,"d":"7,655,327"}}]
[{"$nulls":8},{"$f":"SUM(K129+M129+O129)","v":{"v":2344897.15,"d":"2,344,897"}},{"$f":"\"(50)\"","v":"(50)"},{"$f":"'kuni 2025 detsember tegevuskava'!Y53","v":0},{"$f":"\"(50)\"","v":"(50)"},{"$f":"'kuni 2025 detsember tegevuskava'!AB53","v":0},{"$f":"\"(50)\"","v":"(50)"},{"$f":"'kuni 2025 detsember tegevuskava'!AE53","v":{"v":2344897.15,"d":"2,344,897"}},{"$f":"\"(50)\"","v":"(50)"}]
[{"$nulls":8},{"$f":"SUM(K130+M130+O130)","v":{"v":5310429.85,"d":"5,310,430"}},{"$f":"\"(55)\"","v":"(55)"},{"$f":"'kuni 2025 detsember tegevuskava'!Z53","v":0},{"$f":"\"(55)\"","v":"(55)"},{"$f":"'kuni 2025 detsember tegevuskava'!AC53","v":0},{"$f":"\"(55)\"","v":"(55)"},{"$f":"'kuni 2025 detsember tegevuskava'!AF53","v":{"v":5310429.85,"d":"5,310,430"}},{"$f":"\"(55)\"","v":"(55)"}]
[{"$nulls":8},"Summa koos käibemaksuga:"]
[{"$nulls":8},{"$f":"SUM(I133:I134)","v":{"v":8823621.567,"d":"8,823,622"}},null,{"$f":"SUM(K133:K134)","v":0},null,{"$f":"SUM(M133:M134)","v":0},null,{"$f":"SUM(O133:O134)","v":{"v":8823621.567,"d":"8,823,622"}}]
[{"$nulls":8},{"$f":"SUM(K133+M133+O133)","v":{"v":2344897.15,"d":"2,344,897"}},{"$f":"\"(50)\"","v":"(50)"},{"$f":"K129","v":0},{"$f":"\"(50)\"","v":"(50)"},{"$f":"M129","v":0},{"$f":"\"(50)\"","v":"(50)"},{"$f":"O129","v":{"v":2344897.15,"d":"2,344,897"}},{"$f":"\"(50)\"","v":"(50)"}]
[{"$nulls":8},{"$f":"SUM(K134+M134+O134)","v":{"v":6478724.416999999,"d":"6,478,724"}},{"$f":"\"(55)\"","v":"(55)"},{"$f":"SUM(K130*1.2)","v":0},{"$f":"\"(55)\"","v":"(55)"},{"$f":"SUM(M130*1.22)","v":0},{"$f":"\"(55)\"","v":"(55)"},{"$f":"SUM(O130*1.22)","v":{"v":6478724.416999999,"d":"6,478,724"}},{"$f":"\"(55)\"","v":"(55)"}]
[null,{"$f":"'kuni 2025 detsember tegevuskava'!A54&\"/\"&'kuni 2025 detsember tegevuskava'!B54","v":"MKM/RIT"},{"$f":"'kuni 2025 detsember tegevuskava'!I54","v":"RRF toetuse lõppemine 2024. aasta lõpul, mis toob kaasa olukorra, kus RIT-i kasvuks vahendid (tehnoloogiline võlg+ teenuse igaaastane maksumus) puuduvad"},{"$f":"'kuni 2025 detsember tegevuskava'!J54","v":"RRF JÄTK Konsolideerimisreserv (RIT ATK standardteenuse klientide arvu kasvuks). RRF-i jätk. 2024 on rahastatud konsolideerimisega seotud inimesed RRF-st."},{"$f":"'kuni 2025 detsember tegevuskava'!K54","v":"Perioodil 2025-2028 on RIT ATK standardteenusele toodud 14 862 uut kasutajat. Eelarve arvestatud eeldusel, et asutus katab olemasolevatest vahenditest vähemalt 25% std. teenuse kulust"},{"$f":"'kuni 2025 detsember tegevuskava'!P54&\"/\"","v":"RES IKT (vaja juurde taotleda)/"},{"$f":"_xlfn.IFS('kuni 2025 detsember tegevuskava'!G54='kuni 2025 detsember tegevuskava'!$G$107,1,'kuni 2025 detsember tegevuskava'!G54='kuni 2025 detsember tegevuskava'!$G$108,2,'kuni 2025 detsember tegevuskava'!G54='kuni 2025 detsember tegevuskava'!$G$109,3,'kuni 2025 detsember tegevuskava'!G54='kuni 2025 detsember tegevuskava'!$G$110,4)","v":4},{"$f":"_xlfn.IFS(OR('kuni 2025 detsember tegevuskava'!P54='kuni 2025 detsember tegevuskava'!$P$107,'kuni 2025 detsember tegevuskava'!P54='kuni 2025 detsember tegevuskava'!$P$109,'kuni 2025 detsember tegevuskava'!P54='kuni 2025 detsember tegevuskava'!$P$110,'kuni 2025 detsember tegevuskava'!P54='kuni 2025 detsember tegevuskava'!$P$111),1,'kuni 2025 detsember tegevuskava'!P54='kuni 2025 detsember tegevuskava'!$P$112,2,'kuni 2025 detsember tegevuskava'!P54='kuni 2025 detsember tegevuskava'!$P$113,2,'kuni 2025 detsember tegevuskava'!P54='kuni 2025 detsember tegevuskava'!$P$108,3)","v":1},{"$f":"SUM(I136:I137)","v":{"v":2000000,"d":"2,000,000"}},null,{"$f":"SUM(K136:K137)","v":0},null,{"$f":"SUM(M136:M137)","v":0},null,{"$f":"SUM(O136:O137)","v":{"v":2000000,"d":"2,000,000"}}]
[{"$nulls":8},{"$f":"SUM(K136+M136+O136)","v":{"v":2000000,"d":"2,000,000"}},{"$f":"\"(50)\"","v":"(50)"},{"$f":"'kuni 2025 detsember tegevuskava'!Y54","v":0},{"$f":"\"(50)\"","v":"(50)"},{"$f":"'kuni 2025 detsember tegevuskava'!AB54","v":0},{"$f":"\"(50)\"","v":"(50)"},{"$f":"'kuni 2025 detsember tegevuskava'!AE54","v":{"v":2000000,"d":"2,000,000"}},{"$f":"\"(50)\"","v":"(50)"}]
[{"$nulls":8},{"$f":"SUM(K137+M137+O137)","v":0},{"$f":"\"(55)\"","v":"(55)"},{"$f":"'kuni 2025 detsember tegevuskava'!Z54","v":0},{"$f":"\"(55)\"","v":"(55)"},{"$f":"'kuni 2025 detsember tegevuskava'!AC54","v":0},{"$f":"\"(55)\"","v":"(55)"},{"$f":"'kuni 2025 detsember tegevuskava'!AF60","v":0},{"$f":"\"(55)\"","v":"(55)"}]
[{"$nulls":8},"Summa koos käibemaksuga:"]
[{"$nulls":8},{"$f":"SUM(I140:I141)","v":{"v":2000000,"d":"2,000,000"}},null,{"$f":"SUM(K140:K141)","v":0},null,{"$f":"SUM(M140:M141)","v":0},null,{"$f":"SUM(O140:O141)","v":{"v":2000000,"d":"2,000,000"}}]
[{"$nulls":8},{"$f":"SUM(K140+M140+O140)","v":{"v":2000000,"d":"2,000,000"}},{"$f":"\"(50)\"","v":"(50)"},{"$f":"K136","v":0},{"$f":"\"(50)\"","v":"(50)"},{"$f":"M136","v":0},{"$f":"\"(50)\"","v":"(50)"},{"$f":"O136","v":{"v":2000000,"d":"2,000,000"}},{"$f":"\"(50)\"","v":"(50)"}]
[{"$nulls":8},{"$f":"SUM(K141+M141+O141)","v":0},{"$f":"\"(55)\"","v":"(55)"},{"$f":"SUM(K137*1.2)","v":0},{"$f":"\"(55)\"","v":"(55)"},{"$f":"SUM(M137*1.22)","v":0},{"$f":"\"(55)\"","v":"(55)"},{"$f":"SUM(O137*1.22)","v":0},{"$f":"\"(55)\"","v":"(55)"}]
[null,{"$f":"'kuni 2025 detsember tegevuskava'!A55&\"/\"&'kuni 2025 detsember tegevuskava'!B55","v":"MKM/RIT"},{"$f":"'kuni 2025 detsember tegevuskava'!I55","v":"Eri-ja lisateenused, mida on rahastatud RRFst. Asutused on teenuste konsolideerimisega andnud eelarvet kaasa vähem, kui teenuseosutamiseks vajalik on"},{"$f":"'kuni 2025 detsember tegevuskava'!J55","v":"RRF JÄTK RIT klientide eri- ja lisateenused"},{"$f":"'kuni 2025 detsember tegevuskava'!K55","v":"Lisateenuste osutamine asutustele saab jätkuda. Peamised kulud on haldamisega seotud personalikulud"},{"$f":"'kuni 2025 detsember tegevuskava'!P55&\"/\"","v":"RES IKT (vaja juurde taotleda)/"},{"$f":"_xlfn.IFS('kuni 2025 detsember tegevuskava'!G55='kuni 2025 detsember tegevuskava'!$G$107,1,'kuni 2025 detsember tegevuskava'!G55='kuni 2025 detsember tegevuskava'!$G$108,2,'kuni 2025 detsember tegevuskava'!G55='kuni 2025 detsember tegevuskava'!$G$109,3,'kuni 2025 detsember tegevuskava'!G55='kuni 2025 detsember tegevuskava'!$G$110,4)","v":4},{"$f":"_xlfn.IFS(OR('kuni 2025 detsember tegevuskava'!P55='kuni 2025 detsember tegevuskava'!$P$107,'kuni 2025 detsember tegevuskava'!P55='kuni 2025 detsember tegevuskava'!$P$109,'kuni 2025 detsember tegevuskava'!P55='kuni 2025 detsember tegevuskava'!$P$110,'kuni 2025 detsember tegevuskava'!P55='kuni 2025 detsember tegevuskava'!$P$111),1,'kuni 2025 detsember tegevuskava'!P55='kuni 2025 detsember tegevuskava'!$P$112,2,'kuni 2025 detsember tegevuskava'!P55='kuni 2025 detsember tegevuskava'!$P$113,2,'kuni 2025 detsember tegevuskava'!P55='kuni 2025 detsember tegevuskava'!$P$108,3)","v":1},{"$f":"SUM(I143:I144)","v":{"v":3144621,"d":"3,144,621"}},null,{"$f":"SUM(K143:K144)","v":0},null,{"$f":"SUM(M143:M144)","v":0},null,{"$f":"SUM(O143:O144)","v":{"v":3144621,"d":"3,144,621"}}]
[{"$nulls":8},{"$f":"SUM(K143+M143+O143)","v":{"v":2246234.7,"d":"2,246,235"}},{"$f":"\"(50)\"","v":"(50)"},{"$f":"'kuni 2025 detsember tegevuskava'!Y55","v":0},{"$f":"\"(50)\"","v":"(50)"},{"$f":"'kuni 2025 detsember tegevuskava'!AB55","v":0},{"$f":"\"(50)\"","v":"(50)"},{"$f":"'kuni 2025 detsember tegevuskava'!AE55","v":{"v":2246234.7,"d":"2,246,235"}},{"$f":"\"(50)\"","v":"(50)"}]
[{"$nulls":8},{"$f":"SUM(K144+M144+O144)","v":{"v":898386.3,"d":"898,386"}},{"$f":"\"(55)\"","v":"(55)"},{"$f":"'kuni 2025 detsember tegevuskava'!Z55","v":0},{"$f":"\"(55)\"","v":"(55)"},{"$f":"'kuni 2025 detsember tegevuskava'!AC55","v":0},{"$f":"\"(55)\"","v":"(55)"},{"$f":"'kuni 2025 detsember tegevuskava'!AF55","v":{"v":898386.3,"d":"898,386"}},{"$f":"\"(55)\"","v":"(55)"}]
[{"$nulls":8},"Summa koos käibemaksuga:"]
[{"$nulls":8},{"$f":"SUM(I147:I148)","v":{"v":3342265.9860000005,"d":"3,342,266"}},null,{"$f":"SUM(K147:K148)","v":0},null,{"$f":"SUM(M147:M148)","v":0},null,{"$f":"SUM(O147:O148)","v":{"v":3342265.9860000005,"d":"3,342,266"}}]
[{"$nulls":8},{"$f":"SUM(K147+M147+O147)","v":{"v":2246234.7,"d":"2,246,235"}},{"$f":"\"(50)\"","v":"(50)"},{"$f":"K143","v":0},{"$f":"\"(50)\"","v":"(50)"},{"$f":"M143","v":0},{"$f":"\"(50)\"","v":"(50)"},{"$f":"O143","v":{"v":2246234.7,"d":"2,246,235"}},{"$f":"\"(50)\"","v":"(50)"}]
[{"$nulls":8},{"$f":"SUM(K148+M148+O148)","v":{"v":1096031.286,"d":"1,096,031"}},{"$f":"\"(55)\"","v":"(55)"},{"$f":"SUM(K144*1.2)","v":0},{"$f":"\"(55)\"","v":"(55)"},{"$f":"SUM(M144*1.22)","v":0},{"$f":"\"(55)\"","v":"(55)"},{"$f":"SUM(O144*1.22)","v":{"v":1096031.286,"d":"1,096,031"}},{"$f":"\"(55)\"","v":"(55)"}]
[null,{"$f":"'kuni 2025 detsember tegevuskava'!A58&\"/\"&'kuni 2025 detsember tegevuskava'!B58","v":"MKM/RIT"},{"$f":"'kuni 2025 detsember tegevuskava'!I58","v":"Riigiülene avalike pilvede kompetents ning keskve vaade puudub"},{"$f":"'kuni 2025 detsember tegevuskava'!J58","v":"Avalike pilvede kompetentsikeskuse loomine"},{"$f":"'kuni 2025 detsember tegevuskava'!K58","v":"Kompententsikeskus on loodud ning töötab. 2025 alustatakse välise partneriga ning värvatakse positsioonid RITi."},{"$f":"'kuni 2025 detsember tegevuskava'!P58&\"/\"","v":"RES IKT (vaja juurde taotleda)/"},{"$f":"_xlfn.IFS('kuni 2025 detsember tegevuskava'!G58='kuni 2025 detsember tegevuskava'!$G$107,1,'kuni 2025 detsember tegevuskava'!G58='kuni 2025 detsember tegevuskava'!$G$108,2,'kuni 2025 detsember tegevuskava'!G58='kuni 2025 detsember tegevuskava'!$G$109,3,'kuni 2025 detsember tegevuskava'!G58='kuni 2025 detsember tegevuskava'!$G$110,4)","v":4},{"$f":"_xlfn.IFS(OR('kuni 2025 detsember tegevuskava'!P58='kuni 2025 detsember tegevuskava'!$P$107,'kuni 2025 detsember tegevuskava'!P58='kuni 2025 detsember tegevuskava'!$P$109,'kuni 2025 detsember tegevuskava'!P58='kuni 2025 detsember tegevuskava'!$P$110,'kuni 2025 detsember tegevuskava'!P58='kuni 2025 detsember tegevuskava'!$P$111),1,'kuni 2025 detsember tegevuskava'!P58='kuni 2025 detsember tegevuskava'!$P$112,2,'kuni 2025 detsember tegevuskava'!P58='kuni 2025 detsember tegevuskava'!$P$113,2,'kuni 2025 detsember tegevuskava'!P58='kuni 2025 detsember tegevuskava'!$P$108,3)","v":1},{"$f":"SUM(I150:I151)","v":{"v":219500,"d":"219,500"}},null,{"$f":"SUM(K150:K151)","v":0},null,{"$f":"SUM(M150:M151)","v":0},null,{"$f":"SUM(O150:O151)","v":{"v":219500,"d":"219,500"}}]
[{"$nulls":8},{"$f":"SUM(K150+M150+O150)","v":{"v":119500,"d":"119,500"}},{"$f":"\"(50)\"","v":"(50)"},{"$f":"'kuni 2025 detsember tegevuskava'!Y58","v":0},{"$f":"\"(50)\"","v":"(50)"},{"$f":"'kuni 2025 detsember tegevuskava'!AB58","v":0},{"$f":"\"(50)\"","v":"(50)"},{"$f":"'kuni 2025 detsember tegevuskava'!AE58","v":{"v":119500,"d":"119,500"}},{"$f":"\"(50)\"","v":"(50)"}]
[{"$nulls":8},{"$f":"SUM(K151+M151+O151)","v":{"v":100000,"d":"100,000"}},{"$f":"\"(55)\"","v":"(55)"},{"$f":"'kuni 2025 detsember tegevuskava'!Z58","v":0},{"$f":"\"(55)\"","v":"(55)"},{"$f":"'kuni 2025 detsember tegevuskava'!AC58","v":0},{"$f":"\"(55)\"","v":"(55)"},{"$f":"'kuni 2025 detsember tegevuskava'!AF58","v":{"v":100000,"d":"100,000"}},{"$f":"\"(55)\"","v":"(55)"}]
[{"$nulls":8},"Summa koos käibemaksuga:"]
[{"$nulls":8},{"$f":"SUM(I154:I155)","v":{"v":241500,"d":"241,500"}},null,{"$f":"SUM(K154:K155)","v":0},null,{"$f":"SUM(M154:M155)","v":0},null,{"$f":"SUM(O154:O155)","v":{"v":241500,"d":"241,500"}}]
[{"$nulls":8},{"$f":"SUM(K154+M154+O154)","v":{"v":119500,"d":"119,500"}},{"$f":"\"(50)\"","v":"(50)"},{"$f":"K150","v":0},{"$f":"\"(50)\"","v":"(50)"},{"$f":"M150","v":0},{"$f":"\"(50)\"","v":"(50)"},{"$f":"O150","v":{"v":119500,"d":"119,500"}},{"$f":"\"(50)\"","v":"(50)"}]
[{"$nulls":8},{"$f":"SUM(K155+M155+O155)","v":{"v":122000,"d":"122,000"}},{"$f":"\"(55)\"","v":"(55)"},{"$f":"SUM(K151*1.2)","v":0},{"$f":"\"(55)\"","v":"(55)"},{"$f":"SUM(M151*1.22)","v":0},{"$f":"\"(55)\"","v":"(55)"},{"$f":"SUM(O151*1.22)","v":{"v":122000,"d":"122,000"}},{"$f":"\"(55)\"","v":"(55)"}]
[null,{"$f":"'kuni 2025 detsember tegevuskava'!A61&\"/\"&'kuni 2025 detsember tegevuskava'!B61","v":"MKM/RIKS"},{"$f":"'kuni 2025 detsember tegevuskava'!I61","v":"Puuduvad ühtsed juhtimispõhimõtted ja on vajadus selgete juhtrollide defineerimiseks, sh juhtide digipädevuste defineerimiseks,  et RIKS suudaks kiiremini reageerida digimuutustele ja kasutaksime töös kaasaegseid digitaalseid lahendusi, mis aitaksid juurutada andmete- ja teenusepõhise juhtimise"},{"$f":"'kuni 2025 detsember tegevuskava'!J61","v":"RIKS juhtide arenguprogramm: juhtimispõhimõtete loomine ja juhtide digipädevuste kaardistamine 2024"},{"$f":"'kuni 2025 detsember tegevuskava'!K61","v":"RIKS juhtimispõhimõtted, sh juhtrollid kokku lepitud ja nende digipädevused kaardistatud. "},{"$f":"'kuni 2025 detsember tegevuskava'!P61&\"/\"","v":"SF 21-27 (taotletav raha)/"},{"$f":"_xlfn.IFS('kuni 2025 detsember tegevuskava'!G61='kuni 2025 detsember tegevuskava'!$G$107,1,'kuni 2025 detsember tegevuskava'!G61='kuni 2025 detsember tegevuskava'!$G$108,2,'kuni 2025 detsember tegevuskava'!G61='kuni 2025 detsember tegevuskava'!$G$109,3,'kuni 2025 detsember tegevuskava'!G61='kuni 2025 detsember tegevuskava'!$G$110,4)","v":3},{"$f":"_xlfn.IFS(OR('kuni 2025 detsember tegevuskava'!P61='kuni 2025 detsember tegevuskava'!$P$107,'kuni 2025 detsember tegevuskava'!P61='kuni 2025 detsember tegevuskava'!$P$109,'kuni 2025 detsember tegevuskava'!P61='kuni 2025 detsember tegevuskava'!$P$110,'kuni 2025 detsember tegevuskava'!P61='kuni 2025 detsember tegevuskava'!$P$111),1,'kuni 2025 detsember tegevuskava'!P61='kuni 2025 detsember tegevuskava'!$P$112,2,'kuni 2025 detsember tegevuskava'!P61='kuni 2025 detsember tegevuskava'!$P$113,2,'kuni 2025 detsember tegevuskava'!P61='kuni 2025 detsember tegevuskava'!$P$108,3)","v":2},{"$f":"SUM(I157:I157)","v":{"v":15000,"d":"15,000"}},null,{"$f":"SUM(K157:K157)","v":0},null,{"$f":"SUM(M157:M157)","v":{"v":15000,"d":"15,000"}},null,{"$f":"SUM(O157:O157)","v":0}]
[{"$nulls":8},{"$f":"SUM(K157+M157+O157)","v":{"v":15000,"d":"15,000"}},{"$f":"\"(55)\"","v":"(55)"},{"$f":"'kuni 2025 detsember tegevuskava'!Z61","v":0},{"$f":"\"(55)\"","v":"(55)"},{"$f":"'kuni 2025 detsember tegevuskava'!AC61","v":{"v":15000,"d":"15,000"}},{"$f":"\"(55)\"","v":"(55)"},{"$f":"'kuni 2025 detsember tegevuskava'!AF61","v":0},{"$f":"\"(55)\"","v":"(55)"}]
[{"$nulls":8},"Summa koos käibemaksuga:"]
[{"$nulls":8},{"$f":"SUM(I160:I160)","v":{"v":18300,"d":"18,300"}},null,{"$f":"SUM(K160:K160)","v":0},null,{"$f":"SUM(M160:M160)","v":{"v":18300,"d":"18,300"}},null,{"$f":"SUM(O160:O160)","v":0}]
[{"$nulls":8},{"$f":"SUM(K160+M160+O160)","v":{"v":18300,"d":"18,300"}},{"$f":"\"(55)\"","v":"(55)"},{"$f":"SUM(K157*1.2)","v":0},{"$f":"\"(55)\"","v":"(55)"},{"$f":"SUM(M157*1.22)","v":{"v":18300,"d":"18,300"}},{"$f":"\"(55)\"","v":"(55)"},{"$f":"SUM(O157*1.22)","v":0},{"$f":"\"(55)\"","v":"(55)"}]
[null,{"$f":"'kuni 2025 detsember tegevuskava'!A62&\"/\"&'kuni 2025 detsember tegevuskava'!B62","v":"MKM/MKM"},{"$f":"'kuni 2025 detsember tegevuskava'!I62","v":"MKM kui digioskuste näidisasutus ei oska kasutada kasutuselolevaid Microsoft tööriistu ja uut tööplaani keskkonda Viva Goals. "},{"$f":"'kuni 2025 detsember tegevuskava'!J62","v":"Microsofti keskkonna koolitused (sh tööplaani keskkond) MKM teenistujatele"},{"$f":"'kuni 2025 detsember tegevuskava'!K62","v":"Koolituste tulemusena oskavad MKMi teenistujad kasutada Microsofti keskkondi paremini kasutada, oskavad täita tööplaani. Microsofti keskkonnale üleminek toetab teenus- ja andmepõhisele juhtimisele üleminekut. "},{"$f":"'kuni 2025 detsember tegevuskava'!P62&\"/\"","v":"SF 21-27 (taotletav raha)/"},{"$f":"_xlfn.IFS('kuni 2025 detsember tegevuskava'!G62='kuni 2025 detsember tegevuskava'!$G$107,1,'kuni 2025 detsember tegevuskava'!G62='kuni 2025 detsember tegevuskava'!$G$108,2,'kuni 2025 detsember tegevuskava'!G62='kuni 2025 detsember tegevuskava'!$G$109,3,'kuni 2025 detsember tegevuskava'!G62='kuni 2025 detsember tegevuskava'!$G$110,4)","v":3},{"$f":"_xlfn.IFS(OR('kuni 2025 detsember tegevuskava'!P62='kuni 2025 detsember tegevuskava'!$P$107,'kuni 2025 detsember tegevuskava'!P62='kuni 2025 detsember tegevuskava'!$P$109,'kuni 2025 detsember tegevuskava'!P62='kuni 2025 detsember tegevuskava'!$P$110,'kuni 2025 detsember tegevuskava'!P62='kuni 2025 detsember tegevuskava'!$P$111),1,'kuni 2025 detsember tegevuskava'!P62='kuni 2025 detsember tegevuskava'!$P$112,2,'kuni 2025 detsember tegevuskava'!P62='kuni 2025 detsember tegevuskava'!$P$113,2,'kuni 2025 detsember tegevuskava'!P62='kuni 2025 detsember tegevuskava'!$P$108,3)","v":2},{"$f":"SUM(I162:I162)","v":{"v":45000,"d":"45,000"}},null,{"$f":"SUM(K162:K162)","v":0},null,{"$f":"SUM(M162:M162)","v":{"v":30000,"d":"30,000"}},null,{"$f":"SUM(O162:O162)","v":{"v":15000,"d":"15,000"}}]
[{"$nulls":8},{"$f":"SUM(K162+M162+O162)","v":{"v":45000,"d":"45,000"}},{"$f":"\"(55)\"","v":"(55)"},{"$f":"'kuni 2025 detsember tegevuskava'!Z62","v":0},{"$f":"\"(55)\"","v":"(55)"},{"$f":"'kuni 2025 detsember tegevuskava'!AC62","v":{"v":30000,"d":"30,000"}},{"$f":"\"(55)\"","v":"(55)"},{"$f":"'kuni 2025 detsember tegevuskava'!AF62","v":{"v":15000,"d":"15,000"}},{"$f":"\"(55)\"","v":"(55)"}]
[{"$nulls":8},"Summa koos käibemaksuga:"]
[{"$nulls":8},{"$f":"SUM(I165:I165)","v":{"v":54900,"d":"54,900"}},null,{"$f":"SUM(K165:K165)","v":0},null,{"$f":"SUM(M165:M165)","v":{"v":36600,"d":"36,600"}},null,{"$f":"SUM(O165:O165)","v":{"v":18300,"d":"18,300"}}]
[{"$nulls":8},{"$f":"SUM(K165+M165+O165)","v":{"v":54900,"d":"54,900"}},{"$f":"\"(55)\"","v":"(55)"},{"$f":"SUM(K162*1.2)","v":0},{"$f":"\"(55)\"","v":"(55)"},{"$f":"SUM(M162*1.22)","v":{"v":36600,"d":"36,600"}},{"$f":"\"(55)\"","v":"(55)"},{"$f":"SUM(O162*1.22)","v":{"v":18300,"d":"18,300"}},{"$f":"\"(55)\"","v":"(55)"}]
[null,{"$f":"'kuni 2025 detsember tegevuskava'!A63&\"/\"&'kuni 2025 detsember tegevuskava'!B63","v":"MKM/RIA"},{"$f":"'kuni 2025 detsember tegevuskava'!I63","v":"Tootejuhid täidavad projektijuhtide ülesandeid pigem kui et jõuavad tegeleda tootejuhtimisega. Tootejuhid täna juhivad arendusmeeskondi, kirjutavad täismahus ise hankeid jne. Mis tähendab, et toote elukaare eest hoolitsemine on teisejärguline, kuna lihtsalt inimlikult ei jää aega üle arenduste juhtimise kõrvalt."},{"$f":"'kuni 2025 detsember tegevuskava'!J63","v":"eesti.ee arendusprotsessi toimimise tagamine, 2x tehniline projektijuhi FTE"},{"$f":"'kuni 2025 detsember tegevuskava'!K63","v":"Nii toote elukaar on juhitud kui ka aktiivsed arendusprojektid."},{"$f":"'kuni 2025 detsember tegevuskava'!P63&\"/\"","v":"RES IKT (vaja juurde taotleda)/"},{"$f":"_xlfn.IFS('kuni 2025 detsember tegevuskava'!G63='kuni 2025 detsember tegevuskava'!$G$107,1,'kuni 2025 detsember tegevuskava'!G63='kuni 2025 detsember tegevuskava'!$G$108,2,'kuni 2025 detsember tegevuskava'!G63='kuni 2025 detsember tegevuskava'!$G$109,3,'kuni 2025 detsember tegevuskava'!G63='kuni 2025 detsember tegevuskava'!$G$110,4)","v":1},{"$f":"_xlfn.IFS(OR('kuni 2025 detsember tegevuskava'!P63='kuni 2025 detsember tegevuskava'!$P$107,'kuni 2025 detsember tegevuskava'!P63='kuni 2025 detsember tegevuskava'!$P$109,'kuni 2025 detsember tegevuskava'!P63='kuni 2025 detsember tegevuskava'!$P$110,'kuni 2025 detsember tegevuskava'!P63='kuni 2025 detsember tegevuskava'!$P$111),1,'kuni 2025 detsember tegevuskava'!P63='kuni 2025 detsember tegevuskava'!$P$112,2,'kuni 2025 detsember tegevuskava'!P63='kuni 2025 detsember tegevuskava'!$P$113,2,'kuni 2025 detsember tegevuskava'!P63='kuni 2025 detsember tegevuskava'!$P$108,3)","v":1},{"$f":"SUM(I167:I167)","v":{"v":52500,"d":"52,500"}},null,{"$f":"SUM(K167:K167)","v":0},null,{"$f":"SUM(M167:M167)","v":0},null,{"$f":"SUM(O167:O167)","v":{"v":52500,"d":"52,500"}}]
[{"$nulls":8},{"$f":"SUM(K167+M167+O167)","v":{"v":52500,"d":"52,500"}},{"$f":"\"(50)\"","v":"(50)"},{"$f":"'kuni 2025 detsember tegevuskava'!Y63","v":0},{"$f":"\"(50)\"","v":"(50)"},{"$f":"'kuni 2025 detsember tegevuskava'!AB63","v":0},{"$f":"\"(50)\"","v":"(50)"},{"$f":"'kuni 2025 detsember tegevuskava'!AE63","v":{"v":52500,"d":"52,500"}},{"$f":"\"(50)\"","v":"(50)"}]
[{"$nulls":8},"Summa koos käibemaksuga:"]
[{"$nulls":8},{"$f":"SUM(I170:I170)","v":{"v":52500,"d":"52,500"}},null,{"$f":"SUM(K170:K170)","v":0},null,{"$f":"SUM(M170:M170)","v":0},null,{"$f":"SUM(O170:O170)","v":{"v":52500,"d":"52,500"}}]
[{"$nulls":8},{"$f":"SUM(K170+M170+O170)","v":{"v":52500,"d":"52,500"}},{"$f":"\"(50)\"","v":"(50)"},{"$f":"'kuni 2025 detsember tegevuskava'!Y63","v":0},{"$f":"\"(50)\"","v":"(50)"},{"$f":"M167","v":0},{"$f":"\"(50)\"","v":"(50)"},{"$f":"O167","v":{"v":52500,"d":"52,500"}},{"$f":"\"(50)\"","v":"(50)"}]
[null,{"$f":"'kuni 2025 detsember tegevuskava'!A67&\"/\"&'kuni 2025 detsember tegevuskava'!B67","v":"MKM/RIA"},{"$f":"'kuni 2025 detsember tegevuskava'!I67","v":"Eesti ja Euroopa küberturvalisuse kompetents on fragmenteerunud, spetsialiste on puudu, teadlased ja ettevõtjad tegutsevad suuresti oma silodes, turul pole teenusepakkujate vahelist konkurentsi ning võrreldavaid teenuseid, küberiduettevõtted kaovad digi-idude vahele ära. Tulevikutehnoloogiate turvalisusega tegeletakse alles tagantjärgi ning tihti loodetakse välisele (sh ELi-välisele) kompetentsile, kust tellida küberturvalisuse teenuseid (koolitusi, uuringuid, ohuteavet, praktilist konsultatsiooni). Euroopa küberturvalisuse kompetentsikeskuse ja riiklike koordineerimisüksuste (mille rolli täidab RIA) võrgustik lahendab probleemi Euroopa-üleselt. Euroopa küberkompetentsikeskus on valmis riiklikke koordineerimisüksuseid edaspidigi toetama (2025+), riigieelarvelise omaosaluse olemasolul. Et Eesti koordineerimisüksus saaks täita ELi regulatsioonist tulenevaid ülesandeid ja Eesti küberkompetents kasvaks, on vaja täiendavat püsirahastust-omaosalust aastateks 2025+"},{"$f":"'kuni 2025 detsember tegevuskava'!J67","v":"Euroopa küberkompetentsikeskuse Eesti koordinatsioonikeskuse jätkusuutlikkuse tagamise tegevus (omaosalus ELi projektist 50% taotlemisel)"},{"$f":"'kuni 2025 detsember tegevuskava'!K67","v":"Vajadus on 2025-2028. Kululiigid: personalikulu, toetused kolmandatele osapooltele (küberpööre EASiga, küberiduettevõtted), koolitused ja treeningud, teadmussiirdeprojektid, ürituste korraldamise kulu. Tulemuseks järgmised sihid, et senisest enam ettevõtteid pakub ja tarbib küberturvalisuse teenuseid; digitaliseerivatel ja uusi tehnoloogiaid rakendavatel ettevõtetel on juhendeid turvalisuse osas; et senisest enam naisi ja tüdrukuid osaleb küberturvalisuse õppes (spetsialistidest kuni juhtideni), et võtmetähtsusega mitte-IT valdkondade väljaõppes (ärijuhid, ettevõtjad, õpetajad, avaliku halduse, sotsiaalia, aga ka loomemajanduse ja põllumajanduse spetsialistid) on integreeritud küberturvalisuse õpiväljundid, et senisest enam konverteeritakse küberturvalisuse akadeemilise teadustöö tulemeid iduettevõtete teenusteks ja toodeteks, et senisest enam Eesti ettevõtteid ja teadusasutusi osaleb küberturvalisuse Euroopa projektivoorudes ning on sealt saanud positiivse rahastusotsuse"},{"$f":"'kuni 2025 detsember tegevuskava'!P67&\"/\"","v":"Muu rahastus/"},{"$f":"_xlfn.IFS('kuni 2025 detsember tegevuskava'!G67='kuni 2025 detsember tegevuskava'!$G$107,1,'kuni 2025 detsember tegevuskava'!G67='kuni 2025 detsember tegevuskava'!$G$108,2,'kuni 2025 detsember tegevuskava'!G67='kuni 2025 detsember tegevuskava'!$G$109,3,'kuni 2025 detsember tegevuskava'!G67='kuni 2025 detsember tegevuskava'!$G$110,4)","v":2},{"$f":"_xlfn.IFS(OR('kuni 2025 detsember tegevuskava'!P67='kuni 2025 detsember tegevuskava'!$P$107,'kuni 2025 detsember tegevuskava'!P67='kuni 2025 detsember tegevuskava'!$P$109,'kuni 2025 detsember tegevuskava'!P67='kuni 2025 detsember tegevuskava'!$P$110,'kuni 2025 detsember tegevuskava'!P67='kuni 2025 detsember tegevuskava'!$P$111),1,'kuni 2025 detsember tegevuskava'!P67='kuni 2025 detsember tegevuskava'!$P$112,2,'kuni 2025 detsember tegevuskava'!P67='kuni 2025 detsember tegevuskava'!$P$113,2,'kuni 2025 detsember tegevuskava'!P67='kuni 2025 detsember tegevuskava'!$P$108,3)","v":3},{"$f":"SUM(I172:I173)","v":{"v":683625,"d":"683,625"}},null,{"$f":"SUM(K172:K173)","v":0},null,{"$f":"SUM(M172:M173)","v":0},null,{"$f":"SUM(O172:O173)","v":{"v":683625,"d":"683,625"}}]
[{"$nulls":8},{"$f":"SUM(K172+M172+O172)","v":{"v":171000,"d":"171,000"}},{"$f":"\"(50)\"","v":"(50)"},{"$f":"'kuni 2025 detsember tegevuskava'!Y67","v":0},{"$f":"\"(50)\"","v":"(50)"},{"$f":"'kuni 2025 detsember tegevuskava'!AB67","v":0},{"$f":"\"(50)\"","v":"(50)"},{"$f":"'kuni 2025 detsember tegevuskava'!AE67","v":{"v":171000,"d":"171,000"}},{"$f":"\"(50)\"","v":"(50)"}]
[{"$nulls":8},{"$f":"SUM(K173+M173+O173)","v":{"v":512625,"d":"512,625"}},{"$f":"\"(55)\"","v":"(55)"},{"$f":"'kuni 2025 detsember tegevuskava'!Z67","v":0},{"$f":"\"(55)\"","v":"(55)"},{"$f":"'kuni 2025 detsember tegevuskava'!AC67","v":0},{"$f":"\"(55)\"","v":"(55)"},{"$f":"'kuni 2025 detsember tegevuskava'!AF67","v":{"v":512625,"d":"512,625"}},{"$f":"\"(55)\"","v":"(55)"}]
[{"$nulls":8},"Summa koos käibemaksuga:"]
[{"$nulls":8},{"$f":"SUM(I176:I177)","v":{"v":796402.5,"d":"796,403"}},null,{"$f":"SUM(K176:K177)","v":0},null,{"$f":"SUM(M176:M177)","v":0},null,{"$f":"SUM(O176:O177)","v":{"v":796402.5,"d":"796,403"}}]
[{"$nulls":8},{"$f":"SUM(K176+M176+O176)","v":{"v":171000,"d":"171,000"}},{"$f":"\"(50)\"","v":"(50)"},{"$f":"K172","v":0},{"$f":"\"(50)\"","v":"(50)"},{"$f":"M172","v":0},{"$f":"\"(50)\"","v":"(50)"},{"$f":"O172","v":{"v":171000,"d":"171,000"}},{"$f":"\"(50)\"","v":"(50)"}]
[{"$nulls":8},{"$f":"SUM(K177+M177+O177)","v":{"v":625402.5,"d":"625,403"}},{"$f":"\"(55)\"","v":"(55)"},{"$f":"SUM(K173*1.2)","v":0},{"$f":"\"(55)\"","v":"(55)"},{"$f":"SUM(M173*1.22)","v":0},{"$f":"\"(55)\"","v":"(55)"},{"$f":"SUM(O173*1.22)","v":{"v":625402.5,"d":"625,403"}},{"$f":"\"(55)\"","v":"(55)"}]
[null,{"$f":"'kuni 2025 detsember tegevuskava'!A70&\"/\"&'kuni 2025 detsember tegevuskava'!B70","v":"MKM/RIA"},{"$f":"'kuni 2025 detsember tegevuskava'!I70","v":"Tänane võimekus ei ole piisav RS-süsteemide haldamiseks ei tava- ega kriisiolukorras. "},{"$f":"'kuni 2025 detsember tegevuskava'!J70","v":"Kriisivalmiduse tagamine RS-süsteemides"},{"$f":"'kuni 2025 detsember tegevuskava'!K70","v":"• Tekib 24/7 võimekus kriisihalduseks lühikese perioodi vältel.\n• Töötlussüsteemid on hallatud, intsidente ei esine.\n• Tagatud on RIA kui küberturvalisuse kompetentsikeskuse töö kriisiolukorras, sh operatiivinfo vahetamine partneritega."},{"$f":"'kuni 2025 detsember tegevuskava'!P70&\"/\"","v":"RES IKT (vaja juurde taotleda)/"},{"$f":"_xlfn.IFS('kuni 2025 detsember tegevuskava'!G70='kuni 2025 detsember tegevuskava'!$G$107,1,'kuni 2025 detsember tegevuskava'!G70='kuni 2025 detsember tegevuskava'!$G$108,2,'kuni 2025 detsember tegevuskava'!G70='kuni 2025 detsember tegevuskava'!$G$109,3,'kuni 2025 detsember tegevuskava'!G70='kuni 2025 detsember tegevuskava'!$G$110,4)","v":2},{"$f":"_xlfn.IFS(OR('kuni 2025 detsember tegevuskava'!P70='kuni 2025 detsember tegevuskava'!$P$107,'kuni 2025 detsember tegevuskava'!P70='kuni 2025 detsember tegevuskava'!$P$109,'kuni 2025 detsember tegevuskava'!P70='kuni 2025 detsember tegevuskava'!$P$110,'kuni 2025 detsember tegevuskava'!P70='kuni 2025 detsember tegevuskava'!$P$111),1,'kuni 2025 detsember tegevuskava'!P70='kuni 2025 detsember tegevuskava'!$P$112,2,'kuni 2025 detsember tegevuskava'!P70='kuni 2025 detsember tegevuskava'!$P$113,2,'kuni 2025 detsember tegevuskava'!P70='kuni 2025 detsember tegevuskava'!$P$108,3)","v":1},{"$f":"SUM(I179:I179)","v":{"v":222750,"d":"222,750"}},null,{"$f":"SUM(K179:K179)","v":0},null,{"$f":"SUM(M179:M179)","v":0},null,{"$f":"SUM(O179:O179)","v":{"v":222750,"d":"222,750"}}]
[{"$nulls":8},{"$f":"SUM(K179+M179+O179)","v":{"v":222750,"d":"222,750"}},{"$f":"\"(50)\"","v":"(50)"},{"$f":"'kuni 2025 detsember tegevuskava'!Y70","v":0},{"$f":"\"(50)\"","v":"(50)"},{"$f":"'kuni 2025 detsember tegevuskava'!AB70","v":0},{"$f":"\"(50)\"","v":"(50)"},{"$f":"'kuni 2025 detsember tegevuskava'!AE70","v":{"v":222750,"d":"222,750"}},{"$f":"\"(50)\"","v":"(50)"}]
[{"$nulls":8},"Summa koos käibemaksuga:"]
[{"$nulls":8},{"$f":"SUM(I182:I182)","v":{"v":222750,"d":"222,750"}},null,{"$f":"SUM(K182:K182)","v":0},null,{"$f":"SUM(M182:M182)","v":0},null,{"$f":"SUM(O182:O182)","v":{"v":222750,"d":"222,750"}}]
[{"$nulls":8},{"$f":"SUM(K182+M182+O182)","v":{"v":222750,"d":"222,750"}},{"$f":"\"(50)\"","v":"(50)"},{"$f":"K179","v":0},{"$f":"\"(50)\"","v":"(50)"},{"$f":"M179","v":0},{"$f":"\"(50)\"","v":"(50)"},{"$f":"O179","v":{"v":222750,"d":"222,750"}},{"$f":"\"(50)\"","v":"(50)"}]
[null,{"$f":"'kuni 2025 detsember tegevuskava'!A77&\"/\"&'kuni 2025 detsember tegevuskava'!B77","v":"MKM/DAO"},{"$f":"'kuni 2025 detsember tegevuskava'!I77","v":"SF rahastusest väljumine. Riigiasutused ja kohalikud omavalitsused on loonud teenistujate ning laiema avalikkuse koolitamise eesmärgil e-kursuseid, mis vajavad kättesaadavuseks veebiplatvormi. Keskse ning turvalist autentimist võimaldava platvormi olemasolu aitab hoida kokku ressursse, mis vastasel juhul kuluks sarnaste platvormide paralleelsele ülalhoiule asutuste poolt. Kui iga asutus looks eraldiseisva e-õppe platvormi, siis hinnanguline kulu aastas asutuse kohta oleks 40 000 eurot aastas. (Liitunuid asutusi 6, 2024 liituda soovijaid 7). Rahastuse puudumisel tuleb keskkond sulgeda, mis toob olemasolevate e-kursuste ümberkolimise vajaduse, kuid riigiülese platvormi puudumisel ei ole kursuseid kuhugi majutada. Lisaks olemasolevate e-kursuste majutamise probleemile tuleb taas hakata rohkem klassiruumi koolitusi korraldama, mis ei ole kuluefektiivne. "},{"$f":"'kuni 2025 detsember tegevuskava'!J77","v":"Digiriigi Akadeemia kui avaliku sektori keskse e-õppe platvormi ülalhoid ning käideldavuse parandamine"},{"$f":"'kuni 2025 detsember tegevuskava'!K77","v":"2025-2028 - varem SF-st arendatu ülalhoid ning hooldamine (platvormi hoolduse täisteenus ühelt IT-majalt, sh server, Kubernetes, kasutajalitsentsid e-kursuste loomiseks, tootejuhi, süsteemiadministraatori, klienditoe spetsialisti ja arendaja palgafond). Planeeritud tegevused võimaldavad tagada platvormi käideldavuse ja kvaliteedi kasvava kliendibaasi tingimustes (lisanduvad asutused ning kasutajad). Läbi ressursside kokkuhoiu, paindlikkuse ja strateegiliselt oluliste teadmiste koondamise, toetab Digiriigi Akadeemia ühtse standardi abil avaliku sektori töötajate arendamist. "},{"$f":"'kuni 2025 detsember tegevuskava'!P77&\"/\"","v":"RES IKT (vaja juurde taotleda)/"},{"$f":"_xlfn.IFS('kuni 2025 detsember tegevuskava'!G77='kuni 2025 detsember tegevuskava'!$G$107,1,'kuni 2025 detsember tegevuskava'!G77='kuni 2025 detsember tegevuskava'!$G$108,2,'kuni 2025 detsember tegevuskava'!G77='kuni 2025 detsember tegevuskava'!$G$109,3,'kuni 2025 detsember tegevuskava'!G77='kuni 2025 detsember tegevuskava'!$G$110,4)","v":3},{"$f":"_xlfn.IFS(OR('kuni 2025 detsember tegevuskava'!P77='kuni 2025 detsember tegevuskava'!$P$107,'kuni 2025 detsember tegevuskava'!P77='kuni 2025 detsember tegevuskava'!$P$109,'kuni 2025 detsember tegevuskava'!P77='kuni 2025 detsember tegevuskava'!$P$110,'kuni 2025 detsember tegevuskava'!P77='kuni 2025 detsember tegevuskava'!$P$111),1,'kuni 2025 detsember tegevuskava'!P77='kuni 2025 detsember tegevuskava'!$P$112,2,'kuni 2025 detsember tegevuskava'!P77='kuni 2025 detsember tegevuskava'!$P$113,2,'kuni 2025 detsember tegevuskava'!P77='kuni 2025 detsember tegevuskava'!$P$108,3)","v":1},{"$f":"SUM(I184:I186)","v":{"v":150944,"d":"150,944"}},null,{"$f":"SUM(K184:K186)","v":0},null,{"$f":"SUM(M184:M186)","v":0},null,{"$f":"SUM(O184:O186)","v":{"v":150944,"d":"150,944"}}]
[{"$nulls":8},{"$f":"SUM(K184+M184+O184)","v":0},{"$f":"\"(15)\"","v":"(15)"},{"$f":"'kuni 2025 detsember tegevuskava'!X77","v":0},{"$f":"\"(15)\"","v":"(15)"},{"$f":"'kuni 2025 detsember tegevuskava'!AA77","v":0},{"$f":"\"(15)\"","v":"(15)"},{"$f":"'kuni 2025 detsember tegevuskava'!AD77","v":0},{"$f":"\"(15)\"","v":"(15)"}]
[{"$nulls":8},{"$f":"SUM(K185+M185+O185)","v":{"v":74904,"d":"74,904"}},{"$f":"\"(50)\"","v":"(50)"},{"$f":"'kuni 2025 detsember tegevuskava'!Y77","v":0},{"$f":"\"(50)\"","v":"(50)"},{"$f":"'kuni 2025 detsember tegevuskava'!AB77","v":0},{"$f":"\"(50)\"","v":"(50)"},{"$f":"'kuni 2025 detsember tegevuskava'!AE77","v":{"v":74904,"d":"74,904"}},{"$f":"\"(50)\"","v":"(50)"}]
[{"$nulls":8},{"$f":"SUM(K186+M186+O186)","v":{"v":76040,"d":"76,040"}},{"$f":"\"(55)\"","v":"(55)"},{"$f":"'kuni 2025 detsember tegevuskava'!Z77","v":0},{"$f":"\"(55)\"","v":"(55)"},{"$f":"'kuni 2025 detsember tegevuskava'!AC77","v":0},{"$f":"\"(55)\"","v":"(55)"},{"$f":"'kuni 2025 detsember tegevuskava'!AF77","v":{"v":76040,"d":"76,040"}},{"$f":"\"(55)\"","v":"(55)"}]
[{"$nulls":8},"Summa koos käibemaksuga:"]
[{"$nulls":8},{"$f":"SUM(I189:I191)","v":{"v":167672.8,"d":"167,673"}},null,{"$f":"SUM(K189:K191)","v":0},null,{"$f":"SUM(M189:M191)","v":0},null,{"$f":"SUM(O189:O191)","v":{"v":167672.8,"d":"167,673"}}]
[{"$nulls":8},{"$f":"SUM(K189+M189+O189)","v":0},{"$f":"\"(15)\"","v":"(15)"},{"$f":"SUM(K184*1.2)","v":0},{"$f":"\"(15)\"","v":"(15)"},{"$f":"SUM(M184*1.22)","v":0},{"$f":"\"(15)\"","v":"(15)"},{"$f":"SUM(O184*1.22)","v":0},{"$f":"\"(15)\"","v":"(15)"}]
[{"$nulls":8},{"$f":"SUM(K190+M190+O190)","v":{"v":74904,"d":"74,904"}},{"$f":"\"(50)\"","v":"(50)"},{"$f":"K185","v":0},{"$f":"\"(50)\"","v":"(50)"},{"$f":"M185","v":0},{"$f":"\"(50)\"","v":"(50)"},{"$f":"O185","v":{"v":74904,"d":"74,904"}},{"$f":"\"(50)\"","v":"(50)"}]
[{"$nulls":8},{"$f":"SUM(K191+M191+O191)","v":{"v":92768.8,"d":"92,769"}},{"$f":"\"(55)\"","v":"(55)"},{"$f":"SUM(K186*1.2)","v":0},{"$f":"\"(55)\"","v":"(55)"},{"$f":"SUM(M186*1.22)","v":0},{"$f":"\"(55)\"","v":"(55)"},{"$f":"SUM(O186*1.22)","v":{"v":92768.8,"d":"92,769"}},{"$f":"\"(55)\"","v":"(55)"}]
[null,{"$f":"'kuni 2025 detsember tegevuskava'!A79&\"/\"&'kuni 2025 detsember tegevuskava'!B79","v":"MKM/RKO"},{"$f":"'kuni 2025 detsember tegevuskava'!I79","v":"Rahastuse puudumisel võib tekkida olukord, kus küberturvalisuse strateegiad ja otsused tuginevad pelgalt isiklikele arvamustele, mitte põhjalikele teaduslikele uuringutele ja analüüsidele. RRFi rahastusest väljumine: Vajadus on hoida silma peal edaspidigi uutel tehnoloogiatel, uutel ohtudel ja nende jaoks vajalikke meetmeid rakendada"},{"$f":"'kuni 2025 detsember tegevuskava'!J79","v":"Riigisektori seisukohalt strateegiliselt oluliste uuringute ja analüüside tellimine, et tagada valdkonna süsteemne areng "},{"$f":"'kuni 2025 detsember tegevuskava'!K79","v":"Riigisektoril on kõrge teadlikkus uusimatest tehnoloogiatest, uutest ohtudest ja vajalikest meetmetest ohtude maandamiseks."},{"$f":"'kuni 2025 detsember tegevuskava'!P79&\"/\"","v":"RES IKT (vaja juurde taotleda)/"},{"$f":"_xlfn.IFS('kuni 2025 detsember tegevuskava'!G79='kuni 2025 detsember tegevuskava'!$G$107,1,'kuni 2025 detsember tegevuskava'!G79='kuni 2025 detsember tegevuskava'!$G$108,2,'kuni 2025 detsember tegevuskava'!G79='kuni 2025 detsember tegevuskava'!$G$109,3,'kuni 2025 detsember tegevuskava'!G79='kuni 2025 detsember tegevuskava'!$G$110,4)","v":2},{"$f":"_xlfn.IFS(OR('kuni 2025 detsember tegevuskava'!P79='kuni 2025 detsember tegevuskava'!$P$107,'kuni 2025 detsember tegevuskava'!P79='kuni 2025 detsember tegevuskava'!$P$109,'kuni 2025 detsember tegevuskava'!P79='kuni 2025 detsember tegevuskava'!$P$110,'kuni 2025 detsember tegevuskava'!P79='kuni 2025 detsember tegevuskava'!$P$111),1,'kuni 2025 detsember tegevuskava'!P79='kuni 2025 detsember tegevuskava'!$P$112,2,'kuni 2025 detsember tegevuskava'!P79='kuni 2025 detsember tegevuskava'!$P$113,2,'kuni 2025 detsember tegevuskava'!P79='kuni 2025 detsember tegevuskava'!$P$108,3)","v":1},{"$f":"SUM(I193:I193)","v":{"v":100000,"d":"100,000"}},null,{"$f":"SUM(K193:K193)","v":0},null,{"$f":"SUM(M193:M193)","v":0},null,{"$f":"SUM(O193:O193)","v":{"v":100000,"d":"100,000"}}]
[{"$nulls":8},{"$f":"SUM(K193+M193+O193)","v":{"v":100000,"d":"100,000"}},{"$f":"\"(55)\"","v":"(55)"},{"$f":"'kuni 2025 detsember tegevuskava'!Z79","v":0},{"$f":"\"(55)\"","v":"(55)"},{"$f":"'kuni 2025 detsember tegevuskava'!AC79","v":0},{"$f":"\"(55)\"","v":"(55)"},{"$f":"'kuni 2025 detsember tegevuskava'!AF79","v":{"v":100000,"d":"100,000"}},{"$f":"\"(55)\"","v":"(55)"}]
[{"$nulls":8},"Summa koos käibemaksuga:"]
[{"$nulls":8},{"$f":"SUM(I196:I196)","v":{"v":122000,"d":"122,000"}},null,{"$f":"SUM(K196:K196)","v":0},null,{"$f":"SUM(M196:M196)","v":0},null,{"$f":"SUM(O196:O196)","v":{"v":122000,"d":"122,000"}}]
[{"$nulls":8},{"$f":"SUM(K196+M196+O196)","v":{"v":122000,"d":"122,000"}},{"$f":"\"(55)\"","v":"(55)"},{"$f":"SUM(K193*1.2)","v":0},{"$f":"\"(55)\"","v":"(55)"},{"$f":"SUM(M193*1.22)","v":0},{"$f":"\"(55)\"","v":"(55)"},{"$f":"SUM(O193*1.22)","v":{"v":122000,"d":"122,000"}},{"$f":"\"(55)\"","v":"(55)"}]
[null,{"$f":"'kuni 2025 detsember tegevuskava'!A80&\"/\"&'kuni 2025 detsember tegevuskava'!B80","v":"MKM/RKO"},{"$f":"'kuni 2025 detsember tegevuskava'!I80","v":"Rahastuse puudumisel ei pruugi digitaliseerimisega seotud riskid piisavalt maandatud saama. RRFi rahastusest väljumine: vajadus on parandada avaliku sektori, sh KOVide, teadlikkust riski- ja turbejuhtimisest"},{"$f":"'kuni 2025 detsember tegevuskava'!J80","v":"Töötoad või koolitused avalikule sektorile, sh KOVidele, riski- ja turbejuhtimise tõhustamiseks, varukoopiate taastamise testimiseks"},{"$f":"'kuni 2025 detsember tegevuskava'!K80","v":"Digitaliseerimisega seotud riskid on maandatud"},{"$f":"'kuni 2025 detsember tegevuskava'!P80&\"/\"","v":"RES IKT (vaja juurde taotleda)/"},{"$f":"_xlfn.IFS('kuni 2025 detsember tegevuskava'!G80='kuni 2025 detsember tegevuskava'!$G$107,1,'kuni 2025 detsember tegevuskava'!G80='kuni 2025 detsember tegevuskava'!$G$108,2,'kuni 2025 detsember tegevuskava'!G80='kuni 2025 detsember tegevuskava'!$G$109,3,'kuni 2025 detsember tegevuskava'!G80='kuni 2025 detsember tegevuskava'!$G$110,4)","v":2},{"$f":"_xlfn.IFS(OR('kuni 2025 detsember tegevuskava'!P80='kuni 2025 detsember tegevuskava'!$P$107,'kuni 2025 detsember tegevuskava'!P80='kuni 2025 detsember tegevuskava'!$P$109,'kuni 2025 detsember tegevuskava'!P80='kuni 2025 detsember tegevuskava'!$P$110,'kuni 2025 detsember tegevuskava'!P80='kuni 2025 detsember tegevuskava'!$P$111),1,'kuni 2025 detsember tegevuskava'!P80='kuni 2025 detsember tegevuskava'!$P$112,2,'kuni 2025 detsember tegevuskava'!P80='kuni 2025 detsember tegevuskava'!$P$113,2,'kuni 2025 detsember tegevuskava'!P80='kuni 2025 detsember tegevuskava'!$P$108,3)","v":1},{"$f":"SUM(I198:I198)","v":{"v":25000,"d":"25,000"}},null,{"$f":"SUM(K198:K198)","v":0},null,{"$f":"SUM(M198:M198)","v":0},null,{"$f":"SUM(O198:O198)","v":{"v":25000,"d":"25,000"}}]
[{"$nulls":8},{"$f":"SUM(K198+M198+O198)","v":{"v":25000,"d":"25,000"}},{"$f":"\"(55)\"","v":"(55)"},{"$f":"'kuni 2025 detsember tegevuskava'!Z80","v":0},{"$f":"\"(55)\"","v":"(55)"},{"$f":"'kuni 2025 detsember tegevuskava'!AC80","v":0},{"$f":"\"(55)\"","v":"(55)"},{"$f":"'kuni 2025 detsember tegevuskava'!AF80","v":{"v":25000,"d":"25,000"}},{"$f":"\"(55)\"","v":"(55)"}]
[{"$nulls":8},"Summa koos käibemaksuga:"]
[{"$nulls":8},{"$f":"SUM(I201:I201)","v":{"v":30500,"d":"30,500"}},null,{"$f":"SUM(K201:K201)","v":0},null,{"$f":"SUM(M201:M201)","v":0},null,{"$f":"SUM(O201:O201)","v":{"v":30500,"d":"30,500"}}]
[{"$nulls":8},{"$f":"SUM(K201+M201+O201)","v":{"v":30500,"d":"30,500"}},{"$f":"\"(55)\"","v":"(55)"},{"$f":"SUM(K198*1.2)","v":0},{"$f":"\"(55)\"","v":"(55)"},{"$f":"SUM(M198*1.22)","v":0},{"$f":"\"(55)\"","v":"(55)"},{"$f":"SUM(O198*1.22)","v":{"v":30500,"d":"30,500"}},{"$f":"\"(55)\"","v":"(55)"}]
[null,{"$f":"'kuni 2025 detsember tegevuskava'!A81&\"/\"&'kuni 2025 detsember tegevuskava'!B81","v":"MKM/RKO"},{"$f":"'kuni 2025 detsember tegevuskava'!I81","v":"Rahastuse puudumisel MKM RKO enam proaktiivse lähenemisega tulevikutehnoloogiate, tehnoloogiliste ohtude hindamise, tehnoloogiliste riskide halduse korraldamisega riigis, küber- ja riikliku ohupildi loomisega, arendustegevuste/uuringute lähteülesannete ja seisukohtade võtmisega ei tegele kuna puuduvad inimesed. Võib tekkida olukord, kus küberturvalisuse strateegiad ja otsused tuginevad pelgalt isiklikele arvamustele, mitte põhjalikele teaduslikele uuringutele ja analüüsidele, samuti ei ole EL-i teemad piisaval määral ülevõetud siseriiklikul tasemel. Näiteks EL tasemel kehtestatakse sertifitseerimisskeem, mis võib Eestis arendatud ja kasutusele võetud digitoote või üldse laiemalt EE “digiökosüsteemi” mitte sobivaks muuta (nt ID-kaartide sertifikaadid ja eIDAS teema). Osalisel rahastusel tuleb valida, millega riigiüleselt tegeletakse ja millega mitte."},{"$f":"'kuni 2025 detsember tegevuskava'!J81","v":"Proaktiivne valdkonna juhtimine, sh tehnoloogiate, ohtude hindamine, sh tulevikutehnoloogiate uuringute, analüüside jm projektijuhtimine, tehnoloogiliste meetmete väljatöötamine, infoturbearengu seire, küpsushindamine, kriisijuhtimise tugi. "},{"$f":"'kuni 2025 detsember tegevuskava'!K81","v":"Proaktiivne valdkonna juhtimine, mis tagab digiteenuste turvalist arendamist ja kasutuselevõtmist. Tehnoloogiliste ohtude hindamine, tehnoloogiliste riskide halduse korraldamine riigis, küber- ja riikliku ohupildi loomine ja võimeid adresseerivate tehnoloogiliste meetmete väljatöötamine,  infoturbe arengu seire ja küpsushindamine, kriisijuhtimise tugi. Proaktiivne lähenemine küberturvalisuse strateegiate loomiseks, tulevikukindluse tagamiseks, mis põhineb põhjalikel teaduslikel uuringutel ja analüüsidel, juhendmaterjalide ja analüüside läbiviimise tugi. "},{"$f":"'kuni 2025 detsember tegevuskava'!P81&\"/\"","v":"RES IKT (vaja juurde taotleda)/"},{"$f":"_xlfn.IFS('kuni 2025 detsember tegevuskava'!G81='kuni 2025 detsember tegevuskava'!$G$107,1,'kuni 2025 detsember tegevuskava'!G81='kuni 2025 detsember tegevuskava'!$G$108,2,'kuni 2025 detsember tegevuskava'!G81='kuni 2025 detsember tegevuskava'!$G$109,3,'kuni 2025 detsember tegevuskava'!G81='kuni 2025 detsember tegevuskava'!$G$110,4)","v":2},{"$f":"_xlfn.IFS(OR('kuni 2025 detsember tegevuskava'!P81='kuni 2025 detsember tegevuskava'!$P$107,'kuni 2025 detsember tegevuskava'!P81='kuni 2025 detsember tegevuskava'!$P$109,'kuni 2025 detsember tegevuskava'!P81='kuni 2025 detsember tegevuskava'!$P$110,'kuni 2025 detsember tegevuskava'!P81='kuni 2025 detsember tegevuskava'!$P$111),1,'kuni 2025 detsember tegevuskava'!P81='kuni 2025 detsember tegevuskava'!$P$112,2,'kuni 2025 detsember tegevuskava'!P81='kuni 2025 detsember tegevuskava'!$P$113,2,'kuni 2025 detsember tegevuskava'!P81='kuni 2025 detsember tegevuskava'!$P$108,3)","v":1},{"$f":"SUM(I203:I203)","v":{"v":150000,"d":"150,000"}},null,{"$f":"SUM(K203:K203)","v":0},null,{"$f":"SUM(M203:M203)","v":0},null,{"$f":"SUM(O203:O203)","v":{"v":150000,"d":"150,000"}}]
[{"$nulls":8},{"$f":"SUM(K203+M203+O203)","v":{"v":150000,"d":"150,000"}},{"$f":"\"(50)\"","v":"(50)"},{"$f":"'kuni 2025 detsember tegevuskava'!Y81","v":0},{"$f":"\"(50)\"","v":"(50)"},{"$f":"'kuni 2025 detsember tegevuskava'!AB81","v":0},{"$f":"\"(50)\"","v":"(50)"},{"$f":"'kuni 2025 detsember tegevuskava'!AE81","v":{"v":150000,"d":"150,000"}},{"$f":"\"(50)\"","v":"(50)"}]
[{"$nulls":8},"Summa koos käibemaksuga:"]
[{"$nulls":8},{"$f":"SUM(I206:I206)","v":{"v":150000,"d":"150,000"}},null,{"$f":"SUM(K206:K206)","v":0},null,{"$f":"SUM(M206:M206)","v":0},null,{"$f":"SUM(O206:O206)","v":{"v":150000,"d":"150,000"}}]
[{"$nulls":8},{"$f":"SUM(K206+M206+O206)","v":{"v":150000,"d":"150,000"}},{"$f":"\"(50)\"","v":"(50)"},{"$f":"K203","v":0},{"$f":"\"(50)\"","v":"(50)"},{"$f":"M203","v":0},{"$f":"\"(50)\"","v":"(50)"},{"$f":"O203","v":{"v":150000,"d":"150,000"}},{"$f":"\"(50)\"","v":"(50)"}]
[null,{"$f":"'kuni 2025 detsember tegevuskava'!A82&\"/\"&'kuni 2025 detsember tegevuskava'!B82","v":"MKM/DAO"},{"$f":"'kuni 2025 detsember tegevuskava'!I82","v":"Andmesaatkonna rendikulud koos elektriga on MKM kanda. Kuna ettenähtud eelarvest jäi puudu MKM-il 2023, siis 2024 saime ühekordselt raha juurde, aga tulevikuks oleks vaja püsikulude katmiseks tõsta olemasolevat eelarvet. Kulu suureneb, kuna elektrihind on läinud aastatega kallimaks ja lisaks paigaldatakse 2024 aasta rohkem riistvra saatkonna ruumidesse, mis kõiks tarbivad voolu. Andmesaatkonna teenuse kulusid teistelt haldusaladelt ei küsita ja seda makstakse MKM poolt keskselt kinni.\n\nMis juhtub, kui raha ei saa - Riistvara on ostetud eurorahade eest ja peab olema töös veel järgnevad viis aastat. Kui me ei suuda maksta halduskulusi näiteks elektri arveid, ei saa ka teenused püsti olla nende serverite peal."},{"$f":"'kuni 2025 detsember tegevuskava'!J82","v":"Andmesaatkonna püsikulude suurendamiseks kulude kate"},{"$f":"'kuni 2025 detsember tegevuskava'!K82","v":"Andmesaatkonnal toimub 2024 oluline riistvra suurendamine, mis tähendab, et põüsikulud kasvavad. Seadmed tarbivad rohkem vool näiteks."},{"$f":"'kuni 2025 detsember tegevuskava'!P82&\"/\"","v":"RES IKT (vaja juurde taotleda)/"},{"$f":"_xlfn.IFS('kuni 2025 detsember tegevuskava'!G82='kuni 2025 detsember tegevuskava'!$G$107,1,'kuni 2025 detsember tegevuskava'!G82='kuni 2025 detsember tegevuskava'!$G$108,2,'kuni 2025 detsember tegevuskava'!G82='kuni 2025 detsember tegevuskava'!$G$109,3,'kuni 2025 detsember tegevuskava'!G82='kuni 2025 detsember tegevuskava'!$G$110,4)","v":1},{"$f":"_xlfn.IFS(OR('kuni 2025 detsember tegevuskava'!P82='kuni 2025 detsember tegevuskava'!$P$107,'kuni 2025 detsember tegevuskava'!P82='kuni 2025 detsember tegevuskava'!$P$109,'kuni 2025 detsember tegevuskava'!P82='kuni 2025 detsember tegevuskava'!$P$110,'kuni 2025 detsember tegevuskava'!P82='kuni 2025 detsember tegevuskava'!$P$111),1,'kuni 2025 detsember tegevuskava'!P82='kuni 2025 detsember tegevuskava'!$P$112,2,'kuni 2025 detsember tegevuskava'!P82='kuni 2025 detsember tegevuskava'!$P$113,2,'kuni 2025 detsember tegevuskava'!P82='kuni 2025 detsember tegevuskava'!$P$108,3)","v":1},{"$f":"SUM(I208:I208)","v":{"v":100000,"d":"100,000"}},null,{"$f":"SUM(K208:K208)","v":0},null,{"$f":"SUM(M208:M208)","v":0},null,{"$f":"SUM(O208:O208)","v":{"v":100000,"d":"100,000"}}]
[{"$nulls":8},{"$f":"SUM(K208+M208+O208)","v":{"v":100000,"d":"100,000"}},{"$f":"\"(55)\"","v":"(55)"},{"$f":"'kuni 2025 detsember tegevuskava'!Z82","v":0},{"$f":"\"(55)\"","v":"(55)"},{"$f":"'kuni 2025 detsember tegevuskava'!AC82","v":0},{"$f":"\"(55)\"","v":"(55)"},{"$f":"'kuni 2025 detsember tegevuskava'!AF82","v":{"v":100000,"d":"100,000"}},{"$f":"\"(55)\"","v":"(55)"}]
[{"$nulls":8},"Summa koos käibemaksuga:"]
[{"$nulls":8},{"$f":"SUM(I211:I211)","v":{"v":122000,"d":"122,000"}},null,{"$f":"SUM(K211:K211)","v":0},null,{"$f":"SUM(M211:M211)","v":0},null,{"$f":"SUM(O211:O211)","v":{"v":122000,"d":"122,000"}}]
[{"$nulls":8},{"$f":"SUM(K211+M211+O211)","v":{"v":122000,"d":"122,000"}},{"$f":"\"(55)\"","v":"(55)"},{"$f":"SUM(K208*1.2)","v":0},{"$f":"\"(55)\"","v":"(55)"},{"$f":"SUM(M208*1.22)","v":0},{"$f":"\"(55)\"","v":"(55)"},{"$f":"SUM(O208*1.22)","v":{"v":122000,"d":"122,000"}},{"$f":"\"(55)\"","v":"(55)"}]
[null,{"$f":"'kuni 2025 detsember tegevuskava'!A86&\"/\"&'kuni 2025 detsember tegevuskava'!B86","v":"MKM/KEMIT"},{"$f":"'kuni 2025 detsember tegevuskava'!I86","v":"Teenused aeglased, kliendile ebamugavad, automatiseerimata; süsteemides ebapiisav funktsionaalsus ja  esineb palju vigu"},{"$f":"'kuni 2025 detsember tegevuskava'!J86","v":"ET (e-teenuste) iseteeninduskeskkond - I etapp sisaldab kõiki vajalikke tegevusi  terviklikuks lahenduseks.*  \nET KLIENDITOODE: arendada terviklik funktsionaalsus loataotluse esitamiseks (sh uus kasutajateekonna disain); kaetud on teenused JVIS, MTR ja NMB infosüsteemidest ja uued teenused (sh NMR)"},{"$f":"'kuni 2025 detsember tegevuskava'!K86","v":"Majandustegevusteateid ja loataotlusi on võimalik esitada e-teenuste kliendikeskkonnas, vähenenud on klientide vajadus täiendava konsultatsiooni järele teenuste kasutamisel, klientide rahulolu langustrend on peatunud"},{"$f":"'kuni 2025 detsember tegevuskava'!P86&\"/\"","v":"SF 21-27 (taotletav raha)/"},{"$f":"_xlfn.IFS('kuni 2025 detsember tegevuskava'!G86='kuni 2025 detsember tegevuskava'!$G$107,1,'kuni 2025 detsember tegevuskava'!G86='kuni 2025 detsember tegevuskava'!$G$108,2,'kuni 2025 detsember tegevuskava'!G86='kuni 2025 detsember tegevuskava'!$G$109,3,'kuni 2025 detsember tegevuskava'!G86='kuni 2025 detsember tegevuskava'!$G$110,4)","v":1},{"$f":"_xlfn.IFS(OR('kuni 2025 detsember tegevuskava'!P86='kuni 2025 detsember tegevuskava'!$P$107,'kuni 2025 detsember tegevuskava'!P86='kuni 2025 detsember tegevuskava'!$P$109,'kuni 2025 detsember tegevuskava'!P86='kuni 2025 detsember tegevuskava'!$P$110,'kuni 2025 detsember tegevuskava'!P86='kuni 2025 detsember tegevuskava'!$P$111),1,'kuni 2025 detsember tegevuskava'!P86='kuni 2025 detsember tegevuskava'!$P$112,2,'kuni 2025 detsember tegevuskava'!P86='kuni 2025 detsember tegevuskava'!$P$113,2,'kuni 2025 detsember tegevuskava'!P86='kuni 2025 detsember tegevuskava'!$P$108,3)","v":2},{"$f":"SUM(I213:I214)","v":{"v":1888000,"d":"1,888,000"}},null,{"$f":"SUM(K213:K214)","v":0},null,{"$f":"SUM(M213:M214)","v":{"v":503000,"d":"503,000"}},null,{"$f":"SUM(O213:O214)","v":{"v":1385000,"d":"1,385,000"}}]
[{"$nulls":8},{"$f":"SUM(K213+M213+O213)","v":{"v":1773000,"d":"1,773,000"}},{"$f":"\"(15)\"","v":"(15)"},{"$f":"'kuni 2025 detsember tegevuskava'!X86","v":0},{"$f":"\"(15)\"","v":"(15)"},{"$f":"'kuni 2025 detsember tegevuskava'!AA86","v":{"v":428000,"d":"428,000"}},{"$f":"\"(15)\"","v":"(15)"},{"$f":"'kuni 2025 detsember tegevuskava'!AD86","v":{"v":1345000,"d":"1,345,000"}},{"$f":"\"(15)\"","v":"(15)"}]
[{"$nulls":8},{"$f":"SUM(K214+M214+O214)","v":{"v":115000,"d":"115,000"}},{"$f":"\"(55)\"","v":"(55)"},{"$f":"'kuni 2025 detsember tegevuskava'!Z86","v":0},{"$f":"\"(55)\"","v":"(55)"},{"$f":"'kuni 2025 detsember tegevuskava'!AC86","v":{"v":75000,"d":"75,000"}},{"$f":"\"(55)\"","v":"(55)"},{"$f":"'kuni 2025 detsember tegevuskava'!AF86","v":{"v":40000,"d":"40,000"}},{"$f":"\"(55)\"","v":"(55)"}]
[{"$nulls":8},"Summa koos käibemaksuga:"]
[{"$nulls":8},{"$f":"SUM(I217:I218)","v":{"v":2303360,"d":"2,303,360"}},null,{"$f":"SUM(K217:K218)","v":0},null,{"$f":"SUM(M217:M218)","v":{"v":613660,"d":"613,660"}},null,{"$f":"SUM(O217:O218)","v":{"v":1689700,"d":"1,689,700"}}]
[{"$nulls":8},{"$f":"SUM(K217+M217+O217)","v":{"v":2163060,"d":"2,163,060"}},{"$f":"\"(15)\"","v":"(15)"},{"$f":"SUM(K213*1.2)","v":0},{"$f":"\"(15)\"","v":"(15)"},{"$f":"SUM(M213*1.22)","v":{"v":522160,"d":"522,160"}},{"$f":"\"(15)\"","v":"(15)"},{"$f":"SUM(O213*1.22)","v":{"v":1640900,"d":"1,640,900"}},{"$f":"\"(15)\"","v":"(15)"}]
[{"$nulls":8},{"$f":"SUM(K218+M218+O218)","v":{"v":140300,"d":"140,300"}},{"$f":"\"(55)\"","v":"(55)"},{"$f":"SUM(K214*1.2)","v":0},{"$f":"\"(55)\"","v":"(55)"},{"$f":"SUM(M214*1.22)","v":{"v":91500,"d":"91,500"}},{"$f":"\"(55)\"","v":"(55)"},{"$f":"SUM(O214*1.22)","v":{"v":48800,"d":"48,800"}},{"$f":"\"(55)\"","v":"(55)"}]
[null,{"$f":"'kuni 2025 detsember tegevuskava'!A92&\"/\"&'kuni 2025 detsember tegevuskava'!B92","v":"MKM/DAO"},{"$f":"'kuni 2025 detsember tegevuskava'!I92","v":"RIT-i keskne ATK teenus ja serveri alusteenused ei ole MKMi poolt keskselt koordineeritud ja juhitud. \nRiigiülese baasteenuse konsolideerimiseks puudub ressurss"},{"$f":"'kuni 2025 detsember tegevuskava'!J92","v":"Arvutustaristu tehnoloogia nõuniku ja konsolideerimise programmijuhi värbamine"},{"$f":"'kuni 2025 detsember tegevuskava'!K92","v":"RIT-i keskne ATK teenus ja serveri alusteenused on MKMi poolt keskselt koordineeritud ja juhitud. \nRiigiülese baasteenuse konsolideerimise koordineerimine "},{"$f":"'kuni 2025 detsember tegevuskava'!P92&\"/\"","v":"RES IKT (vaja juurde taotleda)/"},{"$f":"_xlfn.IFS('kuni 2025 detsember tegevuskava'!G92='kuni 2025 detsember tegevuskava'!$G$107,1,'kuni 2025 detsember tegevuskava'!G92='kuni 2025 detsember tegevuskava'!$G$108,2,'kuni 2025 detsember tegevuskava'!G92='kuni 2025 detsember tegevuskava'!$G$109,3,'kuni 2025 detsember tegevuskava'!G92='kuni 2025 detsember tegevuskava'!$G$110,4)","v":4},{"$f":"_xlfn.IFS(OR('kuni 2025 detsember tegevuskava'!P92='kuni 2025 detsember tegevuskava'!$P$107,'kuni 2025 detsember tegevuskava'!P92='kuni 2025 detsember tegevuskava'!$P$109,'kuni 2025 detsember tegevuskava'!P92='kuni 2025 detsember tegevuskava'!$P$110,'kuni 2025 detsember tegevuskava'!P92='kuni 2025 detsember tegevuskava'!$P$111),1,'kuni 2025 detsember tegevuskava'!P92='kuni 2025 detsember tegevuskava'!$P$112,2,'kuni 2025 detsember tegevuskava'!P92='kuni 2025 detsember tegevuskava'!$P$113,2,'kuni 2025 detsember tegevuskava'!P92='kuni 2025 detsember tegevuskava'!$P$108,3)","v":1},{"$f":"SUM(I220:I221)","v":{"v":164000,"d":"164,000"}},null,{"$f":"SUM(K220:K221)","v":0},null,{"$f":"SUM(M220:M221)","v":0},null,{"$f":"SUM(O220:O221)","v":{"v":164000,"d":"164,000"}}]
[{"$nulls":8},{"$f":"SUM(K220+M220+O220)","v":{"v":150000,"d":"150,000"}},{"$f":"\"(50)\"","v":"(50)"},{"$f":"'kuni 2025 detsember tegevuskava'!Y92","v":0},{"$f":"\"(50)\"","v":"(50)"},{"$f":"'kuni 2025 detsember tegevuskava'!AB92","v":0},{"$f":"\"(50)\"","v":"(50)"},{"$f":"'kuni 2025 detsember tegevuskava'!AE92","v":{"v":150000,"d":"150,000"}},{"$f":"\"(50)\"","v":"(50)"}]
[{"$nulls":8},{"$f":"SUM(K221+M221+O221)","v":{"v":14000,"d":"14,000"}},{"$f":"\"(55)\"","v":"(55)"},{"$f":"'kuni 2025 detsember tegevuskava'!Z92","v":0},{"$f":"\"(55)\"","v":"(55)"},{"$f":"'kuni 2025 detsember tegevuskava'!AC92","v":0},{"$f":"\"(55)\"","v":"(55)"},{"$f":"'kuni 2025 detsember tegevuskava'!AF92","v":{"v":14000,"d":"14,000"}},{"$f":"\"(55)\"","v":"(55)"}]
[{"$nulls":8},"Summa koos käibemaksuga:"]
[{"$nulls":8},{"$f":"SUM(I224:I225)","v":{"v":167080,"d":"167,080"}},null,{"$f":"SUM(K224:K225)","v":0},null,{"$f":"SUM(M224:M225)","v":0},null,{"$f":"SUM(O224:O225)","v":{"v":167080,"d":"167,080"}}]
[{"$nulls":8},{"$f":"SUM(K224+M224+O224)","v":{"v":150000,"d":"150,000"}},{"$f":"\"(50)\"","v":"(50)"},{"$f":"K220","v":0},{"$f":"\"(50)\"","v":"(50)"},{"$f":"M220","v":0},{"$f":"\"(50)\"","v":"(50)"},{"$f":"O220","v":{"v":150000,"d":"150,000"}},{"$f":"\"(50)\"","v":"(50)"}]
[{"$nulls":8},{"$f":"SUM(K225+M225+O225)","v":{"v":17080,"d":"17,080"}},{"$f":"\"(55)\"","v":"(55)"},{"$f":"SUM(K221*1.2)","v":0},{"$f":"\"(55)\"","v":"(55)"},{"$f":"SUM(M221*1.22)","v":0},{"$f":"\"(55)\"","v":"(55)"},{"$f":"SUM(O221*1.22)","v":{"v":17080,"d":"17,080"}},{"$f":"\"(55)\"","v":"(55)"}]
[null,{"$f":"'kuni 2025 detsember tegevuskava'!A93&\"/\"&'kuni 2025 detsember tegevuskava'!B93","v":"MKM/TTJA"},{"$f":"'kuni 2025 detsember tegevuskava'!I93","v":"TTJA puudub võimekus UX/UI kompetentsi osas"},{"$f":"'kuni 2025 detsember tegevuskava'!J93","v":"Kasutajateekonna (UX) kompetentsi tõstmine"},{"$f":"'kuni 2025 detsember tegevuskava'!K93","v":"Kasutajateekonna (UX) spetsialist on värvatud"},{"$f":"'kuni 2025 detsember tegevuskava'!P93&\"/\"","v":"SF 21-27 (taotletav raha)/"},{"$f":"_xlfn.IFS('kuni 2025 detsember tegevuskava'!G93='kuni 2025 detsember tegevuskava'!$G$107,1,'kuni 2025 detsember tegevuskava'!G93='kuni 2025 detsember tegevuskava'!$G$108,2,'kuni 2025 detsember tegevuskava'!G93='kuni 2025 detsember tegevuskava'!$G$109,3,'kuni 2025 detsember tegevuskava'!G93='kuni 2025 detsember tegevuskava'!$G$110,4)","v":3},{"$f":"_xlfn.IFS(OR('kuni 2025 detsember tegevuskava'!P93='kuni 2025 detsember tegevuskava'!$P$107,'kuni 2025 detsember tegevuskava'!P93='kuni 2025 detsember tegevuskava'!$P$109,'kuni 2025 detsember tegevuskava'!P93='kuni 2025 detsember tegevuskava'!$P$110,'kuni 2025 detsember tegevuskava'!P93='kuni 2025 detsember tegevuskava'!$P$111),1,'kuni 2025 detsember tegevuskava'!P93='kuni 2025 detsember tegevuskava'!$P$112,2,'kuni 2025 detsember tegevuskava'!P93='kuni 2025 detsember tegevuskava'!$P$113,2,'kuni 2025 detsember tegevuskava'!P93='kuni 2025 detsember tegevuskava'!$P$108,3)","v":2},{"$f":"SUM(I227:I229)","v":{"v":107000,"d":"107,000"}},null,{"$f":"SUM(K227:K229)","v":0},null,{"$f":"SUM(M227:M229)","v":{"v":42000,"d":"42,000"}},null,{"$f":"SUM(O227:O229)","v":{"v":65000,"d":"65,000"}}]
[{"$nulls":8},{"$f":"SUM(K227+M227+O227)","v":0},{"$f":"\"(15)\"","v":"(15)"},{"$f":"'kuni 2025 detsember tegevuskava'!X93","v":0},{"$f":"\"(15)\"","v":"(15)"},{"$f":"'kuni 2025 detsember tegevuskava'!AA93","v":0},{"$f":"\"(15)\"","v":"(15)"},{"$f":"'kuni 2025 detsember tegevuskava'!AD93","v":0},{"$f":"\"(15)\"","v":"(15)"}]
[{"$nulls":8},{"$f":"SUM(K228+M228+O228)","v":{"v":87000,"d":"87,000"}},{"$f":"\"(50)\"","v":"(50)"},{"$f":"'kuni 2025 detsember tegevuskava'!Y93","v":0},{"$f":"\"(50)\"","v":"(50)"},{"$f":"'kuni 2025 detsember tegevuskava'!AB93","v":{"v":32000,"d":"32,000"}},{"$f":"\"(50)\"","v":"(50)"},{"$f":"'kuni 2025 detsember tegevuskava'!AE93","v":{"v":55000,"d":"55,000"}},{"$f":"\"(50)\"","v":"(50)"}]
[{"$nulls":8},{"$f":"SUM(K229+M229+O229)","v":{"v":20000,"d":"20,000"}},{"$f":"\"(55)\"","v":"(55)"},{"$f":"'kuni 2025 detsember tegevuskava'!Z93","v":0},{"$f":"\"(55)\"","v":"(55)"},{"$f":"'kuni 2025 detsember tegevuskava'!AC93","v":{"v":10000,"d":"10,000"}},{"$f":"\"(55)\"","v":"(55)"},{"$f":"'kuni 2025 detsember tegevuskava'!AF93","v":{"v":10000,"d":"10,000"}},{"$f":"\"(55)\"","v":"(55)"}]
[{"$nulls":8},"Summa koos käibemaksuga:"]
[{"$nulls":8},{"$f":"SUM(I232:I234)","v":{"v":111400,"d":"111,400"}},null,{"$f":"SUM(K232:K234)","v":0},null,{"$f":"SUM(M232:M234)","v":{"v":44200,"d":"44,200"}},null,{"$f":"SUM(O232:O234)","v":{"v":67200,"d":"67,200"}}]
[{"$nulls":8},{"$f":"SUM(K232+M232+O232)","v":0},{"$f":"\"(15)\"","v":"(15)"},{"$f":"SUM(K227*1.2)","v":0},{"$f":"\"(15)\"","v":"(15)"},{"$f":"SUM(M227*1.22)","v":0},{"$f":"\"(15)\"","v":"(15)"},{"$f":"SUM(O227*1.22)","v":0},{"$f":"\"(15)\"","v":"(15)"}]
[{"$nulls":8},{"$f":"SUM(K233+M233+O233)","v":{"v":87000,"d":"87,000"}},{"$f":"\"(50)\"","v":"(50)"},{"$f":"K228","v":0},{"$f":"\"(50)\"","v":"(50)"},{"$f":"M228","v":{"v":32000,"d":"32,000"}},{"$f":"\"(50)\"","v":"(50)"},{"$f":"O228","v":{"v":55000,"d":"55,000"}},{"$f":"\"(50)\"","v":"(50)"}]
[{"$nulls":8},{"$f":"SUM(K234+M234+O234)","v":{"v":24400,"d":"24,400"}},{"$f":"\"(55)\"","v":"(55)"},{"$f":"SUM(K229*1.2)","v":0},{"$f":"\"(55)\"","v":"(55)"},{"$f":"SUM(M229*1.22)","v":{"v":12200,"d":"12,200"}},{"$f":"\"(55)\"","v":"(55)"},{"$f":"SUM(O229*1.22)","v":{"v":12200,"d":"12,200"}},{"$f":"\"(55)\"","v":"(55)"}]
[null,{"$f":"'kuni 2025 detsember tegevuskava'!A94&\"/\"&'kuni 2025 detsember tegevuskava'!B94","v":"MKM/KEMIT"},{"$f":"'kuni 2025 detsember tegevuskava'!I94","v":"Kemitil puudub piisav IT arhitekti kompetents/ressurss ning arendustööde haldusvõimekus on ebapiisav e-teenuste projekti jaoks"},{"$f":"'kuni 2025 detsember tegevuskava'!J94","v":"TTJA pilooti jaoks võimekuse ja kompetentsi tõstmine KEMITis"},{"$f":"'kuni 2025 detsember tegevuskava'!K94","v":"Süsteemiarhitekt ja teenushaldur on värvatud."},{"$f":"'kuni 2025 detsember tegevuskava'!P94&\"/\"","v":"SF 21-27 (taotletav raha)/"},{"$f":"_xlfn.IFS('kuni 2025 detsember tegevuskava'!G94='kuni 2025 detsember tegevuskava'!$G$107,1,'kuni 2025 detsember tegevuskava'!G94='kuni 2025 detsember tegevuskava'!$G$108,2,'kuni 2025 detsember tegevuskava'!G94='kuni 2025 detsember tegevuskava'!$G$109,3,'kuni 2025 detsember tegevuskava'!G94='kuni 2025 detsember tegevuskava'!$G$110,4)","v":3},{"$f":"_xlfn.IFS(OR('kuni 2025 detsember tegevuskava'!P102='kuni 2025 detsember tegevuskava'!$P$107,'kuni 2025 detsember tegevuskava'!P102='kuni 2025 detsember tegevuskava'!$P$109,'kuni 2025 detsember tegevuskava'!P102='kuni 2025 detsember tegevuskava'!$P$110,'kuni 2025 detsember tegevuskava'!P102='kuni 2025 detsember tegevuskava'!$P$111),1,'kuni 2025 detsember tegevuskava'!P102='kuni 2025 detsember tegevuskava'!$P$112,2,'kuni 2025 detsember tegevuskava'!P102='kuni 2025 detsember tegevuskava'!$P$113,2,'kuni 2025 detsember tegevuskava'!P102='kuni 2025 detsember tegevuskava'!$P$108,3)","v":1},{"$f":"SUM(I236:I238)","v":{"v":210550,"d":"210,550"}},null,{"$f":"SUM(K236:K238)","v":0},null,{"$f":"SUM(M236:M238)","v":{"v":75000,"d":"75,000"}},null,{"$f":"SUM(O236:O238)","v":{"v":135550,"d":"135,550"}}]
[{"$nulls":8},{"$f":"SUM(K236+M236+O236)","v":0},{"$f":"\"(15)\"","v":"(15)"},{"$f":"'kuni 2025 detsember tegevuskava'!X94","v":0},{"$f":"\"(15)\"","v":"(15)"},{"$f":"'kuni 2025 detsember tegevuskava'!AA94","v":0},{"$f":"\"(15)\"","v":"(15)"},{"$f":"'kuni 2025 detsember tegevuskava'!AD94","v":0},{"$f":"\"(15)\"","v":"(15)"}]
[{"$nulls":8},{"$f":"SUM(K237+M237+O237)","v":{"v":200550,"d":"200,550"}},{"$f":"\"(50)\"","v":"(50)"},{"$f":"'kuni 2025 detsember tegevuskava'!Y94","v":0},{"$f":"\"(50)\"","v":"(50)"},{"$f":"'kuni 2025 detsember tegevuskava'!AB94","v":{"v":70000,"d":"70,000"}},{"$f":"\"(50)\"","v":"(50)"},{"$f":"'kuni 2025 detsember tegevuskava'!AE94","v":{"v":130550,"d":"130,550"}},{"$f":"\"(50)\"","v":"(50)"}]
[{"$nulls":8},{"$f":"SUM(K238+M238+O238)","v":{"v":10000,"d":"10,000"}},{"$f":"\"(55)\"","v":"(55)"},{"$f":"'kuni 2025 detsember tegevuskava'!Z94","v":0},{"$f":"\"(55)\"","v":"(55)"},{"$f":"'kuni 2025 detsember tegevuskava'!AC94","v":{"v":5000,"d":"5,000"}},{"$f":"\"(55)\"","v":"(55)"},{"$f":"'kuni 2025 detsember tegevuskava'!AF94","v":{"v":5000,"d":"5,000"}},{"$f":"\"(55)\"","v":"(55)"}]
[{"$nulls":8},"Summa koos käibemaksuga:"]
[{"$nulls":8},{"$f":"SUM(I241:I243)","v":{"v":212750,"d":"212,750"}},null,{"$f":"SUM(K241:K243)","v":0},null,{"$f":"SUM(M241:M243)","v":{"v":76100,"d":"76,100"}},null,{"$f":"SUM(O241:O243)","v":{"v":136650,"d":"136,650"}}]
[{"$nulls":8},{"$f":"SUM(K241+M241+O241)","v":0},{"$f":"\"(15)\"","v":"(15)"},{"$f":"SUM(K236*1.2)","v":0},{"$f":"\"(15)\"","v":"(15)"},{"$f":"SUM(M236*1.22)","v":0},{"$f":"\"(15)\"","v":"(15)"},{"$f":"SUM(O236*1.22)","v":0},{"$f":"\"(15)\"","v":"(15)"}]
[{"$nulls":8},{"$f":"SUM(K242+M242+O242)","v":{"v":200550,"d":"200,550"}},{"$f":"\"(50)\"","v":"(50)"},{"$f":"K237","v":0},{"$f":"\"(50)\"","v":"(50)"},{"$f":"M237","v":{"v":70000,"d":"70,000"}},{"$f":"\"(50)\"","v":"(50)"},{"$f":"O237","v":{"v":130550,"d":"130,550"}},{"$f":"\"(50)\"","v":"(50)"}]
[{"$nulls":8},{"$f":"SUM(K243+M243+O243)","v":{"v":12200,"d":"12,200"}},{"$f":"\"(55)\"","v":"(55)"},{"$f":"SUM(K238*1.2)","v":0},{"$f":"\"(55)\"","v":"(55)"},{"$f":"SUM(M238*1.22)","v":{"v":6100,"d":"6,100"}},{"$f":"\"(55)\"","v":"(55)"},{"$f":"SUM(O238*1.22)","v":{"v":6100,"d":"6,100"}},{"$f":"\"(55)\"","v":"(55)"}]
[null,{"$f":"'kuni 2025 detsember tegevuskava'!A98&\"/\"&'kuni 2025 detsember tegevuskava'!B98","v":"MKM/TTJA"},{"$f":"'kuni 2025 detsember tegevuskava'!I98","v":"Puudub ülevaade, millisel määral on TTJA-s täidetud e-its nõuded"},{"$f":"'kuni 2025 detsember tegevuskava'!J98","v":"e-its auditi hankimine ja läbiviimine"},{"$f":"'kuni 2025 detsember tegevuskava'!K98","v":"Auditi raport on koostatud ja esitatud TTJA-le."},{"$f":"'kuni 2025 detsember tegevuskava'!P98&\"/\"","v":"SF 21-27 (taotletav raha)/"},{"$f":"_xlfn.IFS('kuni 2025 detsember tegevuskava'!G98='kuni 2025 detsember tegevuskava'!$G$107,1,'kuni 2025 detsember tegevuskava'!G98='kuni 2025 detsember tegevuskava'!$G$108,2,'kuni 2025 detsember tegevuskava'!G98='kuni 2025 detsember tegevuskava'!$G$109,3,'kuni 2025 detsember tegevuskava'!G98='kuni 2025 detsember tegevuskava'!$G$110,4)","v":2},{"$f":"_xlfn.IFS(OR('kuni 2025 detsember tegevuskava'!P98='kuni 2025 detsember tegevuskava'!$P$107,'kuni 2025 detsember tegevuskava'!P98='kuni 2025 detsember tegevuskava'!$P$109,'kuni 2025 detsember tegevuskava'!P98='kuni 2025 detsember tegevuskava'!$P$110,'kuni 2025 detsember tegevuskava'!P98='kuni 2025 detsember tegevuskava'!$P$111),1,'kuni 2025 detsember tegevuskava'!P98='kuni 2025 detsember tegevuskava'!$P$112,2,'kuni 2025 detsember tegevuskava'!P98='kuni 2025 detsember tegevuskava'!$P$113,2,'kuni 2025 detsember tegevuskava'!P98='kuni 2025 detsember tegevuskava'!$P$108,3)","v":2},{"$f":"SUM(I245:I245)","v":{"v":30000,"d":"30,000"}},null,{"$f":"SUM(K245:K245)","v":0},null,{"$f":"SUM(M245:M245)","v":{"v":30000,"d":"30,000"}},null,{"$f":"SUM(O245:O245)","v":0}]
[{"$nulls":8},{"$f":"SUM(K245+M245+O245)","v":{"v":30000,"d":"30,000"}},{"$f":"\"(55)\"","v":"(55)"},{"$f":"'kuni 2025 detsember tegevuskava'!ZP98","v":0},{"$f":"\"(55)\"","v":"(55)"},{"$f":"'kuni 2025 detsember tegevuskava'!AC98","v":{"v":30000,"d":"30,000"}},{"$f":"\"(55)\"","v":"(55)"},{"$f":"'kuni 2025 detsember tegevuskava'!AF98","v":0},{"$f":"\"(55)\"","v":"(55)"}]
[{"$nulls":8},"Summa koos käibemaksuga:"]
[{"$nulls":8},{"$f":"SUM(I248:I248)","v":{"v":36600,"d":"36,600"}},null,{"$f":"SUM(K248:K248)","v":0},null,{"$f":"SUM(M248:M248)","v":{"v":36600,"d":"36,600"}},null,{"$f":"SUM(O248:O248)","v":0}]
[{"$nulls":8},{"$f":"SUM(K248+M248+O248)","v":{"v":36600,"d":"36,600"}},{"$f":"\"(55)\"","v":"(55)"},{"$f":"SUM(K245*1.2)","v":0},{"$f":"\"(55)\"","v":"(55)"},{"$f":"SUM(M245*1.22)","v":{"v":36600,"d":"36,600"}},{"$f":"\"(55)\"","v":"(55)"},{"$f":"SUM(O245*1.22)","v":0},{"$f":"\"(55)\"","v":"(55)"}]
[null,{"$f":"'kuni 2025 detsember tegevuskava'!A100&\"/\"&'kuni 2025 detsember tegevuskava'!B100","v":"MKM/TTJA"},{"$f":"'kuni 2025 detsember tegevuskava'!I100","v":"Võib katkeda riiklik olukorra pilt GPS  kasutamisest  ja ei ole tuvastatavad küberründed GPS süsteemile"},{"$f":"'kuni 2025 detsember tegevuskava'!J100","v":"GPS häirete reaalajas olukorra pildi teenus"},{"$f":"'kuni 2025 detsember tegevuskava'!K100","v":" Riikliku olukorrapilldi saamine GPS navigatsioonisüsteemide kasutatavusest ja häiretes Eesti territooriumil"},{"$f":"'kuni 2025 detsember tegevuskava'!P100&\"/\"","v":"RES IKT (vaja juurde taotleda)/"},{"$f":"_xlfn.IFS('kuni 2025 detsember tegevuskava'!G100='kuni 2025 detsember tegevuskava'!$G$107,1,'kuni 2025 detsember tegevuskava'!G100='kuni 2025 detsember tegevuskava'!$G$108,2,'kuni 2025 detsember tegevuskava'!G100='kuni 2025 detsember tegevuskava'!$G$109,3,'kuni 2025 detsember tegevuskava'!G100='kuni 2025 detsember tegevuskava'!$G$110,4)","v":2},{"$f":"_xlfn.IFS(OR('kuni 2025 detsember tegevuskava'!P100='kuni 2025 detsember tegevuskava'!$P$107,'kuni 2025 detsember tegevuskava'!P100='kuni 2025 detsember tegevuskava'!$P$109,'kuni 2025 detsember tegevuskava'!P100='kuni 2025 detsember tegevuskava'!$P$110,'kuni 2025 detsember tegevuskava'!P100='kuni 2025 detsember tegevuskava'!$P$111),1,'kuni 2025 detsember tegevuskava'!P100='kuni 2025 detsember tegevuskava'!$P$112,2,'kuni 2025 detsember tegevuskava'!P100='kuni 2025 detsember tegevuskava'!$P$113,2,'kuni 2025 detsember tegevuskava'!P100='kuni 2025 detsember tegevuskava'!$P$108,3)","v":1},{"$f":"SUM(I250:I250)","v":{"v":50000,"d":"50,000"}},null,{"$f":"SUM(K250:K250)","v":0},null,{"$f":"SUM(M250:M250)","v":0},null,{"$f":"SUM(O250:O250)","v":{"v":50000,"d":"50,000"}}]
[{"$nulls":8},{"$f":"SUM(K250+M250+O250)","v":{"v":50000,"d":"50,000"}},{"$f":"\"(55)\"","v":"(55)"},{"$f":"'kuni 2025 detsember tegevuskava'!ZP100","v":0},{"$f":"\"(55)\"","v":"(55)"},{"$f":"'kuni 2025 detsember tegevuskava'!AC100","v":0},{"$f":"\"(55)\"","v":"(55)"},{"$f":"'kuni 2025 detsember tegevuskava'!AF100","v":{"v":50000,"d":"50,000"}},{"$f":"\"(55)\"","v":"(55)"}]
[{"$nulls":8},"Summa koos käibemaksuga:"]
[{"$nulls":8},{"$f":"SUM(I253:I253)","v":{"v":61000,"d":"61,000"}},null,{"$f":"SUM(K253:K253)","v":0},null,{"$f":"SUM(M253:M253)","v":0},null,{"$f":"SUM(O253:O253)","v":{"v":61000,"d":"61,000"}}]
[{"$nulls":8},{"$f":"SUM(K253+M253+O253)","v":{"v":61000,"d":"61,000"}},{"$f":"\"(55)\"","v":"(55)"},{"$f":"SUM(K250*1.2)","v":0},{"$f":"\"(55)\"","v":"(55)"},{"$f":"SUM(M250*1.22)","v":0},{"$f":"\"(55)\"","v":"(55)"},{"$f":"SUM(O250*1.22)","v":{"v":61000,"d":"61,000"}},{"$f":"\"(55)\"","v":"(55)"}]
[null,"Veerg „Algatuse nimi“: * - Enne algatusega/tegevusega alustamist tuleb läbida äri- ja või arhitektuuripaneel."]
[null,"Veerg: „Rahastuse allikas / meetme tegevus (SF)“: \n1 – (Baaseelarve, RES, reserv SR) – summad kajastatakse ilma käibemaksuta ja käibemaks arvestatakse juurde riigieelarvest; \n2 – (SF, nii 14-20, kui 21-27) – toetuse summad kajastatakse koos käibemaksuga, käibemaks on osa toetusest; \n3 – (RRF) – toetuse summad kajastatakse ilma käibemaksuta, käibemaks lisandub toetusele.  \n4 – (muu rahastus) – summad kajastatakse ilma käibemaksuta, elluviija vastutab sõltuvalt rahastusest õige käibemaksu vormi rakendamise eest. "]
[null,"Liisa-Ly Pakosta"]
[null,"justiits- ja digiminister"]
[null,"(allkirjastatud digitaalselt) "]

{"sheet":"Ettekande arvutused","index":4,"n_rows":111,"n_cols":9,"rows_kept":111,"hidden":true,"merged":[[3,2,3,5],[17,1,18,1],[17,2,17,5],[54,1,54,8],[68,2,68,4],[68,5,68,7]]}
[]
["2023 eelarve täitmine"]
[]
[null,"Liikide lõikes​","Eelarve täitmine 31.12.2023"]
[null,null,"Eelarve​","Täitmine​","Jääk​","Täitmise %​"]
[null,"Kokku​",{"$f":"SUM(C7:C9)","v":45},{"$f":"SUM(D7:D9)","v":36},9,{"$f":"SUM(D6/C6)","v":{"v":0.8,"d":"80%"}}]
[null,"Riigieelarve​",10,8,{"$f":"SUM(C7-D7)","v":2},{"$f":"SUM(D7/C7)","v":{"v":0.8,"d":"80%"}}]
[null,"Välistoetused​",15,12,{"$f":"SUM(C8-D8)","v":3},{"$f":"SUM(D8/C8)","v":{"v":0.8,"d":"80%"}}]
[null,"Muud​",20,16,{"$f":"SUM(C9-D9)","v":4},{"$f":"SUM(D9/C9)","v":{"v":0.8,"d":"80%"}}]
{"$rows_empty":8}
[null,"Majandusliku sisu lõikes​","Eelarve täitmine 31.12.2023"]
[null,null,"Eelarve​","Täitmine​","Jääk​","Täitmise %​"]
[null,"Kokku​",{"$f":"SUM(C21:C24)","v":45},{"$f":"SUM(D21:D24)","v":40},5,{"$f":"SUM(D20/C20)","v":{"v":0.8888888888888888,"d":"89%"}}]
[null,"Investeeringud​",12,11,{"$f":"SUM(C21-D21)","v":1},{"$f":"SUM(D21/C21)","v":{"v":0.9166666666666666,"d":"92%"}}]
[null,"Tööjõukulud",10,10,{"$f":"SUM(C22-D22)","v":0},{"$f":"SUM(D22/C22)","v":{"v":1,"d":"100%"}}]
[null,"​Majandamiskulud​",15,13,{"$f":"SUM(C23-D23)","v":2},{"$f":"SUM(D23/C23)","v":{"v":0.8666666666666667,"d":"87%"}}]
[null,"​Toetused ja muud",8,6,{"$f":"SUM(C24-D24)","v":2},{"$f":"SUM(D24/C24)","v":{"v":0.75,"d":"75%"}}]
{"$rows_empty":8}
["2024 eelarve"]
[]
[null,"Liikide lõikes​",2024]
[null,"Kokku",{"$f":"SUM(C37:C39)","v":47}]
[null,"Riigieelarve​",20]
[null,"Välistoetused​",15]
[null,"Muud​",12]
[]
[null,"Majandusliku sisu lõikes​",2024]
[null,"Kokku",{"$f":"SUM(C43:C46)","v":47}]
[null,"Investeeringud​",13]
[null,"Tööjõukulud",11]
[null,"​Majandamiskulud​",15]
[null,"​Toetused ja muud",8]
[]
[]
["Personali muutus"]
[]
[]
[null,"Valitsemisala IKT töötajate arv​","2021-01-01","2022-01-01","2023-01-01","2024-01-01","01.01.2025*​","01.01.2026*​","01.01.2027*​"]
[null,"Töötajate arv ​",121,125,129,140,144,149,155]
[null,"Kasv​ (%, võrrelduna eelmise aastaga)",0,{"$f":"SUM(((D53/C53)*100)-100)","v":{"v":3.3057851239669276,"d":"3.3"}},{"v":3.200000000000003,"d":"3.2"},{"v":8.52713178294573,"d":"8.5"},{"v":2.857142857142847,"d":"2.9"},{"v":3.4722222222222285,"d":"3.5"},{"v":4.0268456375838895,"d":"4.0"}]
[null,"* Prognoos"]
{"$rows_empty":13}
[null,null,"Seisuga 01.01.2023",null,null,"Seisuga 01.01.2024"]
[null,"IKT Personal","Täidetud/olemas","Täitmata","Kokku","Täidetud/olemas","Täitmata","Kokku"]
[null,"Kokku",{"$f":"SUM(C72:C83)","v":26},9,35,28,17,45]
[null,"andmekorraldusanalüütik​",2,1,{"$f":"SUM(C72:D72)","v":3},2,1,{"$f":"SUM(F72:G72)","v":3}]
[null,"andmekvaliteedi kontrolli spetsialist​",3,0,3,5,0,5]
[null,"andmelao arendaja​",2,0,2,2,8,10]
[null,"jurist - ei ole kavas lähiajal täita​",2,2,4,2,2,4]
[null,"projektijuht​",4,2,6,4,2,6]
[null,"rakenduste administraator​",0,0,0,0,0,0]
[null,"riskijuht​",2,0,2,2,0,2]
[null,"süsteemiadministraator​",2,1,3,2,1,3]
[null,"tarkvara arhitekt​",1,0,1,1,0,1]
[null,"testija​",5,2,7,5,2,7]
[null,"tooteomanik​",3,1,{"$f":"SUM(C82:D82)","v":4},3,1,{"$f":"SUM(F82:G82)","v":4}]
[null,"…",null,null,0,null,null,0]
[null,"NB! Tabelis tuua välja valitsemisala kõik IKT ametikohad. Vajadusel lisada ridu juurde."]
[]
[]
[null,"Andmeturve","Analüütik (teabe)"]
[null,"Arvutigraafika","Andmeanalüüs"]
[null,"Juhtimine","Andmeanalüüs ja -seire "]
[null,"Konsultandid","Andmebaasiadministratsioon"]
[null,"Projektijuhtimine","Andmehaldur"]
[null,"Süsteemiadministratsioon","Andmeteadur (teabe)"]
[null,"Süsteemianalüüs","DEVOPS"]
[null,"Süsteemiarhitektuur","Haldus"]
[null,"Tarkvara programmeerimine","Helpdesk"]
[null,"Teenuste tugi","infoturbe logianalüütik"]
[null,"Testimine","Infoturbespetsialist"]
[null,null,"IS haldur"]
[null,null,"IS ärianalüütik"]
[null,null,"IT analüütik"]
[null,null,"Klienditeenindus"]
[null,null,"küber pääsuhalduste spetsialist"]
[null,null,"Küberinsener"]
[null,null,"küberintsidentide haldur"]
[null,null,"Küberkaitse spetsialist"]
[null,null,"Masinõpe"]
[null,null,"Rakenduse administraator"]
[null,null,"Registripidaja"]
[null,null,"Tarneinsener"]
[null,null,"Teenuseomanik"]
[null,null,"Tootejuhtimine "]

{"sheet":"Personal","index":5,"n_rows":35,"n_cols":17,"rows_kept":35,"hidden":true,"merged":[[0,4,0,8],[1,0,2,0],[1,1,2,1],[1,2,2,2],[1,3,2,3],[1,4,1,8],[1,9,2,9],[1,10,2,10],[1,11,2,11],[1,12,2,12],[1,13,2,13],[1,14,2,14],[1,15,2,15],[1,16,2,16]]}
["Projekti/tegevuse nimi","Digipöörde elluviimisega seotud personal tööperede lõikes","Digipöörde elluviimisega seotud personal tööperede lõikes","Digipöörde elluviimisega seotud personal tööperede lõikes ","Mis aastal on plaanis värvata?",{"$nulls":4},"Kas on võtmetähtsusega? ","Kas töötaja on olemas või tuleb värvata?","Aastane palgakulu","Või kas roll on plaanis teenusena sisse osta?","Teenusena sisse ostmisel maksumus","Kui pikaks ajaks inimene värvatakse, roll teenusena sisse ostetakse?","Milline on koormus digipöördes?","Värvatud või teenusena sisse ostetutud töötaja rahastamise allikas"]
["(\"2a tegevuskava\" lehe J veerg)","(Tööpere nimetus, iga töötaja eraldi real)","(Tööpere taseme number)","(Tööpere nimetuse täpsustav selgitus)","(märkida x-ga)",{"$nulls":4},"(Jah/Ei)","(On olemas / Tuleb värvata\ntööjõukulu, 50)","(olemasolev töötaja, või värvatav)","(Jah / EI\nmajandamiskulu, 55)","Kui lühiajaline (alla aasta), siis kogu maksumus, kui pikemaajaline (üle 1 aasta), siis aasta maksumus)","(kuuks ajaks, aastaks, kogu digipöörde ajaks, jne)","(% tööajast)","(Baaseelarve/SF)"]
[{"$nulls":4},2023,2024,2025,2026,2027]
["Kesksete rollide loomine valitsemisalas","Täpsem tööpere selgub hetkeolukorra analüüsist"," "," ",1,2,1," "," ","Jah","Värvatud 1, Andmete valdkonna juht värbamisel 2024","1 teenuse valdkonna juht ca 50 000 aastas, andmete valdkonnajuht värvatakse ja tema täpsem palgakulu alles selgub 2024","Ei"," ","3 aastat, nagu hetkel lubatud",{"v":1,"d":"100%"}]
["TTJA võimestamine digipöörde elluviimiseks (nt analüütikud, disainer, koolitused) (2021-27 SF)","IT üldtööd",3,"Tippspetsialistid analüütika, protsesside, testimise jmt osas",null,3," "," "," ","Jah","Värvatud","3 analüütikut kokku 155000 eur/aastas","ei"," ","3 aastat, nagu hetkel lubatud",{"v":1,"d":"100%"}]
["TTJA võimestamine digipöörde elluviimiseks (analüütikud, koolitused) (2021-27 SF)","IT üldtööd",3,"Tippspetsialistid analüütika, protsesside, testimise jmt osas",1," "," "," "," ","Jah","Värvatud","1 teenuse valdkonna juht ca 65 000 (ei ole senditäpsusega)","ei"," ","3 aastat, nagu hetkel lubatud",{"v":1,"d":"100%"}]
["Projektijuht*","Projektijuhtimine",3,"Tippspetsialistid analüütika, protsesside, testimise jmt osas",null,1,{"$nulls":3},"Jah","Värbamisel","1 projektijuht ca 60 000 eur/aasta","ei",null,"kogu digipöörde ajaks",{"v":1,"d":"100%"}]
["Rakendusadministraator protsessijuhtimise tarkvara jaoks","IT üldtööd",3,"Tippspetsialistid analüütika, protsesside, testimise jmt osas",null,1,{"$nulls":3},"Jah","Tuleb värvata","1 protsessijuhtimise tarkvara tooteomanik (administraator) 58000 eur/aasta (TTJA)","Ei",null,"kogu digipöörde ajaks",{"v":1,"d":"100%"}]
["Kasutajateekonna (UX) kompetentsi tõstmine","IT üldtööd",3,"Tippspetsialistid analüütika, protsesside, testimise jmt osas",null,1,{"$nulls":3},"Jah","Tuleb värvata","Kasutajateekonna (UX) spetsialist ca 65000 aastas (TTJA)","Ei",null,"kogu digipöörde ajaks",{"v":1,"d":"100%"}]
["TTJA pilooti jaoks võimekuse ja kompetentsi tõstmine KEMITis","IT üldtööd",3,"Tippspetsialistid analüütika, protsesside, testimise jmt osas",null,2,{"$nulls":3},"Jah","Tuleb värvata","1 süsteemiarhitekt ja 1 teenushaldur (155000/aastas) (TTJA)","Ei",null,"kogu digipöörde ajaks",{"v":1,"d":"100%"}]
[null,"Andmeturve",1,"Analüütik (teabe)"]
[null,"Arvutigraafika",2,"Andmeanalüüs"]
[null,"Juhtimine",3,"Andmeanalüüs ja -seire "]
[null,"Konsultandid",4,"Andmebaasiadministratsioon"]
[null,"Projektijuhtimine",null,"Andmehaldur"]
[null,"Süsteemiadministratsioon",null,"Andmeteadur (teabe)"]
[null,"Süsteemianalüüs",null,"DEVOPS"]
[null,"Süsteemiarhitektuur",null,"Haldus"]
[null,"Tarkvara programmeerimine",null,"Helpdesk"]
[null,"Teenuste tugi",null,"infoturbe logianalüütik"]
[null,"Testimine",null,"Infoturbespetsialist"]
[{"$nulls":3},"IS haldur"]
[{"$nulls":3},"IS ärianalüütik"]
[{"$nulls":3},"IT analüütik"]
[{"$nulls":3},"Klienditeenindus"]
[{"$nulls":3},"küber pääsuhalduste spetsialist"]
[{"$nulls":3},"Küberinsener"]
[{"$nulls":3},"küberintsidentide haldur"]
[{"$nulls":3},"Küberkaitse spetsialist"]
[{"$nulls":3},"Masinõpe"]
[{"$nulls":3},"Rakenduse administraator"]
[{"$nulls":3},"Registripidaja"]
[{"$nulls":3},"Tarneinsener"]
[{"$nulls":3},"Teenuseomanik"]
[{"$nulls":3},"Tootejuhtimine "]

{"sheet":"RES ÕIGUSAKTIDE LISAVAJADUS","index":6,"n_rows":51,"n_cols":21,"rows_kept":51,"hidden":true,"merged":[[29,0,29,10],[48,12,50,15]]}
{"$rows_empty":29}
["Kui väljad on täidetud ebakorrektselt või jäetud tühjaks, siis on rahandusministeeriumil õigus materjal tagastada parandusteks/täiendusteks"]
[]
["Valitsemisala","Programm","Programmi tegevus","Õigusakti nimi","Õigusakti liik (siseriiklik, EL määrus/otsused, muu rahvusvaheline)","Õigusakti lühike arusaadav sisukirjeldus","Link õigusaktile või selle menetlusele","Õigusakti heaks kiitmise otsus VVs","Õigusakti vastuvõtmise aeg","Õigusakti jõustumise aeg","Lisavahendite majanduslik sisu (tööjõukulu, majandamiskulu, (IT)investeering)","Ajaliselt piiritletud või püsiv kulu\n","2025 lisavajadus","2026 lisavajadus","2027 lisavajadus","2028 lisavajadus","KOKKU 2025-2028\n","Kulude arvestuse alused \n","Väljavõte (täpne kopeering)  õigusakti seletuskirjast kulude/investeeringute kohta, sh katteallika selgitus. EL direktiivi puhul kopeerida konkreetne lõik, mis kirjeldab kohustust, tegevust vms.",null,"Lisataotluse sisestaja nimi"]
["MKM","Digiühiskond","Digiriigi arenguhüpped","AvTS (sündmusteenus)","siseriiklik","Isikustatud teabe kuvamiseks antakse õiguslik alus ja reguleeritakse selles osas sündmusteenuse keskse platvormi tööd.","Meil hetkel DELTAs (lisame EISi lingi hiljem)","III pa 2024 (eelduslikult)","2025 alguses (eelduslikult)","eeldatav aeg veebruaris 2025","majandus- ja tööjõukulu","püsiv",0,{"v":131000,"d":"131,000"},{"v":205000,"d":"205,000"},{"v":214000,"d":"214,000"},{"$f":"SUM(M33:P33)","v":{"v":550000,"d":"550,000"}},"Töötasu ja majanduskulu","AvTS (sündmusteenused) seletuskiri p 7.",null,"Ingrid Kuusik, Stina Avvo"]
["MKM/RIA","Sündmusteenused",null,"AvTS (sündmusteenus)","siseriiklik","Isikustatud teabe kuvamiseks antakse õiguslik alus ja reguleeritakse selles osas sündmusteenuse keskse platvormi tööd.",null,"II pa 2024 (eelduslikult)","2025 alguses (eelduslikult)","eeldatav aeg veebruaris 2025","tööjõukulu- ja majandamiskulu ning platvormi ülalhoid ja arenduskulud","püsiv",0,{"$f":"3520000+1405750+120000","v":{"v":5045750,"d":"5,045,750"}},{"$f":"3480000+1567575+120000","v":{"v":5167575,"d":"5,167,575"}},{"$f":"3480000+1714115+120000","v":{"v":5314115,"d":"5,314,115"}},{"$f":"SUM(M34:P34)","v":{"v":15527440,"d":"15,527,440"}},"RRF JÄTK jätkusuutlikkus ja tööjõukulud (sh töökohakulud), majandamiskulud ja platvormi ülalhoid ning arenduskulud","AvTS (sündmusteenused) seletuskiri p 7."]
["MKM","Digiühiskond","Digiriigi arenguhüpped","Tehisintellekti akt (AI act)","EL määrus","Analüüs AI aktist tulenevate kohustuste täitmiseks vajalikud õigusmuudatused (rollide ja määruses ettenähtud karistustega seotud õigusmuudatuste, regulatsioonide ja võimalike lahenduste kaardistamiseks). \n\nTegemist otsekohalduva määrusega, millega kaasnevad muudatustest tulenevad ressursivajadused Eestis. Hetkel Euroopa Liidus teisel lugemisel. Jõustub juuni 2024. Nõuded rakenduvad etapiliselt (alates 6 kuud peale jõustumist kuni 3 aastat).​","https://eur-lex.europa.eu/legal-content/EN/TXT/?uri=celex:52021PC0206","EL akt","2024 juuni","2024 (määruse jõustumine, analüüsid 2025)","majanduskulu (analüüs), 2026+ personalikulud ja majanduskulud","ajaliselt piiritletud 2025 lisavajadus, hiljem püsikulu\n",{"v":90000,"d":"90,000"},{"v":5246134,"d":"5,246,134"},{"v":10492268,"d":"10,492,268"},{"v":10492268,"d":"10,492,268"},{"v":26320670,"d":"26,320,670"},"analüüsi tükihind,  2026+ aasta puhul lähtub eelarve vajadus (personalikulud, majanduskulud) AI määruse VV Eesti seisukohtade koostamisel loodud eelarvehinnangust, mis analüüsi raames täpsustub. Eesmärk on leida Eestile optimaalseim ja kuluefektiivseim lähenemine.","Sätted läbivalt AI aktist, kuid nt artiklid 71, 59, 22, kolmanda jaotise 3 ptk. \n\nAI määruse puhul on vajalik siseriiklikult väga märkimisväärsed muudatused teha - varasem hinnang Eesti seisukohtades ja mõjus oli järgnev (jätkuvalt kahjuks räägime rakendamisel miljonitesse kuluvast summast - nii personal kui ka investeeringud): \"aastane personalikulu on minimaalselt 17 950 608 eurot, sellele lisandub hinnanguliselt tööjõukulu 2 664 968 eurot [...] püsikuludeks võime hinnata minimaalselt 7 827 300 eurot.\" Kuna nõudeid on palju, siis on mõistlik analüüsida, kuidas tänastes tingimustes kõige efektiivsemalt kohustusi täita.",null,"Ott "]
["MKM","Andmed",null,"Andmemäärus (Data act)","EL määrus","Analüüs  DAst tulenevate kohustuste täitmiseks vajalikud õigusmuudatused (siseriiklikud rolli jaotused, pädevused ja määrusega ettenähtud karistustega seotud õigusmuudatused ja võimalikud lahendused). ","Andmemäärus","EL akt",2023,"november 2023 (määruse jõustumine; analüüsid 2025)","majanduskulu (õigusanalüüs)","ajaliselt piiritletud \n",{"v":50000,"d":"50,000"},0,0,0,{"$f":"SUM(M36:P36)","v":{"v":50000,"d":"50,000"}},"analüüsi tükihind","Läbivalt andmemäärusest tulenevad sätted, nt art 37, 40.",null,"Stina: saan aru, et tuli otsus, et seda me RaMi ei esita. Seega vajalik maha võtta. "]
["MKM","Digiühiskond","Digiriigi alusbaasi kindlustamine","AvTS jm asjakohased õigusaktid (põhiandmete regulatsioon, OOP)","siseriiklik","Andmearhitekti töötasu võimaldamaks järgida andmete ühekordse küsimise printsiipi, toetada laiemat andmete ristkasutust, tuvastada dubleeritud andmekogumise juhtumeid, aidata lahendada vaidlusküsimusi ning võimalusel pakkuda asutustele  tuge seonduvalt andmete ühekordse küsimise põhimõtte rakendamisega.\n\nVajadus tuleneb VV memorandumis kavandatud ülesannetest.","Seotud VV memorandumiga, õiguslik kaardistus ja muudatused tulevad hiljem (vastavalt memorandumile); https://www.riigiteataja.ee/akt/107032023011?leiaKehtiv","Q4 2024","I pa 2025","I pa 2025","personalikulud","püsiv",{"v":67200,"d":"67,200"},{"$f":"M37","v":{"v":67200,"d":"67,200"}},{"$f":"N37","v":{"v":67200,"d":"67,200"}},{"$f":"O37","v":{"v":67200,"d":"67,200"}},{"$f":"SUM(M37:P37)","v":{"v":268800,"d":"268,800"}},"Töötasu","Siiani olnud oluline teema nii MKM ministrile kui ka VVle. Seotud VV memorandumiga, mille eesmärk on vähendada andmete dubleerivat küsimist ja parandada andmete ristkasutust. Ainuüksi 10% andmete dubleeriva küsimise vähendamine aitab hoida majanduses/ühiskonnas kokku 20M€ aastas.",null,"Ott "]
["MKM","Digiühiskond","Digiriigi alusbaasi kindlustamine","eIDAS ver 2 (EUDI wallet)","EL määrus","Analüüs eIDAS2 tulnevate kohustuste täitmiseks vajalikud õigusmuudatused (siseriiklikud rolli jaotused, pädevused ja määrusega ettenähtud karistustega seotud õigusmuudatused ja võimalik lahendused, rollide vahelised õiguslikult lubatud ja lubamatud seosed). \nVarsti jõustub (parlamendi esimene lugemine oli edukas märtsis; ei pruugi järgmine aasta jõuda enam tähtaega kui siis raha taotleda)","eIDAS ver 2","EL akt","eelduslikult II kv 2024","Määruse jõustumine 20.05.2024 ja rakendamine järkjärgult (mitu tähtaega); analüüsid 2025-2026)","majanduskulu (õigusanalüüs)","ajaliselt piiritletud \n",{"v":70000,"d":"70,000"},{"v":20000,"d":"20,000"},0,0,{"v":90000,"d":"90,000"},"analüüsi tükihind","Erinevad rollid ja õiguslikud vajadused läbivalt eIDAS ver 2 määrusest ja selle tulevastest rakendusaktidest. Ajakava väga tihe. Tegemist mahuka õigusaktiga, millel palju volitusnorme rakendusmääruseks (36). ",null,"Stina ja Mait"]
["MKM/RIA","Digiühiskond","Digiriigi alusbaasi kindlustamine","Euroopa Parlamendi ja nõukogu määrus (EL) 2024/….,…, millega muudetakse määrust (EL) nr 910/2014 seoses Euroopa digiidentiteedi raamistiku kehtestamisega (eIDAS 2). ","EL määrus","Määrus on tervikuna siduv ja vahetult kohaldatav kõikides liikmesriikides. Määruse eesmärk on suurendada usaldust elektrooniliste tehingute vastu siseturul, luues ühise aluse turvalisele elektroonilisele suhtlusele kodanike, ettevõtjate ja ametiasutuste vahel, suurendades sellega avaliku ja erasektori internetipõhiste teenuste, e-äri ja e-kaubanduse tõhusust liidus. Määrus loob üldise õigusraamistik usaldusteenuste kasutamiseks, e-identimise süsteemide usaldusväärseks piiriüleseks vastastikuseks tunnustamiseks ja toimimiseks ning koostööks","https://www.europarl.europa.eu/doceo/document/TA-9-2024-0117_ET.html ","lähikuudel","prognoositud aprill/mai 2024","Määrus jõustub kahekümnendal päeval pärast selle avaldamist Euroopa Liidu Teatajas.","tööjõukulud","püsiv kulu",{"v":75000,"d":"75,000"},{"v":75000,"d":"75,000"},{"v":75000,"d":"75,000"},{"v":75000,"d":"75,000"},{"v":300000,"d":"300,000"},"üks juhtiveksperdi ametikoht, tööjõukulud ja lisanduvad töökohakulud","Määruse artiklid 45d lg2, 45f lg3, 46a lg 1-3, 46b lg 1-2, 46e 48a lg 1ja 4 Selgitused:                                                \n1. EUROOPA PARLAMENDI JA NÕUKOGU MÄÄRUS (EL) nr 910/2014, 23. juuli 2014,e-identimise ja e-tehingute jaoks vajalike usaldusteenuste kohta siseturul ja millega tunnistatakse kehtetuks direktiiv 1999/93/EÜ (edaspidi eIDAS2) otsekohalduva määruse uuendusena lisandub uusi usaldusteenuseid ja uusi nõudeid ka kvalifitseerimata usaldusteenustele, mille üle tuleb hakata täiendavalt tegema järelevalvet. Varasemalt ei olnud sellist vajadust. Kvalifitseerimata teenuse pakkujate üle tehakse järelevalvet kaebuse alusel.\n2. Euroopa Digiidentiteedikukru raamistiku järelevalve ülesanded (eIDAS2 artikkel 46 a kohustab igat liikmesriiki määrama järelevalveasutuse ja tagama ülesannete tulemuslikuks, tõhusaks ja sõltumatuks täitmiseks vajalikud volitused ja piisavad vahendid):\n2.1 Digikukru väljaarendamisel autentsete allikate järelevalve eiDAS2 nõuetele vastavuse üle, nende üle arvestuse pidamine, usaldusväärseks kinnitamine ja usaldusväärsete EL-i teavitamine.\n2.2 Digiidentiteedikukru pakkujate ja tuginevate isikute  järelevalve, selle sihipärase kasutamise üle.\n(eIDAS2 artikkel 46 a kohustab igat liikmesriiki määrama järelevalveasutuse ja tagama ülesannete tulemuslikuks, tõhusaks ja sõltumatuks täitmiseks vajalikud volitused ja piisavad vahendid).\n3. eIDAS2 kohase EL liikmesriikide järelevalveasutustega koostööraamistiku edendamine ja sisulistes töörühmades (näiteks Forum of European Supervisory Authorities-FESA, ENISA European Competent Authorities for Trust Service-ECATS, uus loomisel European Digital Identity Cooperation Group-EDICG) osalemine, neid saab olema digiidentiteedikukru väljatöötamisega ja kasutusele võtmisega rohkem ja aktiivsema panustamisega. eIDAS2 määrusega pannakse kohustus järelevalveasutustel vahetama teavet teiste EL riikidega oma järelevalvetoimingute ja parimate tavade kohta kõnealuses valdkonnas (Juhul, kui teenuseosutaja pakub oma teenuseid teise liikmesriigi territooriumil ega ole seal järelevalve all, või juhul, kui teenuseosutaja seadmed asuvad mõne muu liikmesriigi territooriumil kui teenuseosutaja asukohaliikmesriik, tuleb luua liikmesriikide järelevalveasutuste vahelise vastastikuse abistamise süsteem). Liikmesriikidel on kohustus tagada koostöörühmas enda määratud esindajate tulemusliku ja tõhusa koostöö (eIDAS2 art 46e).\n4. Järelevalve tegevuste regulaarne aruandmine EL Komisjonile ja Euroopa Liidu Võrgu- ja Infoturbeametile (ENISA). Aruannete maht võrreldes varasemaga kasvab (48a)\n5. Veebibrauserite pakkujate kaebuste lahendamine, mis on esitatud veebisaidi autentimiseks kasutatavate kvalifitseeritud sertifikaatide kohta.\n6. Siseriiklike järelevalveametite (AKI, TTJA…) koostööraamistiku välja töötamine eIDAS2 nõuetest tulenevate infovahetuse pidamiseks (näiteks Usaldusteenuse vastavushindamisaruannete kooskõlastamine AKI-ga või kui isikuandmete kaitse reegleid näib olevat rikutud, tuleb järelevalveasutusel teavitada  põhjendamatu viivituseta määruse (EL) 2016/679 kohaseid pädevaid järelevalveasutusi). Tuleb välja töötada asutuste omavaheline  teavitussüsteem                            "]
["Majandus- ja Kommunikatsiooniministeerium","Soolise võrdsuse ja võrdse kohtlemise programm","Soolise võrdõiguslikkuse valdkonnda arendamine","Palkade läbipaistvuse direktiiv","https://eur-lex.europa.eu/legal-content/ET/TXT/PDF/?uri=CELEX:32023L0970","Direktiivi eesmärgiks on saavutada olukord, kus naistele ja meestele makstakse võrdväärse töö eest võrdset tasu."," Direktiivi ülevõtmise eelnõu on koostamisel, link direktiivile https://eur-lex.europa.eu/legal-content/ET/TXT/PDF/?uri=CELEX:32023L0970"," EL akt, VV toetavad seisukohad 22.04.2021","EL akt, võetis EL-s vastu mai 2023",2026,"Lisavahendid Tööinspektsioonile 2 tööinspektori ametikoha loomiseks, kokku 78 000 eurot aastas (ühe ametikoha kulu 39 000 eurot aastas) ","Püsikulu",0,{"v":39000,"d":"39,000"},{"v":78000,"d":"78,000"},{"v":78000,"d":"78,000"},{"v":195000,"d":"195,000"},"Kulud Tööinspektsioonile kui direktiivi järelevalve asutusele. Brutopalk 2300 eurot, aastakulu 36 930 eurot, maj.kulu 2000 eurot/aastas, kulud kokku 39 000 eurot, kahe ametikoha kulu kokku  78 000 eurot. 2026 aastal vajadus 6 kuuks, kokku 39 000 eurot.","Direktiivi artikli 26 (järelevalve ja teadlikkus suurendamine) kohaselt liikmesriigid tagavad naistele ja meestele võrdse või võrdväärse töö eest võrdse tasu maksmise põhimõtete rakendamise järjepideva järelevalve ning kõigi kättesaadavate õiguskaitse vahendite kohaldamise. Samuti direktiivi eelnõu kohaselt (art 26) iga liikmesriik määrab järelevalveasutuse, kes jälgib ja toetab käesoleva direktiivi rakendamiseks vastu võetud siseriiklike õigusnormide rakendamist, ning võtab vajalikud meetmed sellise asutuse nõuetekohaseks toimimiseks. Järelevalveasutus võib olla olemasoleva riigiasutuse või - struktuuri osa.","Hetkel siseriiklikku õigusakti pole. Direktiivi ülevõtmise tähtaeg on 3a jõustumisest, seega tuleb see üle võtta 2026. aasta suveks. Esimene aruanne tuleb esitada 2027. a (kuni 150 töötajat al 2031. a) - siis algab ka meie järelevalve. Inspektorid võiksid olemas olla juba 2026 sügisest, et jõuaks koolitada ja olla valmis järelevalve teostamiseks 2027 aastast. "]
["Majandus- ja Kommunikatsiooniministeerium","Soolise võrdsuse ja võrdse kohtlemise programm","Soolise võrdõiguslikkuse valdkonnda arendamine","Palkade läbipaistvuse direktiiv","https://eur-lex.europa.eu/legal-content/ET/TXT/PDF/?uri=CELEX:32023L0970","Direktiivi eesmärgiks on saavutada olukord, kus naistele ja meestele makstakse võrdväärse töö eest võrdset tasu."," Direktiivi ülevõtmise eelnõu on koostamisel, link direktiivile https://eur-lex.europa.eu/legal-content/ET/TXT/PDF/?uri=CELEX:32023L0970"," EL akt, VV toetavad seisukohad 22.04.2021","EL akt, võetis EL-s vastu mai 2023",2026,"50 000 - analüüs olemasolevates töökohtade hindamise metoodikatest; 50 000 - koolitused tööandjatele; 30 000 - e-koolituse loomine","ajaliselt piiritletud \n",{"v":80000,"d":"80,000"},{"v":50000,"d":"50,000"},null,null,{"$f":"SUM(M41:P41)","v":{"v":130000,"d":"130,000"}},"50 000 - analüüs olemasolevates töökohtade hindamise metoodikatest; 50 000 - koolitused tööandjatele; 30 000 - e-koolituse loomine","Artikkel 11. Alla 250 töötajaga tööandjate toetamine. Liikmesriigid annavad alla 250 töötajaga tööandjatele ja asjaomastele töötajate esindajatele tehnilise abi ja koolituse vormis toetust, et aidata neil täita käesolevas direktiivis sätestatud kohustusi. JA Artikkel 4. Võrdne töö ja võrdväärne töö. 1. [...] 2. Liikmesriigid võtavad võrdõiguslikkust edendavate asutustega konsulteerides vajalikud meetmed tagamaks, et analüüsivahendid või -meetodid on tehtud kättesaadavaks ja on hõlpsalt kättesaadavad, et toetada ja suunata töö väärtuse hindamist ja võrdlemist kooskõlas käesolevas artiklis sätestatud kriteeriumidega. Need vahendid või meetodid aitavad tööandjatel ja/või sotsiaalpartneritel hõlpsalt kehtestada sooneutraalsed töökohtade hindamise ja klassifitseerimise süsteemid, mis välistavad igasuguse soolise diskrimineerimise, ning neid süsteeme kasutada."]
["Majandus- ja Kommunikatsiooniministeerium","Soolise võrdsuse ja võrdse kohtlemise programm","Soolise võrdõiguslikkuse valdkonnda arendamine","Palkade läbipaistvuse direktiiv","https://eur-lex.europa.eu/legal-content/ET/TXT/PDF/?uri=CELEX:32023L0970","Direktiivi eesmärgiks on saavutada olukord, kus naistele ja meestele makstakse võrdväärse töö eest võrdset tasu."," Direktiivi ülevõtmise eelnõu on koostamisel, link direktiivile https://eur-lex.europa.eu/legal-content/ET/TXT/PDF/?uri=CELEX:32023L0970"," EL akt, VV toetavad seisukohad 22.04.2021","EL akt, võetis EL-s vastu mai 2023",2026,"Soolise võrdõiguslikkuse ja võrdse kohtlemise voliniku kantseleile kulud 0,5 ametikoha loomiseks. ","püsikulu",null,{"v":12500,"d":"12,500"},{"v":25000,"d":"25,000"},{"v":25000,"d":"25,000"},{"v":62500,"d":"62,500"},"0, 5 ametikoha arvestuslik tööjõu kogukulu  aastas 22 000 ja lisanduv halduskulu (koolitused, lähetused, kantseleikulu) 3000. ","Artikkel 28. Võrdõiguslikkust edendavad asutused. [1.,2.] 3. Liikmesriigid tagavad võrdõiguslikkust edendavatele asutustele piisavalt vahendeid, et võimaldada neil tulemuslikult täita oma ülesandeid, mis on seotud võrdse tasustamise õiguse järgimisega."]
["Majandus- ja Kommunikatsiooniministeerium","Tööturuprogramm","Tööelu kvaliteedi arendamine","Euroopa Parlamendi ja nõukogu määrus (EL) nr 2021/2115\nja\nEuroopa Parlamendi ja nõukogu määrus (EL) 2021/2116  ","https://eur-lex.europa.eu/eli/reg/2021/2115/oj/est\n\n\nhttps://eur-lex.europa.eu/legal-content/ET/TXT/?uri=CELEX:02021R2116-20220826 ","Covid-19 pandeemia käigus on taas fookusesse tõusnud töötingimused põllumajanduses. Vastuseks sellele on kehtestatud nn sotsiaalne tingimuslikkus, mis seab ÜPP pindala- ja loomapõhiste toetuste saamise tingimuseks teatud tööõiguse sätete järgimise. Sanktsioonid rikkumiste eest põhinevad eranditult pädevate asutuste otsustel või ametlikel teadetel. Makseagentuur täiendavaid kontrolle ei tee. Lisaks pööratakse põllumajanduse laiendusteenustes suuremat tähelepanu tööõiguslikele küsimustele.","Eelnõu alles VTK faasis,  ","VV-le plaanis esitada eelnõu 2024 III kvartalis","Eeldatavalt 2025. algus","2025-01-01","Lisavahendid 1 andmeanalüütiku töökoha loomiseks, kokku 39 000 eurot aastas ","Püsikulu",{"v":39000,"d":"39,000"},{"v":39000,"d":"39,000"},{"v":39000,"d":"39,000"},{"v":39000,"d":"39,000"},{"v":156000,"d":"156,000"},"Brutopalk 2300 eurot, aastakulu 36 930 eurot, maj.kulu 2000 eurot/aastas, kulud kokku 39 000 eurot.","Eestil on kohustus rakendada alates 01.01.2025 sotsiaalse tingimuslikkuse süsteemi. Sotsiaalne tingimuslikkus on seotud kolmest direktiivist tulenevate nõuetega. Direktiiv (EL) 2019/1152- läbipaistvad ja prognoositavad töötingimused; direktiiv 89/391/EMÜ- meetmed, millega soodustatakse töötajate tervise ja ohutuse parandamist ning direktiiv 2009/104/EÜ- töötajate töövahendite kasutamisele esitatavad ohutuse ja tervishoiu miinimumnõuded.\nUue sotsiaalse tingimuslikkuse mehhanismi kohaselt peavad ELi riikide tööasutused (Eesti kontekstis selleks asutuseks Tööinspektsioon) teavitama põllumajanduse makseasutusi vähemalt kord aastas oma kontrollide tulemustest. Vajadusel vähendab makseasutu (PRIA) põllumajandustootjatele makstavat toetust"," "]
["MKM/TTJA","Ettevõtluskeskkond","Ettevõtluse arendamise soodustamine","Raudteeseaduse muutmise seadus","Siseriiklik","Raudteeseaduse muudatused on seotud Euroopa Liidu Raudteeameti poolse Eesti raudtee ohutusasutuse (TTJA) auditiga, kus on tähelepanekuna toodud siseriikliku seadusandluse (RdtS) mittevastamine EL määruse 2019/779 nõuetega ja  hoolduse eest vastutava üksuse sertifitseerimisasutuse (TTJA) inimressursi puudus ning sellest tulenevalt kehtestatud sertifitseerimisprotsessi järgimise mittevõimalikkus.","Eelnõu koostamisel","eeldatavalt sept 2024","eelduslikult sügisel  2024 Riigikogu lugemised","2025-04-30","Personalikulud","Püsikulu",{"v":34000,"d":"34,000"},{"v":50000,"d":"50,000"},{"v":50000,"d":"50,000"},{"v":50000,"d":"50,000"},{"$f":"SUM(M44:P44)","v":{"v":184000,"d":"184,000"}},"palgatase vastavas tööperes; 1 ametikoht  (töökoha kuludega)","Raudteeseaduse hoolduse eest vastutava üksuse pargrahvi (§ 42) täiendatakse ja täpsustakse. Lisandub täiendavalt hoolduse eest vastutava üksuse allhankefunktsiooni nõue ja täiendatakse § 42 lg-t 3  vedurite osaga. Täiendava ametikoha vajadus tulenevalt seaduse muudatusest ja TTJA kui sertifitseerimisasutuse protseduuri järgimisest.\nTTJA esitas Kliimaministeeriumile raudteeseaduse muudatuste ettepaneku 22.01.2024 (2-3/2024/0081). Hetkel on ministeeriumil eesmärk eelnõu saata kooskõlastusringile hiljemalt suve alguses. Euroopa Raudteeohutuse Ametile on lubatud eelnõu jõustumist 30.04.2025"]
["MKM/TTJA","Digiühiskond","Sidevaldkonna regulatiivse keskkonna tagamine","Tsiviilkriisi ja riigikaitse seaduse eelnõu ","https://eelnoud.valitsus.ee/main/mount/docList/375b55a6-eaf1-4904-b3b7-fd0965df5106#nTIPqvTU","Seadus reguleerib riigikaitse rahu- ja sõjaaegset korraldust, eriolukorraks, erakorraliseks ja sõjaseisukorraks valmistumist ja nendest põhjustatud olukordade lahendamist, mobilisatsiooni ja demobilisatsiooni korraldust, Eesti Vabariigi osalemist rahvusvahelises sõjalises koostöös, elutähtsate teenuste toimepidevuse tagamise õiguslikke aluseid ning järelevalvet ja vastutust","https://eelnoud.valitsus.ee/main/mount/docList/375b55a6-eaf1-4904-b3b7-fd0965df5106#nTIPqvTU","eeldatavalt juuni 2024","mai teine pool VV-sse ja sügisel Riigikogu lugemised","2024 lõpp","Personalikulud","Püsikulu",{"v":50000,"d":"50,000"},{"v":50000,"d":"50,000"},{"v":50000,"d":"50,000"},{"v":50000,"d":"50,000"},{"$f":"SUM(M45:P45)","v":{"v":200000,"d":"200,000"}},"palgatase vastavas tööperes; 1 ametikoht ","Iga asutus vajab edaspidi enda riskianalüüsi ja kriisiplaani koostamist, toimepidevuse tagamist ja õppuse läbiviimist korraldama ühe töötaja, mis sõltub asutuse suurusest, püsivate kriisiülesannete arvust ja olemusest ning muudest teguritest, seega võib tegelik vajadus olla väiksem või oluliselt suurem. Arvestades kriisiolukorraks valmistumise tegevuste täitmise keskmiseks ühe töötaja töökoormuse, siis on täiendav püsivajadus hinnanguliselt 50 000 eurot aastas, lisanduvad töökoha kulud.  "]
["MKM/TTJA","Digiühiskond","Sidevaldkonna regulatiivse keskkonna tagamine","Elektroonilise side seadus","Siseriiklik","Ettepanek kehtestada regulaatortasu, mille suuruseks ja sihtrühmaks – 0,2% nende sideettevõtjate sideteenuste aastakäibest, kelle sideteenuste aastakäive ületab 500 000 eur. Kokku u. 11 ettevõtjat. Potentsiaalne tulu riigieelarvele 0,9 mln aastas, millest 0,7 mln läheks riigieelarvest mh TTJA sideregulaatoril seni tekkinud võimelünkade ja uute, seadustega pandavate kohustuste katteks.","Hetkel VTK väljatöötamisel. Tulude laekumine aastal 2025 eeldab eelnõu heakskiitmist koos RES protsessiga. ","Eeldab eelnõu heakskiitmist koos RES protsessiga 2024","Eeldab eelnõu heakskiitmist koos RES protsessiga 2024","2025-01-01","Personalikulud, investeeringud  s.h.2025 250 tuh eurot, 2026 100 tuh eurot, 2027 200 tuh eurot ja 2028 100 tuh eurot","Kulud täiendavate tulude arvelt  ",{"v":550000,"d":"550,000"},{"v":550000,"d":"550,000"},{"v":700000,"d":"700,000"},{"v":700000,"d":"700,000"},{"$f":"SUM(M46:P46)","v":{"v":2500000,"d":"2,500,000"}},"palgatase vastavas tööperes; 2025  aastal 6 ametikohta , 2026  aastal  9 ametikohta, 2027  aastal 10 ametikohta,  2028 aastal 12 ametikohta"]
["MKM/RIA","Digiühiskond","Küberturvalisuse tagamine","NIS2 - Võetakse üle KüTS muudatusega","EL direktiiv - EV seadus. Eelnõud veel ei ole.","1) direktiiv art 11 sätestab \" CSIRTidele esitatavad nõuded, nende tehniline võimekus ja ülesanded\", mh kohustus \"koguda ja analüüsida kohtuekspertiisiandmeid ning analüüsida järjepidevalt riske ja intsidente ning tagada küberturvalisuse alane olukorrateadlikkus. Kogumise ja analüüsiga kaasneb vajadus sisustada labor ja hoiuruum, välja töötada protsess, register ning soetada vastav tarkvara ; 2) direktiivi art 23 ja 30, mis käsitlevad teatamiskohustust. Koosmõjus määrusega \"Küberintsidentide registri põhimäärus\" ning teatamiskohustusega kasvab CERT-EE seire töökoormus ning ööpäevases valves peab töötama kaks inimest.","http://data.europa.eu/eli/dir/2022/2555","Direktiiv on vastu võetud. KüTS eelnõu esitamine VV istungile  ebaselge.","Direktiiv on vastu võetud. KüTS vastuvõtmine ebaselge.","Direktiiv on vastu võetud. KüTS jõustumise aeg ebaselge.","Personalikulud, tarkvara, riistvara, sisustus.","Püsikulu, ühekordne kulu ",{"v":760000,"d":"760,000"},{"v":560000,"d":"560,000"},{"v":560000,"d":"560,000"},{"v":560000,"d":"560,000"},{"$f":"SUM(M47:P47)","v":{"v":2440000,"d":"2,440,000"}},"2025 aastal 9 ametikohta ning ühekordne investeering  taristusse. 2026-2028 9 ametikoha tööjõukulu. NB! Vastavalt KüTS-i lõplikule sõnastusele võivad kulud täpsustuda.","Juhul kui seadust ei jõuta muuta, siis 2025.a täiendavat tulu ei laeku ja võtame taotluse tagasi. Eraldi RMiga räägitud, et summad täpsustuvad seaduse menetluse käigus."]
[{"$nulls":10},"Kokku",null,{"$f":"SUM(M33:M47)","v":{"v":1865200,"d":"1,865,200"}},{"$f":"SUM(N33:N47)","v":{"v":11935584,"d":"11,935,584"}},{"v":17509043,"d":"17,509,043"},{"v":17664583,"d":"17,664,583"},{"v":48974410,"d":"48,974,410"}]
[{"$nulls":10},"Kokku",null,"Kui on ühes õigusaktis erinevad kulude liigid, siis need eraldi välja tuua "]
[{"$nulls":10},"investeering"]
[{"$nulls":10},"majandamiskulu"]